Workbook

Sheet TITLE PAGE
A1: Project: | B1: LTMS Up-date
A3: Calculation: | B3: Useful demand in the Agricultura sector
A6: Author: | B6: Alfred Moyo
B7: Energy Research Centre
B8: University of Cape Town
A10: Issue: | B10: Draft 1
A11: Date: | B11: 2011-02-09

Sheet AGRIC RES
A1: SECTOR: | B1: AGRICULTURE
A3: Electricity | B3: Diesel | C3: Petrol | D3: Coal | E3: LPG | F3: HFO | G3: Parafin | I3: Technology | K3: Traction | L3: Irrigation | M3: Heating | N3: Processing | O3: Other
I6: Diesel Transport
I8: Petrol Transport
I11: Electric Pumps
I13: Diesel Pumps
I15: Petrol Pumps
I18: Coal heating
I20: LPG heating
I22: HFO heating
I24: Paraffin heating
I27: Electric equipment
I29: Other Agriculture

Sheet Sources
A1: External sources:
A3: 1 | B3: Spreadsheet from previous LTMS, suppied by Alison. See Appendix 1
A5: 2 | B5: Results from the LEAP Model. See Appendix 2
A7: 3 | B7: DME energy balance 2006. See Appendix 3
A9: 4 | B9: SAPIA energy balances. See Appendix 4
A11: 5 | B11: Shares used in the IEP. See Appendix 5
A13: 6 | B13: Discussions with experts
A15: 7 | B15: Experts contacted for advice. See Appendix 6
A17: 8 | B17: Winkler, Harald et al 2006 "Energy Policies for sustainable Development in South Africa - Options for the Future", Energy Research Centre, University of Cape Town

Sheet Appendix 1
A1: Agriculture
A3: Final Energy Demand 2001 (source: spreadsheets for source 3)
C4: Fuel Use | D4: Efficiency
C5: [PJ]
A6: Irrigation
A7: Pumps
A8: Diesel | C8: 1 | D8: 0.35
A9: Electricity | C9: 6.343153643 | D9: 0.95
A10: Petrol | C10: 1 | D10: 0.25
A11: Total | C11: 8.343153643
A12: Tractors, harvesters, transport
A13: Diesel | C13: 41.50215191 | D13: 0.35
A14: Petrol | C14: 1.82 | D14: 0.25
A15: Total | C15: 43.32215191
A16: Heat
A17: Coal | C17: 1.5 | D17: 0.65
A18: HFO | C18: 1.566365133 | D18: 0.7
A19: LPG | C19: 0.1308070113 | D19: 0.75
A20: Paraffin | C20: 2.4 | D20: 0.7
A21: Total | C21: 5.597172144
A22: Processing and Handling
A23: Electricity | C23: 5.686965335 | E23: since this is only using electricity, the efficiency is assumed to be 100%
A25: Other
A26: Electricity | C26: 9.842824619
C30: Fuel use [TJ] | D30: (source: 3 pg 131)
A31: Fuels [TJ] | C31: 2001 | D31: use | G31: PJ
A32: Coal | C32: 1500 | D32: heat | G32: =C32/1000 -> 1.5
A33: LPG | C33: 130.8070113 | D33: heat | G33: =C33/1000 -> 0.1308070113
A34: Petrol | C34: 2820 | D34: tractors etc | G34: 2.82
A35: Paraffin | C35: 2400 | D35: heat | G35: 2.4
A36: Diesel | C36: 42502.15191 | D36: tractors etc | G36: 42.50215191
A37: HFO | C37: 1566.365133 | D37: heat | G37: 1.566365133
A38: Electricity | C38: 21872.9436 | D38: processing, other, irrigation | G38: 21.8729436
A39: TOTAL | C39: =SUM(C32:C38) -> 72792.26766 | F39: note: this has been cross checked with the Final Energy Demand table above and is good
A41: Technology Information
A42: Fuel consumed | B42: device | C42: efficiency 2000 | D42: efficiency 2030 | E42: maximum potential improvement in energy efficiency | F42: Investment cost | G42: residual capacity | H42: lifetime
F43: [R/GJ] | G43: [TJ] | H43: [years]
A44: Irrigation
A45: Diesel | B45: Pumps | C45: 0.35 | D45: 0.35 | G45: 0.35 | H45: 15
A46: Electricity | B46: Pumps | C46: 0.95 | D46: 0.95 | G46: 6.025996 | H46: 15
A47: Petrol | B47: Pumps | C47: 0.25 | D47: 0.25 | G47: 0.25 | H47: 15
A48: Tractors, Harvesters, Transport
A49: Bio-diesel | B49: THT | C49: 1 | D49: 1 | G49: 0 | H49: 15
A50: Bio-ethanol | B50: THT | C50: 1 | D50: 1 | G50: 0 | H50: 15
A51: Diesel | B51: THT | C51: 0.35 | D51: 0.35 | G51: 14.53 | H51: 15
A52: Petrol | B52: THT | C52: 0.25 | D52: 0.25 | G52: 0.46 | H52: 15
A54: Heat
A55: Coal | B55: Heating | C55: 0.65 | D55: 0.65 | G55: 0.98 | H55: 15
A56: HFO | B56: Heating | C56: 0.7 | D56: 0.7 | G56: 1.1 | H56: 15
A57: LPG | B57: Heating | C57: 0.75 | D57: 0.75 | G57: 0.1 | H57: 15
A58: Paraffin | B58: Heating | C58: 0.7 | D58: 0.7 | G58: 1.68 | H58: 15
A59: Renewables | B59: Heating | C59: 1 | D59: 1 | G59: 0 | H59: 15
A62: Time of Use
C63: Processing | D63: Irrigation | E63: Other
A64: Intermediate day | C64: 0.26 | D64: 0.25 | E64: 0.25
A65: Intermediate night | C65: 0.1 | D65: 0.09 | E65: 0.09
A66: Summer day | C66: 0.3 | D66: 0.29 | E66: 0.28
A67: Summer night | C67: 0.11 | D67: 0.1 | E67: 0.1
A68: Winter day | C68: 0.17 | D68: 0.2 | E68: 0.21
A69: Winter night | C69: 0.06 | D69: 0.07 | E69: 0.07

Sheet Appendix 2
C3: 2000 | D3: 2001 | E3: 2002 | F3: 2003 | G3: 2004 | H3: 2005 | I3: 2006
B4: Heat Thermal\Coal Bituminous | C4: 1.5 | D4: 1.5 | E4: 1.52 | F4: 1.54 | G4: 1.56 | H4: 1.58 | I4: 1.6
B5: Heat Thermal\Fuel Oil | C5: 1.57 | D5: 1.57 | E5: 1.59 | F5: 1.61 | G5: 1.63 | H5: 1.65 | I5: 1.67
B6: Heat Thermal\LPG | C6: 0.13 | D6: 0.13 | E6: 0.13 | F6: 0.13 | G6: 0.14 | H6: 0.14 | I6: 0.14
B7: Heat Thermal\Paraffin | C7: 2.4 | D7: 2.4 | E7: 2.43 | F7: 2.46 | G7: 2.49 | H7: 2.52 | I7: 2.56
B8: Heat Thermal\Renewable biomass | C8: 0 | D8: 0 | E8: 0 | F8: 0 | G8: 0 | H8: 0 | I8: 0
B9: Irrigation\Diesel | C9: 1 | D9: 1 | E9: 1.01 | F9: 1.02 | G9: 1.04 | H9: 1.05 | I9: 1.06
B10: Irrigation\Elec | C10: 6.34 | D10: 6.34 | E10: 6.42 | F10: 6.5 | G10: 6.58 | H10: 6.66 | I10: 6.74
B11: Irrigation\Petrol | C11: 1 | D11: 1 | E11: 1.01 | F11: 1.02 | G11: 1.04 | H11: 1.05 | I11: 1.06
B12: Other\Elec | C12: 9.84 | D12: 9.84 | E12: 9.96 | F12: 10.09 | G12: 10.21 | H12: 10.34 | I12: 10.47
B13: Processes all elec\Elec | C13: 5.69 | D13: 5.69 | E13: 5.76 | F13: 5.83 | G13: 5.91 | H13: 5.98 | I13: 6.05
B14: Tractors harvestors transport\Biofuel Diesel | C14: 0 | D14: 0 | E14: 0 | F14: 0 | G14: 0 | H14: 0 | I14: 0
B15: Tractors harvestors transport\Biofuel Ethanol | C15: 0 | D15: 0 | E15: 0 | F15: 0 | G15: 0 | H15: 0 | I15: 0
B16: Tractors harvestors transport\Diesel | C16: 41.5 | D16: 41.5 | E16: 42.02 | F16: 42.54 | G16: 43.08 | H16: 43.62 | I16: 44.16
B17: Tractors harvestors transport\Petrol | C17: 1.82 | D17: 1.82 | E17: 1.84 | F17: 1.87 | G17: 1.89 | H17: 1.91 | I17: 1.94
B18: Total | C18: 72.79 | D18: 72.79 | E18: 73.7 | F18: 74.62 | G18: 75.55 | H18: 76.5 | I18: 77.45

Sheet Appendix 3
B5: TJ | C5: DME Energy Balances 2006
B6: Agriculture
B7: Butimous Coal | C7: 763.263
B8: LPG | C8: 1.3529157
B9: Motor Gasoline | C9: 4964.196109
B10: Other Kerosene | C10: 2509.77586
B11: Gas Diesel | C11: 38226.11908
B12: HFO | C12: 1763.813043
B13: Electricity | C13: 21029.3928
B14: TOTAL | C14: =SUM(C7:C13) -> 69257.9128

Sheet Appendix 4
C1: TJ | D1: From: [SAPIA_EB_Comparison (version 1).xlsb]DieselComp'!D57 | H1: TJ
C2: SAPIA EB categories | H2: DME Energy Balances | M2: % difference (EB-SAPIA)/SAPIA | R2: Absolute difference (TJ)
B3: Diesel | C3: 2003 | D3: 2004 | E3: 2005 | F3: 2006 | H3: 2003 | I3: 2004 | J3: 2005 | K3: 2006 | M3: 2003 | N3: 2004 | O3: 2005 | P3: 2006 | R3: 2003 | S3: 2004 | T3: 2005 | U3: 2006
B4: Agriculture | C4: 42091.02995 | D4: 41345.54843 | E4: 40059.44696 | F4: 39927.45069 | H4: 42091.0259 | I4: 41345.99694 | J4: 40054.47007 | K4: 38226.11908 | M4: -9.622073882e-08 | N4: 1.084781859e-05 | O4: -0.0001242375788 | P4: -0.04261057448 | R4: -0.004050030002 | S4: 0.448509009 | T4: -4.9768887 | U4: -1701.331611
B5: Construction | C5: 9298.805026 | D5: 8522.08234 | E5: 8546.924308 | F5: 8110.132611 | H5: 9299.413901 | I5: 8526.321124 | J5: 8545.760963 | K5: 7865.820362 | M5: 6.547879801e-05 | N5: 0.0004973881905 | O5: -0.0001361127533 | P5: -0.0301243224 | R5: 0.608874576 | S5: 4.238783115 | T5: -1.1633454 | U5: -244.3122495
B6: Road | C6: 185282.185 | D6: 203853.4306 | E6: 226578.425 | F6: 248046.9029 | H6: 185337.9495 | I6: 204273.2688 | J6: 226314.2852 | K6: 239807.8881 | M6: 0.0003009706108 | N6: 0.002059509906 | O6: -0.00116577646 | P6: -0.03321555205 | R6: 55.7644924 | S6: 419.8381597 | T6: -264.1397943 | U6: -8239.014815
B7: Commerce and Public Services | C7: 2370.024788 | D7: 1762.976878 | E7: 841.9928931 | F7: 1746.026836 | H7: 2370.024788 | I7: 1766.785202 | J7: 841.9548312 | K7: 1742.024659 | M7: 0 | N7: 0.002160166505 | O7: -4.520453832e-05 | P7: -0.002292162021 | R7: 0 | S7: 3.8083236 | T7: -0.0380619 | U7: -4.0021764
B8: Residential | C8: 2071.593843 | D8: 2022.052763 | E8: 1979.731855 | F8: 1809.923812 | H8: 2022.542158 | I8: 1979.818913 | J8: 1979.731855 | K8: 1776.306277 | M8: -0.02367823459 | N8: -0.02088662115 | O8: 0 | P8: -0.01857400559 | R8: -49.05168498 | S8: -42.23385 | T8: 0 | U8: -33.617535
B9: Mining and Quarrying | C9: 26903.67931 | D9: 27041.14334 | E9: 28468.17613 | F9: 29146.61803 | H9: 26903.67865 | I9: 27077.50491 | J9: 28297.47057 | K9: 28149.15592 | M9: -2.457043136e-08 | N9: 0.001344675992 | O9: -0.005996364618 | P9: -0.03422222481 | R9: -0.0006610350065 | S9: 36.36157625 | T9: -170.7055641 | U9: -997.4621148
B10: Rail | C10: 8706.024605 | D10: 7631.390426 | E10: 2771.44673 | F10: 2941.331239 | H10: 8706.022441 | I10: 7726.944147 | J10: 2771.44673 | K10: 2765.221267 | M10: -2.48572695e-07 | N10: 0.01252114182 | O10: 0 | P10: -0.05987424012 | R10: -0.002164079999 | S10: 95.55372177 | T10: 0 | U10: -176.1099729
B12: Gasoline | C12: 2003 | D12: 2004 | E12: 2005 | F12: 2006 | H12: 2003 | I12: 2004 | J12: 2005 | K12: 2006 | M12: 2003 | N12: 2004 | O12: 2005 | P12: 2006 | R12: 2003 | S12: 2004 | T12: 2005 | U12: 2006
B13: Agriculture | C13: 5092.281607 | D13: 5052.771954 | E13: 5310.614475 | F13: 4964.196109 | H13: 5092.281607 | I13: 5053.593643 | J13: 5310.614475 | K13: 4964.196109 | M13: 0 | N13: 0.0001626214695 | O13: 0 | P13: 0 | R13: 0 | S13: 0.8216892 | T13: 0 | U13: 0
B14: Construction | C14: 98.1344034 | D14: 95.030685 | E14: 269.5270536 | F14: 64.448361 | H14: 98.1344034 | I14: 95.030685 | J14: 269.5270536 | K14: 64.448361 | M14: 0 | N14: 0 | O14: 0 | P14: 0 | R14: 0 | S14: 0 | T14: 0 | U14: 0
B15: Road | C15: 357159.4382 | D15: 368266.5254 | E15: 374827.5331 | F15: 379189.0154 | H15: 357205.2488 | I15: 378929.1526 | J15: 374594.647 | K15: 379688.8397 | M15: 0.000128263799 | N15: 0.02895356069 | O15: -0.0006213153422 | P15: 0.001318140185 | R15: 45.8106264 | S15: 10662.6272 | T15: -232.886097 | U15: 499.824279
B16: Commerce and Public Services | C16: 804.8780532 | D16: 654.3142632 | E16: 265.446036 | F16: 237.1015548 | H16: 804.8780532 | I16: 658.1620368 | J16: 265.446036 | K16: 237.1015548 | M16: 0 | N16: 0.005880620088 | O16: 0 | P16: 0 | R16: 0 | S16: 3.8477736 | T16: 0 | U16: 0
B17: Residential | C17: 1076.811795 | D17: 878.2316154 | E17: 839.499363 | F17: 731.683692 | H17: 1046.794147 | I17: 858.4596036 | J17: 836.618526 | K17: 672.9642414 | M17: -0.02787641066 | N17: -0.02251343661 | O17: -0.003431613086 | P17: -0.08025250698 | R17: -30.0176478 | S17: -19.7720118 | T17: -2.880837 | U17: -58.7194506
B18: Mining and Quarrying | C18: 595.2284964 | D18: 578.7011412 | E18: 527.6628738 | F18: 464.7447576 | H18: 595.2284964 | I18: 578.7011412 | J18: 527.2182054 | K18: 464.7447918 | M18: 0 | N18: 0 | O18: -0.0008427130694 | P18: 7.35887804e-08 | R18: 0 | S18: 0 | T18: -0.4446684 | U18: 3.419999996e-05
B19: Rail | C19: 35.5088682 | D19: 3.1876794 | E19: 0.0733248 | F19: 0.2736 | H19: 35.5088682 | I19: 4.838445 | J19: 0.0733248 | K19: 0.2736 | M19: 0 | N19: 0.5178581008 | O19: 0 | P19: 0 | R19: 0 | S19: 1.6507656 | T19: 0 | U19: 0
B21: Paraffin | C21: 2003 | D21: 2004 | E21: 2005 | F21: 2006 | H21: 2003 | I21: 2004 | J21: 2005 | K21: 2006 | M21: 2003 | N21: 2004 | O21: 2005 | P21: 2006 | R21: 2003 | S21: 2004 | T21: 2005 | U21: 2006
B22: Agriculture | C22: 3164.099511 | D22: 3166.706531 | E22: 2879.841831 | F22: 2509.630783 | H22: 3164.664205 | I22: 3167.520975 | J22: 2879.972034 | K22: 2509.77586 | M22: 0.0001784691025 | N22: 0.0002571896044 | O22: 4.521185803e-05 | P22: 5.780810507e-05 | R22: 0.564694 | S22: 0.814444 | T22: 0.130203 | U22: 0.145077
B23: Construction | C23: 140.825293 | D23: 121.343979 | E23: 127.094667 | F23: 101.229965 | H23: 149.683315 | I23: 126.886505 | J23: 131.965976 | K23: 102.310217 | M23: 0.06290078871 | N23: 0.04567615176 | O23: 0.03832819358 | P23: 0.01067126715 | R23: 8.858022 | S23: 5.542526 | T23: 4.871309 | U23: 1.080252
B24: Road | C24: 277.334425 | D24: 208.442386 | E24: 298.659671 | F24: 271.088862 | H24: 279.631089 | I24: 209.858561 | J24: 299.120691 | K24: 271.163232 | M24: 0.008281207787 | N24: 0.006794083618 | O24: 0.001543629906 | P24: 0.0002743380877 | R24: 2.296664 | S24: 1.416175 | T24: 0.46102 | U24: 0.07437
B25: Commerce and Public Services | C25: 102.833249 | D25: 95.412788 | E25: 91.777057 | F25: 368.756356 | H25: 106.418845 | I25: 95.412788 | J25: 92.706719 | K25: 1007.333806 | M25: 0.03486806101 | N25: 0 | O25: 0.01012956866 | P25: 1.731705609 | R25: 3.585596 | S25: 0 | T25: 0.929662 | U25: 638.57745
B26: Residential | C26: 24180.51613 | D26: 25356.06703 | E26: 24251.67808 | F26: 23565.24528 | H26: 24201.3468 | I26: 25387.31882 | J26: 24267.58183 | K26: 22930.93896 | M26: 0.000861464945 | N26: 0.001232517289 | O26: 0.0006557792391 | P26: -0.02691702592 | R26: 20.830667 | S26: 31.251791 | T26: 15.903747 | U26: -634.306318
B27: Mining and Quarrying | C27: 552.749845 | D27: 511.552047 | E27: 518.506345 | F27: 496.516172 | H27: 552.794245 | I27: 515.300406 | J27: 518.506345 | K27: 496.516172 | M27: 8.032566703e-05 | N27: 0.007327424496 | O27: 0 | P27: 0 | R27: 0.0444 | S27: 3.748359 | T27: 0 | U27: 0
B28: Rail | C28: 3.072036 | D28: 4.253816 | E28: 4.693191 | F28: 0.89244 | H28: 3.072036 | I28: 4.253816 | J28: 4.693191 | K28: 0.89244 | M28: 0 | N28: 0 | O28: 0 | P28: 0 | R28: 0 | S28: 0 | T28: 0 | U28: 0
B30: LPG | C30: 2003 | D30: 2004 | E30: 2005 | F30: 2006 | H30: 2003 | I30: 2004 | J30: 2005 | K30: 2006 | M30: 2003 | N30: 2004 | O30: 2005 | P30: 2006 | R30: 2003 | S30: 2004 | T30: 2005 | U30: 2006
B31: Agriculture | C31: 1.245288 | D31: 1.8485211 | E31: 1.4765367 | F31: 1.3529157 | H31: 1.245288 | I31: 1.8485211 | J31: 1.4765367 | K31: 1.3529157 | M31: -8.030264458e-07 | N31: -5.409727044e-07 | O31: -6.772600523e-07 | P31: -7.391438068e-07 | R31: 0 | S31: 0 | T31: 0 | U31: 0
B32: Construction | C32: 80.3907096 | D32: 2.0260494 | E32: 178.2486126 | F32: 3.8018397 | H32: 80.3907096 | I32: 2.0260494 | J32: 178.2486126 | K32: 3.8018397 | M32: -1.243924797e-08 | N32: -4.935711371e-07 | O32: -5.610141796e-09 | P32: -2.630304842e-07 | R32: 0 | S32: 0 | T32: 0 | U32: 0
B33: Road | C33: 18.1492716 | D33: 0.026166 | E33: 0 | F33: 0 | H33: 18.1100493 | I33: 0.026166 | J33: 0 | K33: 0 | M33: -0.002161149974 | N33: -3.821607368e-05 | O33: 0 | P33: 0 | R33: -0.0392223 | S33: 0 | T33: 0 | U33: 0
B34: Commerce and Public Services | C34: 2694.203016 | D34: 1975.657449 | E34: 2222.535394 | F34: 2763.413501 | H34: 2694.52136 | I34: 1.29495 | J34: 2222.535394 | K34: 0 | M34: 0.0001181585419 | N34: -0.9993445473 | O34: -4.499363104e-10 | P34: -1 | R34: 0.3183441 | S34: -1974.362499 | T34: 0 | U34: -2763.413501
B35: Residential | C35: 12167.79027 | D35: 12878.94632 | E35: 12099.60445 | F35: 13373.26798 | H35: 12167.47094 | I35: 14854.4739 | J35: 12099.60445 | K35: 13373.26798 | M35: -2.624403431e-05 | N35: 0.1533920186 | O35: -8.26472224e-11 | P35: -7.477607422e-11 | R35: -0.3193309053 | S35: 1975.527576 | T35: 0 | U35: 0
B36: Mining and Quarrying | C36: 222.5852175 | D36: 188.4827226 | E36: 183.1024857 | F36: 0.0615702 | H36: 222.5852175 | I36: 188.4827226 | J36: 183.1024857 | K36: 0.0615702 | M36: -4.492661354e-09 | N36: -5.305525907e-09 | O36: -5.461422092e-09 | P36: -1.62413596e-05 | R36: 0 | S36: 0 | T36: 0 | U36: 0
B37: Rail | C37: 0 | D37: 0 | E37: 0 | F37: 0

Sheet Appendix 5
A1: From: [ltms update_agriculture]Agric LEAP'!C36
A2: IEP
A4: Irrigation
A5: Shares | C5: 2001 | D5: 2002 | E5: 2003 | F5: 2004 | G5: 2005 | H5: 2006 | I5: 2007 | J5: 2008 | K5: 2009 | L5: 2010 | M5: 2011 | N5: 2012 | O5: 2013 | P5: 2014 | Q5: 2015 | R5: 2016 | S5: 2017 | T5: 2018 | U5: 2019 | V5: 2020 | W5: 2021 | X5: 2022 | Y5: 2023 | Z5: 2024 | AA5: 2025 | AB5: 2026 | AC5: 2027 | AD5: 2028 | AE5: 2029 | AF5: 2030
A6: Diesel | B6: low | C6: 0.1199040767 | D6: 0.1196682464 | E6: 0.1194379391 | F6: 0.1200923788 | G6: 0.1198630137 | H6: 0.1196388262 | I6: 0.1201334816 | J6: 0.1199119912 | K6: 0.1195652174 | L6: 0.1200428725 | M6: 0.1197033898 | N6: 0.1201671891 | O6: 0.1198347107 | P6: 0.1195097038 | Q6: 0.1199596774 | R6: 0.1195219124 | S6: 0.1199606686 | T6: 0.1195335277 | U6: 0.1198465964 | V6: 0.1201513718 | W6: 0.119738073 | X6: 0.1200369344 | Y6: 0.1196347032 | Z6: 0.1199278629 | AA6: 0.1201067616 | AB6: 0.1196130167 | AC6: 0.1198957428 | AD6: 0.1200686106 | AE6: 0.1195928753 | AF6: 0.119665272
B7: up | C7: 0.1199040767 | D7: 0.1196682464 | E7: 0.1194379391 | F7: 0.1200923788 | G7: 0.1198630137 | H7: 0.1196388262 | I7: 0.1201334816 | J7: 0.1199119912 | K7: 0.1195652174 | L7: 0.1200428725 | M7: 0.1197033898 | N7: 0.1201671891 | O7: 0.1198347107 | P7: 0.1195097038 | Q7: 0.1199596774 | R7: 0.1195219124 | S7: 0.1199606686 | T7: 0.1195335277 | U7: 0.1198465964 | V7: 0.1201513718 | W7: 0.119738073 | X7: 0.1200369344 | Y7: 0.1196347032 | Z7: 0.1199278629 | AA7: 0.1201067616 | AB7: 0.1196130167 | AC7: 0.1198957428 | AD7: 0.1200686106 | AE7: 0.1195928753 | AF7: 0.119665272
A8: Electricity | B8: low | C8: 0.7601918465 | D8: 0.7606635071 | E8: 0.7611241218 | F8: 0.7598152425 | G8: 0.7602739726 | H8: 0.7607223476 | I8: 0.7597330367 | J8: 0.7601760176 | K8: 0.7608695652 | L8: 0.7599142551 | M8: 0.7605932203 | N8: 0.7596656217 | O8: 0.7603305785 | P8: 0.7609805924 | Q8: 0.7600806452 | R8: 0.7609561753 | S8: 0.7600786627 | T8: 0.7609329446 | U8: 0.7603068073 | V8: 0.7596972564 | W8: 0.7605238541 | X8: 0.7599261311 | Y8: 0.7607305936 | Z8: 0.7601442741 | AA8: 0.7597864769 | AB8: 0.7607739666 | AC8: 0.7602085143 | AD8: 0.7598627787 | AE8: 0.7608142494 | AF8: 0.7606694561
B9: up | C9: 0.7601918465 | D9: 0.7606635071 | E9: 0.7611241218 | F9: 0.7598152425 | G9: 0.7602739726 | H9: 0.7607223476 | I9: 0.7597330367 | J9: 0.7601760176 | K9: 0.7608695652 | L9: 0.7599142551 | M9: 0.7605932203 | N9: 0.7596656217 | O9: 0.7603305785 | P9: 0.7609805924 | Q9: 0.7600806452 | R9: 0.7609561753 | S9: 0.7600786627 | T9: 0.7609329446 | U9: 0.7603068073 | V9: 0.7596972564 | W9: 0.7605238541 | X9: 0.7599261311 | Y9: 0.7607305936 | Z9: 0.7601442741 | AA9: 0.7597864769 | AB9: 0.7607739666 | AC9: 0.7602085143 | AD9: 0.7598627787 | AE9: 0.7608142494 | AF9: 0.7606694561
A10: Petrol | B10: low | C10: 0.1199040767 | D10: 0.1196682464 | E10: 0.1194379391 | F10: 0.1200923788 | G10: 0.1198630137 | H10: 0.1196388262 | I10: 0.1201334816 | J10: 0.1199119912 | K10: 0.1195652174 | L10: 0.1200428725 | M10: 0.1197033898 | N10: 0.1201671891 | O10: 0.1198347107 | P10: 0.1195097038 | Q10: 0.1199596774 | R10: 0.1195219124 | S10: 0.1199606686 | T10: 0.1195335277 | U10: 0.1198465964 | V10: 0.1201513718 | W10: 0.119738073 | X10: 0.1200369344 | Y10: 0.1196347032 | Z10: 0.1199278629 | AA10: 0.1201067616 | AB10: 0.1196130167 | AC10: 0.1198957428 | AD10: 0.1200686106 | AE10: 0.1195928753 | AF10: 0.119665272
B11: up | C11: 0.1199040767 | D11: 0.1196682464 | E11: 0.1194379391 | F11: 0.1200923788 | G11: 0.1198630137 | H11: 0.1196388262 | I11: 0.1201334816 | J11: 0.1199119912 | K11: 0.1195652174 | L11: 0.1200428725 | M11: 0.1197033898 | N11: 0.1201671891 | O11: 0.1198347107 | P11: 0.1195097038 | Q11: 0.1199596774 | R11: 0.1195219124 | S11: 0.1199606686 | T11: 0.1195335277 | U11: 0.1198465964 | V11: 0.1201513718 | W11: 0.119738073 | X11: 0.1200369344 | Y11: 0.1196347032 | Z11: 0.1199278629 | AA11: 0.1201067616 | AB11: 0.1196130167 | AC11: 0.1198957428 | AD11: 0.1200686106 | AE11: 0.1195928753 | AF11: 0.119665272
A12: Sum | B12: low | C12: 1 | D12: 1 | E12: 1 | F12: 1 | G12: 1 | H12: 1 | I12: 1 | J12: 1 | K12: 1 | L12: 1 | M12: 1 | N12: 1 | O12: 1 | P12: 1 | Q12: 1 | R12: 1 | S12: 1 | T12: 1 | U12: 1 | V12: 1 | W12: 1 | X12: 1 | Y12: 1 | Z12: 1 | AA12: 1 | AB12: 1 | AC12: 1 | AD12: 1 | AE12: 1 | AF12: 1
B13: up | C13: 1 | D13: 1 | E13: 1 | F13: 1 | G13: 1 | H13: 1 | I13: 1 | J13: 1 | K13: 1 | L13: 1 | M13: 1 | N13: 1 | O13: 1 | P13: 1 | Q13: 1 | R13: 1 | S13: 1 | T13: 1 | U13: 1 | V13: 1 | W13: 1 | X13: 1 | Y13: 1 | Z13: 1 | AA13: 1 | AB13: 1 | AC13: 1 | AD13: 1 | AE13: 1 | AF13: 1
A15: Tractors, harvesters and transport
A16: Shares | C16: 2001 | D16: 2002 | E16: 2003 | F16: 2004 | G16: 2005 | H16: 2006 | I16: 2007 | J16: 2008 | K16: 2009 | L16: 2010 | M16: 2011 | N16: 2012 | O16: 2013 | P16: 2014 | Q16: 2015 | R16: 2016 | S16: 2017 | T16: 2018 | U16: 2019 | V16: 2020 | W16: 2021 | X16: 2022 | Y16: 2023 | Z16: 2024 | AA16: 2025 | AB16: 2026 | AC16: 2027 | AD16: 2028 | AE16: 2029 | AF16: 2030
A17: Bio-Diesel | B17: low | C17: 0 | D17: 0 | E17: 0 | F17: 0 | G17: 0 | H17: 0 | I17: 0 | J17: 0 | K17: 0 | L17: 0 | M17: 0 | N17: 0 | O17: 0 | P17: 0 | Q17: 0 | R17: 0 | S17: 0 | T17: 0 | U17: 0 | V17: 0 | W17: 0 | X17: 0 | Y17: 0 | Z17: 0 | AA17: 0 | AB17: 0 | AC17: 0 | AD17: 0 | AE17: 0 | AF17: 0
B18: up | C18: 0 | D18: 0 | E18: 0 | F18: 0 | G18: 0 | H18: 0 | I18: 0 | J18: 0 | K18: 0 | L18: 0 | M18: 0 | N18: 0 | O18: 0 | P18: 0 | Q18: 0 | R18: 0 | S18: 0 | T18: 0 | U18: 0 | V18: 0 | W18: 0 | X18: 0 | Y18: 0 | Z18: 0 | AA18: 0 | AB18: 0 | AC18: 0 | AD18: 0 | AE18: 0 | AF18: 0
A19: Bio-Ethanol | B19: low | C19: 0 | D19: 0 | E19: 0 | F19: 0 | G19: 0 | H19: 0 | I19: 0 | J19: 0 | K19: 0 | L19: 0 | M19: 0 | N19: 0 | O19: 0 | P19: 0 | Q19: 0 | R19: 0 | S19: 0 | T19: 0 | U19: 0 | V19: 0 | W19: 0 | X19: 0 | Y19: 0 | Z19: 0 | AA19: 0 | AB19: 0 | AC19: 0 | AD19: 0 | AE19: 0 | AF19: 0
B20: up | C20: 0 | D20: 0 | E20: 0 | F20: 0 | G20: 0 | H20: 0 | I20: 0 | J20: 0 | K20: 0 | L20: 0 | M20: 0 | N20: 0 | O20: 0 | P20: 0 | Q20: 0 | R20: 0 | S20: 0 | T20: 0 | U20: 0 | V20: 0 | W20: 0 | X20: 0 | Y20: 0 | Z20: 0 | AA20: 0 | AB20: 0 | AC20: 0 | AD20: 0 | AE20: 0 | AF20: 0
A21: Diesel | B21: low | C21: 0.9579870729 | D21: 0.9580483356 | E21: 0.9578923666 | F21: 0.9579719813 | G21: 0.9580496376 | H21: 0.9579175705 | I21: 0.9580029998 | J21: 0.9578925095 | K21: 0.9579937304 | L21: 0.9578947368 | M21: 0.9580020387 | N21: 0.9579222871 | O21: 0.958035004 | P21: 0.9579732914 | Q21: 0.9579131109 | R21: 0.9580379383 | S21: 0.9579943236 | T21: 0.9579517847 | U21: 0.9579180509 | V21: 0.9580674567 | W21: 0.9580482535 | X21: 0.9580295216 | Y21: 0.9580259923 | Z21: 0.9580225499 | AA21: 0.9580263834 | AB21: 0.958037225 | AC21: 0.9580548128 | AD21: 0.9579207921 | AE21: 0.9579462103 | AF21: 0.957984546
B22: up | C22: 0.9579870729 | D22: 0.9580483356 | E22: 0.9578923666 | F22: 0.9579719813 | G22: 0.9580496376 | H22: 0.9579175705 | I22: 0.9580029998 | J22: 0.9578925095 | K22: 0.9579937304 | L22: 0.9578947368 | M22: 0.9580020387 | N22: 0.9579222871 | O22: 0.958035004 | P22: 0.9579732914 | Q22: 0.9579131109 | R22: 0.9580379383 | S22: 0.9579943236 | T22: 0.9579517847 | U22: 0.9579180509 | V22: 0.9580674567 | W22: 0.9580482535 | X22: 0.9580295216 | Y22: 0.9580259923 | Z22: 0.9580225499 | AA22: 0.9580263834 | AB22: 0.958037225 | AC22: 0.9580548128 | AD22: 0.9579207921 | AE22: 0.9579462103 | AF22: 0.957984546
A23: Petrol | B23: low | C23: 0.04201292705 | D23: 0.04195166439 | E23: 0.04210763342 | F23: 0.04202801868 | G23: 0.0419503624 | H23: 0.0420824295 | I23: 0.04199700021 | J23: 0.04210749048 | K23: 0.04200626959 | L23: 0.04210526316 | M23: 0.04199796126 | N23: 0.04207771291 | O23: 0.04196499602 | P23: 0.04202670856 | Q23: 0.04208688906 | R23: 0.0419620617 | S23: 0.04200567644 | T23: 0.04204821529 | U23: 0.04208194906 | V23: 0.0419325433 | W23: 0.04195174649 | X23: 0.04197047839 | Y23: 0.04197400773 | Z23: 0.04197745013 | AA23: 0.04197361658 | AB23: 0.04196277496 | AC23: 0.04194518717 | AD23: 0.04207920792 | AE23: 0.04205378973 | AF23: 0.04201545396
B24: up | C24: 0.04201292705 | D24: 0.04195166439 | E24: 0.04210763342 | F24: 0.04202801868 | G24: 0.0419503624 | H24: 0.0420824295 | I24: 0.04199700021 | J24: 0.04210749048 | K24: 0.04200626959 | L24: 0.04210526316 | M24: 0.04199796126 | N24: 0.04207771291 | O24: 0.04196499602 | P24: 0.04202670856 | Q24: 0.04208688906 | R24: 0.0419620617 | S24: 0.04200567644 | T24: 0.04204821529 | U24: 0.04208194906 | V24: 0.0419325433 | W24: 0.04195174649 | X24: 0.04197047839 | Y24: 0.04197400773 | Z24: 0.04197745013 | AA24: 0.04197361658 | AB24: 0.04196277496 | AC24: 0.04194518717 | AD24: 0.04207920792 | AE24: 0.04205378973 | AF24: 0.04201545396
A25: Sum | B25: low | C25: 1 | D25: 1 | E25: 1 | F25: 1 | G25: 1 | H25: 1 | I25: 1 | J25: 1 | K25: 1 | L25: 1 | M25: 1 | N25: 1 | O25: 1 | P25: 1 | Q25: 1 | R25: 1 | S25: 1 | T25: 1 | U25: 1 | V25: 1 | W25: 1 | X25: 1 | Y25: 1 | Z25: 1 | AA25: 1 | AB25: 1 | AC25: 1 | AD25: 1 | AE25: 1 | AF25: 1
B26: up | C26: 1 | D26: 1 | E26: 1 | F26: 1 | G26: 1 | H26: 1 | I26: 1 | J26: 1 | K26: 1 | L26: 1 | M26: 1 | N26: 1 | O26: 1 | P26: 1 | Q26: 1 | R26: 1 | S26: 1 | T26: 1 | U26: 1 | V26: 1 | W26: 1 | X26: 1 | Y26: 1 | Z26: 1 | AA26: 1 | AB26: 1 | AC26: 1 | AD26: 1 | AE26: 1 | AF26: 1
A28: Heat
A29: Shares | C29: 2001 | D29: 2002 | E29: 2003 | F29: 2004 | G29: 2005 | H29: 2006 | I29: 2007 | J29: 2008 | K29: 2009 | L29: 2010 | M29: 2011 | N29: 2012 | O29: 2013 | P29: 2014 | Q29: 2015 | R29: 2016 | S29: 2017 | T29: 2018 | U29: 2019 | V29: 2020 | W29: 2021 | X29: 2022 | Y29: 2023 | Z29: 2024 | AA29: 2025 | AB29: 2026 | AC29: 2027 | AD29: 2028 | AE29: 2029 | AF29: 2030
A30: Coal | B30: low | C30: 0.2678571429 | D30: 0.2680776014 | E30: 0.2682926829 | F30: 0.2680412371 | G30: 0.2682512733 | H30: 0.2680067002 | I30: 0.2682119205 | J30: 0.2684124386 | K30: 0.2686084142 | L30: 0.2679425837 | M30: 0.2681388013 | N30: 0.2679127726 | O30: 0.2676923077 | P30: 0.2678843227 | Q30: 0.2683658171 | R30: 0.2681481481 | S30: 0.2679355783 | T30: 0.2673410405 | U30: 0.2685714286 | V30: 0.2679830748 | W30: 0.2674094708 | X30: 0.2682255846 | Y30: 0.2676630435 | Z30: 0.2680965147 | AA30: 0.2675496689 | AB30: 0.2679738562 | AC30: 0.2677878396 | AD30: 0.2681992337 | AE30: 0.2682619647 | AF30: 0.2677459527
B31: up | C31: 0.2678571429 | D31: 0.2680776014 | E31: 0.2682926829 | F31: 0.2680412371 | G31: 0.2682512733 | H31: 0.2680067002 | I31: 0.2682119205 | J31: 0.2684124386 | K31: 0.2686084142 | L31: 0.2679425837 | M31: 0.2681388013 | N31: 0.2679127726 | O31: 0.2676923077 | P31: 0.2678843227 | Q31: 0.2683658171 | R31: 0.2681481481 | S31: 0.2679355783 | T31: 0.2673410405 | U31: 0.2685714286 | V31: 0.2679830748 | W31: 0.2674094708 | X31: 0.2682255846 | Y31: 0.2676630435 | Z31: 0.2680965147 | AA31: 0.2675496689 | AB31: 0.2679738562 | AC31: 0.2677878396 | AD31: 0.2681992337 | AE31: 0.2682619647 | AF31: 0.2677459527
A32: HFO | B32: low | C32: 0.2803571429 | D32: 0.2804232804 | E32: 0.2804878049 | F32: 0.2800687285 | G32: 0.2801358234 | H32: 0.2797319933 | I32: 0.2798013245 | J32: 0.2798690671 | K32: 0.2799352751 | L32: 0.2791068581 | M32: 0.2791798107 | N32: 0.2803738318 | O32: 0.28 | P32: 0.2800608828 | Q32: 0.2788605697 | R32: 0.28 | S32: 0.2796486091 | T32: 0.2803468208 | U32: 0.28 | V32: 0.2792665726 | W32: 0.2799442897 | X32: 0.2792297111 | Y32: 0.2798913043 | Z32: 0.2801608579 | AA32: 0.2794701987 | AB32: 0.2797385621 | AC32: 0.2794307891 | AD32: 0.2796934866 | AE32: 0.2795969773 | AF32: 0.2801992528
B33: up | C33: 0.2803571429 | D33: 0.2804232804 | E33: 0.2804878049 | F33: 0.2800687285 | G33: 0.2801358234 | H33: 0.2797319933 | I33: 0.2798013245 | J33: 0.2798690671 | K33: 0.2799352751 | L33: 0.2791068581 | M33: 0.2791798107 | N33: 0.2803738318 | O33: 0.28 | P33: 0.2800608828 | Q33: 0.2788605697 | R33: 0.28 | S33: 0.2796486091 | T33: 0.2803468208 | U33: 0.28 | V33: 0.2792665726 | W33: 0.2799442897 | X33: 0.2792297111 | Y33: 0.2798913043 | Z33: 0.2801608579 | AA33: 0.2794701987 | AB33: 0.2797385621 | AC33: 0.2794307891 | AD33: 0.2796934866 | AE33: 0.2795969773 | AF33: 0.2801992528
A34: LPG | B34: low | C34: 0.02321428571 | D34: 0.02292768959 | E34: 0.02264808362 | F34: 0.02405498282 | G34: 0.02376910017 | H34: 0.02345058626 | I34: 0.02317880795 | J34: 0.02291325696 | K34: 0.02265372168 | L34: 0.02392344498 | M34: 0.02365930599 | N34: 0.02336448598 | O34: 0.02307692308 | P34: 0.02283105023 | Q34: 0.023988006 | R34: 0.0237037037 | S34: 0.02342606149 | T34: 0.02312138728 | U34: 0.02285714286 | V34: 0.023977433 | W34: 0.02367688022 | X34: 0.02338376891 | Y34: 0.02309782609 | Z34: 0.02278820375 | AA34: 0.0238410596 | AB34: 0.02352941176 | AC34: 0.02328589909 | AD34: 0.02298850575 | AE34: 0.02392947103 | AF34: 0.02366127024
B35: up | C35: 0.02321428571 | D35: 0.02292768959 | E35: 0.02264808362 | F35: 0.02405498282 | G35: 0.02376910017 | H35: 0.02345058626 | I35: 0.02317880795 | J35: 0.02291325696 | K35: 0.02265372168 | L35: 0.02392344498 | M35: 0.02365930599 | N35: 0.02336448598 | O35: 0.02307692308 | P35: 0.02283105023 | Q35: 0.023988006 | R35: 0.0237037037 | S35: 0.02342606149 | T35: 0.02312138728 | U35: 0.02285714286 | V35: 0.023977433 | W35: 0.02367688022 | X35: 0.02338376891 | Y35: 0.02309782609 | Z35: 0.02278820375 | AA35: 0.0238410596 | AB35: 0.02352941176 | AC35: 0.02328589909 | AD35: 0.02298850575 | AE35: 0.02392947103 | AF35: 0.02366127024
A36: Paraffin | B36: low | C36: 0.4285714286 | D36: 0.4285714286 | E36: 0.4285714286 | F36: 0.4278350515 | G36: 0.4278438031 | H36: 0.4288107203 | I36: 0.428807947 | J36: 0.4288052373 | K36: 0.428802589 | L36: 0.4290271132 | M36: 0.429022082 | N36: 0.4283489097 | O36: 0.4292307692 | P36: 0.4292237443 | Q36: 0.4287856072 | R36: 0.4281481481 | S36: 0.4289897511 | T36: 0.4291907514 | U36: 0.4285714286 | V36: 0.4287729196 | W36: 0.4289693593 | X36: 0.4291609354 | Y36: 0.4293478261 | Z36: 0.4289544236 | AA36: 0.4291390728 | AB36: 0.4287581699 | AC36: 0.4294954722 | AD36: 0.4291187739 | AE36: 0.4282115869 | AF36: 0.4283935243
B37: up | C37: 0.4285714286 | D37: 0.4285714286 | E37: 0.4285714286 | F37: 0.4278350515 | G37: 0.4278438031 | H37: 0.4288107203 | I37: 0.428807947 | J37: 0.4288052373 | K37: 0.428802589 | L37: 0.4290271132 | M37: 0.429022082 | N37: 0.4283489097 | O37: 0.4292307692 | P37: 0.4292237443 | Q37: 0.4287856072 | R37: 0.4281481481 | S37: 0.4289897511 | T37: 0.4291907514 | U37: 0.4285714286 | V37: 0.4287729196 | W37: 0.4289693593 | X37: 0.4291609354 | Y37: 0.4293478261 | Z37: 0.4289544236 | AA37: 0.4291390728 | AB37: 0.4287581699 | AC37: 0.4294954722 | AD37: 0.4291187739 | AE37: 0.4282115869 | AF37: 0.4283935243
A38: Renewables | B38: low | C38: 0 | D38: 0 | E38: 0 | F38: 0 | G38: 0 | H38: 0 | I38: 0 | J38: 0 | K38: 0 | L38: 0 | M38: 0 | N38: 0 | O38: 0 | P38: 0 | Q38: 0 | R38: 0 | S38: 0 | T38: 0 | U38: 0 | V38: 0 | W38: 0 | X38: 0 | Y38: 0 | Z38: 0 | AA38: 0 | AB38: 0 | AC38: 0 | AD38: 0 | AE38: 0 | AF38: 0
B39: up | C39: 0 | D39: 0 | E39: 0 | F39: 0 | G39: 0 | H39: 0 | I39: 0 | J39: 0 | K39: 0 | L39: 0 | M39: 0 | N39: 0 | O39: 0 | P39: 0 | Q39: 0 | R39: 0 | S39: 0 | T39: 0 | U39: 0 | V39: 0 | W39: 0 | X39: 0 | Y39: 0 | Z39: 0 | AA39: 0 | AB39: 0 | AC39: 0 | AD39: 0 | AE39: 0 | AF39: 0
A40: Sum | B40: low | C40: 1 | D40: 1 | E40: 1 | F40: 1 | G40: 1 | H40: 1 | I40: 1 | J40: 1 | K40: 1 | L40: 1 | M40: 1 | N40: 1 | O40: 1 | P40: 1 | Q40: 1 | R40: 1 | S40: 1 | T40: 1 | U40: 1 | V40: 1 | W40: 1 | X40: 1 | Y40: 1 | Z40: 1 | AA40: 1 | AB40: 1 | AC40: 1 | AD40: 1 | AE40: 1 | AF40: 1
B41: up | C41: 1 | D41: 1 | E41: 1 | F41: 1 | G41: 1 | H41: 1 | I41: 1 | J41: 1 | K41: 1 | L41: 1 | M41: 1 | N41: 1 | O41: 1 | P41: 1 | Q41: 1 | R41: 1 | S41: 1 | T41: 1 | U41: 1 | V41: 1 | W41: 1 | X41: 1 | Y41: 1 | Z41: 1 | AA41: 1 | AB41: 1 | AC41: 1 | AD41: 1 | AE41: 1 | AF41: 1
A43: See Appendix 2
A44: End use Demand, 2006 | B44: PJ | C44: %
A45: Heating | B45: 5.97 | C45: 7.708198838
A46: Irrigation | B46: 8.86 | C46: 11.43963848
A47: Other | B47: 10.47 | C47: 13.51839897
A48: Processes | B48: 6.05 | C48: 7.811491285
A49: Tractors harvestors transport Demand | B49: 46.1 | C49: 59.52227243
A50: Total | B50: 77.45 | C50: 100

Sheet Appendix 6
A1: DKIP
A3: Interviewed | B3: Company/Organisation | C3: Name | D3: Contact number | E3: address | F3: Email | G3: website | H3: progress
B4: SABI
B5: AGRICO (Pty) Ltd | C5: Alfred Andrag | D5: 021 950 4111 | E5: P O Box 364, Bellville 7535 | F5: alfred.andrag@agrico.co.za | G5: www.andragagrico.co.za
B6: SABI-Central branch | C6: Cobus | D6: o124256300
D7: o829202496
A8: Y | B8: SENTER360 | C8: Theuns Dreyer | D8: o184691331 | G8: www.senter360.co.za | H8: To send spreadsheet
D9: o825645955
A10: Y | B10: SABI-KZN | C10: Rob | D10: o333422491 | H10: 14h00
C11: Tony | D11: o437321927 | H11: Monday
A12: Y | B12: ARC-INSTITUTE OF AGRIC ENGINEERING | C12: Felix | D12: o128424000 | H12: refered me to Neels
A13: Y | B13: Eskom | C13: Neels Bezuidenhout(refered by Felix) | D13: o834400131 | H13: To email info
H14: On leave, going back on 14/02/2011

Sheet REGIONS
A1: REGIONS | B1: _GLOBAL,REGION1

Sheet Final Demand
A4: TJ | B4: DME Energy Balances 2006 (Appendix 3)
A5: Agriculture
A6: Butimous Coal | B6: 763.263
A7: LPG | B7: 1.3529157
A8: Motor Gasoline | B8: 4964.196109
A9: Other Kerosene | B9: 2509.77586
A10: Gas Diesel | B10: 38226.11908
A11: HFO | B11: 1763.813043
A12: Electricity | B12: 21029.3928
A13: TOTAL | B13: =SUM(B6:B12) -> 69257.9128
B16: LEAP Energy demand 2006 (%) | C16: Energy Balances DME 2006 | D16: Adjusting for heating
A17: Traction | B17: ='Appendix 5'!C49 -> 59.52227243 | C17: =(B17/100)*$B$13 -> 41223.88354 | D17: =C17+C61 -> 41298.96674
A18: Irrigation | B18: ='Appendix 5'!C46 -> 11.43963848 | C18: 7922.854841 | D18: =C18+C61 -> 7997.938044
A19: Heating | B19: ='Appendix 5'!C45 -> 7.708198838 | C19: 5338.53763 | D19: =B59 -> 5038.204819
A20: Processing | B20: ='Appendix 5'!C48 -> 7.811491285 | C20: 5410.075823 | D20: =C20+C61 -> 5485.159025
A21: Other | B21: ='Appendix 5'!C47 -> 13.51839897 | C21: 9362.560969 | D21: =C21+C61 -> 9437.644172
A22: Total | B22: =SUM(B17:B21) -> 100 | C22: 69257.9128 | D22: =SUM(D17:D21) -> 69257.9128
B23: See Appendix 2 for above | J23: Assumption Inputs
I25: Summary of Assumptions
B26: Shares (2006) | C26: Energy use 2006 (TJ) | D26: Efficiency (See Appendix 1) | E26: Lifetime
A27: Tractors harvestors transport\Diesel5 | B27: 0.958 | C27: =+B10-C29 -> 37426.32527 | D27: 0.35 | E27: 15 | I27: Step 0 | J27: Thermal fuel share is determined, allocated to 'Heating' and other shares adjusted by scaling 'LEAP Energy Demand 2006' shares
A28: Tractors harvestors transport\Petrol5 | B28: 0.42 | C28: =+B8-C31 -> 4644.278587 | D28: 0.25 | E28: 15 | F28: =SUM(C27:C28) -> 42070.60386 | I28: Step 1 | J28: Irrigation share is then split into electricity, diesel and gasoline shares in an 86%, 10%, 4% split.
A29: Irrigation\Diesel6 | B29: 0.1 | C29: =B29*D18 -> 799.7938044 | D29: 0.35 | E29: =+'Appendix 1'!H45 -> 15 | I29: Step 2 | J29: Remaining Diesel and Petrol is allocated to Traction
A30: Irrigation\Elec6 | B30: 0.86 | C30: =B30*D18 -> 6878.226718 | D30: 0.95 | E30: =+'Appendix 1'!H46 -> 15 | I30: Step 3 | J30: All Processing assumed to be electricity. This is assumed to be 29% of all electricity as per IEP the sum of 10% 'Process' and 16% 'Materials Handling'
A31: Irrigation\Petrol6 | B31: 0.04 | C31: =B31*D18 -> 319.9175218 | D31: 0.25 | E31: =+'Appendix 1'!H47 -> 15 | F31: =SUM(C29:C31) -> 7997.938044 | I31: Step 4 | J31: All 'Other' assumed electrical. This would be lighting etc. Calculated as (Total - Irrigation - Processing) ie Balancing Item
A32: Heat Thermal\Coal Bituminous | C32: 763.263 | D32: 0.65 | E32: =+'Appendix 1'!H55 -> 15
A33: Heat Thermal\Fuel Oil | C33: 1763.813043 | D33: 0.7 | E33: =+'Appendix 1'!H56 -> 15
A34: Heat Thermal\LPG | C34: 1.3529157 | D34: 0.75 | E34: =+'Appendix 1'!H57 -> 15
A35: Heat Thermal\Paraffin | C35: 2509.77586 | D35: 0.7 | E35: =+'Appendix 1'!H58 -> 15 | F35: =SUM(C32:C35) -> 5038.204819
A36: Processing \Elec | C36: =D20 -> 5485.159025 | D36: =1 -> 1 | E36: 15
A37: Other\Elec | C37: =+B12-C36-C30 -> 8666.007057 | D37: =1 -> 1 | E37: 15 | F37: =SUM(F28:F35)+C36+C37 -> 69257.9128
A38: Total | C38: =SUM(C27:C37) -> 69257.9128
A41: End Use Shares
B42: =+AGR!C5 -> Coal | C42: =+AGR!D5 -> Oil Diesel | D42: =+AGR!E5 -> Electricity | E42: =+AGR!#REF! ->  | F42: =+AGR!F5 -> Oil Gasoline | G42: =+AGR!G5 -> Oil HFO | H42: =+AGR!H5 -> Oil Paraffin | I42: =+AGR!I5 -> Oil LPG
A43: Heating | B43: =+C32/B6 -> 1 | G43: =+C33/B11 -> 1 | H43: =+C35/B9 -> 1 | I43: =+C34/B7 -> 1
A44: Processing | D44: =+C36/B12 -> 0.2608329721
A45: Traction | C45: =+C27/B10 -> 0.9790772952 | F45: =+C28/B8 -> 0.9355550194
A46: Irrigation | C46: =+C29/B10 -> 0.02092270478 | D46: =+C30/B12 -> 0.3270768102 | F46: =+C31/B8 -> 0.06444498057
A47: Other | D47: =+C37/B12 -> 0.4120902177
A59: Heat | B59: =SUM(C32:C35) -> 5038.204819
B60: 5338.53763
B61: =B60-B59 -> 300.3328111 | C61: =B61/4 -> 75.08320278
B64: Useful Demand 2006 (TJ)
A65: Tractors harvestors transport\Diesel | B65: =C27*D27 -> 13099.21385
A66: Tractors harvestors transport\Petrol | B66: =C28*D28 -> 1161.069647
A67: Irrigation\Diesel | B67: 279.9278315
A68: Irrigation\Elec | B68: 6534.315382
A69: Irrigation\Petrol | B69: 79.97938044
A70: Heat Thermal\Coal Bituminous | B70: 496.12095
A71: Heat Thermal\Fuel Oil | B71: 1234.66913
A72: Heat Thermal\LPG | B72: 1.014686775
A73: Heat Thermal\Paraffin | B73: 1756.843102
A74: Processing \Elec | B74: 5485.159025
A75: Other\Elec | B75: 8666.007057
A76: Total | B76: =SUM(B65:B75) -> 38794.32004

Sheet AGR
A1: South Africa | B1: Base Year Energy Balance | E1: Commerce
C3: Base-year final energy aggregated by sector fuel | L3: Entry #
A4: Fuel # | B4: =COUNT(C4:L4) -> 7 | C4: 1 | D4: =C4+1 -> 2 | E4: 3 | F4: 4 | G4: 5 | H4: 6 | I4: 7
A5: Agriculture | B5: A | C5: Coal | D5: Oil Diesel | E5: Electricity | F5: Oil Gasoline | G5: Oil HFO | H5: Oil Paraffin | I5: Oil LPG | J5: Total | K5: Check
A6: Sectoral Fuel Names | B6: AGR | C6: =$B$6&VLOOKUP(C5,FuelNames,2,FALSE) -> AGRCOA | D6: AGRODS | E6: AGRELC | F6: AGROGS | G6: AGROHF | H6: AGROKE | I6: AGROLP
B7: PJ | C7: =+'Final Demand'!C32/1000 -> 0.763263 | D7: =+'Final Demand'!B10/1000 -> 38.22611908 | E7: =+'Final Demand'!B12/1000 -> 21.0293928 | F7: =+'Final Demand'!B8/1000 -> 4.964196109 | G7: =+'Final Demand'!B11/1000 -> 1.763813043 | H7: =+'Final Demand'!B9/1000 -> 2.50977586 | I7: =+'Final Demand'!C34/1000 -> 0.0013529157 | J7: =SUM(C7:I7) -> 69.2579128 | K7: =SUM(K55,K58,K63,K68,K71) -> 69.2579128
A8: Emission Factors | B8: kt/PJ
A9: Carbon Dioxide | B9: CO2 | C9: 94.1 | D9: 74.1 | E9: 0 | F9: 69.3 | G9: 77.4 | H9: 71.9 | I9: 63.1 | K9: 1
A10: Methane | B10: CH4 | C10: 0.001 | D10: 0.003 | E10: 0 | F10: 0.003 | G10: 0.003 | H10: 0.003 | I10: 0.001 | K10: =K9+1 -> 2
A11: Nitrous Oxide | B11: N2O | C11: =15/1000 -> 0.015 | D11: 0.0006 | E11: 0 | F11: 0.0006 | G11: 0.0006 | H11: 0.0006 | I11: 0.0001 | K11: =K10+1 -> 3
A12: Sulphur Gases | B12: SOX | C12: 0.4544 | D12: 0.2529 | E12: 0 | F12: 0.0467 | G12: 1.5291 | K12: =K11+1 -> 4
A13: Nitrogen Gases | B13: NOX | C13: 0.1 | D13: 0.1 | E13: 0 | F13: 0.1 | G13: 0.1 | K13: =K12+1 -> 5
A15: Distribution Losses | C15: 0 | D15: 0 | E15: 0.1 | F15: 0 | G15: 0 | H15: 0 | I15: 0
A16: Distribution Capacity (estimate) | B16: PJa | C16: =SUMPRODUCT(--($C$50:$C$72=C6),$K$50:$K$72)^2/(SUMPRODUCT(--($C$50:$C$72=C6),$K$50:$K$72,$F$50:$F$72)+eps) -> 1.384478472 | D16: 49.17285714 | E16: 24.07956388 | F16: 6.372440087 | G16: 3.199370624 | H16: 4.552468423 | I16: 0.002454013353
A18: End use demands | B18: Demand
A19: Heating | B19: H
A20: Processing | B20: P
A21: Traction | B21: T
A22: Irrigation | B22: I
A23: Other | B23: O
C26: End-use Shares by Fuel - All sourced from Interim report (other than LPG)
A27: End-use Fractional Shares by Sub-sector | B27: Demand ID | C27: =C5 -> Coal | D27: Oil Diesel | E27: Electricity | F27: Oil Gasoline | G27: Oil HFO | H27: Oil Paraffin | I27: Oil LPG
A28: =$A$5&" - "&A19 -> Agriculture - Heating | B28: =$B$5&B19 -> AH | C28: =+'Final Demand'!B43 -> 1 | D28: =+'Final Demand'!C43 -> 0 | E28: =+'Final Demand'!D43 -> 0 | F28: =+'Final Demand'!F43 -> 0 | G28: =+'Final Demand'!G43 -> 1 | H28: =+'Final Demand'!H43 -> 1 | I28: =+'Final Demand'!I43 -> 1
A29: =$A$5&" - "&A20 -> Agriculture - Processing | B29: =$B$5&B20 -> AP | C29: =+'Final Demand'!B44 -> 0 | D29: =+'Final Demand'!C44 -> 0 | E29: =+'Final Demand'!D44 -> 0.2608329721 | F29: =+'Final Demand'!F44 -> 0 | G29: =+'Final Demand'!G44 -> 0 | H29: =+'Final Demand'!H44 -> 0 | I29: =+'Final Demand'!I44 -> 0
A30: =$A$5&" - "&A21 -> Agriculture - Traction | B30: =$B$5&B21 -> AT | C30: =+'Final Demand'!B45 -> 0 | D30: =+'Final Demand'!C45 -> 0.9790772952 | E30: =+'Final Demand'!D45 -> 0 | F30: =+'Final Demand'!F45 -> 0.9355550194 | G30: =+'Final Demand'!G45 -> 0 | H30: =+'Final Demand'!H45 -> 0 | I30: =+'Final Demand'!I45 -> 0
A31: =$A$5&" - "&A22 -> Agriculture - Irrigation | B31: =$B$5&B22 -> AI | C31: =+'Final Demand'!B46 -> 0 | D31: =+'Final Demand'!C46 -> 0.02092270478 | E31: =+'Final Demand'!D46 -> 0.3270768102 | F31: =+'Final Demand'!F46 -> 0.06444498057 | G31: =+'Final Demand'!G46 -> 0 | H31: =+'Final Demand'!H46 -> 0 | I31: =+'Final Demand'!I46 -> 0
A32: =$A$5&" - "&A23 -> Agriculture - Other | B32: =$B$5&B23 -> AO | C32: =+'Final Demand'!B47 -> 0 | D32: =+'Final Demand'!C47 -> 0 | E32: =+'Final Demand'!D47 -> 0.4120902177 | F32: =+'Final Demand'!F47 -> 0 | G32: =+'Final Demand'!G47 -> 0 | H32: =+'Final Demand'!H47 -> 0 | I32: =+'Final Demand'!I47 -> 0
A33: Total | C33: =SUM(C28:C32) -> 1 | D33: =SUM(D28:D32) -> 1 | E33: 1 | F33: 1 | G33: 1 | H33: 1 | I33: 1
A35: End-use Final Energy Consumption by Sub-sector (PJ) | B35: Demand ID | C35: =C27 -> Coal | D35: =D27 -> Oil Diesel | E35: Electricity | F35: Oil Gasoline | G35: Oil HFO | H35: Oil Paraffin | I35: Oil LPG | J35: Total
A36: =A28 -> Agriculture - Heating | B36: AH | C36: =C28*C$7 -> 0.763263 | D36: 0 | E36: =E28*E$7 -> 0 | F36: 0 | G36: 1.763813043 | H36: 2.50977586 | I36: 0.0013529157 | J36: =SUM(C36:I36) -> 5.038204819
A37: Agriculture - Processing | B37: AP | C37: 0 | D37: 0 | E37: =E29*E$7 -> 5.485159025 | F37: 0 | G37: 0 | H37: 0 | I37: 0 | J37: =SUM(C37:I37) -> 5.485159025
A38: Agriculture - Traction | B38: AT | C38: 0 | D38: 37.42632527 | E38: =E30*E$7 -> 0 | F38: 4.644278587 | G38: 0 | H38: 0 | I38: 0 | J38: =SUM(C38:I38) -> 42.07060386
A39: Agriculture - Irrigation | B39: AI | C39: 0 | D39: 0.7997938044 | E39: 6.878226718 | F39: 0.3199175218 | G39: 0 | H39: 0 | I39: 0 | J39: =SUM(C39:I39) -> 7.997938044
A40: Agriculture - Other | B40: AO | C40: 0 | D40: 0 | E40: 8.666007057 | F40: 0 | G40: 0 | H40: 0 | I40: 0 | J40: =SUM(C40:I40) -> 8.666007057
A41: =A33 -> Total | C41: =SUM(C36:C40) -> 0.763263 | D41: 38.22611908 | E41: 21.0293928 | F41: 4.964196109 | G41: 1.763813043 | H41: 2.50977586 | I41: 0.0013529157 | J41: 69.2579128
O42: 2010 | P42: 2030 | Q42: 2050 | T42: 2010 | U42: 2030 | V42: 2050
M43: Default Upper Limits | O43: 0.05 | P43: 0.25 | Q43: 0.5 | R43: Default Lower Limits | T43: 0.5 | U43: 0.25 | V43: 0.05
D44: ~FI_T | H44: 0.01
A45: TechDesc | B45: TechName | C45: Comm-IN | D45: Comm-Out | E45: EFF | F45: AFA | G45: Life | H45: STOCK
A46: \I:Technology Description | B46: Technology Name | C46: Input Commodity | D46: Useful Energy Service | E46: Efficiency | F46: Utlisation | G46: Lifetime | H46: Existing Installed Cap. | J46: Base Year Technology Share | K46: Final Energy | L46: Useful Energy | M46: Tech Data Source | N46: Base Year Tech Share | O46: Upper Limit | P46: Upper Limit | Q46: Upper Limit | S46: Base Year Tech Share | T46: Lower Limit | U46: Lower Limit | V46: Lower Limit | W46: Row #
A47: \I: Units | E47: (sum OUT/IN) | F47: (Fraction) | G47: (Years) | H47: (PJa) | J47: (%) | K47: (PJ) | L47: (PJ) | N47: 2006 | O47: ="U"&O$42 -> U2010 | P47: ="U"&P$42 -> U2030 | Q47: ="U"&Q$42 -> U2050 | S47: 2006 | T47: ="L"&T$42 -> L2010 | U47: ="L"&U$42 -> L2030 | V47: ="L"&V$42 -> L2050
A48: \I: | C48: 1 | D48: =C48+1 -> 2 | E48: =D48+1 -> 3 | F48: =E48+1 -> 4 | G48: =F48+1 -> 5 | H48: =G48+1 -> 6
A49: ="\I:"&A36 -> \I:Agriculture - Heating
A50: =A36&"-"&C5&" - Existing" -> Agriculture - Heating-Coal - Existing | B50: =D50&RIGHT(C50,3)&"-E" -> AHCOA-E | C50: =$C$6 -> AGRCOA | D50: =$B$36 -> AH | E50: =+'Final Demand'!D32 -> 0.65 | F50: =SUMIF(AFA!$B$3:$S$3,D50,AFA!$B$4:$F$4) -> 0.5513 | G50: 15 | H50: =L50/F50*(1+$H$44) -> 0.9089101388 | J50: =SUMIF($C$6:$I$6,C50,$C$28:$I$28) -> 1 | K50: =J50*SUMIF($C$6:$I$6,C50,$C$36:$I$36) -> 0.763263 | L50: =K50*E50 -> 0.49612095 | N50: =L50/SUMIF($D$50:$D$72,$D50,$L$50:$L$72) -> 0.1422100965 | O50: =MIN(1,$N50+O$43) -> 0.1922100965 | P50: =MIN(1,$N50+P$43) -> 0.3922100965 | Q50: 0.6422100965 | S50: =N50 -> 0.1422100965 | T50: =$S50*T$43 -> 0.07110504823 | U50: =$S50*U$43 -> 0.03555252412 | V50: 0.007110504823 | W50: 1
A51: =A36&" - "&G5&"- Existing" -> Agriculture - Heating - Oil HFO- Existing | B51: =D51&RIGHT(C51,3)&"-E" -> AHOHF-E | C51: =+G6 -> AGROHF | D51: =$B$36 -> AH | E51: =+'Final Demand'!D33 -> 0.7 | F51: =SUMIF(AFA!$B$3:$S$3,D51,AFA!$B$4:$F$4) -> 0.5513 | G51: 15 | H51: =L51/F51*(1+$H$44) -> 2.261955054 | J51: =SUMIF($C$6:$I$6,C51,$C$28:$I$28) -> 1 | K51: =J51*SUMIF($C$6:$I$6,C51,$C$36:$I$36) -> 1.763813043 | L51: =K51*E51 -> 1.23466913 | N51: =L51/SUMIF($D$50:$D$72,$D51,$L$50:$L$72) -> 0.3539105053 | O51: =MIN(1,$N51+O$43) -> 0.4039105053 | P51: 0.6039105053 | Q51: 0.8539105053 | S51: =N51 -> 0.3539105053 | T51: =$S51*T$43 -> 0.1769552527 | U51: 0.08847762633 | V51: 0.01769552527 | W51: =W50+1 -> 2
A52: =A36&" - "&H5&"- Existing" -> Agriculture - Heating - Oil Paraffin- Existing | B52: =D52&RIGHT(C52,3)&"-E" -> AHOKE-E | C52: =$H$6 -> AGROKE | D52: =$B$36 -> AH | E52: =+'Final Demand'!D35 -> 0.7 | F52: =SUMIF(AFA!$B$3:$S$3,D52,AFA!$B$4:$F$4) -> 0.5513 | G52: 15 | H52: =L52/F52*(1+$H$44) -> 3.218595199 | J52: =SUMIF($C$6:$I$6,C52,$C$28:$I$28) -> 1 | K52: =J52*SUMIF($C$6:$I$6,C52,$C$36:$I$36) -> 2.50977586 | L52: =K52*E52 -> 1.756843102 | N52: =L52/SUMIF($D$50:$D$72,$D52,$L$50:$L$72) -> 0.5035885443 | O52: =MIN(1,$N52+O$43) -> 0.5535885443 | P52: 0.7535885443 | Q52: 1 | S52: =N52 -> 0.5035885443 | T52: =$S52*T$43 -> 0.2517942722 | U52: 0.1258971361 | V52: 0.02517942722 | W52: =W51+1 -> 3
A53: =A36&" - "&I5&"- Existing" -> Agriculture - Heating - Oil LPG- Existing | B53: =D53&RIGHT(C53,3)&"-E" -> AHOLP-E | C53: =$I$6 -> AGROLP | D53: =$B$36 -> AH | E53: ='Final Demand'!D34 -> 0.75 | F53: =SUMIF(AFA!$B$3:$S$3,D53,AFA!$B$4:$F$4) -> 0.5513 | G53: 15 | H53: =L53/F53*(1+$H$44) -> 0.001858940038 | J53: =SUMIF($C$6:$I$6,C53,$C$28:$I$28) -> 1 | K53: =J53*SUMIF($C$6:$I$6,C53,$C$36:$I$36) -> 0.0013529157 | L53: =K53*E53 -> 0.001014686775 | N53: =L53/SUMIF($D$50:$D$72,$D53,$L$50:$L$72) -> 0.0002908538818 | O53: =MIN(1,$N53+O$43) -> 0.05029085388 | P53: 0.2502908539 | Q53: =MIN(1,$N53+Q$43) -> 0.5002908539 | S53: =N53 -> 0.0002908538818 | T53: =$S53*T$43 -> 0.0001454269409 | U53: 7.271347045e-05 | V53: 1.454269409e-05 | W53: =W52+1 -> 4
A54: =A36&" - Electricity - Room - Existing" -> Agriculture - Heating - Electricity - Room - Existing | B54: =D54&RIGHT(C54,3)&"-E" -> AHELC-E | C54: =$E$6 -> AGRELC | D54: =$B$36 -> AH | E54: =+'Final Demand'!D34 -> 0.75 | F54: =SUMIF(AFA!$B$3:$S$3,D54,AFA!$B$4:$F$4) -> 0.5513 | G54: 15 | H54: =L54/F54*(1+$H$44) -> 0 | J54: 1 | K54: =J54*SUMIF($C$6:$I$6,C54,$C$36:$I$36) -> 0 | L54: =K54*E54 -> 0 | N54: =L54/SUMIF($D$50:$D$72,$D54,$L$50:$L$72) -> 0 | O54: =MIN(1,$N54+O$43) -> 0.05 | P54: 0.25 | Q54: =MIN(1,$N54+Q$43) -> 0.5 | S54: =N54 -> 0 | T54: =$S54*T$43 -> 0 | U54: 0 | V54: 0 | W54: =W53+1 -> 5
A55: \I: Share Check & sub-totals | K55: =SUM(K50:K54) -> 5.038204819 | L55: =SUM(L50:L54) -> 3.488647869 | W55: 6
A56: ="\I:"&A37 -> \I:Agriculture - Processing | W56: 7
A57: =A$37&" - "&VLOOKUP(RIGHT(C57,3),NameConv!$E$3:$F$16,2,FALSE)&" - Existing" -> Agriculture - Processing - Electricity - Existing | B57: =D57&RIGHT(C57,3)&"-E" -> APELC-E | C57: =$E$6 -> AGRELC | D57: =$B$37 -> AP | E57: =+'Final Demand'!D36 -> 1 | F57: =SUMIF(AFA!$B$3:$S$3,D57,AFA!$B$4:$F$4) -> 0.7476 | G57: 15 | H57: =L57/F57*(1+$H$44) -> 7.410394082 | J57: 1 | K57: =J57*SUMIF($C$6:$I$6,C57,$C$37:$I$37) -> 5.485159025 | L57: =K57*E57 -> 5.485159025 | N57: =L57/SUMIF($D$50:$D$72,$D57,$L$50:$L$72) -> 1 | O57: =MIN(1,$N57+O$43) -> 1 | P57: 1 | Q57: 1 | S57: =N57 -> 1 | T57: =$S57*T$43 -> 0.5 | U57: 0.25 | V57: 0.05 | W57: 8
A58: \I: Share Check & sub-totals | K58: =SUM(K57:K57) -> 5.485159025 | L58: =SUM(L57:L57) -> 5.485159025 | W58: 9
A59: ="\I:"&A38 -> \I:Agriculture - Traction | W59: 10
A60: =A$38&" - "&VLOOKUP(RIGHT(C60,3),NameConv!$E$3:$F$16,2,FALSE)&" - Existing" -> Agriculture - Traction - Oil Diesel - Existing | B60: =D60&RIGHT(C60,3)&"-E" -> ATODS-E | C60: =+D6 -> AGRODS | D60: =$B$38 -> AT | E60: =+'Final Demand'!D27 -> 0.35 | F60: =SUMIF(AFA!$B$3:$S$3,D60,AFA!$B$4:$F$4) -> 0.7766 | G60: 15 | H60: =L60/F60*(1+$H$44) -> 17.0360623 | J60: 1 | K60: =J60*SUMIF($C$6:$I$6,C60,$C$38:$I$38) -> 37.42632527 | L60: =K60*E60 -> 13.09921385 | N60: =L60/SUMIF($D$50:$D$72,$D60,$L$50:$L$72) -> 0.9185801848 | O60: =MIN(1,$N60+O$43) -> 0.9685801848 | P60: 1 | Q60: 1 | S60: =N60 -> 0.9185801848 | T60: =$S60*T$43 -> 0.4592900924 | U60: 0.2296450462 | V60: 0.04592900924 | W60: 11
A61: =A$38&" - "&VLOOKUP(RIGHT(C61,3),NameConv!$E$3:$F$16,2,FALSE)&" - Existing" -> Agriculture - Traction - Electricity - Existing | B61: =D61&RIGHT(C61,3)&"-E" -> ATELC-E | C61: =+E6 -> AGRELC | D61: =$B$38 -> AT | E61: =+'Final Demand'!D30 -> 0.95 | F61: =SUMIF(AFA!$B$3:$S$3,D61,AFA!$B$4:$F$4) -> 0.7766 | G61: 15 | H61: =L61/F61*(1+$H$44) -> 0 | J61: 1 | K61: =J61*SUMIF($C$6:$I$6,C61,$C$38:$I$38) -> 0 | L61: =K61*E61 -> 0 | N61: =L61/SUMIF($D$50:$D$72,$D61,$L$50:$L$72) -> 0 | O61: =MIN(1,$N61+O$43) -> 0.05 | P61: 0.25 | Q61: 0.5 | S61: =N61 -> 0 | T61: =$S61*T$43 -> 0 | U61: 0 | V61: 0 | W61: 12
A62: =A$38&" - "&VLOOKUP(RIGHT(C62,3),NameConv!$E$3:$F$16,2,FALSE)&" - Existing" -> Agriculture - Traction - Oil Gasoline - Existing | B62: =D62&RIGHT(C62,3)&"-E" -> ATOGS-E | C62: =$F$6 -> AGROGS | D62: =$B$38 -> AT | E62: =+'Final Demand'!D28 -> 0.25 | F62: =SUMIF(AFA!$B$3:$S$3,D62,AFA!$B$4:$F$4) -> 0.7766 | G62: 15 | H62: =L62/F62*(1+$H$44) -> 1.510018469 | J62: 1 | K62: =J62*SUMIF($C$6:$I$6,C62,$C$38:$I$38) -> 4.644278587 | L62: =K62*E62 -> 1.161069647 | N62: =L62/SUMIF($D$50:$D$72,$D62,$L$50:$L$72) -> 0.08141981521 | O62: =MIN(1,$N62+O$43) -> 0.1314198152 | P62: 0.3314198152 | Q62: 0.5814198152 | S62: =N62 -> 0.08141981521 | T62: =$S62*T$43 -> 0.0407099076 | U62: 0.0203549538 | V62: 0.00407099076 | W62: 13
A63: \I: Share Check & sub-totals | K63: =SUM(K60:K62) -> 42.07060386 | L63: =SUM(L60:L62) -> 14.26028349 | W63: 14
A64: ="\I:"&A39 -> \I:Agriculture - Irrigation | W64: 15
A65: =A$39&" - "&VLOOKUP(RIGHT(C65,3),NameConv!$E$3:$F$16,2,FALSE)&" - Existing" -> Agriculture - Irrigation - Oil Diesel - Existing | B65: =D65&RIGHT(C65,3)&"-E" -> AIODS-E | C65: =$D$6 -> AGRODS | D65: =$B$39 -> AI | E65: =+'Final Demand'!D29 -> 0.35 | F65: =SUMIF(AFA!$B$3:$S$3,D65,AFA!$B$4:$F$4) -> 0.814 | G65: 15 | H65: =L65/F65*(1+$H$44) -> 0.3473306018 | J65: 1 | K65: =J65*SUMIF($C$6:$I$6,C65,$C$39:$I$39) -> 0.7997938044 | L65: =K65*E65 -> 0.2799278315 | N65: =L65/SUMIF($D$50:$D$72,$D65,$L$50:$L$72) -> 0.04060324826 | O65: =MIN(1,$N65+O$43) -> 0.09060324826 | P65: 0.2906032483 | Q65: 0.5406032483 | S65: =N65 -> 0.04060324826 | T65: =$S65*T$43 -> 0.02030162413 | U65: 0.01015081206 | V65: 0.002030162413 | W65: 16
A66: =A$39&" - "&VLOOKUP(RIGHT(C66,3),NameConv!$E$3:$F$16,2,FALSE)&" - Existing" -> Agriculture - Irrigation - Electricity - Existing | B66: =D66&RIGHT(C66,3)&"-E" -> AIELC-E | C66: =$E$6 -> AGRELC | D66: =$B$39 -> AI | E66: =+'Final Demand'!D30 -> 0.95 | F66: =SUMIF(AFA!$B$3:$S$3,D66,AFA!$B$4:$F$4) -> 0.814 | G66: 15 | H66: =L66/F66*(1+$H$44) -> 8.107688619 | J66: 1 | K66: =J66*SUMIF($C$6:$I$6,C66,$C$39:$I$39) -> 6.878226718 | L66: =K66*E66 -> 6.534315382 | N66: =L66/SUMIF($D$50:$D$72,$D66,$L$50:$L$72) -> 0.9477958237 | O66: =MIN(1,$N66+O$43) -> 0.9977958237 | P66: 1 | Q66: 1 | S66: =N66 -> 0.9477958237 | T66: =$S66*T$43 -> 0.4738979118 | U66: 0.2369489559 | V66: 0.04738979118 | W66: 17
A67: =A$39&" - "&VLOOKUP(RIGHT(C67,3),NameConv!$E$3:$F$16,2,FALSE)&" - Existing" -> Agriculture - Irrigation - Oil Gasoline - Existing | B67: =D67&RIGHT(C67,3)&"-E" -> AIOGS-E | C67: =$F$6 -> AGROGS | D67: =$B$39 -> AI | E67: =+'Final Demand'!D31 -> 0.25 | F67: =SUMIF(AFA!$B$3:$S$3,D67,AFA!$B$4:$F$4) -> 0.814 | G67: 15 | H67: =L67/F67*(1+$H$44) -> 0.0992373148 | J67: 1 | K67: =J67*SUMIF($C$6:$I$6,C67,$C$39:$I$39) -> 0.3199175218 | L67: =K67*E67 -> 0.07997938044 | N67: =L67/SUMIF($D$50:$D$72,$D67,$L$50:$L$72) -> 0.01160092807 | O67: =MIN(1,$N67+O$43) -> 0.06160092807 | P67: 0.2616009281 | Q67: 0.5116009281 | S67: =N67 -> 0.01160092807 | T67: =$S67*T$43 -> 0.005800464037 | U67: 0.002900232019 | V67: 0.0005800464037 | W67: 18
A68: \I: Share Check & sub-totals | K68: =SUM(K65:K67) -> 7.997938044 | L68: =SUM(L65:L67) -> 6.894222594 | W68: 19
A69: ="\I:"&A40 -> \I:Agriculture - Other | W69: 20
A70: =A$40&" - "&VLOOKUP(RIGHT(C70,3),NameConv!$E$3:$F$16,2,FALSE)&" - Existing" -> Agriculture - Other - Electricity - Existing | B70: =D70&RIGHT(C70,3)&"-E" -> AOELC-E | C70: =$E$6 -> AGRELC | D70: =$B$40 -> AO | E70: =+'Final Demand'!D37 -> 1 | F70: =SUMIF(AFA!$B$3:$S$3,D70,AFA!$B$4:$F$4) -> 1 | G70: 15 | H70: =L70/F70*(1+$H$44) -> 8.752667127 | J70: 1 | K70: =J70*SUMIF($C$6:$I$6,C70,$C$40:$I$40) -> 8.666007057 | L70: =K70*E70 -> 8.666007057 | N70: =L70/SUMIF($D$50:$D$72,$D70,$L$50:$L$72) -> 1 | O70: =MIN(1,$N70+O$43) -> 1 | P70: =MIN(1,$N70+P$43) -> 1 | Q70: =MIN(1,$N70+Q$43) -> 1 | S70: =N70 -> 1 | T70: =$S70*T$43 -> 0.5 | U70: =$S70*U$43 -> 0.25 | V70: =$S70*V$43 -> 0.05 | W70: 21
A71: \I: Share Check & sub-totals | K71: =SUM(K70) -> 8.666007057 | L71: =SUM(L70) -> 8.666007057 | W71: 22
A72: \I: Total number of tech entries | B72: =SUMPRODUCT(--(B50:B70<>"")) -> 13 | M72: =ROW()-56 -> 16 | W72: 23

Sheet ITEMS_Tech
A1: ITEMS | B1: REGION1 | I1: * Fuel #
A2: *
A3: *
A4: *
A5: *
A6: *
A7: * | B7: Comp | C7: Name | D7: Description | E7: Unit(s) | F7: Set Memberships | G7: Comment
A8: * | B8: Sector Fuels
B9: =IF(A9="*","","T") -> T | C9: ="X"&OFFSET(AGR!$B$6,0,I9) -> XAGRCOA | D9: ="Agriculatural "&OFFSET(AGR!$B$5,0,I9) -> Agriculatural Coal | E9: ="PJ,"&IF(RIGHT(C9,3)="ELC","GW","PJa") -> PJ,PJa | F9: ="PRC,PRE,"&IF(RIGHT(C9,3)="ELC","DAYNITE","ANNUAL") -> PRC,PRE,ANNUAL | I9: 1
B10: T | C10: ="X"&OFFSET(AGR!$B$6,0,I10) -> XAGRODS | D10: ="Agriculatural "&OFFSET(AGR!$B$5,0,I10) -> Agriculatural Oil Diesel | E10: ="PJ,"&IF(RIGHT(C10,3)="ELC","GW","PJa") -> PJ,PJa | F10: ="PRC,PRE,"&IF(RIGHT(C10,3)="ELC","DAYNITE","ANNUAL") -> PRC,PRE,ANNUAL | I10: =I9+1 -> 2
B11: T | C11: ="X"&OFFSET(AGR!$B$6,0,I11) -> XAGRELC | D11: ="Agriculatural "&OFFSET(AGR!$B$5,0,I11) -> Agriculatural Electricity | E11: PJ,GW | F11: PRC,PRE,DAYNITE | I11: 3
B12: T | C12: ="X"&OFFSET(AGR!$B$6,0,I12) -> XAGROGS | D12: ="Agriculatural "&OFFSET(AGR!$B$5,0,I12) -> Agriculatural Oil Gasoline | E12: PJ,PJa | F12: PRC,PRE,ANNUAL | I12: 4
B13: T | C13: ="X"&OFFSET(AGR!$B$6,0,I13) -> XAGROHF | D13: ="Agriculatural "&OFFSET(AGR!$B$5,0,I13) -> Agriculatural Oil HFO | E13: PJ,PJa | F13: PRC,PRE,ANNUAL | I13: 5
B14: T | C14: ="X"&OFFSET(AGR!$B$6,0,I14) -> XAGROKE | D14: ="Agriculatural "&OFFSET(AGR!$B$5,0,I14) -> Agriculatural Oil Paraffin | E14: PJ,PJa | F14: PRC,PRE,ANNUAL | I14: 6
B15: T | C15: ="X"&OFFSET(AGR!$B$6,0,I15) -> XAGROLP | D15: ="Agriculatural "&OFFSET(AGR!$B$5,0,I15) -> Agriculatural Oil LPG | E15: PJ,PJa | F15: PRC,PRE,ANNUAL | I15: 7
A16: * | B16: Demand Techs
A17: =IF(LEFT(AGR!A50,2)="\I","*","") ->  | B17: =IF(A17="*","","T") -> T | C17: =IF(A17="*","",AGR!B50) -> AHCOA-E | D17: =IF(A17="*","",AGR!A50) -> Agriculture - Heating-Coal - Existing | E17: =IF(A17="*","","PJ,PJa") -> PJ,PJa | F17: =IF(A17="*","","PRC,DMD,ANNUAL") -> PRC,DMD,ANNUAL
A18: =IF(LEFT(AGR!A51,2)="\I","*","") ->  | B18: T | C18: =IF(A18="*","",AGR!B51) -> AHOHF-E | D18: =IF(A18="*","",AGR!A51) -> Agriculture - Heating - Oil HFO- Existing | E18: PJ,PJa | F18: =IF(A18="*","","PRC,DMD,ANNUAL") -> PRC,DMD,ANNUAL
A19: =IF(LEFT(AGR!A52,2)="\I","*","") ->  | B19: T | C19: =IF(A19="*","",AGR!B52) -> AHOKE-E | D19: =IF(A19="*","",AGR!A52) -> Agriculture - Heating - Oil Paraffin- Existing | E19: PJ,PJa | F19: =IF(A19="*","","PRC,DMD,ANNUAL") -> PRC,DMD,ANNUAL
A20: =IF(LEFT(AGR!A53,2)="\I","*","") ->  | B20: =IF(A20="*","","T") -> T | C20: =IF(A20="*","",AGR!B53) -> AHOLP-E | D20: =IF(A20="*","",AGR!A53) -> Agriculture - Heating - Oil LPG- Existing | E20: =IF(A20="*","","PJ,PJa") -> PJ,PJa | F20: =IF(A20="*","","PRC,DMD,ANNUAL") -> PRC,DMD,ANNUAL
A21: =IF(LEFT(AGR!A54,2)="\I","*","") ->  | B21: T | C21: =IF(A21="*","",AGR!B54) -> AHELC-E | D21: =IF(A21="*","",AGR!A54) -> Agriculture - Heating - Electricity - Room - Existing | E21: PJ,PJa | F21: =IF(A21="*","","PRC,DMD,DAYNITE") -> PRC,DMD,DAYNITE
A22: =IF(LEFT(AGR!A55,2)="\I","*","") -> * | C22: =IF(A22="*","",AGR!B55) ->  | D22: =IF(A22="*","",AGR!A55) -> 
A23: =IF(LEFT(AGR!A56,2)="\I","*","") -> * | C23: =IF(A23="*","",AGR!B56) ->  | D23: =IF(A23="*","",AGR!A56) -> 
A24: =IF(LEFT(AGR!A57,2)="\I","*","") ->  | B24: T | C24: =IF(A24="*","",AGR!B57) -> APELC-E | D24: =IF(A24="*","",AGR!A57) -> Agriculture - Processing - Electricity - Existing | E24: PJ,PJa | F24: PRC,DMD,DAYNITE
A25: =IF(LEFT(AGR!A58,2)="\I","*","") -> * | B25: =IF(A25="*","","T") ->  | C25: =IF(A25="*","",AGR!B58) ->  | D25: =IF(A25="*","",AGR!A58) ->  | E25: =IF(A25="*","","PJ,PJa") -> 
A26: =IF(LEFT(AGR!A59,2)="\I","*","") -> * | B26: =IF(A26="*","","T") ->  | C26: =IF(A26="*","",AGR!B59) ->  | D26: =IF(A26="*","",AGR!A59) ->  | E26: =IF(A26="*","","PJ,PJa") -> 
A27: =IF(LEFT(AGR!A60,2)="\I","*","") ->  | B27: =IF(A27="*","","T") -> T | C27: =IF(A27="*","",AGR!B60) -> ATODS-E | D27: =IF(A27="*","",AGR!A60) -> Agriculture - Traction - Oil Diesel - Existing | E27: =IF(A27="*","","PJ,PJa") -> PJ,PJa | F27: =IF(A27="*","","PRC,DMD,ANNUAL") -> PRC,DMD,ANNUAL
A28: =IF(LEFT(AGR!A61,2)="\I","*","") ->  | B28: =IF(A28="*","","T") -> T | C28: =IF(A28="*","",AGR!B61) -> ATELC-E | D28: =IF(A28="*","",AGR!A61) -> Agriculture - Traction - Electricity - Existing | E28: =IF(A28="*","","PJ,PJa") -> PJ,PJa | F28: =IF(A28="*","","PRC,DMD,DAYNITE") -> PRC,DMD,DAYNITE
A29: =IF(LEFT(AGR!A62,2)="\I","*","") ->  | B29: T | C29: =IF(A29="*","",AGR!B62) -> ATOGS-E | D29: =IF(A29="*","",AGR!A62) -> Agriculture - Traction - Oil Gasoline - Existing | E29: PJ,PJa | F29: =IF(A29="*","","PRC,DMD,ANNUAL") -> PRC,DMD,ANNUAL
A30: =IF(LEFT(AGR!A63,2)="\I","*","") -> * | C30: =IF(A30="*","",AGR!B63) ->  | D30: =IF(A30="*","",AGR!A63) -> 
A31: =IF(LEFT(AGR!A64,2)="\I","*","") -> * | C31: =IF(A31="*","",AGR!B64) ->  | D31: =IF(A31="*","",AGR!A64) -> 
A32: =IF(LEFT(AGR!A65,2)="\I","*","") ->  | B32: T | C32: =IF(A32="*","",AGR!B65) -> AIODS-E | D32: =IF(A32="*","",AGR!A65) -> Agriculture - Irrigation - Oil Diesel - Existing | E32: PJ,PJa | F32: PRC,DMD,ANNUAL
A33: =IF(LEFT(AGR!A66,2)="\I","*","") ->  | B33: T | C33: =IF(A33="*","",AGR!B66) -> AIELC-E | D33: =IF(A33="*","",AGR!A66) -> Agriculture - Irrigation - Electricity - Existing | E33: PJ,PJa | F33: =IF(A33="*","","PRC,DMD,DAYNITE") -> PRC,DMD,DAYNITE
A34: =IF(LEFT(AGR!A67,2)="\I","*","") ->  | B34: T | C34: =IF(A34="*","",AGR!B67) -> AIOGS-E | D34: =IF(A34="*","",AGR!A67) -> Agriculture - Irrigation - Oil Gasoline - Existing | E34: PJ,PJa | F34: PRC,DMD,ANNUAL
A35: =IF(LEFT(AGR!A68,2)="\I","*","") -> * | C35: =IF(A35="*","",AGR!B68) ->  | D35: =IF(A35="*","",AGR!A68) -> 
A36: =IF(LEFT(AGR!A69,2)="\I","*","") -> * | C36: =IF(A36="*","",AGR!B69) ->  | D36: =IF(A36="*","",AGR!A69) -> 
A37: =IF(LEFT(AGR!A70,2)="\I","*","") ->  | B37: T | C37: =IF(A37="*","",AGR!B70) -> AOELC-E | D37: =IF(A37="*","",AGR!A70) -> Agriculture - Other - Electricity - Existing | E37: PJ,PJa | F37: =IF(A37="*","","PRC,DMD,DAYNITE") -> PRC,DMD,DAYNITE
A38: =IF(LEFT(AGR!A72,2)="\I","*","") -> * | C38: =IF(A38="*","",AGR!B72) ->  | D38: =IF(A38="*","",AGR!A72) -> 

Sheet TS DTech
A1: TS DATA | B1: REGION1 | AW1: * | AX1: * | AY1: *
A2: * | AW2: Parameter # | AX2: row # | AY2: Col #
A3: *
A4: *
A5: *
A6: *
A7: * | B7: Parameter | C7: Arg1 | D7: Arg2 | E7: Arg3 | F7: Arg4 | G7: Arg5 | H7: Arg6 | I7: I/E Opt or Value | J7: 2006 | K7: =J7+1 -> 2007 | L7: =K7+1 -> 2008 | M7: 2009 | N7: 2010 | O7: 2011 | P7: 2012 | Q7: 2013 | R7: 2014 | S7: 2015 | T7: 2016 | U7: 2017 | V7: 2018 | W7: 2019 | X7: 2020 | Y7: 2021 | Z7: 2022 | AA7: 2023 | AB7: =AA7+1 -> 2024 | AC7: 2025 | AD7: 2026 | AE7: 2027 | AF7: 2028 | AG7: 2029 | AH7: 2030 | AI7: =AH7+1 -> 2031 | AJ7: =AI7+1 -> 2032 | AK7: =AJ7+1 -> 2033 | AL7: =AK7+1 -> 2034 | AM7: =AL7+1 -> 2035 | AN7: =AM7+1 -> 2036 | AO7: =AN7+1 -> 2037 | AP7: =AO7+1 -> 2038 | AQ7: =AP7+1 -> 2039 | AR7: =AM7+5 -> 2040 | AS7: =AR7+5 -> 2045 | AT7: =AS7+5 -> 2050 | AU7: =AT7+10 -> 2060 | AV7: 2070
A8: *
A9: * | B9: 1 | C9: 2 | D9: 3 | E9: 4 | F9: 5 | G9: 6 | H9: 7 | I9: 8
A10: *1 | B10: ACT_EFF | C10: Process | D10: - | E10: ACTGRP | F10: - | G10: ANNUAL | H10: - | I10: 0 | AY10: =AGR!$E$48 -> 3
A11: *2 | B11: NCAP_AFA | C11: Process | D11: - | E11: - | F11: - | G11: - | H11: UP | I11: 0 | AY11: =AGR!$F$48 -> 4
A12: *3 | B12: NCAP_BND | C12: Process | D12: - | E12: - | F12: - | G12: - | H12: UP | I12: 0 | AY12: 20
A13: *4 | B13: NCAP_TLIFE | C13: Process | D13: - | E13: - | F13: - | G13: - | H13: - | I13: 0 | AY13: =AGR!$G$48 -> 5
A14: *5 | B14: PRC_RESID | C14: Process | D14: - | E14: - | F14: - | G14: - | H14: - | I14: 0 | AY14: =AGR!$H$48 -> 6
A15: *
A16: =IF(LEFT(OFFSET(AGR!$A$49,AX16,0),2)="\I","*","") ->  | B16: =IF(A16="*","",VLOOKUP("*"&AW16,$A$9:$B$14,2,FALSE)) -> ACT_EFF | C16: =IF($A16="*","",OFFSET(AGR!$B$49,AX16,0)) -> AHCOA-E | D16: =IF($A16="*","",VLOOKUP($B16,$B$10:$I$14,D$9,FALSE)) -> - | E16: =IF($A16="*","",VLOOKUP($B16,$B$10:$I$14,E$9,FALSE)) -> ACTGRP | F16: - | G16: ANNUAL | H16: - | I16: 0 | J16: =IF($A16="*","",OFFSET(AGR!$B$49,AX16,SUMIF($B$10:$B$14,B16,$AY$10:$AY$14))) -> 0.65 | K16: =IF($B16<>"PRC_RESID","",IF(K$7=2005+OFFSET(AGR!$B$49,$AX16,SUMIF($B$10:$B$14,"NCAP_TLIFE",$AY$10:$AY$14)),0,"")) ->  | L16: =IF($B16<>"PRC_RESID","",IF(L$7=2005+OFFSET(AGR!$B$49,$AX16,SUMIF($B$10:$B$14,"NCAP_TLIFE",$AY$10:$AY$14)),0,"")) ->  | M16: =IF($B16<>"PRC_RESID","",IF(M$7=2005+OFFSET(AGR!$B$49,$AX16,SUMIF($B$10:$B$14,"NCAP_TLIFE",$AY$10:$AY$14)),0,"")) ->  | N16: =IF($B16<>"PRC_RESID","",IF(N$7=2005+OFFSET(AGR!$B$49,$AX16,SUMIF($B$10:$B$14,"NCAP_TLIFE",$AY$10:$AY$14)),0,"")) ->  | O16: =IF($B16<>"PRC_RESID","",IF(O$7=2005+OFFSET(AGR!$B$49,$AX16,SUMIF($B$10:$B$14,"NCAP_TLIFE",$AY$10:$AY$14)),0,"")) ->  | P16: =IF($B16<>"PRC_RESID","",IF(P$7=2005+OFFSET(AGR!$B$49,$AX16,SUMIF($B$10:$B$14,"NCAP_TLIFE",$AY$10:$AY$14)),0,"")) ->  | Q16: =IF($B16<>"PRC_RESID","",IF(Q$7=2005+OFFSET(AGR!$B$49,$AX16,SUMIF($B$10:$B$14,"NCAP_TLIFE",$AY$10:$AY$14)),0,"")) ->  | R16: =IF($B16<>"PRC_RESID","",IF(R$7=2005+OFFSET(AGR!$B$49,$AX16,SUMIF($B$10:$B$14,"NCAP_TLIFE",$AY$10:$AY$14)),0,"")) ->  | S16: =IF($B16<>"PRC_RESID","",IF(S$7=2005+OFFSET(AGR!$B$49,$AX16,SUMIF($B$10:$B$14,"NCAP_TLIFE",$AY$10:$AY$14)),0,"")) ->  | T16: =IF($B16<>"PRC_RESID","",IF(T$7=2005+OFFSET(AGR!$B$49,$AX16,SUMIF($B$10:$B$14,"NCAP_TLIFE",$AY$10:$AY$14)),0,"")) ->  | U16: =IF($B16<>"PRC_RESID","",IF(U$7=2005+OFFSET(AGR!$B$49,$AX16,SUMIF($B$10:$B$14,"NCAP_TLIFE",$AY$10:$AY$14)),0,"")) ->  | V16: =IF($B16<>"PRC_RESID","",IF(V$7=2005+OFFSET(AGR!$B$49,$AX16,SUMIF($B$10:$B$14,"NCAP_TLIFE",$AY$10:$AY$14)),0,"")) ->  | W16: =IF($B16<>"PRC_RESID","",IF(W$7=2005+OFFSET(AGR!$B$49,$AX16,SUMIF($B$10:$B$14,"NCAP_TLIFE",$AY$10:$AY$14)),0,"")) ->  | X16: =IF($B16<>"PRC_RESID","",IF(X$7=2005+OFFSET(AGR!$B$49,$AX16,SUMIF($B$10:$B$14,"NCAP_TLIFE",$AY$10:$AY$14)),0,"")) ->  | Y16: =IF($B16<>"PRC_RESID","",IF(Y$7=2005+OFFSET(AGR!$B$49,$AX16,SUMIF($B$10:$B$14,"NCAP_TLIFE",$AY$10:$AY$14)),0,"")) ->  | Z16: =IF($B16<>"PRC_RESID","",IF(Z$7=2005+OFFSET(AGR!$B$49,$AX16,SUMIF($B$10:$B$14,"NCAP_TLIFE",$AY$10:$AY$14)),0,"")) ->  | AA16: =IF($B16<>"PRC_RESID","",IF(AA$7=2005+OFFSET(AGR!$B$49,$AX16,SUMIF($B$10:$B$14,"NCAP_TLIFE",$AY$10:$AY$14)),0,"")) ->  | AB16: =IF($B16<>"PRC_RESID","",IF(AB$7=2005+OFFSET(AGR!$B$49,$AX16,SUMIF($B$10:$B$14,"NCAP_TLIFE",$AY$10:$AY$14)),0,"")) ->  | AC16: =IF($B16<>"PRC_RESID","",IF(AC$7=2005+OFFSET(AGR!$B$49,$AX16,SUMIF($B$10:$B$14,"NCAP_TLIFE",$AY$10:$AY$14)),0,"")) ->  | AD16: =IF($B16<>"PRC_RESID","",IF(AD$7=2005+OFFSET(AGR!$B$49,$AX16,SUMIF($B$10:$B$14,"NCAP_TLIFE",$AY$10:$AY$14)),0,"")) ->  | AE16: =IF($B16<>"PRC_RESID","",IF(AE$7=2005+OFFSET(AGR!$B$49,$AX16,SUMIF($B$10:$B$14,"NCAP_TLIFE",$AY$10:$AY$14)),0,"")) ->  | AF16: =IF($B16<>"PRC_RESID","",IF(AF$7=2005+OFFSET(AGR!$B$49,$AX16,SUMIF($B$10:$B$14,"NCAP_TLIFE",$AY$10:$AY$14)),0,"")) ->  | AG16: =IF($B16<>"PRC_RESID","",IF(AG$7=2005+OFFSET(AGR!$B$49,$AX16,SUMIF($B$10:$B$14,"NCAP_TLIFE",$AY$10:$AY$14)),0,"")) ->  | AH16: =IF($B16<>"PRC_RESID","",IF(AH$7=2005+OFFSET(AGR!$B$49,$AX16,SUMIF($B$10:$B$14,"NCAP_TLIFE",$AY$10:$AY$14)),0,"")) ->  | AM16: =IF($B16<>"PRC_RESID","",IF(AM$7=2005+OFFSET(AGR!$B$49,$AX16,SUMIF($B$10:$B$14,"NCAP_TLIFE",$AY$10:$AY$14)),0,"")) ->  | AR16: =IF($B16<>"PRC_RESID","",IF(AR$7=2005+OFFSET(AGR!$B$49,$AX16,SUMIF($B$10:$B$14,"NCAP_TLIFE",$AY$10:$AY$14)),0,"")) ->  | AS16: =IF($B16<>"PRC_RESID","",IF(AS$7=2005+OFFSET(AGR!$B$49,$AX16,SUMIF($B$10:$B$14,"NCAP_TLIFE",$AY$10:$AY$14)),0,"")) ->  | AT16: =IF($B16<>"PRC_RESID","",IF(AT$7=2005+OFFSET(AGR!$B$49,$AX16,SUMIF($B$10:$B$14,"NCAP_TLIFE",$AY$10:$AY$14)),0,"")) ->  | AU16: =IF($B16<>"PRC_RESID","",IF(AU$7=2005+OFFSET(AGR!$B$49,$AX16,SUMIF($B$10:$B$14,"NCAP_TLIFE",$AY$10:$AY$14)),0,"")) ->  | AW16: 1 | AX16: 1
A17: =IF(LEFT(OFFSET(AGR!$A$49,AX17,0),2)="\I","*","") ->  | B17: ACT_EFF | C17: =IF($A17="*","",OFFSET(AGR!$B$49,AX17,0)) -> AHOHF-E | D17: =IF($A17="*","",VLOOKUP($B17,$B$10:$I$14,D$9,FALSE)) -> - | E17: ACTGRP | F17: - | G17: ANNUAL | H17: - | I17: 0 | J17: =IF($A17="*","",OFFSET(AGR!$B$49,AX17,SUMIF($B$10:$B$14,B17,$AY$10:$AY$14))) -> 0.7 | K17: =IF($B17<>"PRC_RESID","",IF(K$7=2005+OFFSET(AGR!$B$49,$AX17,SUMIF($B$10:$B$14,"NCAP_TLIFE",$AY$10:$AY$14)),0,"")) ->  | L17: =IF($B17<>"PRC_RESID","",IF(L$7=2005+OFFSET(AGR!$B$49,$AX17,SUMIF($B$10:$B$14,"NCAP_TLIFE",$AY$10:$AY$14)),0,"")) ->  | M17: =IF($B17<>"PRC_RESID","",IF(M$7=2005+OFFSET(AGR!$B$49,$AX17,SUMIF($B$10:$B$14,"NCAP_TLIFE",$AY$10:$AY$14)),0,"")) ->  | N17: =IF($B17<>"PRC_RESID","",IF(N$7=2005+OFFSET(AGR!$B$49,$AX17,SUMIF($B$10:$B$14,"NCAP_TLIFE",$AY$10:$AY$14)),0,"")) ->  | O17: =IF($B17<>"PRC_RESID","",IF(O$7=2005+OFFSET(AGR!$B$49,$AX17,SUMIF($B$10:$B$14,"NCAP_TLIFE",$AY$10:$AY$14)),0,"")) ->  | P17: =IF($B17<>"PRC_RESID","",IF(P$7=2005+OFFSET(AGR!$B$49,$AX17,SUMIF($B$10:$B$14,"NCAP_TLIFE",$AY$10:$AY$14)),0,"")) ->  | Q17: =IF($B17<>"PRC_RESID","",IF(Q$7=2005+OFFSET(AGR!$B$49,$AX17,SUMIF($B$10:$B$14,"NCAP_TLIFE",$AY$10:$AY$14)),0,"")) ->  | R17: =IF($B17<>"PRC_RESID","",IF(R$7=2005+OFFSET(AGR!$B$49,$AX17,SUMIF($B$10:$B$14,"NCAP_TLIFE",$AY$10:$AY$14)),0,"")) ->  | S17: =IF($B17<>"PRC_RESID","",IF(S$7=2005+OFFSET(AGR!$B$49,$AX17,SUMIF($B$10:$B$14,"NCAP_TLIFE",$AY$10:$AY$14)),0,"")) ->  | T17: =IF($B17<>"PRC_RESID","",IF(T$7=2005+OFFSET(AGR!$B$49,$AX17,SUMIF($B$10:$B$14,"NCAP_TLIFE",$AY$10:$AY$14)),0,"")) ->  | U17: =IF($B17<>"PRC_RESID","",IF(U$7=2005+OFFSET(AGR!$B$49,$AX17,SUMIF($B$10:$B$14,"NCAP_TLIFE",$AY$10:$AY$14)),0,"")) ->  | V17: =IF($B17<>"PRC_RESID","",IF(V$7=2005+OFFSET(AGR!$B$49,$AX17,SUMIF($B$10:$B$14,"NCAP_TLIFE",$AY$10:$AY$14)),0,"")) ->  | W17: =IF($B17<>"PRC_RESID","",IF(W$7=2005+OFFSET(AGR!$B$49,$AX17,SUMIF($B$10:$B$14,"NCAP_TLIFE",$AY$10:$AY$14)),0,"")) ->  | X17: =IF($B17<>"PRC_RESID","",IF(X$7=2005+OFFSET(AGR!$B$49,$AX17,SUMIF($B$10:$B$14,"NCAP_TLIFE",$AY$10:$AY$14)),0,"")) ->  | Y17: =IF($B17<>"PRC_RESID","",IF(Y$7=2005+OFFSET(AGR!$B$49,$AX17,SUMIF($B$10:$B$14,"NCAP_TLIFE",$AY$10:$AY$14)),0,"")) ->  | Z17: =IF($B17<>"PRC_RESID","",IF(Z$7=2005+OFFSET(AGR!$B$49,$AX17,SUMIF($B$10:$B$14,"NCAP_TLIFE",$AY$10:$AY$14)),0,"")) ->  | AA17: =IF($B17<>"PRC_RESID","",IF(AA$7=2005+OFFSET(AGR!$B$49,$AX17,SUMIF($B$10:$B$14,"NCAP_TLIFE",$AY$10:$AY$14)),0,"")) ->  | AB17: =IF($B17<>"PRC_RESID","",IF(AB$7=2005+OFFSET(AGR!$B$49,$AX17,SUMIF($B$10:$B$14,"NCAP_TLIFE",$AY$10:$AY$14)),0,"")) ->  | AC17: =IF($B17<>"PRC_RESID","",IF(AC$7=2005+OFFSET(AGR!$B$49,$AX17,SUMIF($B$10:$B$14,"NCAP_TLIFE",$AY$10:$AY$14)),0,"")) ->  | AD17: =IF($B17<>"PRC_RESID","",IF(AD$7=2005+OFFSET(AGR!$B$49,$AX17,SUMIF($B$10:$B$14,"NCAP_TLIFE",$AY$10:$AY$14)),0,"")) ->  | AE17: =IF($B17<>"PRC_RESID","",IF(AE$7=2005+OFFSET(AGR!$B$49,$AX17,SUMIF($B$10:$B$14,"NCAP_TLIFE",$AY$10:$AY$14)),0,"")) ->  | AF17: =IF($B17<>"PRC_RESID","",IF(AF$7=2005+OFFSET(AGR!$B$49,$AX17,SUMIF($B$10:$B$14,"NCAP_TLIFE",$AY$10:$AY$14)),0,"")) ->  | AG17: =IF($B17<>"PRC_RESID","",IF(AG$7=2005+OFFSET(AGR!$B$49,$AX17,SUMIF($B$10:$B$14,"NCAP_TLIFE",$AY$10:$AY$14)),0,"")) ->  | AH17: =IF($B17<>"PRC_RESID","",IF(AH$7=2005+OFFSET(AGR!$B$49,$AX17,SUMIF($B$10:$B$14,"NCAP_TLIFE",$AY$10:$AY$14)),0,"")) ->  | AM17: =IF($B17<>"PRC_RESID","",IF(AM$7=2005+OFFSET(AGR!$B$49,$AX17,SUMIF($B$10:$B$14,"NCAP_TLIFE",$AY$10:$AY$14)),0,"")) ->  | AR17: =IF($B17<>"PRC_RESID","",IF(AR$7=2005+OFFSET(AGR!$B$49,$AX17,SUMIF($B$10:$B$14,"NCAP_TLIFE",$AY$10:$AY$14)),0,"")) ->  | AS17: =IF($B17<>"PRC_RESID","",IF(AS$7=2005+OFFSET(AGR!$B$49,$AX17,SUMIF($B$10:$B$14,"NCAP_TLIFE",$AY$10:$AY$14)),0,"")) ->  | AT17: =IF($B17<>"PRC_RESID","",IF(AT$7=2005+OFFSET(AGR!$B$49,$AX17,SUMIF($B$10:$B$14,"NCAP_TLIFE",$AY$10:$AY$14)),0,"")) ->  | AU17: =IF($B17<>"PRC_RESID","",IF(AU$7=2005+OFFSET(AGR!$B$49,$AX17,SUMIF($B$10:$B$14,"NCAP_TLIFE",$AY$10:$AY$14)),0,"")) ->  | AW17: =IF(AX16=AGR!$W$72,AW16+1,AW16) -> 1 | AX17: =IF(AW17=AW16,AX16+1,1) -> 2
A18: =IF(LEFT(OFFSET(AGR!$A$49,AX18,0),2)="\I","*","") ->  | B18: ACT_EFF | C18: =IF($A18="*","",OFFSET(AGR!$B$49,AX18,0)) -> AHOKE-E | D18: - | E18: ACTGRP | F18: - | G18: ANNUAL | H18: - | I18: 0 | J18: =IF($A18="*","",OFFSET(AGR!$B$49,AX18,SUMIF($B$10:$B$14,B18,$AY$10:$AY$14))) -> 0.7 | K18: =IF($B18<>"PRC_RESID","",IF(K$7=2005+OFFSET(AGR!$B$49,$AX18,SUMIF($B$10:$B$14,"NCAP_TLIFE",$AY$10:$AY$14)),0,"")) ->  | L18: =IF($B18<>"PRC_RESID","",IF(L$7=2005+OFFSET(AGR!$B$49,$AX18,SUMIF($B$10:$B$14,"NCAP_TLIFE",$AY$10:$AY$14)),0,"")) ->  | M18: =IF($B18<>"PRC_RESID","",IF(M$7=2005+OFFSET(AGR!$B$49,$AX18,SUMIF($B$10:$B$14,"NCAP_TLIFE",$AY$10:$AY$14)),0,"")) ->  | N18: =IF($B18<>"PRC_RESID","",IF(N$7=2005+OFFSET(AGR!$B$49,$AX18,SUMIF($B$10:$B$14,"NCAP_TLIFE",$AY$10:$AY$14)),0,"")) ->  | O18: =IF($B18<>"PRC_RESID","",IF(O$7=2005+OFFSET(AGR!$B$49,$AX18,SUMIF($B$10:$B$14,"NCAP_TLIFE",$AY$10:$AY$14)),0,"")) ->  | P18: =IF($B18<>"PRC_RESID","",IF(P$7=2005+OFFSET(AGR!$B$49,$AX18,SUMIF($B$10:$B$14,"NCAP_TLIFE",$AY$10:$AY$14)),0,"")) ->  | Q18: =IF($B18<>"PRC_RESID","",IF(Q$7=2005+OFFSET(AGR!$B$49,$AX18,SUMIF($B$10:$B$14,"NCAP_TLIFE",$AY$10:$AY$14)),0,"")) ->  | R18: =IF($B18<>"PRC_RESID","",IF(R$7=2005+OFFSET(AGR!$B$49,$AX18,SUMIF($B$10:$B$14,"NCAP_TLIFE",$AY$10:$AY$14)),0,"")) ->  | S18: =IF($B18<>"PRC_RESID","",IF(S$7=2005+OFFSET(AGR!$B$49,$AX18,SUMIF($B$10:$B$14,"NCAP_TLIFE",$AY$10:$AY$14)),0,"")) ->  | T18: =IF($B18<>"PRC_RESID","",IF(T$7=2005+OFFSET(AGR!$B$49,$AX18,SUMIF($B$10:$B$14,"NCAP_TLIFE",$AY$10:$AY$14)),0,"")) ->  | U18: =IF($B18<>"PRC_RESID","",IF(U$7=2005+OFFSET(AGR!$B$49,$AX18,SUMIF($B$10:$B$14,"NCAP_TLIFE",$AY$10:$AY$14)),0,"")) ->  | V18: =IF($B18<>"PRC_RESID","",IF(V$7=2005+OFFSET(AGR!$B$49,$AX18,SUMIF($B$10:$B$14,"NCAP_TLIFE",$AY$10:$AY$14)),0,"")) ->  | W18: =IF($B18<>"PRC_RESID","",IF(W$7=2005+OFFSET(AGR!$B$49,$AX18,SUMIF($B$10:$B$14,"NCAP_TLIFE",$AY$10:$AY$14)),0,"")) ->  | X18: =IF($B18<>"PRC_RESID","",IF(X$7=2005+OFFSET(AGR!$B$49,$AX18,SUMIF($B$10:$B$14,"NCAP_TLIFE",$AY$10:$AY$14)),0,"")) ->  | Y18: =IF($B18<>"PRC_RESID","",IF(Y$7=2005+OFFSET(AGR!$B$49,$AX18,SUMIF($B$10:$B$14,"NCAP_TLIFE",$AY$10:$AY$14)),0,"")) ->  | Z18: =IF($B18<>"PRC_RESID","",IF(Z$7=2005+OFFSET(AGR!$B$49,$AX18,SUMIF($B$10:$B$14,"NCAP_TLIFE",$AY$10:$AY$14)),0,"")) ->  | AA18: =IF($B18<>"PRC_RESID","",IF(AA$7=2005+OFFSET(AGR!$B$49,$AX18,SUMIF($B$10:$B$14,"NCAP_TLIFE",$AY$10:$AY$14)),0,"")) ->  | AB18: =IF($B18<>"PRC_RESID","",IF(AB$7=2005+OFFSET(AGR!$B$49,$AX18,SUMIF($B$10:$B$14,"NCAP_TLIFE",$AY$10:$AY$14)),0,"")) ->  | AC18: =IF($B18<>"PRC_RESID","",IF(AC$7=2005+OFFSET(AGR!$B$49,$AX18,SUMIF($B$10:$B$14,"NCAP_TLIFE",$AY$10:$AY$14)),0,"")) ->  | AD18: =IF($B18<>"PRC_RESID","",IF(AD$7=2005+OFFSET(AGR!$B$49,$AX18,SUMIF($B$10:$B$14,"NCAP_TLIFE",$AY$10:$AY$14)),0,"")) ->  | AE18: =IF($B18<>"PRC_RESID","",IF(AE$7=2005+OFFSET(AGR!$B$49,$AX18,SUMIF($B$10:$B$14,"NCAP_TLIFE",$AY$10:$AY$14)),0,"")) ->  | AF18: =IF($B18<>"PRC_RESID","",IF(AF$7=2005+OFFSET(AGR!$B$49,$AX18,SUMIF($B$10:$B$14,"NCAP_TLIFE",$AY$10:$AY$14)),0,"")) ->  | AG18: =IF($B18<>"PRC_RESID","",IF(AG$7=2005+OFFSET(AGR!$B$49,$AX18,SUMIF($B$10:$B$14,"NCAP_TLIFE",$AY$10:$AY$14)),0,"")) ->  | AH18: =IF($B18<>"PRC_RESID","",IF(AH$7=2005+OFFSET(AGR!$B$49,$AX18,SUMIF($B$10:$B$14,"NCAP_TLIFE",$AY$10:$AY$14)),0,"")) ->  | AM18: =IF($B18<>"PRC_RESID","",IF(AM$7=2005+OFFSET(AGR!$B$49,$AX18,SUMIF($B$10:$B$14,"NCAP_TLIFE",$AY$10:$AY$14)),0,"")) ->  | AR18: =IF($B18<>"PRC_RESID","",IF(AR$7=2005+OFFSET(AGR!$B$49,$AX18,SUMIF($B$10:$B$14,"NCAP_TLIFE",$AY$10:$AY$14)),0,"")) ->  | AS18: =IF($B18<>"PRC_RESID","",IF(AS$7=2005+OFFSET(AGR!$B$49,$AX18,SUMIF($B$10:$B$14,"NCAP_TLIFE",$AY$10:$AY$14)),0,"")) ->  | AT18: =IF($B18<>"PRC_RESID","",IF(AT$7=2005+OFFSET(AGR!$B$49,$AX18,SUMIF($B$10:$B$14,"NCAP_TLIFE",$AY$10:$AY$14)),0,"")) ->  | AU18: =IF($B18<>"PRC_RESID","",IF(AU$7=2005+OFFSET(AGR!$B$49,$AX18,SUMIF($B$10:$B$14,"NCAP_TLIFE",$AY$10:$AY$14)),0,"")) ->  | AW18: =IF(AX17=AGR!$W$72,AW17+1,AW17) -> 1 | AX18: =IF(AW18=AW17,AX17+1,1) -> 3
A19: =IF(LEFT(OFFSET(AGR!$A$49,AX19,0),2)="\I","*","") ->  | B19: ACT_EFF | C19: =IF($A19="*","",OFFSET(AGR!$B$49,AX19,0)) -> AHOLP-E | D19: - | E19: ACTGRP | F19: - | G19: ANNUAL | H19: - | I19: 0 | J19: =IF($A19="*","",OFFSET(AGR!$B$49,AX19,SUMIF($B$10:$B$14,B19,$AY$10:$AY$14))) -> 0.75 | K19: =IF($B19<>"PRC_RESID","",IF(K$7=2005+OFFSET(AGR!$B$49,$AX19,SUMIF($B$10:$B$14,"NCAP_TLIFE",$AY$10:$AY$14)),0,"")) ->  | L19: =IF($B19<>"PRC_RESID","",IF(L$7=2005+OFFSET(AGR!$B$49,$AX19,SUMIF($B$10:$B$14,"NCAP_TLIFE",$AY$10:$AY$14)),0,"")) ->  | M19: =IF($B19<>"PRC_RESID","",IF(M$7=2005+OFFSET(AGR!$B$49,$AX19,SUMIF($B$10:$B$14,"NCAP_TLIFE",$AY$10:$AY$14)),0,"")) ->  | N19: =IF($B19<>"PRC_RESID","",IF(N$7=2005+OFFSET(AGR!$B$49,$AX19,SUMIF($B$10:$B$14,"NCAP_TLIFE",$AY$10:$AY$14)),0,"")) ->  | O19: =IF($B19<>"PRC_RESID","",IF(O$7=2005+OFFSET(AGR!$B$49,$AX19,SUMIF($B$10:$B$14,"NCAP_TLIFE",$AY$10:$AY$14)),0,"")) ->  | P19: =IF($B19<>"PRC_RESID","",IF(P$7=2005+OFFSET(AGR!$B$49,$AX19,SUMIF($B$10:$B$14,"NCAP_TLIFE",$AY$10:$AY$14)),0,"")) ->  | Q19: =IF($B19<>"PRC_RESID","",IF(Q$7=2005+OFFSET(AGR!$B$49,$AX19,SUMIF($B$10:$B$14,"NCAP_TLIFE",$AY$10:$AY$14)),0,"")) ->  | R19: =IF($B19<>"PRC_RESID","",IF(R$7=2005+OFFSET(AGR!$B$49,$AX19,SUMIF($B$10:$B$14,"NCAP_TLIFE",$AY$10:$AY$14)),0,"")) ->  | S19: =IF($B19<>"PRC_RESID","",IF(S$7=2005+OFFSET(AGR!$B$49,$AX19,SUMIF($B$10:$B$14,"NCAP_TLIFE",$AY$10:$AY$14)),0,"")) ->  | T19: =IF($B19<>"PRC_RESID","",IF(T$7=2005+OFFSET(AGR!$B$49,$AX19,SUMIF($B$10:$B$14,"NCAP_TLIFE",$AY$10:$AY$14)),0,"")) ->  | U19: =IF($B19<>"PRC_RESID","",IF(U$7=2005+OFFSET(AGR!$B$49,$AX19,SUMIF($B$10:$B$14,"NCAP_TLIFE",$AY$10:$AY$14)),0,"")) ->  | V19: =IF($B19<>"PRC_RESID","",IF(V$7=2005+OFFSET(AGR!$B$49,$AX19,SUMIF($B$10:$B$14,"NCAP_TLIFE",$AY$10:$AY$14)),0,"")) ->  | W19: =IF($B19<>"PRC_RESID","",IF(W$7=2005+OFFSET(AGR!$B$49,$AX19,SUMIF($B$10:$B$14,"NCAP_TLIFE",$AY$10:$AY$14)),0,"")) ->  | X19: =IF($B19<>"PRC_RESID","",IF(X$7=2005+OFFSET(AGR!$B$49,$AX19,SUMIF($B$10:$B$14,"NCAP_TLIFE",$AY$10:$AY$14)),0,"")) ->  | Y19: =IF($B19<>"PRC_RESID","",IF(Y$7=2005+OFFSET(AGR!$B$49,$AX19,SUMIF($B$10:$B$14,"NCAP_TLIFE",$AY$10:$AY$14)),0,"")) ->  | Z19: =IF($B19<>"PRC_RESID","",IF(Z$7=2005+OFFSET(AGR!$B$49,$AX19,SUMIF($B$10:$B$14,"NCAP_TLIFE",$AY$10:$AY$14)),0,"")) ->  | AA19: =IF($B19<>"PRC_RESID","",IF(AA$7=2005+OFFSET(AGR!$B$49,$AX19,SUMIF($B$10:$B$14,"NCAP_TLIFE",$AY$10:$AY$14)),0,"")) ->  | AB19: =IF($B19<>"PRC_RESID","",IF(AB$7=2005+OFFSET(AGR!$B$49,$AX19,SUMIF($B$10:$B$14,"NCAP_TLIFE",$AY$10:$AY$14)),0,"")) ->  | AC19: =IF($B19<>"PRC_RESID","",IF(AC$7=2005+OFFSET(AGR!$B$49,$AX19,SUMIF($B$10:$B$14,"NCAP_TLIFE",$AY$10:$AY$14)),0,"")) ->  | AD19: =IF($B19<>"PRC_RESID","",IF(AD$7=2005+OFFSET(AGR!$B$49,$AX19,SUMIF($B$10:$B$14,"NCAP_TLIFE",$AY$10:$AY$14)),0,"")) ->  | AE19: =IF($B19<>"PRC_RESID","",IF(AE$7=2005+OFFSET(AGR!$B$49,$AX19,SUMIF($B$10:$B$14,"NCAP_TLIFE",$AY$10:$AY$14)),0,"")) ->  | AF19: =IF($B19<>"PRC_RESID","",IF(AF$7=2005+OFFSET(AGR!$B$49,$AX19,SUMIF($B$10:$B$14,"NCAP_TLIFE",$AY$10:$AY$14)),0,"")) ->  | AG19: =IF($B19<>"PRC_RESID","",IF(AG$7=2005+OFFSET(AGR!$B$49,$AX19,SUMIF($B$10:$B$14,"NCAP_TLIFE",$AY$10:$AY$14)),0,"")) ->  | AH19: =IF($B19<>"PRC_RESID","",IF(AH$7=2005+OFFSET(AGR!$B$49,$AX19,SUMIF($B$10:$B$14,"NCAP_TLIFE",$AY$10:$AY$14)),0,"")) ->  | AM19: =IF($B19<>"PRC_RESID","",IF(AM$7=2005+OFFSET(AGR!$B$49,$AX19,SUMIF($B$10:$B$14,"NCAP_TLIFE",$AY$10:$AY$14)),0,"")) ->  | AR19: =IF($B19<>"PRC_RESID","",IF(AR$7=2005+OFFSET(AGR!$B$49,$AX19,SUMIF($B$10:$B$14,"NCAP_TLIFE",$AY$10:$AY$14)),0,"")) ->  | AS19: =IF($B19<>"PRC_RESID","",IF(AS$7=2005+OFFSET(AGR!$B$49,$AX19,SUMIF($B$10:$B$14,"NCAP_TLIFE",$AY$10:$AY$14)),0,"")) ->  | AT19: =IF($B19<>"PRC_RESID","",IF(AT$7=2005+OFFSET(AGR!$B$49,$AX19,SUMIF($B$10:$B$14,"NCAP_TLIFE",$AY$10:$AY$14)),0,"")) ->  | AU19: =IF($B19<>"PRC_RESID","",IF(AU$7=2005+OFFSET(AGR!$B$49,$AX19,SUMIF($B$10:$B$14,"NCAP_TLIFE",$AY$10:$AY$14)),0,"")) ->  | AW19: =IF(AX18=AGR!$W$72,AW18+1,AW18) -> 1 | AX19: 4
A20: =IF(LEFT(OFFSET(AGR!$A$49,AX20,0),2)="\I","*","") ->  | B20: ACT_EFF | C20: =IF($A20="*","",OFFSET(AGR!$B$49,AX20,0)) -> AHELC-E | D20: - | E20: ACTGRP | F20: - | G20: ANNUAL | H20: - | I20: 0 | J20: =IF($A20="*","",OFFSET(AGR!$B$49,AX20,SUMIF($B$10:$B$14,B20,$AY$10:$AY$14))) -> 0.75 | K20: =IF($B20<>"PRC_RESID","",IF(K$7=2005+OFFSET(AGR!$B$49,$AX20,SUMIF($B$10:$B$14,"NCAP_TLIFE",$AY$10:$AY$14)),0,"")) ->  | L20: =IF($B20<>"PRC_RESID","",IF(L$7=2005+OFFSET(AGR!$B$49,$AX20,SUMIF($B$10:$B$14,"NCAP_TLIFE",$AY$10:$AY$14)),0,"")) ->  | M20: =IF($B20<>"PRC_RESID","",IF(M$7=2005+OFFSET(AGR!$B$49,$AX20,SUMIF($B$10:$B$14,"NCAP_TLIFE",$AY$10:$AY$14)),0,"")) ->  | N20: =IF($B20<>"PRC_RESID","",IF(N$7=2005+OFFSET(AGR!$B$49,$AX20,SUMIF($B$10:$B$14,"NCAP_TLIFE",$AY$10:$AY$14)),0,"")) ->  | O20: =IF($B20<>"PRC_RESID","",IF(O$7=2005+OFFSET(AGR!$B$49,$AX20,SUMIF($B$10:$B$14,"NCAP_TLIFE",$AY$10:$AY$14)),0,"")) ->  | P20: =IF($B20<>"PRC_RESID","",IF(P$7=2005+OFFSET(AGR!$B$49,$AX20,SUMIF($B$10:$B$14,"NCAP_TLIFE",$AY$10:$AY$14)),0,"")) ->  | Q20: =IF($B20<>"PRC_RESID","",IF(Q$7=2005+OFFSET(AGR!$B$49,$AX20,SUMIF($B$10:$B$14,"NCAP_TLIFE",$AY$10:$AY$14)),0,"")) ->  | R20: =IF($B20<>"PRC_RESID","",IF(R$7=2005+OFFSET(AGR!$B$49,$AX20,SUMIF($B$10:$B$14,"NCAP_TLIFE",$AY$10:$AY$14)),0,"")) ->  | S20: =IF($B20<>"PRC_RESID","",IF(S$7=2005+OFFSET(AGR!$B$49,$AX20,SUMIF($B$10:$B$14,"NCAP_TLIFE",$AY$10:$AY$14)),0,"")) ->  | T20: =IF($B20<>"PRC_RESID","",IF(T$7=2005+OFFSET(AGR!$B$49,$AX20,SUMIF($B$10:$B$14,"NCAP_TLIFE",$AY$10:$AY$14)),0,"")) ->  | U20: =IF($B20<>"PRC_RESID","",IF(U$7=2005+OFFSET(AGR!$B$49,$AX20,SUMIF($B$10:$B$14,"NCAP_TLIFE",$AY$10:$AY$14)),0,"")) ->  | V20: =IF($B20<>"PRC_RESID","",IF(V$7=2005+OFFSET(AGR!$B$49,$AX20,SUMIF($B$10:$B$14,"NCAP_TLIFE",$AY$10:$AY$14)),0,"")) ->  | W20: =IF($B20<>"PRC_RESID","",IF(W$7=2005+OFFSET(AGR!$B$49,$AX20,SUMIF($B$10:$B$14,"NCAP_TLIFE",$AY$10:$AY$14)),0,"")) ->  | X20: =IF($B20<>"PRC_RESID","",IF(X$7=2005+OFFSET(AGR!$B$49,$AX20,SUMIF($B$10:$B$14,"NCAP_TLIFE",$AY$10:$AY$14)),0,"")) ->  | Y20: =IF($B20<>"PRC_RESID","",IF(Y$7=2005+OFFSET(AGR!$B$49,$AX20,SUMIF($B$10:$B$14,"NCAP_TLIFE",$AY$10:$AY$14)),0,"")) ->  | Z20: =IF($B20<>"PRC_RESID","",IF(Z$7=2005+OFFSET(AGR!$B$49,$AX20,SUMIF($B$10:$B$14,"NCAP_TLIFE",$AY$10:$AY$14)),0,"")) ->  | AA20: =IF($B20<>"PRC_RESID","",IF(AA$7=2005+OFFSET(AGR!$B$49,$AX20,SUMIF($B$10:$B$14,"NCAP_TLIFE",$AY$10:$AY$14)),0,"")) ->  | AB20: =IF($B20<>"PRC_RESID","",IF(AB$7=2005+OFFSET(AGR!$B$49,$AX20,SUMIF($B$10:$B$14,"NCAP_TLIFE",$AY$10:$AY$14)),0,"")) ->  | AC20: =IF($B20<>"PRC_RESID","",IF(AC$7=2005+OFFSET(AGR!$B$49,$AX20,SUMIF($B$10:$B$14,"NCAP_TLIFE",$AY$10:$AY$14)),0,"")) ->  | AD20: =IF($B20<>"PRC_RESID","",IF(AD$7=2005+OFFSET(AGR!$B$49,$AX20,SUMIF($B$10:$B$14,"NCAP_TLIFE",$AY$10:$AY$14)),0,"")) ->  | AE20: =IF($B20<>"PRC_RESID","",IF(AE$7=2005+OFFSET(AGR!$B$49,$AX20,SUMIF($B$10:$B$14,"NCAP_TLIFE",$AY$10:$AY$14)),0,"")) ->  | AF20: =IF($B20<>"PRC_RESID","",IF(AF$7=2005+OFFSET(AGR!$B$49,$AX20,SUMIF($B$10:$B$14,"NCAP_TLIFE",$AY$10:$AY$14)),0,"")) ->  | AG20: =IF($B20<>"PRC_RESID","",IF(AG$7=2005+OFFSET(AGR!$B$49,$AX20,SUMIF($B$10:$B$14,"NCAP_TLIFE",$AY$10:$AY$14)),0,"")) ->  | AH20: =IF($B20<>"PRC_RESID","",IF(AH$7=2005+OFFSET(AGR!$B$49,$AX20,SUMIF($B$10:$B$14,"NCAP_TLIFE",$AY$10:$AY$14)),0,"")) ->  | AM20: =IF($B20<>"PRC_RESID","",IF(AM$7=2005+OFFSET(AGR!$B$49,$AX20,SUMIF($B$10:$B$14,"NCAP_TLIFE",$AY$10:$AY$14)),0,"")) ->  | AR20: =IF($B20<>"PRC_RESID","",IF(AR$7=2005+OFFSET(AGR!$B$49,$AX20,SUMIF($B$10:$B$14,"NCAP_TLIFE",$AY$10:$AY$14)),0,"")) ->  | AS20: =IF($B20<>"PRC_RESID","",IF(AS$7=2005+OFFSET(AGR!$B$49,$AX20,SUMIF($B$10:$B$14,"NCAP_TLIFE",$AY$10:$AY$14)),0,"")) ->  | AT20: =IF($B20<>"PRC_RESID","",IF(AT$7=2005+OFFSET(AGR!$B$49,$AX20,SUMIF($B$10:$B$14,"NCAP_TLIFE",$AY$10:$AY$14)),0,"")) ->  | AU20: =IF($B20<>"PRC_RESID","",IF(AU$7=2005+OFFSET(AGR!$B$49,$AX20,SUMIF($B$10:$B$14,"NCAP_TLIFE",$AY$10:$AY$14)),0,"")) ->  | AW20: =IF(AX19=AGR!$W$72,AW19+1,AW19) -> 1 | AX20: 5
A21: =IF(LEFT(OFFSET(AGR!$A$49,AX21,0),2)="\I","*","") -> * | C21: =IF($A21="*","",OFFSET(AGR!$B$49,AX21,0)) ->  | J21: =IF($A21="*","",OFFSET(AGR!$B$49,AX21,SUMIF($B$10:$B$14,B21,$AY$10:$AY$14))) ->  | K21: =IF($B21<>"PRC_RESID","",IF(K$7=2005+OFFSET(AGR!$B$49,$AX21,SUMIF($B$10:$B$14,"NCAP_TLIFE",$AY$10:$AY$14)),0,"")) ->  | L21: =IF($B21<>"PRC_RESID","",IF(L$7=2005+OFFSET(AGR!$B$49,$AX21,SUMIF($B$10:$B$14,"NCAP_TLIFE",$AY$10:$AY$14)),0,"")) ->  | M21: =IF($B21<>"PRC_RESID","",IF(M$7=2005+OFFSET(AGR!$B$49,$AX21,SUMIF($B$10:$B$14,"NCAP_TLIFE",$AY$10:$AY$14)),0,"")) ->  | N21: =IF($B21<>"PRC_RESID","",IF(N$7=2005+OFFSET(AGR!$B$49,$AX21,SUMIF($B$10:$B$14,"NCAP_TLIFE",$AY$10:$AY$14)),0,"")) ->  | O21: =IF($B21<>"PRC_RESID","",IF(O$7=2005+OFFSET(AGR!$B$49,$AX21,SUMIF($B$10:$B$14,"NCAP_TLIFE",$AY$10:$AY$14)),0,"")) ->  | P21: =IF($B21<>"PRC_RESID","",IF(P$7=2005+OFFSET(AGR!$B$49,$AX21,SUMIF($B$10:$B$14,"NCAP_TLIFE",$AY$10:$AY$14)),0,"")) ->  | Q21: =IF($B21<>"PRC_RESID","",IF(Q$7=2005+OFFSET(AGR!$B$49,$AX21,SUMIF($B$10:$B$14,"NCAP_TLIFE",$AY$10:$AY$14)),0,"")) ->  | R21: =IF($B21<>"PRC_RESID","",IF(R$7=2005+OFFSET(AGR!$B$49,$AX21,SUMIF($B$10:$B$14,"NCAP_TLIFE",$AY$10:$AY$14)),0,"")) ->  | S21: =IF($B21<>"PRC_RESID","",IF(S$7=2005+OFFSET(AGR!$B$49,$AX21,SUMIF($B$10:$B$14,"NCAP_TLIFE",$AY$10:$AY$14)),0,"")) ->  | T21: =IF($B21<>"PRC_RESID","",IF(T$7=2005+OFFSET(AGR!$B$49,$AX21,SUMIF($B$10:$B$14,"NCAP_TLIFE",$AY$10:$AY$14)),0,"")) ->  | U21: =IF($B21<>"PRC_RESID","",IF(U$7=2005+OFFSET(AGR!$B$49,$AX21,SUMIF($B$10:$B$14,"NCAP_TLIFE",$AY$10:$AY$14)),0,"")) ->  | V21: =IF($B21<>"PRC_RESID","",IF(V$7=2005+OFFSET(AGR!$B$49,$AX21,SUMIF($B$10:$B$14,"NCAP_TLIFE",$AY$10:$AY$14)),0,"")) ->  | W21: =IF($B21<>"PRC_RESID","",IF(W$7=2005+OFFSET(AGR!$B$49,$AX21,SUMIF($B$10:$B$14,"NCAP_TLIFE",$AY$10:$AY$14)),0,"")) ->  | X21: =IF($B21<>"PRC_RESID","",IF(X$7=2005+OFFSET(AGR!$B$49,$AX21,SUMIF($B$10:$B$14,"NCAP_TLIFE",$AY$10:$AY$14)),0,"")) ->  | Y21: =IF($B21<>"PRC_RESID","",IF(Y$7=2005+OFFSET(AGR!$B$49,$AX21,SUMIF($B$10:$B$14,"NCAP_TLIFE",$AY$10:$AY$14)),0,"")) ->  | Z21: =IF($B21<>"PRC_RESID","",IF(Z$7=2005+OFFSET(AGR!$B$49,$AX21,SUMIF($B$10:$B$14,"NCAP_TLIFE",$AY$10:$AY$14)),0,"")) ->  | AA21: =IF($B21<>"PRC_RESID","",IF(AA$7=2005+OFFSET(AGR!$B$49,$AX21,SUMIF($B$10:$B$14,"NCAP_TLIFE",$AY$10:$AY$14)),0,"")) ->  | AB21: =IF($B21<>"PRC_RESID","",IF(AB$7=2005+OFFSET(AGR!$B$49,$AX21,SUMIF($B$10:$B$14,"NCAP_TLIFE",$AY$10:$AY$14)),0,"")) ->  | AC21: =IF($B21<>"PRC_RESID","",IF(AC$7=2005+OFFSET(AGR!$B$49,$AX21,SUMIF($B$10:$B$14,"NCAP_TLIFE",$AY$10:$AY$14)),0,"")) ->  | AD21: =IF($B21<>"PRC_RESID","",IF(AD$7=2005+OFFSET(AGR!$B$49,$AX21,SUMIF($B$10:$B$14,"NCAP_TLIFE",$AY$10:$AY$14)),0,"")) ->  | AE21: =IF($B21<>"PRC_RESID","",IF(AE$7=2005+OFFSET(AGR!$B$49,$AX21,SUMIF($B$10:$B$14,"NCAP_TLIFE",$AY$10:$AY$14)),0,"")) ->  | AF21: =IF($B21<>"PRC_RESID","",IF(AF$7=2005+OFFSET(AGR!$B$49,$AX21,SUMIF($B$10:$B$14,"NCAP_TLIFE",$AY$10:$AY$14)),0,"")) ->  | AG21: =IF($B21<>"PRC_RESID","",IF(AG$7=2005+OFFSET(AGR!$B$49,$AX21,SUMIF($B$10:$B$14,"NCAP_TLIFE",$AY$10:$AY$14)),0,"")) ->  | AH21: =IF($B21<>"PRC_RESID","",IF(AH$7=2005+OFFSET(AGR!$B$49,$AX21,SUMIF($B$10:$B$14,"NCAP_TLIFE",$AY$10:$AY$14)),0,"")) ->  | AM21: =IF($B21<>"PRC_RESID","",IF(AM$7=2005+OFFSET(AGR!$B$49,$AX21,SUMIF($B$10:$B$14,"NCAP_TLIFE",$AY$10:$AY$14)),0,"")) ->  | AR21: =IF($B21<>"PRC_RESID","",IF(AR$7=2005+OFFSET(AGR!$B$49,$AX21,SUMIF($B$10:$B$14,"NCAP_TLIFE",$AY$10:$AY$14)),0,"")) ->  | AS21: =IF($B21<>"PRC_RESID","",IF(AS$7=2005+OFFSET(AGR!$B$49,$AX21,SUMIF($B$10:$B$14,"NCAP_TLIFE",$AY$10:$AY$14)),0,"")) ->  | AT21: =IF($B21<>"PRC_RESID","",IF(AT$7=2005+OFFSET(AGR!$B$49,$AX21,SUMIF($B$10:$B$14,"NCAP_TLIFE",$AY$10:$AY$14)),0,"")) ->  | AU21: =IF($B21<>"PRC_RESID","",IF(AU$7=2005+OFFSET(AGR!$B$49,$AX21,SUMIF($B$10:$B$14,"NCAP_TLIFE",$AY$10:$AY$14)),0,"")) ->  | AW21: =IF(AX20=AGR!$W$72,AW20+1,AW20) -> 1 | AX21: 6
A22: =IF(LEFT(OFFSET(AGR!$A$49,AX22,0),2)="\I","*","") -> * | C22: =IF($A22="*","",OFFSET(AGR!$B$49,AX22,0)) ->  | J22: =IF($A22="*","",OFFSET(AGR!$B$49,AX22,SUMIF($B$10:$B$14,B22,$AY$10:$AY$14))) ->  | K22: =IF($B22<>"PRC_RESID","",IF(K$7=2005+OFFSET(AGR!$B$49,$AX22,SUMIF($B$10:$B$14,"NCAP_TLIFE",$AY$10:$AY$14)),0,"")) ->  | L22: =IF($B22<>"PRC_RESID","",IF(L$7=2005+OFFSET(AGR!$B$49,$AX22,SUMIF($B$10:$B$14,"NCAP_TLIFE",$AY$10:$AY$14)),0,"")) ->  | M22: =IF($B22<>"PRC_RESID","",IF(M$7=2005+OFFSET(AGR!$B$49,$AX22,SUMIF($B$10:$B$14,"NCAP_TLIFE",$AY$10:$AY$14)),0,"")) ->  | N22: =IF($B22<>"PRC_RESID","",IF(N$7=2005+OFFSET(AGR!$B$49,$AX22,SUMIF($B$10:$B$14,"NCAP_TLIFE",$AY$10:$AY$14)),0,"")) ->  | O22: =IF($B22<>"PRC_RESID","",IF(O$7=2005+OFFSET(AGR!$B$49,$AX22,SUMIF($B$10:$B$14,"NCAP_TLIFE",$AY$10:$AY$14)),0,"")) ->  | P22: =IF($B22<>"PRC_RESID","",IF(P$7=2005+OFFSET(AGR!$B$49,$AX22,SUMIF($B$10:$B$14,"NCAP_TLIFE",$AY$10:$AY$14)),0,"")) ->  | Q22: =IF($B22<>"PRC_RESID","",IF(Q$7=2005+OFFSET(AGR!$B$49,$AX22,SUMIF($B$10:$B$14,"NCAP_TLIFE",$AY$10:$AY$14)),0,"")) ->  | R22: =IF($B22<>"PRC_RESID","",IF(R$7=2005+OFFSET(AGR!$B$49,$AX22,SUMIF($B$10:$B$14,"NCAP_TLIFE",$AY$10:$AY$14)),0,"")) ->  | S22: =IF($B22<>"PRC_RESID","",IF(S$7=2005+OFFSET(AGR!$B$49,$AX22,SUMIF($B$10:$B$14,"NCAP_TLIFE",$AY$10:$AY$14)),0,"")) ->  | T22: =IF($B22<>"PRC_RESID","",IF(T$7=2005+OFFSET(AGR!$B$49,$AX22,SUMIF($B$10:$B$14,"NCAP_TLIFE",$AY$10:$AY$14)),0,"")) ->  | U22: =IF($B22<>"PRC_RESID","",IF(U$7=2005+OFFSET(AGR!$B$49,$AX22,SUMIF($B$10:$B$14,"NCAP_TLIFE",$AY$10:$AY$14)),0,"")) ->  | V22: =IF($B22<>"PRC_RESID","",IF(V$7=2005+OFFSET(AGR!$B$49,$AX22,SUMIF($B$10:$B$14,"NCAP_TLIFE",$AY$10:$AY$14)),0,"")) ->  | W22: =IF($B22<>"PRC_RESID","",IF(W$7=2005+OFFSET(AGR!$B$49,$AX22,SUMIF($B$10:$B$14,"NCAP_TLIFE",$AY$10:$AY$14)),0,"")) ->  | X22: =IF($B22<>"PRC_RESID","",IF(X$7=2005+OFFSET(AGR!$B$49,$AX22,SUMIF($B$10:$B$14,"NCAP_TLIFE",$AY$10:$AY$14)),0,"")) ->  | Y22: =IF($B22<>"PRC_RESID","",IF(Y$7=2005+OFFSET(AGR!$B$49,$AX22,SUMIF($B$10:$B$14,"NCAP_TLIFE",$AY$10:$AY$14)),0,"")) ->  | Z22: =IF($B22<>"PRC_RESID","",IF(Z$7=2005+OFFSET(AGR!$B$49,$AX22,SUMIF($B$10:$B$14,"NCAP_TLIFE",$AY$10:$AY$14)),0,"")) ->  | AA22: =IF($B22<>"PRC_RESID","",IF(AA$7=2005+OFFSET(AGR!$B$49,$AX22,SUMIF($B$10:$B$14,"NCAP_TLIFE",$AY$10:$AY$14)),0,"")) ->  | AB22: =IF($B22<>"PRC_RESID","",IF(AB$7=2005+OFFSET(AGR!$B$49,$AX22,SUMIF($B$10:$B$14,"NCAP_TLIFE",$AY$10:$AY$14)),0,"")) ->  | AC22: =IF($B22<>"PRC_RESID","",IF(AC$7=2005+OFFSET(AGR!$B$49,$AX22,SUMIF($B$10:$B$14,"NCAP_TLIFE",$AY$10:$AY$14)),0,"")) ->  | AD22: =IF($B22<>"PRC_RESID","",IF(AD$7=2005+OFFSET(AGR!$B$49,$AX22,SUMIF($B$10:$B$14,"NCAP_TLIFE",$AY$10:$AY$14)),0,"")) ->  | AE22: =IF($B22<>"PRC_RESID","",IF(AE$7=2005+OFFSET(AGR!$B$49,$AX22,SUMIF($B$10:$B$14,"NCAP_TLIFE",$AY$10:$AY$14)),0,"")) ->  | AF22: =IF($B22<>"PRC_RESID","",IF(AF$7=2005+OFFSET(AGR!$B$49,$AX22,SUMIF($B$10:$B$14,"NCAP_TLIFE",$AY$10:$AY$14)),0,"")) ->  | AG22: =IF($B22<>"PRC_RESID","",IF(AG$7=2005+OFFSET(AGR!$B$49,$AX22,SUMIF($B$10:$B$14,"NCAP_TLIFE",$AY$10:$AY$14)),0,"")) ->  | AH22: =IF($B22<>"PRC_RESID","",IF(AH$7=2005+OFFSET(AGR!$B$49,$AX22,SUMIF($B$10:$B$14,"NCAP_TLIFE",$AY$10:$AY$14)),0,"")) ->  | AM22: =IF($B22<>"PRC_RESID","",IF(AM$7=2005+OFFSET(AGR!$B$49,$AX22,SUMIF($B$10:$B$14,"NCAP_TLIFE",$AY$10:$AY$14)),0,"")) ->  | AR22: =IF($B22<>"PRC_RESID","",IF(AR$7=2005+OFFSET(AGR!$B$49,$AX22,SUMIF($B$10:$B$14,"NCAP_TLIFE",$AY$10:$AY$14)),0,"")) ->  | AS22: =IF($B22<>"PRC_RESID","",IF(AS$7=2005+OFFSET(AGR!$B$49,$AX22,SUMIF($B$10:$B$14,"NCAP_TLIFE",$AY$10:$AY$14)),0,"")) ->  | AT22: =IF($B22<>"PRC_RESID","",IF(AT$7=2005+OFFSET(AGR!$B$49,$AX22,SUMIF($B$10:$B$14,"NCAP_TLIFE",$AY$10:$AY$14)),0,"")) ->  | AU22: =IF($B22<>"PRC_RESID","",IF(AU$7=2005+OFFSET(AGR!$B$49,$AX22,SUMIF($B$10:$B$14,"NCAP_TLIFE",$AY$10:$AY$14)),0,"")) ->  | AW22: =IF(AX21=AGR!$W$72,AW21+1,AW21) -> 1 | AX22: 7
A23: =IF(LEFT(OFFSET(AGR!$A$49,AX23,0),2)="\I","*","") ->  | B23: ACT_EFF | C23: =IF($A23="*","",OFFSET(AGR!$B$49,AX23,0)) -> APELC-E | D23: - | E23: ACTGRP | F23: - | G23: ANNUAL | H23: - | I23: 0 | J23: =IF($A23="*","",OFFSET(AGR!$B$49,AX23,SUMIF($B$10:$B$14,B23,$AY$10:$AY$14))) -> 1 | K23: =IF($B23<>"PRC_RESID","",IF(K$7=2005+OFFSET(AGR!$B$49,$AX23,SUMIF($B$10:$B$14,"NCAP_TLIFE",$AY$10:$AY$14)),0,"")) ->  | L23: =IF($B23<>"PRC_RESID","",IF(L$7=2005+OFFSET(AGR!$B$49,$AX23,SUMIF($B$10:$B$14,"NCAP_TLIFE",$AY$10:$AY$14)),0,"")) ->  | M23: =IF($B23<>"PRC_RESID","",IF(M$7=2005+OFFSET(AGR!$B$49,$AX23,SUMIF($B$10:$B$14,"NCAP_TLIFE",$AY$10:$AY$14)),0,"")) ->  | N23: =IF($B23<>"PRC_RESID","",IF(N$7=2005+OFFSET(AGR!$B$49,$AX23,SUMIF($B$10:$B$14,"NCAP_TLIFE",$AY$10:$AY$14)),0,"")) ->  | O23: =IF($B23<>"PRC_RESID","",IF(O$7=2005+OFFSET(AGR!$B$49,$AX23,SUMIF($B$10:$B$14,"NCAP_TLIFE",$AY$10:$AY$14)),0,"")) ->  | P23: =IF($B23<>"PRC_RESID","",IF(P$7=2005+OFFSET(AGR!$B$49,$AX23,SUMIF($B$10:$B$14,"NCAP_TLIFE",$AY$10:$AY$14)),0,"")) ->  | Q23: =IF($B23<>"PRC_RESID","",IF(Q$7=2005+OFFSET(AGR!$B$49,$AX23,SUMIF($B$10:$B$14,"NCAP_TLIFE",$AY$10:$AY$14)),0,"")) ->  | R23: =IF($B23<>"PRC_RESID","",IF(R$7=2005+OFFSET(AGR!$B$49,$AX23,SUMIF($B$10:$B$14,"NCAP_TLIFE",$AY$10:$AY$14)),0,"")) ->  | S23: =IF($B23<>"PRC_RESID","",IF(S$7=2005+OFFSET(AGR!$B$49,$AX23,SUMIF($B$10:$B$14,"NCAP_TLIFE",$AY$10:$AY$14)),0,"")) ->  | T23: =IF($B23<>"PRC_RESID","",IF(T$7=2005+OFFSET(AGR!$B$49,$AX23,SUMIF($B$10:$B$14,"NCAP_TLIFE",$AY$10:$AY$14)),0,"")) ->  | U23: =IF($B23<>"PRC_RESID","",IF(U$7=2005+OFFSET(AGR!$B$49,$AX23,SUMIF($B$10:$B$14,"NCAP_TLIFE",$AY$10:$AY$14)),0,"")) ->  | V23: =IF($B23<>"PRC_RESID","",IF(V$7=2005+OFFSET(AGR!$B$49,$AX23,SUMIF($B$10:$B$14,"NCAP_TLIFE",$AY$10:$AY$14)),0,"")) ->  | W23: =IF($B23<>"PRC_RESID","",IF(W$7=2005+OFFSET(AGR!$B$49,$AX23,SUMIF($B$10:$B$14,"NCAP_TLIFE",$AY$10:$AY$14)),0,"")) ->  | X23: =IF($B23<>"PRC_RESID","",IF(X$7=2005+OFFSET(AGR!$B$49,$AX23,SUMIF($B$10:$B$14,"NCAP_TLIFE",$AY$10:$AY$14)),0,"")) ->  | Y23: =IF($B23<>"PRC_RESID","",IF(Y$7=2005+OFFSET(AGR!$B$49,$AX23,SUMIF($B$10:$B$14,"NCAP_TLIFE",$AY$10:$AY$14)),0,"")) ->  | Z23: =IF($B23<>"PRC_RESID","",IF(Z$7=2005+OFFSET(AGR!$B$49,$AX23,SUMIF($B$10:$B$14,"NCAP_TLIFE",$AY$10:$AY$14)),0,"")) ->  | AA23: =IF($B23<>"PRC_RESID","",IF(AA$7=2005+OFFSET(AGR!$B$49,$AX23,SUMIF($B$10:$B$14,"NCAP_TLIFE",$AY$10:$AY$14)),0,"")) ->  | AB23: =IF($B23<>"PRC_RESID","",IF(AB$7=2005+OFFSET(AGR!$B$49,$AX23,SUMIF($B$10:$B$14,"NCAP_TLIFE",$AY$10:$AY$14)),0,"")) ->  | AC23: =IF($B23<>"PRC_RESID","",IF(AC$7=2005+OFFSET(AGR!$B$49,$AX23,SUMIF($B$10:$B$14,"NCAP_TLIFE",$AY$10:$AY$14)),0,"")) ->  | AD23: =IF($B23<>"PRC_RESID","",IF(AD$7=2005+OFFSET(AGR!$B$49,$AX23,SUMIF($B$10:$B$14,"NCAP_TLIFE",$AY$10:$AY$14)),0,"")) ->  | AE23: =IF($B23<>"PRC_RESID","",IF(AE$7=2005+OFFSET(AGR!$B$49,$AX23,SUMIF($B$10:$B$14,"NCAP_TLIFE",$AY$10:$AY$14)),0,"")) ->  | AF23: =IF($B23<>"PRC_RESID","",IF(AF$7=2005+OFFSET(AGR!$B$49,$AX23,SUMIF($B$10:$B$14,"NCAP_TLIFE",$AY$10:$AY$14)),0,"")) ->  | AG23: =IF($B23<>"PRC_RESID","",IF(AG$7=2005+OFFSET(AGR!$B$49,$AX23,SUMIF($B$10:$B$14,"NCAP_TLIFE",$AY$10:$AY$14)),0,"")) ->  | AH23: =IF($B23<>"PRC_RESID","",IF(AH$7=2005+OFFSET(AGR!$B$49,$AX23,SUMIF($B$10:$B$14,"NCAP_TLIFE",$AY$10:$AY$14)),0,"")) ->  | AM23: =IF($B23<>"PRC_RESID","",IF(AM$7=2005+OFFSET(AGR!$B$49,$AX23,SUMIF($B$10:$B$14,"NCAP_TLIFE",$AY$10:$AY$14)),0,"")) ->  | AR23: =IF($B23<>"PRC_RESID","",IF(AR$7=2005+OFFSET(AGR!$B$49,$AX23,SUMIF($B$10:$B$14,"NCAP_TLIFE",$AY$10:$AY$14)),0,"")) ->  | AS23: =IF($B23<>"PRC_RESID","",IF(AS$7=2005+OFFSET(AGR!$B$49,$AX23,SUMIF($B$10:$B$14,"NCAP_TLIFE",$AY$10:$AY$14)),0,"")) ->  | AT23: =IF($B23<>"PRC_RESID","",IF(AT$7=2005+OFFSET(AGR!$B$49,$AX23,SUMIF($B$10:$B$14,"NCAP_TLIFE",$AY$10:$AY$14)),0,"")) ->  | AU23: =IF($B23<>"PRC_RESID","",IF(AU$7=2005+OFFSET(AGR!$B$49,$AX23,SUMIF($B$10:$B$14,"NCAP_TLIFE",$AY$10:$AY$14)),0,"")) ->  | AW23: =IF(AX22=AGR!$W$72,AW22+1,AW22) -> 1 | AX23: 8
A24: =IF(LEFT(OFFSET(AGR!$A$49,AX24,0),2)="\I","*","") -> * | C24: =IF($A24="*","",OFFSET(AGR!$B$49,AX24,0)) ->  | J24: =IF($A24="*","",OFFSET(AGR!$B$49,AX24,SUMIF($B$10:$B$14,B24,$AY$10:$AY$14))) ->  | K24: =IF($B24<>"PRC_RESID","",IF(K$7=2005+OFFSET(AGR!$B$49,$AX24,SUMIF($B$10:$B$14,"NCAP_TLIFE",$AY$10:$AY$14)),0,"")) ->  | L24: =IF($B24<>"PRC_RESID","",IF(L$7=2005+OFFSET(AGR!$B$49,$AX24,SUMIF($B$10:$B$14,"NCAP_TLIFE",$AY$10:$AY$14)),0,"")) ->  | M24: =IF($B24<>"PRC_RESID","",IF(M$7=2005+OFFSET(AGR!$B$49,$AX24,SUMIF($B$10:$B$14,"NCAP_TLIFE",$AY$10:$AY$14)),0,"")) ->  | N24: =IF($B24<>"PRC_RESID","",IF(N$7=2005+OFFSET(AGR!$B$49,$AX24,SUMIF($B$10:$B$14,"NCAP_TLIFE",$AY$10:$AY$14)),0,"")) ->  | O24: =IF($B24<>"PRC_RESID","",IF(O$7=2005+OFFSET(AGR!$B$49,$AX24,SUMIF($B$10:$B$14,"NCAP_TLIFE",$AY$10:$AY$14)),0,"")) ->  | P24: =IF($B24<>"PRC_RESID","",IF(P$7=2005+OFFSET(AGR!$B$49,$AX24,SUMIF($B$10:$B$14,"NCAP_TLIFE",$AY$10:$AY$14)),0,"")) ->  | Q24: =IF($B24<>"PRC_RESID","",IF(Q$7=2005+OFFSET(AGR!$B$49,$AX24,SUMIF($B$10:$B$14,"NCAP_TLIFE",$AY$10:$AY$14)),0,"")) ->  | R24: =IF($B24<>"PRC_RESID","",IF(R$7=2005+OFFSET(AGR!$B$49,$AX24,SUMIF($B$10:$B$14,"NCAP_TLIFE",$AY$10:$AY$14)),0,"")) ->  | S24: =IF($B24<>"PRC_RESID","",IF(S$7=2005+OFFSET(AGR!$B$49,$AX24,SUMIF($B$10:$B$14,"NCAP_TLIFE",$AY$10:$AY$14)),0,"")) ->  | T24: =IF($B24<>"PRC_RESID","",IF(T$7=2005+OFFSET(AGR!$B$49,$AX24,SUMIF($B$10:$B$14,"NCAP_TLIFE",$AY$10:$AY$14)),0,"")) ->  | U24: =IF($B24<>"PRC_RESID","",IF(U$7=2005+OFFSET(AGR!$B$49,$AX24,SUMIF($B$10:$B$14,"NCAP_TLIFE",$AY$10:$AY$14)),0,"")) ->  | V24: =IF($B24<>"PRC_RESID","",IF(V$7=2005+OFFSET(AGR!$B$49,$AX24,SUMIF($B$10:$B$14,"NCAP_TLIFE",$AY$10:$AY$14)),0,"")) ->  | W24: =IF($B24<>"PRC_RESID","",IF(W$7=2005+OFFSET(AGR!$B$49,$AX24,SUMIF($B$10:$B$14,"NCAP_TLIFE",$AY$10:$AY$14)),0,"")) ->  | X24: =IF($B24<>"PRC_RESID","",IF(X$7=2005+OFFSET(AGR!$B$49,$AX24,SUMIF($B$10:$B$14,"NCAP_TLIFE",$AY$10:$AY$14)),0,"")) ->  | Y24: =IF($B24<>"PRC_RESID","",IF(Y$7=2005+OFFSET(AGR!$B$49,$AX24,SUMIF($B$10:$B$14,"NCAP_TLIFE",$AY$10:$AY$14)),0,"")) ->  | Z24: =IF($B24<>"PRC_RESID","",IF(Z$7=2005+OFFSET(AGR!$B$49,$AX24,SUMIF($B$10:$B$14,"NCAP_TLIFE",$AY$10:$AY$14)),0,"")) ->  | AA24: =IF($B24<>"PRC_RESID","",IF(AA$7=2005+OFFSET(AGR!$B$49,$AX24,SUMIF($B$10:$B$14,"NCAP_TLIFE",$AY$10:$AY$14)),0,"")) ->  | AB24: =IF($B24<>"PRC_RESID","",IF(AB$7=2005+OFFSET(AGR!$B$49,$AX24,SUMIF($B$10:$B$14,"NCAP_TLIFE",$AY$10:$AY$14)),0,"")) ->  | AC24: =IF($B24<>"PRC_RESID","",IF(AC$7=2005+OFFSET(AGR!$B$49,$AX24,SUMIF($B$10:$B$14,"NCAP_TLIFE",$AY$10:$AY$14)),0,"")) ->  | AD24: =IF($B24<>"PRC_RESID","",IF(AD$7=2005+OFFSET(AGR!$B$49,$AX24,SUMIF($B$10:$B$14,"NCAP_TLIFE",$AY$10:$AY$14)),0,"")) ->  | AE24: =IF($B24<>"PRC_RESID","",IF(AE$7=2005+OFFSET(AGR!$B$49,$AX24,SUMIF($B$10:$B$14,"NCAP_TLIFE",$AY$10:$AY$14)),0,"")) ->  | AF24: =IF($B24<>"PRC_RESID","",IF(AF$7=2005+OFFSET(AGR!$B$49,$AX24,SUMIF($B$10:$B$14,"NCAP_TLIFE",$AY$10:$AY$14)),0,"")) ->  | AG24: =IF($B24<>"PRC_RESID","",IF(AG$7=2005+OFFSET(AGR!$B$49,$AX24,SUMIF($B$10:$B$14,"NCAP_TLIFE",$AY$10:$AY$14)),0,"")) ->  | AH24: =IF($B24<>"PRC_RESID","",IF(AH$7=2005+OFFSET(AGR!$B$49,$AX24,SUMIF($B$10:$B$14,"NCAP_TLIFE",$AY$10:$AY$14)),0,"")) ->  | AM24: =IF($B24<>"PRC_RESID","",IF(AM$7=2005+OFFSET(AGR!$B$49,$AX24,SUMIF($B$10:$B$14,"NCAP_TLIFE",$AY$10:$AY$14)),0,"")) ->  | AR24: =IF($B24<>"PRC_RESID","",IF(AR$7=2005+OFFSET(AGR!$B$49,$AX24,SUMIF($B$10:$B$14,"NCAP_TLIFE",$AY$10:$AY$14)),0,"")) ->  | AS24: =IF($B24<>"PRC_RESID","",IF(AS$7=2005+OFFSET(AGR!$B$49,$AX24,SUMIF($B$10:$B$14,"NCAP_TLIFE",$AY$10:$AY$14)),0,"")) ->  | AT24: =IF($B24<>"PRC_RESID","",IF(AT$7=2005+OFFSET(AGR!$B$49,$AX24,SUMIF($B$10:$B$14,"NCAP_TLIFE",$AY$10:$AY$14)),0,"")) ->  | AU24: =IF($B24<>"PRC_RESID","",IF(AU$7=2005+OFFSET(AGR!$B$49,$AX24,SUMIF($B$10:$B$14,"NCAP_TLIFE",$AY$10:$AY$14)),0,"")) ->  | AW24: =IF(AX23=AGR!$W$72,AW23+1,AW23) -> 1 | AX24: 9
A25: =IF(LEFT(OFFSET(AGR!$A$49,AX25,0),2)="\I","*","") -> * | C25: =IF($A25="*","",OFFSET(AGR!$B$49,AX25,0)) ->  | J25: =IF($A25="*","",OFFSET(AGR!$B$49,AX25,SUMIF($B$10:$B$14,B25,$AY$10:$AY$14))) ->  | K25: =IF($B25<>"PRC_RESID","",IF(K$7=2005+OFFSET(AGR!$B$49,$AX25,SUMIF($B$10:$B$14,"NCAP_TLIFE",$AY$10:$AY$14)),0,"")) ->  | L25: =IF($B25<>"PRC_RESID","",IF(L$7=2005+OFFSET(AGR!$B$49,$AX25,SUMIF($B$10:$B$14,"NCAP_TLIFE",$AY$10:$AY$14)),0,"")) ->  | M25: =IF($B25<>"PRC_RESID","",IF(M$7=2005+OFFSET(AGR!$B$49,$AX25,SUMIF($B$10:$B$14,"NCAP_TLIFE",$AY$10:$AY$14)),0,"")) ->  | N25: =IF($B25<>"PRC_RESID","",IF(N$7=2005+OFFSET(AGR!$B$49,$AX25,SUMIF($B$10:$B$14,"NCAP_TLIFE",$AY$10:$AY$14)),0,"")) ->  | O25: =IF($B25<>"PRC_RESID","",IF(O$7=2005+OFFSET(AGR!$B$49,$AX25,SUMIF($B$10:$B$14,"NCAP_TLIFE",$AY$10:$AY$14)),0,"")) ->  | P25: =IF($B25<>"PRC_RESID","",IF(P$7=2005+OFFSET(AGR!$B$49,$AX25,SUMIF($B$10:$B$14,"NCAP_TLIFE",$AY$10:$AY$14)),0,"")) ->  | Q25: =IF($B25<>"PRC_RESID","",IF(Q$7=2005+OFFSET(AGR!$B$49,$AX25,SUMIF($B$10:$B$14,"NCAP_TLIFE",$AY$10:$AY$14)),0,"")) ->  | R25: =IF($B25<>"PRC_RESID","",IF(R$7=2005+OFFSET(AGR!$B$49,$AX25,SUMIF($B$10:$B$14,"NCAP_TLIFE",$AY$10:$AY$14)),0,"")) ->  | S25: =IF($B25<>"PRC_RESID","",IF(S$7=2005+OFFSET(AGR!$B$49,$AX25,SUMIF($B$10:$B$14,"NCAP_TLIFE",$AY$10:$AY$14)),0,"")) ->  | T25: =IF($B25<>"PRC_RESID","",IF(T$7=2005+OFFSET(AGR!$B$49,$AX25,SUMIF($B$10:$B$14,"NCAP_TLIFE",$AY$10:$AY$14)),0,"")) ->  | U25: =IF($B25<>"PRC_RESID","",IF(U$7=2005+OFFSET(AGR!$B$49,$AX25,SUMIF($B$10:$B$14,"NCAP_TLIFE",$AY$10:$AY$14)),0,"")) ->  | V25: =IF($B25<>"PRC_RESID","",IF(V$7=2005+OFFSET(AGR!$B$49,$AX25,SUMIF($B$10:$B$14,"NCAP_TLIFE",$AY$10:$AY$14)),0,"")) ->  | W25: =IF($B25<>"PRC_RESID","",IF(W$7=2005+OFFSET(AGR!$B$49,$AX25,SUMIF($B$10:$B$14,"NCAP_TLIFE",$AY$10:$AY$14)),0,"")) ->  | X25: =IF($B25<>"PRC_RESID","",IF(X$7=2005+OFFSET(AGR!$B$49,$AX25,SUMIF($B$10:$B$14,"NCAP_TLIFE",$AY$10:$AY$14)),0,"")) ->  | Y25: =IF($B25<>"PRC_RESID","",IF(Y$7=2005+OFFSET(AGR!$B$49,$AX25,SUMIF($B$10:$B$14,"NCAP_TLIFE",$AY$10:$AY$14)),0,"")) ->  | Z25: =IF($B25<>"PRC_RESID","",IF(Z$7=2005+OFFSET(AGR!$B$49,$AX25,SUMIF($B$10:$B$14,"NCAP_TLIFE",$AY$10:$AY$14)),0,"")) ->  | AA25: =IF($B25<>"PRC_RESID","",IF(AA$7=2005+OFFSET(AGR!$B$49,$AX25,SUMIF($B$10:$B$14,"NCAP_TLIFE",$AY$10:$AY$14)),0,"")) ->  | AB25: =IF($B25<>"PRC_RESID","",IF(AB$7=2005+OFFSET(AGR!$B$49,$AX25,SUMIF($B$10:$B$14,"NCAP_TLIFE",$AY$10:$AY$14)),0,"")) ->  | AC25: =IF($B25<>"PRC_RESID","",IF(AC$7=2005+OFFSET(AGR!$B$49,$AX25,SUMIF($B$10:$B$14,"NCAP_TLIFE",$AY$10:$AY$14)),0,"")) ->  | AD25: =IF($B25<>"PRC_RESID","",IF(AD$7=2005+OFFSET(AGR!$B$49,$AX25,SUMIF($B$10:$B$14,"NCAP_TLIFE",$AY$10:$AY$14)),0,"")) ->  | AE25: =IF($B25<>"PRC_RESID","",IF(AE$7=2005+OFFSET(AGR!$B$49,$AX25,SUMIF($B$10:$B$14,"NCAP_TLIFE",$AY$10:$AY$14)),0,"")) ->  | AF25: =IF($B25<>"PRC_RESID","",IF(AF$7=2005+OFFSET(AGR!$B$49,$AX25,SUMIF($B$10:$B$14,"NCAP_TLIFE",$AY$10:$AY$14)),0,"")) ->  | AG25: =IF($B25<>"PRC_RESID","",IF(AG$7=2005+OFFSET(AGR!$B$49,$AX25,SUMIF($B$10:$B$14,"NCAP_TLIFE",$AY$10:$AY$14)),0,"")) ->  | AH25: =IF($B25<>"PRC_RESID","",IF(AH$7=2005+OFFSET(AGR!$B$49,$AX25,SUMIF($B$10:$B$14,"NCAP_TLIFE",$AY$10:$AY$14)),0,"")) ->  | AM25: =IF($B25<>"PRC_RESID","",IF(AM$7=2005+OFFSET(AGR!$B$49,$AX25,SUMIF($B$10:$B$14,"NCAP_TLIFE",$AY$10:$AY$14)),0,"")) ->  | AR25: =IF($B25<>"PRC_RESID","",IF(AR$7=2005+OFFSET(AGR!$B$49,$AX25,SUMIF($B$10:$B$14,"NCAP_TLIFE",$AY$10:$AY$14)),0,"")) ->  | AS25: =IF($B25<>"PRC_RESID","",IF(AS$7=2005+OFFSET(AGR!$B$49,$AX25,SUMIF($B$10:$B$14,"NCAP_TLIFE",$AY$10:$AY$14)),0,"")) ->  | AT25: =IF($B25<>"PRC_RESID","",IF(AT$7=2005+OFFSET(AGR!$B$49,$AX25,SUMIF($B$10:$B$14,"NCAP_TLIFE",$AY$10:$AY$14)),0,"")) ->  | AU25: =IF($B25<>"PRC_RESID","",IF(AU$7=2005+OFFSET(AGR!$B$49,$AX25,SUMIF($B$10:$B$14,"NCAP_TLIFE",$AY$10:$AY$14)),0,"")) ->  | AW25: =IF(AX24=AGR!$W$72,AW24+1,AW24) -> 1 | AX25: 10
A26: =IF(LEFT(OFFSET(AGR!$A$49,AX26,0),2)="\I","*","") ->  | B26: ACT_EFF | C26: =IF($A26="*","",OFFSET(AGR!$B$49,AX26,0)) -> ATODS-E | D26: - | E26: ACTGRP | F26: - | G26: ANNUAL | H26: - | I26: 0 | J26: =IF($A26="*","",OFFSET(AGR!$B$49,AX26,SUMIF($B$10:$B$14,B26,$AY$10:$AY$14))) -> 0.35 | K26: =IF($B26<>"PRC_RESID","",IF(K$7=2005+OFFSET(AGR!$B$49,$AX26,SUMIF($B$10:$B$14,"NCAP_TLIFE",$AY$10:$AY$14)),0,"")) ->  | L26: =IF($B26<>"PRC_RESID","",IF(L$7=2005+OFFSET(AGR!$B$49,$AX26,SUMIF($B$10:$B$14,"NCAP_TLIFE",$AY$10:$AY$14)),0,"")) ->  | M26: =IF($B26<>"PRC_RESID","",IF(M$7=2005+OFFSET(AGR!$B$49,$AX26,SUMIF($B$10:$B$14,"NCAP_TLIFE",$AY$10:$AY$14)),0,"")) ->  | N26: =IF($B26<>"PRC_RESID","",IF(N$7=2005+OFFSET(AGR!$B$49,$AX26,SUMIF($B$10:$B$14,"NCAP_TLIFE",$AY$10:$AY$14)),0,"")) ->  | O26: =IF($B26<>"PRC_RESID","",IF(O$7=2005+OFFSET(AGR!$B$49,$AX26,SUMIF($B$10:$B$14,"NCAP_TLIFE",$AY$10:$AY$14)),0,"")) ->  | P26: =IF($B26<>"PRC_RESID","",IF(P$7=2005+OFFSET(AGR!$B$49,$AX26,SUMIF($B$10:$B$14,"NCAP_TLIFE",$AY$10:$AY$14)),0,"")) ->  | Q26: =IF($B26<>"PRC_RESID","",IF(Q$7=2005+OFFSET(AGR!$B$49,$AX26,SUMIF($B$10:$B$14,"NCAP_TLIFE",$AY$10:$AY$14)),0,"")) ->  | R26: =IF($B26<>"PRC_RESID","",IF(R$7=2005+OFFSET(AGR!$B$49,$AX26,SUMIF($B$10:$B$14,"NCAP_TLIFE",$AY$10:$AY$14)),0,"")) ->  | S26: =IF($B26<>"PRC_RESID","",IF(S$7=2005+OFFSET(AGR!$B$49,$AX26,SUMIF($B$10:$B$14,"NCAP_TLIFE",$AY$10:$AY$14)),0,"")) ->  | T26: =IF($B26<>"PRC_RESID","",IF(T$7=2005+OFFSET(AGR!$B$49,$AX26,SUMIF($B$10:$B$14,"NCAP_TLIFE",$AY$10:$AY$14)),0,"")) ->  | U26: =IF($B26<>"PRC_RESID","",IF(U$7=2005+OFFSET(AGR!$B$49,$AX26,SUMIF($B$10:$B$14,"NCAP_TLIFE",$AY$10:$AY$14)),0,"")) ->  | V26: =IF($B26<>"PRC_RESID","",IF(V$7=2005+OFFSET(AGR!$B$49,$AX26,SUMIF($B$10:$B$14,"NCAP_TLIFE",$AY$10:$AY$14)),0,"")) ->  | W26: =IF($B26<>"PRC_RESID","",IF(W$7=2005+OFFSET(AGR!$B$49,$AX26,SUMIF($B$10:$B$14,"NCAP_TLIFE",$AY$10:$AY$14)),0,"")) ->  | X26: =IF($B26<>"PRC_RESID","",IF(X$7=2005+OFFSET(AGR!$B$49,$AX26,SUMIF($B$10:$B$14,"NCAP_TLIFE",$AY$10:$AY$14)),0,"")) ->  | Y26: =IF($B26<>"PRC_RESID","",IF(Y$7=2005+OFFSET(AGR!$B$49,$AX26,SUMIF($B$10:$B$14,"NCAP_TLIFE",$AY$10:$AY$14)),0,"")) ->  | Z26: =IF($B26<>"PRC_RESID","",IF(Z$7=2005+OFFSET(AGR!$B$49,$AX26,SUMIF($B$10:$B$14,"NCAP_TLIFE",$AY$10:$AY$14)),0,"")) ->  | AA26: =IF($B26<>"PRC_RESID","",IF(AA$7=2005+OFFSET(AGR!$B$49,$AX26,SUMIF($B$10:$B$14,"NCAP_TLIFE",$AY$10:$AY$14)),0,"")) ->  | AB26: =IF($B26<>"PRC_RESID","",IF(AB$7=2005+OFFSET(AGR!$B$49,$AX26,SUMIF($B$10:$B$14,"NCAP_TLIFE",$AY$10:$AY$14)),0,"")) ->  | AC26: =IF($B26<>"PRC_RESID","",IF(AC$7=2005+OFFSET(AGR!$B$49,$AX26,SUMIF($B$10:$B$14,"NCAP_TLIFE",$AY$10:$AY$14)),0,"")) ->  | AD26: =IF($B26<>"PRC_RESID","",IF(AD$7=2005+OFFSET(AGR!$B$49,$AX26,SUMIF($B$10:$B$14,"NCAP_TLIFE",$AY$10:$AY$14)),0,"")) ->  | AE26: =IF($B26<>"PRC_RESID","",IF(AE$7=2005+OFFSET(AGR!$B$49,$AX26,SUMIF($B$10:$B$14,"NCAP_TLIFE",$AY$10:$AY$14)),0,"")) ->  | AF26: =IF($B26<>"PRC_RESID","",IF(AF$7=2005+OFFSET(AGR!$B$49,$AX26,SUMIF($B$10:$B$14,"NCAP_TLIFE",$AY$10:$AY$14)),0,"")) ->  | AG26: =IF($B26<>"PRC_RESID","",IF(AG$7=2005+OFFSET(AGR!$B$49,$AX26,SUMIF($B$10:$B$14,"NCAP_TLIFE",$AY$10:$AY$14)),0,"")) ->  | AH26: =IF($B26<>"PRC_RESID","",IF(AH$7=2005+OFFSET(AGR!$B$49,$AX26,SUMIF($B$10:$B$14,"NCAP_TLIFE",$AY$10:$AY$14)),0,"")) ->  | AM26: =IF($B26<>"PRC_RESID","",IF(AM$7=2005+OFFSET(AGR!$B$49,$AX26,SUMIF($B$10:$B$14,"NCAP_TLIFE",$AY$10:$AY$14)),0,"")) ->  | AR26: =IF($B26<>"PRC_RESID","",IF(AR$7=2005+OFFSET(AGR!$B$49,$AX26,SUMIF($B$10:$B$14,"NCAP_TLIFE",$AY$10:$AY$14)),0,"")) ->  | AS26: =IF($B26<>"PRC_RESID","",IF(AS$7=2005+OFFSET(AGR!$B$49,$AX26,SUMIF($B$10:$B$14,"NCAP_TLIFE",$AY$10:$AY$14)),0,"")) ->  | AT26: =IF($B26<>"PRC_RESID","",IF(AT$7=2005+OFFSET(AGR!$B$49,$AX26,SUMIF($B$10:$B$14,"NCAP_TLIFE",$AY$10:$AY$14)),0,"")) ->  | AU26: =IF($B26<>"PRC_RESID","",IF(AU$7=2005+OFFSET(AGR!$B$49,$AX26,SUMIF($B$10:$B$14,"NCAP_TLIFE",$AY$10:$AY$14)),0,"")) ->  | AW26: =IF(AX25=AGR!$W$72,AW25+1,AW25) -> 1 | AX26: 11
A27: =IF(LEFT(OFFSET(AGR!$A$49,AX27,0),2)="\I","*","") ->  | B27: ACT_EFF | C27: =IF($A27="*","",OFFSET(AGR!$B$49,AX27,0)) -> ATELC-E | D27: - | E27: ACTGRP | F27: - | G27: ANNUAL | H27: - | I27: 0 | J27: =IF($A27="*","",OFFSET(AGR!$B$49,AX27,SUMIF($B$10:$B$14,B27,$AY$10:$AY$14))) -> 0.95 | K27: =IF($B27<>"PRC_RESID","",IF(K$7=2005+OFFSET(AGR!$B$49,$AX27,SUMIF($B$10:$B$14,"NCAP_TLIFE",$AY$10:$AY$14)),0,"")) ->  | L27: =IF($B27<>"PRC_RESID","",IF(L$7=2005+OFFSET(AGR!$B$49,$AX27,SUMIF($B$10:$B$14,"NCAP_TLIFE",$AY$10:$AY$14)),0,"")) ->  | M27: =IF($B27<>"PRC_RESID","",IF(M$7=2005+OFFSET(AGR!$B$49,$AX27,SUMIF($B$10:$B$14,"NCAP_TLIFE",$AY$10:$AY$14)),0,"")) ->  | N27: =IF($B27<>"PRC_RESID","",IF(N$7=2005+OFFSET(AGR!$B$49,$AX27,SUMIF($B$10:$B$14,"NCAP_TLIFE",$AY$10:$AY$14)),0,"")) ->  | O27: =IF($B27<>"PRC_RESID","",IF(O$7=2005+OFFSET(AGR!$B$49,$AX27,SUMIF($B$10:$B$14,"NCAP_TLIFE",$AY$10:$AY$14)),0,"")) ->  | P27: =IF($B27<>"PRC_RESID","",IF(P$7=2005+OFFSET(AGR!$B$49,$AX27,SUMIF($B$10:$B$14,"NCAP_TLIFE",$AY$10:$AY$14)),0,"")) ->  | Q27: =IF($B27<>"PRC_RESID","",IF(Q$7=2005+OFFSET(AGR!$B$49,$AX27,SUMIF($B$10:$B$14,"NCAP_TLIFE",$AY$10:$AY$14)),0,"")) ->  | R27: =IF($B27<>"PRC_RESID","",IF(R$7=2005+OFFSET(AGR!$B$49,$AX27,SUMIF($B$10:$B$14,"NCAP_TLIFE",$AY$10:$AY$14)),0,"")) ->  | S27: =IF($B27<>"PRC_RESID","",IF(S$7=2005+OFFSET(AGR!$B$49,$AX27,SUMIF($B$10:$B$14,"NCAP_TLIFE",$AY$10:$AY$14)),0,"")) ->  | T27: =IF($B27<>"PRC_RESID","",IF(T$7=2005+OFFSET(AGR!$B$49,$AX27,SUMIF($B$10:$B$14,"NCAP_TLIFE",$AY$10:$AY$14)),0,"")) ->  | U27: =IF($B27<>"PRC_RESID","",IF(U$7=2005+OFFSET(AGR!$B$49,$AX27,SUMIF($B$10:$B$14,"NCAP_TLIFE",$AY$10:$AY$14)),0,"")) ->  | V27: =IF($B27<>"PRC_RESID","",IF(V$7=2005+OFFSET(AGR!$B$49,$AX27,SUMIF($B$10:$B$14,"NCAP_TLIFE",$AY$10:$AY$14)),0,"")) ->  | W27: =IF($B27<>"PRC_RESID","",IF(W$7=2005+OFFSET(AGR!$B$49,$AX27,SUMIF($B$10:$B$14,"NCAP_TLIFE",$AY$10:$AY$14)),0,"")) ->  | X27: =IF($B27<>"PRC_RESID","",IF(X$7=2005+OFFSET(AGR!$B$49,$AX27,SUMIF($B$10:$B$14,"NCAP_TLIFE",$AY$10:$AY$14)),0,"")) ->  | Y27: =IF($B27<>"PRC_RESID","",IF(Y$7=2005+OFFSET(AGR!$B$49,$AX27,SUMIF($B$10:$B$14,"NCAP_TLIFE",$AY$10:$AY$14)),0,"")) ->  | Z27: =IF($B27<>"PRC_RESID","",IF(Z$7=2005+OFFSET(AGR!$B$49,$AX27,SUMIF($B$10:$B$14,"NCAP_TLIFE",$AY$10:$AY$14)),0,"")) ->  | AA27: =IF($B27<>"PRC_RESID","",IF(AA$7=2005+OFFSET(AGR!$B$49,$AX27,SUMIF($B$10:$B$14,"NCAP_TLIFE",$AY$10:$AY$14)),0,"")) ->  | AB27: =IF($B27<>"PRC_RESID","",IF(AB$7=2005+OFFSET(AGR!$B$49,$AX27,SUMIF($B$10:$B$14,"NCAP_TLIFE",$AY$10:$AY$14)),0,"")) ->  | AC27: =IF($B27<>"PRC_RESID","",IF(AC$7=2005+OFFSET(AGR!$B$49,$AX27,SUMIF($B$10:$B$14,"NCAP_TLIFE",$AY$10:$AY$14)),0,"")) ->  | AD27: =IF($B27<>"PRC_RESID","",IF(AD$7=2005+OFFSET(AGR!$B$49,$AX27,SUMIF($B$10:$B$14,"NCAP_TLIFE",$AY$10:$AY$14)),0,"")) ->  | AE27: =IF($B27<>"PRC_RESID","",IF(AE$7=2005+OFFSET(AGR!$B$49,$AX27,SUMIF($B$10:$B$14,"NCAP_TLIFE",$AY$10:$AY$14)),0,"")) ->  | AF27: =IF($B27<>"PRC_RESID","",IF(AF$7=2005+OFFSET(AGR!$B$49,$AX27,SUMIF($B$10:$B$14,"NCAP_TLIFE",$AY$10:$AY$14)),0,"")) ->  | AG27: =IF($B27<>"PRC_RESID","",IF(AG$7=2005+OFFSET(AGR!$B$49,$AX27,SUMIF($B$10:$B$14,"NCAP_TLIFE",$AY$10:$AY$14)),0,"")) ->  | AH27: =IF($B27<>"PRC_RESID","",IF(AH$7=2005+OFFSET(AGR!$B$49,$AX27,SUMIF($B$10:$B$14,"NCAP_TLIFE",$AY$10:$AY$14)),0,"")) ->  | AM27: =IF($B27<>"PRC_RESID","",IF(AM$7=2005+OFFSET(AGR!$B$49,$AX27,SUMIF($B$10:$B$14,"NCAP_TLIFE",$AY$10:$AY$14)),0,"")) ->  | AR27: =IF($B27<>"PRC_RESID","",IF(AR$7=2005+OFFSET(AGR!$B$49,$AX27,SUMIF($B$10:$B$14,"NCAP_TLIFE",$AY$10:$AY$14)),0,"")) ->  | AS27: =IF($B27<>"PRC_RESID","",IF(AS$7=2005+OFFSET(AGR!$B$49,$AX27,SUMIF($B$10:$B$14,"NCAP_TLIFE",$AY$10:$AY$14)),0,"")) ->  | AT27: =IF($B27<>"PRC_RESID","",IF(AT$7=2005+OFFSET(AGR!$B$49,$AX27,SUMIF($B$10:$B$14,"NCAP_TLIFE",$AY$10:$AY$14)),0,"")) ->  | AU27: =IF($B27<>"PRC_RESID","",IF(AU$7=2005+OFFSET(AGR!$B$49,$AX27,SUMIF($B$10:$B$14,"NCAP_TLIFE",$AY$10:$AY$14)),0,"")) ->  | AW27: =IF(AX26=AGR!$W$72,AW26+1,AW26) -> 1 | AX27: 12
A28: =IF(LEFT(OFFSET(AGR!$A$49,AX28,0),2)="\I","*","") ->  | B28: ACT_EFF | C28: =IF($A28="*","",OFFSET(AGR!$B$49,AX28,0)) -> ATOGS-E | D28: - | E28: ACTGRP | F28: - | G28: ANNUAL | H28: - | I28: 0 | J28: =IF($A28="*","",OFFSET(AGR!$B$49,AX28,SUMIF($B$10:$B$14,B28,$AY$10:$AY$14))) -> 0.25 | K28: =IF($B28<>"PRC_RESID","",IF(K$7=2005+OFFSET(AGR!$B$49,$AX28,SUMIF($B$10:$B$14,"NCAP_TLIFE",$AY$10:$AY$14)),0,"")) ->  | L28: =IF($B28<>"PRC_RESID","",IF(L$7=2005+OFFSET(AGR!$B$49,$AX28,SUMIF($B$10:$B$14,"NCAP_TLIFE",$AY$10:$AY$14)),0,"")) ->  | M28: =IF($B28<>"PRC_RESID","",IF(M$7=2005+OFFSET(AGR!$B$49,$AX28,SUMIF($B$10:$B$14,"NCAP_TLIFE",$AY$10:$AY$14)),0,"")) ->  | N28: =IF($B28<>"PRC_RESID","",IF(N$7=2005+OFFSET(AGR!$B$49,$AX28,SUMIF($B$10:$B$14,"NCAP_TLIFE",$AY$10:$AY$14)),0,"")) ->  | O28: =IF($B28<>"PRC_RESID","",IF(O$7=2005+OFFSET(AGR!$B$49,$AX28,SUMIF($B$10:$B$14,"NCAP_TLIFE",$AY$10:$AY$14)),0,"")) ->  | P28: =IF($B28<>"PRC_RESID","",IF(P$7=2005+OFFSET(AGR!$B$49,$AX28,SUMIF($B$10:$B$14,"NCAP_TLIFE",$AY$10:$AY$14)),0,"")) ->  | Q28: =IF($B28<>"PRC_RESID","",IF(Q$7=2005+OFFSET(AGR!$B$49,$AX28,SUMIF($B$10:$B$14,"NCAP_TLIFE",$AY$10:$AY$14)),0,"")) ->  | R28: =IF($B28<>"PRC_RESID","",IF(R$7=2005+OFFSET(AGR!$B$49,$AX28,SUMIF($B$10:$B$14,"NCAP_TLIFE",$AY$10:$AY$14)),0,"")) ->  | S28: =IF($B28<>"PRC_RESID","",IF(S$7=2005+OFFSET(AGR!$B$49,$AX28,SUMIF($B$10:$B$14,"NCAP_TLIFE",$AY$10:$AY$14)),0,"")) ->  | T28: =IF($B28<>"PRC_RESID","",IF(T$7=2005+OFFSET(AGR!$B$49,$AX28,SUMIF($B$10:$B$14,"NCAP_TLIFE",$AY$10:$AY$14)),0,"")) ->  | U28: =IF($B28<>"PRC_RESID","",IF(U$7=2005+OFFSET(AGR!$B$49,$AX28,SUMIF($B$10:$B$14,"NCAP_TLIFE",$AY$10:$AY$14)),0,"")) ->  | V28: =IF($B28<>"PRC_RESID","",IF(V$7=2005+OFFSET(AGR!$B$49,$AX28,SUMIF($B$10:$B$14,"NCAP_TLIFE",$AY$10:$AY$14)),0,"")) ->  | W28: =IF($B28<>"PRC_RESID","",IF(W$7=2005+OFFSET(AGR!$B$49,$AX28,SUMIF($B$10:$B$14,"NCAP_TLIFE",$AY$10:$AY$14)),0,"")) ->  | X28: =IF($B28<>"PRC_RESID","",IF(X$7=2005+OFFSET(AGR!$B$49,$AX28,SUMIF($B$10:$B$14,"NCAP_TLIFE",$AY$10:$AY$14)),0,"")) ->  | Y28: =IF($B28<>"PRC_RESID","",IF(Y$7=2005+OFFSET(AGR!$B$49,$AX28,SUMIF($B$10:$B$14,"NCAP_TLIFE",$AY$10:$AY$14)),0,"")) ->  | Z28: =IF($B28<>"PRC_RESID","",IF(Z$7=2005+OFFSET(AGR!$B$49,$AX28,SUMIF($B$10:$B$14,"NCAP_TLIFE",$AY$10:$AY$14)),0,"")) ->  | AA28: =IF($B28<>"PRC_RESID","",IF(AA$7=2005+OFFSET(AGR!$B$49,$AX28,SUMIF($B$10:$B$14,"NCAP_TLIFE",$AY$10:$AY$14)),0,"")) ->  | AB28: =IF($B28<>"PRC_RESID","",IF(AB$7=2005+OFFSET(AGR!$B$49,$AX28,SUMIF($B$10:$B$14,"NCAP_TLIFE",$AY$10:$AY$14)),0,"")) ->  | AC28: =IF($B28<>"PRC_RESID","",IF(AC$7=2005+OFFSET(AGR!$B$49,$AX28,SUMIF($B$10:$B$14,"NCAP_TLIFE",$AY$10:$AY$14)),0,"")) ->  | AD28: =IF($B28<>"PRC_RESID","",IF(AD$7=2005+OFFSET(AGR!$B$49,$AX28,SUMIF($B$10:$B$14,"NCAP_TLIFE",$AY$10:$AY$14)),0,"")) ->  | AE28: =IF($B28<>"PRC_RESID","",IF(AE$7=2005+OFFSET(AGR!$B$49,$AX28,SUMIF($B$10:$B$14,"NCAP_TLIFE",$AY$10:$AY$14)),0,"")) ->  | AF28: =IF($B28<>"PRC_RESID","",IF(AF$7=2005+OFFSET(AGR!$B$49,$AX28,SUMIF($B$10:$B$14,"NCAP_TLIFE",$AY$10:$AY$14)),0,"")) ->  | AG28: =IF($B28<>"PRC_RESID","",IF(AG$7=2005+OFFSET(AGR!$B$49,$AX28,SUMIF($B$10:$B$14,"NCAP_TLIFE",$AY$10:$AY$14)),0,"")) ->  | AH28: =IF($B28<>"PRC_RESID","",IF(AH$7=2005+OFFSET(AGR!$B$49,$AX28,SUMIF($B$10:$B$14,"NCAP_TLIFE",$AY$10:$AY$14)),0,"")) ->  | AM28: =IF($B28<>"PRC_RESID","",IF(AM$7=2005+OFFSET(AGR!$B$49,$AX28,SUMIF($B$10:$B$14,"NCAP_TLIFE",$AY$10:$AY$14)),0,"")) ->  | AR28: =IF($B28<>"PRC_RESID","",IF(AR$7=2005+OFFSET(AGR!$B$49,$AX28,SUMIF($B$10:$B$14,"NCAP_TLIFE",$AY$10:$AY$14)),0,"")) ->  | AS28: =IF($B28<>"PRC_RESID","",IF(AS$7=2005+OFFSET(AGR!$B$49,$AX28,SUMIF($B$10:$B$14,"NCAP_TLIFE",$AY$10:$AY$14)),0,"")) ->  | AT28: =IF($B28<>"PRC_RESID","",IF(AT$7=2005+OFFSET(AGR!$B$49,$AX28,SUMIF($B$10:$B$14,"NCAP_TLIFE",$AY$10:$AY$14)),0,"")) ->  | AU28: =IF($B28<>"PRC_RESID","",IF(AU$7=2005+OFFSET(AGR!$B$49,$AX28,SUMIF($B$10:$B$14,"NCAP_TLIFE",$AY$10:$AY$14)),0,"")) ->  | AW28: =IF(AX27=AGR!$W$72,AW27+1,AW27) -> 1 | AX28: 13
A29: =IF(LEFT(OFFSET(AGR!$A$49,AX29,0),2)="\I","*","") -> * | C29: =IF($A29="*","",OFFSET(AGR!$B$49,AX29,0)) ->  | J29: =IF($A29="*","",OFFSET(AGR!$B$49,AX29,SUMIF($B$10:$B$14,B29,$AY$10:$AY$14))) ->  | K29: =IF($B29<>"PRC_RESID","",IF(K$7=2005+OFFSET(AGR!$B$49,$AX29,SUMIF($B$10:$B$14,"NCAP_TLIFE",$AY$10:$AY$14)),0,"")) ->  | L29: =IF($B29<>"PRC_RESID","",IF(L$7=2005+OFFSET(AGR!$B$49,$AX29,SUMIF($B$10:$B$14,"NCAP_TLIFE",$AY$10:$AY$14)),0,"")) ->  | M29: =IF($B29<>"PRC_RESID","",IF(M$7=2005+OFFSET(AGR!$B$49,$AX29,SUMIF($B$10:$B$14,"NCAP_TLIFE",$AY$10:$AY$14)),0,"")) ->  | N29: =IF($B29<>"PRC_RESID","",IF(N$7=2005+OFFSET(AGR!$B$49,$AX29,SUMIF($B$10:$B$14,"NCAP_TLIFE",$AY$10:$AY$14)),0,"")) ->  | O29: =IF($B29<>"PRC_RESID","",IF(O$7=2005+OFFSET(AGR!$B$49,$AX29,SUMIF($B$10:$B$14,"NCAP_TLIFE",$AY$10:$AY$14)),0,"")) ->  | P29: =IF($B29<>"PRC_RESID","",IF(P$7=2005+OFFSET(AGR!$B$49,$AX29,SUMIF($B$10:$B$14,"NCAP_TLIFE",$AY$10:$AY$14)),0,"")) ->  | Q29: =IF($B29<>"PRC_RESID","",IF(Q$7=2005+OFFSET(AGR!$B$49,$AX29,SUMIF($B$10:$B$14,"NCAP_TLIFE",$AY$10:$AY$14)),0,"")) ->  | R29: =IF($B29<>"PRC_RESID","",IF(R$7=2005+OFFSET(AGR!$B$49,$AX29,SUMIF($B$10:$B$14,"NCAP_TLIFE",$AY$10:$AY$14)),0,"")) ->  | S29: =IF($B29<>"PRC_RESID","",IF(S$7=2005+OFFSET(AGR!$B$49,$AX29,SUMIF($B$10:$B$14,"NCAP_TLIFE",$AY$10:$AY$14)),0,"")) ->  | T29: =IF($B29<>"PRC_RESID","",IF(T$7=2005+OFFSET(AGR!$B$49,$AX29,SUMIF($B$10:$B$14,"NCAP_TLIFE",$AY$10:$AY$14)),0,"")) ->  | U29: =IF($B29<>"PRC_RESID","",IF(U$7=2005+OFFSET(AGR!$B$49,$AX29,SUMIF($B$10:$B$14,"NCAP_TLIFE",$AY$10:$AY$14)),0,"")) ->  | V29: =IF($B29<>"PRC_RESID","",IF(V$7=2005+OFFSET(AGR!$B$49,$AX29,SUMIF($B$10:$B$14,"NCAP_TLIFE",$AY$10:$AY$14)),0,"")) ->  | W29: =IF($B29<>"PRC_RESID","",IF(W$7=2005+OFFSET(AGR!$B$49,$AX29,SUMIF($B$10:$B$14,"NCAP_TLIFE",$AY$10:$AY$14)),0,"")) ->  | X29: =IF($B29<>"PRC_RESID","",IF(X$7=2005+OFFSET(AGR!$B$49,$AX29,SUMIF($B$10:$B$14,"NCAP_TLIFE",$AY$10:$AY$14)),0,"")) ->  | Y29: =IF($B29<>"PRC_RESID","",IF(Y$7=2005+OFFSET(AGR!$B$49,$AX29,SUMIF($B$10:$B$14,"NCAP_TLIFE",$AY$10:$AY$14)),0,"")) ->  | Z29: =IF($B29<>"PRC_RESID","",IF(Z$7=2005+OFFSET(AGR!$B$49,$AX29,SUMIF($B$10:$B$14,"NCAP_TLIFE",$AY$10:$AY$14)),0,"")) ->  | AA29: =IF($B29<>"PRC_RESID","",IF(AA$7=2005+OFFSET(AGR!$B$49,$AX29,SUMIF($B$10:$B$14,"NCAP_TLIFE",$AY$10:$AY$14)),0,"")) ->  | AB29: =IF($B29<>"PRC_RESID","",IF(AB$7=2005+OFFSET(AGR!$B$49,$AX29,SUMIF($B$10:$B$14,"NCAP_TLIFE",$AY$10:$AY$14)),0,"")) ->  | AC29: =IF($B29<>"PRC_RESID","",IF(AC$7=2005+OFFSET(AGR!$B$49,$AX29,SUMIF($B$10:$B$14,"NCAP_TLIFE",$AY$10:$AY$14)),0,"")) ->  | AD29: =IF($B29<>"PRC_RESID","",IF(AD$7=2005+OFFSET(AGR!$B$49,$AX29,SUMIF($B$10:$B$14,"NCAP_TLIFE",$AY$10:$AY$14)),0,"")) ->  | AE29: =IF($B29<>"PRC_RESID","",IF(AE$7=2005+OFFSET(AGR!$B$49,$AX29,SUMIF($B$10:$B$14,"NCAP_TLIFE",$AY$10:$AY$14)),0,"")) ->  | AF29: =IF($B29<>"PRC_RESID","",IF(AF$7=2005+OFFSET(AGR!$B$49,$AX29,SUMIF($B$10:$B$14,"NCAP_TLIFE",$AY$10:$AY$14)),0,"")) ->  | AG29: =IF($B29<>"PRC_RESID","",IF(AG$7=2005+OFFSET(AGR!$B$49,$AX29,SUMIF($B$10:$B$14,"NCAP_TLIFE",$AY$10:$AY$14)),0,"")) ->  | AH29: =IF($B29<>"PRC_RESID","",IF(AH$7=2005+OFFSET(AGR!$B$49,$AX29,SUMIF($B$10:$B$14,"NCAP_TLIFE",$AY$10:$AY$14)),0,"")) ->  | AM29: =IF($B29<>"PRC_RESID","",IF(AM$7=2005+OFFSET(AGR!$B$49,$AX29,SUMIF($B$10:$B$14,"NCAP_TLIFE",$AY$10:$AY$14)),0,"")) ->  | AR29: =IF($B29<>"PRC_RESID","",IF(AR$7=2005+OFFSET(AGR!$B$49,$AX29,SUMIF($B$10:$B$14,"NCAP_TLIFE",$AY$10:$AY$14)),0,"")) ->  | AS29: =IF($B29<>"PRC_RESID","",IF(AS$7=2005+OFFSET(AGR!$B$49,$AX29,SUMIF($B$10:$B$14,"NCAP_TLIFE",$AY$10:$AY$14)),0,"")) ->  | AT29: =IF($B29<>"PRC_RESID","",IF(AT$7=2005+OFFSET(AGR!$B$49,$AX29,SUMIF($B$10:$B$14,"NCAP_TLIFE",$AY$10:$AY$14)),0,"")) ->  | AU29: =IF($B29<>"PRC_RESID","",IF(AU$7=2005+OFFSET(AGR!$B$49,$AX29,SUMIF($B$10:$B$14,"NCAP_TLIFE",$AY$10:$AY$14)),0,"")) ->  | AW29: =IF(AX28=AGR!$W$72,AW28+1,AW28) -> 1 | AX29: 14
A30: =IF(LEFT(OFFSET(AGR!$A$49,AX30,0),2)="\I","*","") -> * | C30: =IF($A30="*","",OFFSET(AGR!$B$49,AX30,0)) ->  | J30: =IF($A30="*","",OFFSET(AGR!$B$49,AX30,SUMIF($B$10:$B$14,B30,$AY$10:$AY$14))) ->  | K30: =IF($B30<>"PRC_RESID","",IF(K$7=2005+OFFSET(AGR!$B$49,$AX30,SUMIF($B$10:$B$14,"NCAP_TLIFE",$AY$10:$AY$14)),0,"")) ->  | L30: =IF($B30<>"PRC_RESID","",IF(L$7=2005+OFFSET(AGR!$B$49,$AX30,SUMIF($B$10:$B$14,"NCAP_TLIFE",$AY$10:$AY$14)),0,"")) ->  | M30: =IF($B30<>"PRC_RESID","",IF(M$7=2005+OFFSET(AGR!$B$49,$AX30,SUMIF($B$10:$B$14,"NCAP_TLIFE",$AY$10:$AY$14)),0,"")) ->  | N30: =IF($B30<>"PRC_RESID","",IF(N$7=2005+OFFSET(AGR!$B$49,$AX30,SUMIF($B$10:$B$14,"NCAP_TLIFE",$AY$10:$AY$14)),0,"")) ->  | O30: =IF($B30<>"PRC_RESID","",IF(O$7=2005+OFFSET(AGR!$B$49,$AX30,SUMIF($B$10:$B$14,"NCAP_TLIFE",$AY$10:$AY$14)),0,"")) ->  | P30: =IF($B30<>"PRC_RESID","",IF(P$7=2005+OFFSET(AGR!$B$49,$AX30,SUMIF($B$10:$B$14,"NCAP_TLIFE",$AY$10:$AY$14)),0,"")) ->  | Q30: =IF($B30<>"PRC_RESID","",IF(Q$7=2005+OFFSET(AGR!$B$49,$AX30,SUMIF($B$10:$B$14,"NCAP_TLIFE",$AY$10:$AY$14)),0,"")) ->  | R30: =IF($B30<>"PRC_RESID","",IF(R$7=2005+OFFSET(AGR!$B$49,$AX30,SUMIF($B$10:$B$14,"NCAP_TLIFE",$AY$10:$AY$14)),0,"")) ->  | S30: =IF($B30<>"PRC_RESID","",IF(S$7=2005+OFFSET(AGR!$B$49,$AX30,SUMIF($B$10:$B$14,"NCAP_TLIFE",$AY$10:$AY$14)),0,"")) ->  | T30: =IF($B30<>"PRC_RESID","",IF(T$7=2005+OFFSET(AGR!$B$49,$AX30,SUMIF($B$10:$B$14,"NCAP_TLIFE",$AY$10:$AY$14)),0,"")) ->  | U30: =IF($B30<>"PRC_RESID","",IF(U$7=2005+OFFSET(AGR!$B$49,$AX30,SUMIF($B$10:$B$14,"NCAP_TLIFE",$AY$10:$AY$14)),0,"")) ->  | V30: =IF($B30<>"PRC_RESID","",IF(V$7=2005+OFFSET(AGR!$B$49,$AX30,SUMIF($B$10:$B$14,"NCAP_TLIFE",$AY$10:$AY$14)),0,"")) ->  | W30: =IF($B30<>"PRC_RESID","",IF(W$7=2005+OFFSET(AGR!$B$49,$AX30,SUMIF($B$10:$B$14,"NCAP_TLIFE",$AY$10:$AY$14)),0,"")) ->  | X30: =IF($B30<>"PRC_RESID","",IF(X$7=2005+OFFSET(AGR!$B$49,$AX30,SUMIF($B$10:$B$14,"NCAP_TLIFE",$AY$10:$AY$14)),0,"")) ->  | Y30: =IF($B30<>"PRC_RESID","",IF(Y$7=2005+OFFSET(AGR!$B$49,$AX30,SUMIF($B$10:$B$14,"NCAP_TLIFE",$AY$10:$AY$14)),0,"")) ->  | Z30: =IF($B30<>"PRC_RESID","",IF(Z$7=2005+OFFSET(AGR!$B$49,$AX30,SUMIF($B$10:$B$14,"NCAP_TLIFE",$AY$10:$AY$14)),0,"")) ->  | AA30: =IF($B30<>"PRC_RESID","",IF(AA$7=2005+OFFSET(AGR!$B$49,$AX30,SUMIF($B$10:$B$14,"NCAP_TLIFE",$AY$10:$AY$14)),0,"")) ->  | AB30: =IF($B30<>"PRC_RESID","",IF(AB$7=2005+OFFSET(AGR!$B$49,$AX30,SUMIF($B$10:$B$14,"NCAP_TLIFE",$AY$10:$AY$14)),0,"")) ->  | AC30: =IF($B30<>"PRC_RESID","",IF(AC$7=2005+OFFSET(AGR!$B$49,$AX30,SUMIF($B$10:$B$14,"NCAP_TLIFE",$AY$10:$AY$14)),0,"")) ->  | AD30: =IF($B30<>"PRC_RESID","",IF(AD$7=2005+OFFSET(AGR!$B$49,$AX30,SUMIF($B$10:$B$14,"NCAP_TLIFE",$AY$10:$AY$14)),0,"")) ->  | AE30: =IF($B30<>"PRC_RESID","",IF(AE$7=2005+OFFSET(AGR!$B$49,$AX30,SUMIF($B$10:$B$14,"NCAP_TLIFE",$AY$10:$AY$14)),0,"")) ->  | AF30: =IF($B30<>"PRC_RESID","",IF(AF$7=2005+OFFSET(AGR!$B$49,$AX30,SUMIF($B$10:$B$14,"NCAP_TLIFE",$AY$10:$AY$14)),0,"")) ->  | AG30: =IF($B30<>"PRC_RESID","",IF(AG$7=2005+OFFSET(AGR!$B$49,$AX30,SUMIF($B$10:$B$14,"NCAP_TLIFE",$AY$10:$AY$14)),0,"")) ->  | AH30: =IF($B30<>"PRC_RESID","",IF(AH$7=2005+OFFSET(AGR!$B$49,$AX30,SUMIF($B$10:$B$14,"NCAP_TLIFE",$AY$10:$AY$14)),0,"")) ->  | AM30: =IF($B30<>"PRC_RESID","",IF(AM$7=2005+OFFSET(AGR!$B$49,$AX30,SUMIF($B$10:$B$14,"NCAP_TLIFE",$AY$10:$AY$14)),0,"")) ->  | AR30: =IF($B30<>"PRC_RESID","",IF(AR$7=2005+OFFSET(AGR!$B$49,$AX30,SUMIF($B$10:$B$14,"NCAP_TLIFE",$AY$10:$AY$14)),0,"")) ->  | AS30: =IF($B30<>"PRC_RESID","",IF(AS$7=2005+OFFSET(AGR!$B$49,$AX30,SUMIF($B$10:$B$14,"NCAP_TLIFE",$AY$10:$AY$14)),0,"")) ->  | AT30: =IF($B30<>"PRC_RESID","",IF(AT$7=2005+OFFSET(AGR!$B$49,$AX30,SUMIF($B$10:$B$14,"NCAP_TLIFE",$AY$10:$AY$14)),0,"")) ->  | AU30: =IF($B30<>"PRC_RESID","",IF(AU$7=2005+OFFSET(AGR!$B$49,$AX30,SUMIF($B$10:$B$14,"NCAP_TLIFE",$AY$10:$AY$14)),0,"")) ->  | AW30: =IF(AX29=AGR!$W$72,AW29+1,AW29) -> 1 | AX30: 15
A31: =IF(LEFT(OFFSET(AGR!$A$49,AX31,0),2)="\I","*","") ->  | B31: ACT_EFF | C31: =IF($A31="*","",OFFSET(AGR!$B$49,AX31,0)) -> AIODS-E | D31: - | E31: ACTGRP | F31: - | G31: ANNUAL | H31: - | I31: 0 | J31: =IF($A31="*","",OFFSET(AGR!$B$49,AX31,SUMIF($B$10:$B$14,B31,$AY$10:$AY$14))) -> 0.35 | K31: =IF($B31<>"PRC_RESID","",IF(K$7=2005+OFFSET(AGR!$B$49,$AX31,SUMIF($B$10:$B$14,"NCAP_TLIFE",$AY$10:$AY$14)),0,"")) ->  | L31: =IF($B31<>"PRC_RESID","",IF(L$7=2005+OFFSET(AGR!$B$49,$AX31,SUMIF($B$10:$B$14,"NCAP_TLIFE",$AY$10:$AY$14)),0,"")) ->  | M31: =IF($B31<>"PRC_RESID","",IF(M$7=2005+OFFSET(AGR!$B$49,$AX31,SUMIF($B$10:$B$14,"NCAP_TLIFE",$AY$10:$AY$14)),0,"")) ->  | N31: =IF($B31<>"PRC_RESID","",IF(N$7=2005+OFFSET(AGR!$B$49,$AX31,SUMIF($B$10:$B$14,"NCAP_TLIFE",$AY$10:$AY$14)),0,"")) ->  | O31: =IF($B31<>"PRC_RESID","",IF(O$7=2005+OFFSET(AGR!$B$49,$AX31,SUMIF($B$10:$B$14,"NCAP_TLIFE",$AY$10:$AY$14)),0,"")) ->  | P31: =IF($B31<>"PRC_RESID","",IF(P$7=2005+OFFSET(AGR!$B$49,$AX31,SUMIF($B$10:$B$14,"NCAP_TLIFE",$AY$10:$AY$14)),0,"")) ->  | Q31: =IF($B31<>"PRC_RESID","",IF(Q$7=2005+OFFSET(AGR!$B$49,$AX31,SUMIF($B$10:$B$14,"NCAP_TLIFE",$AY$10:$AY$14)),0,"")) ->  | R31: =IF($B31<>"PRC_RESID","",IF(R$7=2005+OFFSET(AGR!$B$49,$AX31,SUMIF($B$10:$B$14,"NCAP_TLIFE",$AY$10:$AY$14)),0,"")) ->  | S31: =IF($B31<>"PRC_RESID","",IF(S$7=2005+OFFSET(AGR!$B$49,$AX31,SUMIF($B$10:$B$14,"NCAP_TLIFE",$AY$10:$AY$14)),0,"")) ->  | T31: =IF($B31<>"PRC_RESID","",IF(T$7=2005+OFFSET(AGR!$B$49,$AX31,SUMIF($B$10:$B$14,"NCAP_TLIFE",$AY$10:$AY$14)),0,"")) ->  | U31: =IF($B31<>"PRC_RESID","",IF(U$7=2005+OFFSET(AGR!$B$49,$AX31,SUMIF($B$10:$B$14,"NCAP_TLIFE",$AY$10:$AY$14)),0,"")) ->  | V31: =IF($B31<>"PRC_RESID","",IF(V$7=2005+OFFSET(AGR!$B$49,$AX31,SUMIF($B$10:$B$14,"NCAP_TLIFE",$AY$10:$AY$14)),0,"")) ->  | W31: =IF($B31<>"PRC_RESID","",IF(W$7=2005+OFFSET(AGR!$B$49,$AX31,SUMIF($B$10:$B$14,"NCAP_TLIFE",$AY$10:$AY$14)),0,"")) ->  | X31: =IF($B31<>"PRC_RESID","",IF(X$7=2005+OFFSET(AGR!$B$49,$AX31,SUMIF($B$10:$B$14,"NCAP_TLIFE",$AY$10:$AY$14)),0,"")) ->  | Y31: =IF($B31<>"PRC_RESID","",IF(Y$7=2005+OFFSET(AGR!$B$49,$AX31,SUMIF($B$10:$B$14,"NCAP_TLIFE",$AY$10:$AY$14)),0,"")) ->  | Z31: =IF($B31<>"PRC_RESID","",IF(Z$7=2005+OFFSET(AGR!$B$49,$AX31,SUMIF($B$10:$B$14,"NCAP_TLIFE",$AY$10:$AY$14)),0,"")) ->  | AA31: =IF($B31<>"PRC_RESID","",IF(AA$7=2005+OFFSET(AGR!$B$49,$AX31,SUMIF($B$10:$B$14,"NCAP_TLIFE",$AY$10:$AY$14)),0,"")) ->  | AB31: =IF($B31<>"PRC_RESID","",IF(AB$7=2005+OFFSET(AGR!$B$49,$AX31,SUMIF($B$10:$B$14,"NCAP_TLIFE",$AY$10:$AY$14)),0,"")) ->  | AC31: =IF($B31<>"PRC_RESID","",IF(AC$7=2005+OFFSET(AGR!$B$49,$AX31,SUMIF($B$10:$B$14,"NCAP_TLIFE",$AY$10:$AY$14)),0,"")) ->  | AD31: =IF($B31<>"PRC_RESID","",IF(AD$7=2005+OFFSET(AGR!$B$49,$AX31,SUMIF($B$10:$B$14,"NCAP_TLIFE",$AY$10:$AY$14)),0,"")) ->  | AE31: =IF($B31<>"PRC_RESID","",IF(AE$7=2005+OFFSET(AGR!$B$49,$AX31,SUMIF($B$10:$B$14,"NCAP_TLIFE",$AY$10:$AY$14)),0,"")) ->  | AF31: =IF($B31<>"PRC_RESID","",IF(AF$7=2005+OFFSET(AGR!$B$49,$AX31,SUMIF($B$10:$B$14,"NCAP_TLIFE",$AY$10:$AY$14)),0,"")) ->  | AG31: =IF($B31<>"PRC_RESID","",IF(AG$7=2005+OFFSET(AGR!$B$49,$AX31,SUMIF($B$10:$B$14,"NCAP_TLIFE",$AY$10:$AY$14)),0,"")) ->  | AH31: =IF($B31<>"PRC_RESID","",IF(AH$7=2005+OFFSET(AGR!$B$49,$AX31,SUMIF($B$10:$B$14,"NCAP_TLIFE",$AY$10:$AY$14)),0,"")) ->  | AM31: =IF($B31<>"PRC_RESID","",IF(AM$7=2005+OFFSET(AGR!$B$49,$AX31,SUMIF($B$10:$B$14,"NCAP_TLIFE",$AY$10:$AY$14)),0,"")) ->  | AR31: =IF($B31<>"PRC_RESID","",IF(AR$7=2005+OFFSET(AGR!$B$49,$AX31,SUMIF($B$10:$B$14,"NCAP_TLIFE",$AY$10:$AY$14)),0,"")) ->  | AS31: =IF($B31<>"PRC_RESID","",IF(AS$7=2005+OFFSET(AGR!$B$49,$AX31,SUMIF($B$10:$B$14,"NCAP_TLIFE",$AY$10:$AY$14)),0,"")) ->  | AT31: =IF($B31<>"PRC_RESID","",IF(AT$7=2005+OFFSET(AGR!$B$49,$AX31,SUMIF($B$10:$B$14,"NCAP_TLIFE",$AY$10:$AY$14)),0,"")) ->  | AU31: =IF($B31<>"PRC_RESID","",IF(AU$7=2005+OFFSET(AGR!$B$49,$AX31,SUMIF($B$10:$B$14,"NCAP_TLIFE",$AY$10:$AY$14)),0,"")) ->  | AW31: =IF(AX30=AGR!$W$72,AW30+1,AW30) -> 1 | AX31: 16
A32: =IF(LEFT(OFFSET(AGR!$A$49,AX32,0),2)="\I","*","") ->  | B32: ACT_EFF | C32: =IF($A32="*","",OFFSET(AGR!$B$49,AX32,0)) -> AIELC-E | D32: - | E32: ACTGRP | F32: - | G32: ANNUAL | H32: - | I32: 0 | J32: =IF($A32="*","",OFFSET(AGR!$B$49,AX32,SUMIF($B$10:$B$14,B32,$AY$10:$AY$14))) -> 0.95 | K32: =IF($B32<>"PRC_RESID","",IF(K$7=2005+OFFSET(AGR!$B$49,$AX32,SUMIF($B$10:$B$14,"NCAP_TLIFE",$AY$10:$AY$14)),0,"")) ->  | L32: =IF($B32<>"PRC_RESID","",IF(L$7=2005+OFFSET(AGR!$B$49,$AX32,SUMIF($B$10:$B$14,"NCAP_TLIFE",$AY$10:$AY$14)),0,"")) ->  | M32: =IF($B32<>"PRC_RESID","",IF(M$7=2005+OFFSET(AGR!$B$49,$AX32,SUMIF($B$10:$B$14,"NCAP_TLIFE",$AY$10:$AY$14)),0,"")) ->  | N32: =IF($B32<>"PRC_RESID","",IF(N$7=2005+OFFSET(AGR!$B$49,$AX32,SUMIF($B$10:$B$14,"NCAP_TLIFE",$AY$10:$AY$14)),0,"")) ->  | O32: =IF($B32<>"PRC_RESID","",IF(O$7=2005+OFFSET(AGR!$B$49,$AX32,SUMIF($B$10:$B$14,"NCAP_TLIFE",$AY$10:$AY$14)),0,"")) ->  | P32: =IF($B32<>"PRC_RESID","",IF(P$7=2005+OFFSET(AGR!$B$49,$AX32,SUMIF($B$10:$B$14,"NCAP_TLIFE",$AY$10:$AY$14)),0,"")) ->  | Q32: =IF($B32<>"PRC_RESID","",IF(Q$7=2005+OFFSET(AGR!$B$49,$AX32,SUMIF($B$10:$B$14,"NCAP_TLIFE",$AY$10:$AY$14)),0,"")) ->  | R32: =IF($B32<>"PRC_RESID","",IF(R$7=2005+OFFSET(AGR!$B$49,$AX32,SUMIF($B$10:$B$14,"NCAP_TLIFE",$AY$10:$AY$14)),0,"")) ->  | S32: =IF($B32<>"PRC_RESID","",IF(S$7=2005+OFFSET(AGR!$B$49,$AX32,SUMIF($B$10:$B$14,"NCAP_TLIFE",$AY$10:$AY$14)),0,"")) ->  | T32: =IF($B32<>"PRC_RESID","",IF(T$7=2005+OFFSET(AGR!$B$49,$AX32,SUMIF($B$10:$B$14,"NCAP_TLIFE",$AY$10:$AY$14)),0,"")) ->  | U32: =IF($B32<>"PRC_RESID","",IF(U$7=2005+OFFSET(AGR!$B$49,$AX32,SUMIF($B$10:$B$14,"NCAP_TLIFE",$AY$10:$AY$14)),0,"")) ->  | V32: =IF($B32<>"PRC_RESID","",IF(V$7=2005+OFFSET(AGR!$B$49,$AX32,SUMIF($B$10:$B$14,"NCAP_TLIFE",$AY$10:$AY$14)),0,"")) ->  | W32: =IF($B32<>"PRC_RESID","",IF(W$7=2005+OFFSET(AGR!$B$49,$AX32,SUMIF($B$10:$B$14,"NCAP_TLIFE",$AY$10:$AY$14)),0,"")) ->  | X32: =IF($B32<>"PRC_RESID","",IF(X$7=2005+OFFSET(AGR!$B$49,$AX32,SUMIF($B$10:$B$14,"NCAP_TLIFE",$AY$10:$AY$14)),0,"")) ->  | Y32: =IF($B32<>"PRC_RESID","",IF(Y$7=2005+OFFSET(AGR!$B$49,$AX32,SUMIF($B$10:$B$14,"NCAP_TLIFE",$AY$10:$AY$14)),0,"")) ->  | Z32: =IF($B32<>"PRC_RESID","",IF(Z$7=2005+OFFSET(AGR!$B$49,$AX32,SUMIF($B$10:$B$14,"NCAP_TLIFE",$AY$10:$AY$14)),0,"")) ->  | AA32: =IF($B32<>"PRC_RESID","",IF(AA$7=2005+OFFSET(AGR!$B$49,$AX32,SUMIF($B$10:$B$14,"NCAP_TLIFE",$AY$10:$AY$14)),0,"")) ->  | AB32: =IF($B32<>"PRC_RESID","",IF(AB$7=2005+OFFSET(AGR!$B$49,$AX32,SUMIF($B$10:$B$14,"NCAP_TLIFE",$AY$10:$AY$14)),0,"")) ->  | AC32: =IF($B32<>"PRC_RESID","",IF(AC$7=2005+OFFSET(AGR!$B$49,$AX32,SUMIF($B$10:$B$14,"NCAP_TLIFE",$AY$10:$AY$14)),0,"")) ->  | AD32: =IF($B32<>"PRC_RESID","",IF(AD$7=2005+OFFSET(AGR!$B$49,$AX32,SUMIF($B$10:$B$14,"NCAP_TLIFE",$AY$10:$AY$14)),0,"")) ->  | AE32: =IF($B32<>"PRC_RESID","",IF(AE$7=2005+OFFSET(AGR!$B$49,$AX32,SUMIF($B$10:$B$14,"NCAP_TLIFE",$AY$10:$AY$14)),0,"")) ->  | AF32: =IF($B32<>"PRC_RESID","",IF(AF$7=2005+OFFSET(AGR!$B$49,$AX32,SUMIF($B$10:$B$14,"NCAP_TLIFE",$AY$10:$AY$14)),0,"")) ->  | AG32: =IF($B32<>"PRC_RESID","",IF(AG$7=2005+OFFSET(AGR!$B$49,$AX32,SUMIF($B$10:$B$14,"NCAP_TLIFE",$AY$10:$AY$14)),0,"")) ->  | AH32: =IF($B32<>"PRC_RESID","",IF(AH$7=2005+OFFSET(AGR!$B$49,$AX32,SUMIF($B$10:$B$14,"NCAP_TLIFE",$AY$10:$AY$14)),0,"")) ->  | AM32: =IF($B32<>"PRC_RESID","",IF(AM$7=2005+OFFSET(AGR!$B$49,$AX32,SUMIF($B$10:$B$14,"NCAP_TLIFE",$AY$10:$AY$14)),0,"")) ->  | AR32: =IF($B32<>"PRC_RESID","",IF(AR$7=2005+OFFSET(AGR!$B$49,$AX32,SUMIF($B$10:$B$14,"NCAP_TLIFE",$AY$10:$AY$14)),0,"")) ->  | AS32: =IF($B32<>"PRC_RESID","",IF(AS$7=2005+OFFSET(AGR!$B$49,$AX32,SUMIF($B$10:$B$14,"NCAP_TLIFE",$AY$10:$AY$14)),0,"")) ->  | AT32: =IF($B32<>"PRC_RESID","",IF(AT$7=2005+OFFSET(AGR!$B$49,$AX32,SUMIF($B$10:$B$14,"NCAP_TLIFE",$AY$10:$AY$14)),0,"")) ->  | AU32: =IF($B32<>"PRC_RESID","",IF(AU$7=2005+OFFSET(AGR!$B$49,$AX32,SUMIF($B$10:$B$14,"NCAP_TLIFE",$AY$10:$AY$14)),0,"")) ->  | AW32: =IF(AX31=AGR!$W$72,AW31+1,AW31) -> 1 | AX32: 17
A33: =IF(LEFT(OFFSET(AGR!$A$49,AX33,0),2)="\I","*","") ->  | B33: ACT_EFF | C33: =IF($A33="*","",OFFSET(AGR!$B$49,AX33,0)) -> AIOGS-E | D33: - | E33: ACTGRP | F33: - | G33: ANNUAL | H33: - | I33: 0 | J33: =IF($A33="*","",OFFSET(AGR!$B$49,AX33,SUMIF($B$10:$B$14,B33,$AY$10:$AY$14))) -> 0.25 | K33: =IF($B33<>"PRC_RESID","",IF(K$7=2005+OFFSET(AGR!$B$49,$AX33,SUMIF($B$10:$B$14,"NCAP_TLIFE",$AY$10:$AY$14)),0,"")) ->  | L33: =IF($B33<>"PRC_RESID","",IF(L$7=2005+OFFSET(AGR!$B$49,$AX33,SUMIF($B$10:$B$14,"NCAP_TLIFE",$AY$10:$AY$14)),0,"")) ->  | M33: =IF($B33<>"PRC_RESID","",IF(M$7=2005+OFFSET(AGR!$B$49,$AX33,SUMIF($B$10:$B$14,"NCAP_TLIFE",$AY$10:$AY$14)),0,"")) ->  | N33: =IF($B33<>"PRC_RESID","",IF(N$7=2005+OFFSET(AGR!$B$49,$AX33,SUMIF($B$10:$B$14,"NCAP_TLIFE",$AY$10:$AY$14)),0,"")) ->  | O33: =IF($B33<>"PRC_RESID","",IF(O$7=2005+OFFSET(AGR!$B$49,$AX33,SUMIF($B$10:$B$14,"NCAP_TLIFE",$AY$10:$AY$14)),0,"")) ->  | P33: =IF($B33<>"PRC_RESID","",IF(P$7=2005+OFFSET(AGR!$B$49,$AX33,SUMIF($B$10:$B$14,"NCAP_TLIFE",$AY$10:$AY$14)),0,"")) ->  | Q33: =IF($B33<>"PRC_RESID","",IF(Q$7=2005+OFFSET(AGR!$B$49,$AX33,SUMIF($B$10:$B$14,"NCAP_TLIFE",$AY$10:$AY$14)),0,"")) ->  | R33: =IF($B33<>"PRC_RESID","",IF(R$7=2005+OFFSET(AGR!$B$49,$AX33,SUMIF($B$10:$B$14,"NCAP_TLIFE",$AY$10:$AY$14)),0,"")) ->  | S33: =IF($B33<>"PRC_RESID","",IF(S$7=2005+OFFSET(AGR!$B$49,$AX33,SUMIF($B$10:$B$14,"NCAP_TLIFE",$AY$10:$AY$14)),0,"")) ->  | T33: =IF($B33<>"PRC_RESID","",IF(T$7=2005+OFFSET(AGR!$B$49,$AX33,SUMIF($B$10:$B$14,"NCAP_TLIFE",$AY$10:$AY$14)),0,"")) ->  | U33: =IF($B33<>"PRC_RESID","",IF(U$7=2005+OFFSET(AGR!$B$49,$AX33,SUMIF($B$10:$B$14,"NCAP_TLIFE",$AY$10:$AY$14)),0,"")) ->  | V33: =IF($B33<>"PRC_RESID","",IF(V$7=2005+OFFSET(AGR!$B$49,$AX33,SUMIF($B$10:$B$14,"NCAP_TLIFE",$AY$10:$AY$14)),0,"")) ->  | W33: =IF($B33<>"PRC_RESID","",IF(W$7=2005+OFFSET(AGR!$B$49,$AX33,SUMIF($B$10:$B$14,"NCAP_TLIFE",$AY$10:$AY$14)),0,"")) ->  | X33: =IF($B33<>"PRC_RESID","",IF(X$7=2005+OFFSET(AGR!$B$49,$AX33,SUMIF($B$10:$B$14,"NCAP_TLIFE",$AY$10:$AY$14)),0,"")) ->  | Y33: =IF($B33<>"PRC_RESID","",IF(Y$7=2005+OFFSET(AGR!$B$49,$AX33,SUMIF($B$10:$B$14,"NCAP_TLIFE",$AY$10:$AY$14)),0,"")) ->  | Z33: =IF($B33<>"PRC_RESID","",IF(Z$7=2005+OFFSET(AGR!$B$49,$AX33,SUMIF($B$10:$B$14,"NCAP_TLIFE",$AY$10:$AY$14)),0,"")) ->  | AA33: =IF($B33<>"PRC_RESID","",IF(AA$7=2005+OFFSET(AGR!$B$49,$AX33,SUMIF($B$10:$B$14,"NCAP_TLIFE",$AY$10:$AY$14)),0,"")) ->  | AB33: =IF($B33<>"PRC_RESID","",IF(AB$7=2005+OFFSET(AGR!$B$49,$AX33,SUMIF($B$10:$B$14,"NCAP_TLIFE",$AY$10:$AY$14)),0,"")) ->  | AC33: =IF($B33<>"PRC_RESID","",IF(AC$7=2005+OFFSET(AGR!$B$49,$AX33,SUMIF($B$10:$B$14,"NCAP_TLIFE",$AY$10:$AY$14)),0,"")) ->  | AD33: =IF($B33<>"PRC_RESID","",IF(AD$7=2005+OFFSET(AGR!$B$49,$AX33,SUMIF($B$10:$B$14,"NCAP_TLIFE",$AY$10:$AY$14)),0,"")) ->  | AE33: =IF($B33<>"PRC_RESID","",IF(AE$7=2005+OFFSET(AGR!$B$49,$AX33,SUMIF($B$10:$B$14,"NCAP_TLIFE",$AY$10:$AY$14)),0,"")) ->  | AF33: =IF($B33<>"PRC_RESID","",IF(AF$7=2005+OFFSET(AGR!$B$49,$AX33,SUMIF($B$10:$B$14,"NCAP_TLIFE",$AY$10:$AY$14)),0,"")) ->  | AG33: =IF($B33<>"PRC_RESID","",IF(AG$7=2005+OFFSET(AGR!$B$49,$AX33,SUMIF($B$10:$B$14,"NCAP_TLIFE",$AY$10:$AY$14)),0,"")) ->  | AH33: =IF($B33<>"PRC_RESID","",IF(AH$7=2005+OFFSET(AGR!$B$49,$AX33,SUMIF($B$10:$B$14,"NCAP_TLIFE",$AY$10:$AY$14)),0,"")) ->  | AM33: =IF($B33<>"PRC_RESID","",IF(AM$7=2005+OFFSET(AGR!$B$49,$AX33,SUMIF($B$10:$B$14,"NCAP_TLIFE",$AY$10:$AY$14)),0,"")) ->  | AR33: =IF($B33<>"PRC_RESID","",IF(AR$7=2005+OFFSET(AGR!$B$49,$AX33,SUMIF($B$10:$B$14,"NCAP_TLIFE",$AY$10:$AY$14)),0,"")) ->  | AS33: =IF($B33<>"PRC_RESID","",IF(AS$7=2005+OFFSET(AGR!$B$49,$AX33,SUMIF($B$10:$B$14,"NCAP_TLIFE",$AY$10:$AY$14)),0,"")) ->  | AT33: =IF($B33<>"PRC_RESID","",IF(AT$7=2005+OFFSET(AGR!$B$49,$AX33,SUMIF($B$10:$B$14,"NCAP_TLIFE",$AY$10:$AY$14)),0,"")) ->  | AU33: =IF($B33<>"PRC_RESID","",IF(AU$7=2005+OFFSET(AGR!$B$49,$AX33,SUMIF($B$10:$B$14,"NCAP_TLIFE",$AY$10:$AY$14)),0,"")) ->  | AW33: =IF(AX32=AGR!$W$72,AW32+1,AW32) -> 1 | AX33: 18
A34: =IF(LEFT(OFFSET(AGR!$A$49,AX34,0),2)="\I","*","") -> * | C34: =IF($A34="*","",OFFSET(AGR!$B$49,AX34,0)) ->  | J34: =IF($A34="*","",OFFSET(AGR!$B$49,AX34,SUMIF($B$10:$B$14,B34,$AY$10:$AY$14))) ->  | K34: =IF($B34<>"PRC_RESID","",IF(K$7=2005+OFFSET(AGR!$B$49,$AX34,SUMIF($B$10:$B$14,"NCAP_TLIFE",$AY$10:$AY$14)),0,"")) ->  | L34: =IF($B34<>"PRC_RESID","",IF(L$7=2005+OFFSET(AGR!$B$49,$AX34,SUMIF($B$10:$B$14,"NCAP_TLIFE",$AY$10:$AY$14)),0,"")) ->  | M34: =IF($B34<>"PRC_RESID","",IF(M$7=2005+OFFSET(AGR!$B$49,$AX34,SUMIF($B$10:$B$14,"NCAP_TLIFE",$AY$10:$AY$14)),0,"")) ->  | N34: =IF($B34<>"PRC_RESID","",IF(N$7=2005+OFFSET(AGR!$B$49,$AX34,SUMIF($B$10:$B$14,"NCAP_TLIFE",$AY$10:$AY$14)),0,"")) ->  | O34: =IF($B34<>"PRC_RESID","",IF(O$7=2005+OFFSET(AGR!$B$49,$AX34,SUMIF($B$10:$B$14,"NCAP_TLIFE",$AY$10:$AY$14)),0,"")) ->  | P34: =IF($B34<>"PRC_RESID","",IF(P$7=2005+OFFSET(AGR!$B$49,$AX34,SUMIF($B$10:$B$14,"NCAP_TLIFE",$AY$10:$AY$14)),0,"")) ->  | Q34: =IF($B34<>"PRC_RESID","",IF(Q$7=2005+OFFSET(AGR!$B$49,$AX34,SUMIF($B$10:$B$14,"NCAP_TLIFE",$AY$10:$AY$14)),0,"")) ->  | R34: =IF($B34<>"PRC_RESID","",IF(R$7=2005+OFFSET(AGR!$B$49,$AX34,SUMIF($B$10:$B$14,"NCAP_TLIFE",$AY$10:$AY$14)),0,"")) ->  | S34: =IF($B34<>"PRC_RESID","",IF(S$7=2005+OFFSET(AGR!$B$49,$AX34,SUMIF($B$10:$B$14,"NCAP_TLIFE",$AY$10:$AY$14)),0,"")) ->  | T34: =IF($B34<>"PRC_RESID","",IF(T$7=2005+OFFSET(AGR!$B$49,$AX34,SUMIF($B$10:$B$14,"NCAP_TLIFE",$AY$10:$AY$14)),0,"")) ->  | U34: =IF($B34<>"PRC_RESID","",IF(U$7=2005+OFFSET(AGR!$B$49,$AX34,SUMIF($B$10:$B$14,"NCAP_TLIFE",$AY$10:$AY$14)),0,"")) ->  | V34: =IF($B34<>"PRC_RESID","",IF(V$7=2005+OFFSET(AGR!$B$49,$AX34,SUMIF($B$10:$B$14,"NCAP_TLIFE",$AY$10:$AY$14)),0,"")) ->  | W34: =IF($B34<>"PRC_RESID","",IF(W$7=2005+OFFSET(AGR!$B$49,$AX34,SUMIF($B$10:$B$14,"NCAP_TLIFE",$AY$10:$AY$14)),0,"")) ->  | X34: =IF($B34<>"PRC_RESID","",IF(X$7=2005+OFFSET(AGR!$B$49,$AX34,SUMIF($B$10:$B$14,"NCAP_TLIFE",$AY$10:$AY$14)),0,"")) ->  | Y34: =IF($B34<>"PRC_RESID","",IF(Y$7=2005+OFFSET(AGR!$B$49,$AX34,SUMIF($B$10:$B$14,"NCAP_TLIFE",$AY$10:$AY$14)),0,"")) ->  | Z34: =IF($B34<>"PRC_RESID","",IF(Z$7=2005+OFFSET(AGR!$B$49,$AX34,SUMIF($B$10:$B$14,"NCAP_TLIFE",$AY$10:$AY$14)),0,"")) ->  | AA34: =IF($B34<>"PRC_RESID","",IF(AA$7=2005+OFFSET(AGR!$B$49,$AX34,SUMIF($B$10:$B$14,"NCAP_TLIFE",$AY$10:$AY$14)),0,"")) ->  | AB34: =IF($B34<>"PRC_RESID","",IF(AB$7=2005+OFFSET(AGR!$B$49,$AX34,SUMIF($B$10:$B$14,"NCAP_TLIFE",$AY$10:$AY$14)),0,"")) ->  | AC34: =IF($B34<>"PRC_RESID","",IF(AC$7=2005+OFFSET(AGR!$B$49,$AX34,SUMIF($B$10:$B$14,"NCAP_TLIFE",$AY$10:$AY$14)),0,"")) ->  | AD34: =IF($B34<>"PRC_RESID","",IF(AD$7=2005+OFFSET(AGR!$B$49,$AX34,SUMIF($B$10:$B$14,"NCAP_TLIFE",$AY$10:$AY$14)),0,"")) ->  | AE34: =IF($B34<>"PRC_RESID","",IF(AE$7=2005+OFFSET(AGR!$B$49,$AX34,SUMIF($B$10:$B$14,"NCAP_TLIFE",$AY$10:$AY$14)),0,"")) ->  | AF34: =IF($B34<>"PRC_RESID","",IF(AF$7=2005+OFFSET(AGR!$B$49,$AX34,SUMIF($B$10:$B$14,"NCAP_TLIFE",$AY$10:$AY$14)),0,"")) ->  | AG34: =IF($B34<>"PRC_RESID","",IF(AG$7=2005+OFFSET(AGR!$B$49,$AX34,SUMIF($B$10:$B$14,"NCAP_TLIFE",$AY$10:$AY$14)),0,"")) ->  | AH34: =IF($B34<>"PRC_RESID","",IF(AH$7=2005+OFFSET(AGR!$B$49,$AX34,SUMIF($B$10:$B$14,"NCAP_TLIFE",$AY$10:$AY$14)),0,"")) ->  | AM34: =IF($B34<>"PRC_RESID","",IF(AM$7=2005+OFFSET(AGR!$B$49,$AX34,SUMIF($B$10:$B$14,"NCAP_TLIFE",$AY$10:$AY$14)),0,"")) ->  | AR34: =IF($B34<>"PRC_RESID","",IF(AR$7=2005+OFFSET(AGR!$B$49,$AX34,SUMIF($B$10:$B$14,"NCAP_TLIFE",$AY$10:$AY$14)),0,"")) ->  | AS34: =IF($B34<>"PRC_RESID","",IF(AS$7=2005+OFFSET(AGR!$B$49,$AX34,SUMIF($B$10:$B$14,"NCAP_TLIFE",$AY$10:$AY$14)),0,"")) ->  | AT34: =IF($B34<>"PRC_RESID","",IF(AT$7=2005+OFFSET(AGR!$B$49,$AX34,SUMIF($B$10:$B$14,"NCAP_TLIFE",$AY$10:$AY$14)),0,"")) ->  | AU34: =IF($B34<>"PRC_RESID","",IF(AU$7=2005+OFFSET(AGR!$B$49,$AX34,SUMIF($B$10:$B$14,"NCAP_TLIFE",$AY$10:$AY$14)),0,"")) ->  | AW34: =IF(AX33=AGR!$W$72,AW33+1,AW33) -> 1 | AX34: 19
A35: =IF(LEFT(OFFSET(AGR!$A$49,AX35,0),2)="\I","*","") -> * | C35: =IF($A35="*","",OFFSET(AGR!$B$49,AX35,0)) ->  | J35: =IF($A35="*","",OFFSET(AGR!$B$49,AX35,SUMIF($B$10:$B$14,B35,$AY$10:$AY$14))) ->  | K35: =IF($B35<>"PRC_RESID","",IF(K$7=2005+OFFSET(AGR!$B$49,$AX35,SUMIF($B$10:$B$14,"NCAP_TLIFE",$AY$10:$AY$14)),0,"")) ->  | L35: =IF($B35<>"PRC_RESID","",IF(L$7=2005+OFFSET(AGR!$B$49,$AX35,SUMIF($B$10:$B$14,"NCAP_TLIFE",$AY$10:$AY$14)),0,"")) ->  | M35: =IF($B35<>"PRC_RESID","",IF(M$7=2005+OFFSET(AGR!$B$49,$AX35,SUMIF($B$10:$B$14,"NCAP_TLIFE",$AY$10:$AY$14)),0,"")) ->  | N35: =IF($B35<>"PRC_RESID","",IF(N$7=2005+OFFSET(AGR!$B$49,$AX35,SUMIF($B$10:$B$14,"NCAP_TLIFE",$AY$10:$AY$14)),0,"")) ->  | O35: =IF($B35<>"PRC_RESID","",IF(O$7=2005+OFFSET(AGR!$B$49,$AX35,SUMIF($B$10:$B$14,"NCAP_TLIFE",$AY$10:$AY$14)),0,"")) ->  | P35: =IF($B35<>"PRC_RESID","",IF(P$7=2005+OFFSET(AGR!$B$49,$AX35,SUMIF($B$10:$B$14,"NCAP_TLIFE",$AY$10:$AY$14)),0,"")) ->  | Q35: =IF($B35<>"PRC_RESID","",IF(Q$7=2005+OFFSET(AGR!$B$49,$AX35,SUMIF($B$10:$B$14,"NCAP_TLIFE",$AY$10:$AY$14)),0,"")) ->  | R35: =IF($B35<>"PRC_RESID","",IF(R$7=2005+OFFSET(AGR!$B$49,$AX35,SUMIF($B$10:$B$14,"NCAP_TLIFE",$AY$10:$AY$14)),0,"")) ->  | S35: =IF($B35<>"PRC_RESID","",IF(S$7=2005+OFFSET(AGR!$B$49,$AX35,SUMIF($B$10:$B$14,"NCAP_TLIFE",$AY$10:$AY$14)),0,"")) ->  | T35: =IF($B35<>"PRC_RESID","",IF(T$7=2005+OFFSET(AGR!$B$49,$AX35,SUMIF($B$10:$B$14,"NCAP_TLIFE",$AY$10:$AY$14)),0,"")) ->  | U35: =IF($B35<>"PRC_RESID","",IF(U$7=2005+OFFSET(AGR!$B$49,$AX35,SUMIF($B$10:$B$14,"NCAP_TLIFE",$AY$10:$AY$14)),0,"")) ->  | V35: =IF($B35<>"PRC_RESID","",IF(V$7=2005+OFFSET(AGR!$B$49,$AX35,SUMIF($B$10:$B$14,"NCAP_TLIFE",$AY$10:$AY$14)),0,"")) ->  | W35: =IF($B35<>"PRC_RESID","",IF(W$7=2005+OFFSET(AGR!$B$49,$AX35,SUMIF($B$10:$B$14,"NCAP_TLIFE",$AY$10:$AY$14)),0,"")) ->  | X35: =IF($B35<>"PRC_RESID","",IF(X$7=2005+OFFSET(AGR!$B$49,$AX35,SUMIF($B$10:$B$14,"NCAP_TLIFE",$AY$10:$AY$14)),0,"")) ->  | Y35: =IF($B35<>"PRC_RESID","",IF(Y$7=2005+OFFSET(AGR!$B$49,$AX35,SUMIF($B$10:$B$14,"NCAP_TLIFE",$AY$10:$AY$14)),0,"")) ->  | Z35: =IF($B35<>"PRC_RESID","",IF(Z$7=2005+OFFSET(AGR!$B$49,$AX35,SUMIF($B$10:$B$14,"NCAP_TLIFE",$AY$10:$AY$14)),0,"")) ->  | AA35: =IF($B35<>"PRC_RESID","",IF(AA$7=2005+OFFSET(AGR!$B$49,$AX35,SUMIF($B$10:$B$14,"NCAP_TLIFE",$AY$10:$AY$14)),0,"")) ->  | AB35: =IF($B35<>"PRC_RESID","",IF(AB$7=2005+OFFSET(AGR!$B$49,$AX35,SUMIF($B$10:$B$14,"NCAP_TLIFE",$AY$10:$AY$14)),0,"")) ->  | AC35: =IF($B35<>"PRC_RESID","",IF(AC$7=2005+OFFSET(AGR!$B$49,$AX35,SUMIF($B$10:$B$14,"NCAP_TLIFE",$AY$10:$AY$14)),0,"")) ->  | AD35: =IF($B35<>"PRC_RESID","",IF(AD$7=2005+OFFSET(AGR!$B$49,$AX35,SUMIF($B$10:$B$14,"NCAP_TLIFE",$AY$10:$AY$14)),0,"")) ->  | AE35: =IF($B35<>"PRC_RESID","",IF(AE$7=2005+OFFSET(AGR!$B$49,$AX35,SUMIF($B$10:$B$14,"NCAP_TLIFE",$AY$10:$AY$14)),0,"")) ->  | AF35: =IF($B35<>"PRC_RESID","",IF(AF$7=2005+OFFSET(AGR!$B$49,$AX35,SUMIF($B$10:$B$14,"NCAP_TLIFE",$AY$10:$AY$14)),0,"")) ->  | AG35: =IF($B35<>"PRC_RESID","",IF(AG$7=2005+OFFSET(AGR!$B$49,$AX35,SUMIF($B$10:$B$14,"NCAP_TLIFE",$AY$10:$AY$14)),0,"")) ->  | AH35: =IF($B35<>"PRC_RESID","",IF(AH$7=2005+OFFSET(AGR!$B$49,$AX35,SUMIF($B$10:$B$14,"NCAP_TLIFE",$AY$10:$AY$14)),0,"")) ->  | AM35: =IF($B35<>"PRC_RESID","",IF(AM$7=2005+OFFSET(AGR!$B$49,$AX35,SUMIF($B$10:$B$14,"NCAP_TLIFE",$AY$10:$AY$14)),0,"")) ->  | AR35: =IF($B35<>"PRC_RESID","",IF(AR$7=2005+OFFSET(AGR!$B$49,$AX35,SUMIF($B$10:$B$14,"NCAP_TLIFE",$AY$10:$AY$14)),0,"")) ->  | AS35: =IF($B35<>"PRC_RESID","",IF(AS$7=2005+OFFSET(AGR!$B$49,$AX35,SUMIF($B$10:$B$14,"NCAP_TLIFE",$AY$10:$AY$14)),0,"")) ->  | AT35: =IF($B35<>"PRC_RESID","",IF(AT$7=2005+OFFSET(AGR!$B$49,$AX35,SUMIF($B$10:$B$14,"NCAP_TLIFE",$AY$10:$AY$14)),0,"")) ->  | AU35: =IF($B35<>"PRC_RESID","",IF(AU$7=2005+OFFSET(AGR!$B$49,$AX35,SUMIF($B$10:$B$14,"NCAP_TLIFE",$AY$10:$AY$14)),0,"")) ->  | AW35: =IF(AX34=AGR!$W$72,AW34+1,AW34) -> 1 | AX35: 20
A36: =IF(LEFT(OFFSET(AGR!$A$49,AX36,0),2)="\I","*","") ->  | B36: ACT_EFF | C36: =IF($A36="*","",OFFSET(AGR!$B$49,AX36,0)) -> AOELC-E | D36: - | E36: ACTGRP | F36: - | G36: ANNUAL | H36: - | I36: 0 | J36: =IF($A36="*","",OFFSET(AGR!$B$49,AX36,SUMIF($B$10:$B$14,B36,$AY$10:$AY$14))) -> 1 | K36: =IF($B36<>"PRC_RESID","",IF(K$7=2005+OFFSET(AGR!$B$49,$AX36,SUMIF($B$10:$B$14,"NCAP_TLIFE",$AY$10:$AY$14)),0,"")) ->  | L36: =IF($B36<>"PRC_RESID","",IF(L$7=2005+OFFSET(AGR!$B$49,$AX36,SUMIF($B$10:$B$14,"NCAP_TLIFE",$AY$10:$AY$14)),0,"")) ->  | M36: =IF($B36<>"PRC_RESID","",IF(M$7=2005+OFFSET(AGR!$B$49,$AX36,SUMIF($B$10:$B$14,"NCAP_TLIFE",$AY$10:$AY$14)),0,"")) ->  | N36: =IF($B36<>"PRC_RESID","",IF(N$7=2005+OFFSET(AGR!$B$49,$AX36,SUMIF($B$10:$B$14,"NCAP_TLIFE",$AY$10:$AY$14)),0,"")) ->  | O36: =IF($B36<>"PRC_RESID","",IF(O$7=2005+OFFSET(AGR!$B$49,$AX36,SUMIF($B$10:$B$14,"NCAP_TLIFE",$AY$10:$AY$14)),0,"")) ->  | P36: =IF($B36<>"PRC_RESID","",IF(P$7=2005+OFFSET(AGR!$B$49,$AX36,SUMIF($B$10:$B$14,"NCAP_TLIFE",$AY$10:$AY$14)),0,"")) ->  | Q36: =IF($B36<>"PRC_RESID","",IF(Q$7=2005+OFFSET(AGR!$B$49,$AX36,SUMIF($B$10:$B$14,"NCAP_TLIFE",$AY$10:$AY$14)),0,"")) ->  | R36: =IF($B36<>"PRC_RESID","",IF(R$7=2005+OFFSET(AGR!$B$49,$AX36,SUMIF($B$10:$B$14,"NCAP_TLIFE",$AY$10:$AY$14)),0,"")) ->  | S36: =IF($B36<>"PRC_RESID","",IF(S$7=2005+OFFSET(AGR!$B$49,$AX36,SUMIF($B$10:$B$14,"NCAP_TLIFE",$AY$10:$AY$14)),0,"")) ->  | T36: =IF($B36<>"PRC_RESID","",IF(T$7=2005+OFFSET(AGR!$B$49,$AX36,SUMIF($B$10:$B$14,"NCAP_TLIFE",$AY$10:$AY$14)),0,"")) ->  | U36: =IF($B36<>"PRC_RESID","",IF(U$7=2005+OFFSET(AGR!$B$49,$AX36,SUMIF($B$10:$B$14,"NCAP_TLIFE",$AY$10:$AY$14)),0,"")) ->  | V36: =IF($B36<>"PRC_RESID","",IF(V$7=2005+OFFSET(AGR!$B$49,$AX36,SUMIF($B$10:$B$14,"NCAP_TLIFE",$AY$10:$AY$14)),0,"")) ->  | W36: =IF($B36<>"PRC_RESID","",IF(W$7=2005+OFFSET(AGR!$B$49,$AX36,SUMIF($B$10:$B$14,"NCAP_TLIFE",$AY$10:$AY$14)),0,"")) ->  | X36: =IF($B36<>"PRC_RESID","",IF(X$7=2005+OFFSET(AGR!$B$49,$AX36,SUMIF($B$10:$B$14,"NCAP_TLIFE",$AY$10:$AY$14)),0,"")) ->  | Y36: =IF($B36<>"PRC_RESID","",IF(Y$7=2005+OFFSET(AGR!$B$49,$AX36,SUMIF($B$10:$B$14,"NCAP_TLIFE",$AY$10:$AY$14)),0,"")) ->  | Z36: =IF($B36<>"PRC_RESID","",IF(Z$7=2005+OFFSET(AGR!$B$49,$AX36,SUMIF($B$10:$B$14,"NCAP_TLIFE",$AY$10:$AY$14)),0,"")) ->  | AA36: =IF($B36<>"PRC_RESID","",IF(AA$7=2005+OFFSET(AGR!$B$49,$AX36,SUMIF($B$10:$B$14,"NCAP_TLIFE",$AY$10:$AY$14)),0,"")) ->  | AB36: =IF($B36<>"PRC_RESID","",IF(AB$7=2005+OFFSET(AGR!$B$49,$AX36,SUMIF($B$10:$B$14,"NCAP_TLIFE",$AY$10:$AY$14)),0,"")) ->  | AC36: =IF($B36<>"PRC_RESID","",IF(AC$7=2005+OFFSET(AGR!$B$49,$AX36,SUMIF($B$10:$B$14,"NCAP_TLIFE",$AY$10:$AY$14)),0,"")) ->  | AD36: =IF($B36<>"PRC_RESID","",IF(AD$7=2005+OFFSET(AGR!$B$49,$AX36,SUMIF($B$10:$B$14,"NCAP_TLIFE",$AY$10:$AY$14)),0,"")) ->  | AE36: =IF($B36<>"PRC_RESID","",IF(AE$7=2005+OFFSET(AGR!$B$49,$AX36,SUMIF($B$10:$B$14,"NCAP_TLIFE",$AY$10:$AY$14)),0,"")) ->  | AF36: =IF($B36<>"PRC_RESID","",IF(AF$7=2005+OFFSET(AGR!$B$49,$AX36,SUMIF($B$10:$B$14,"NCAP_TLIFE",$AY$10:$AY$14)),0,"")) ->  | AG36: =IF($B36<>"PRC_RESID","",IF(AG$7=2005+OFFSET(AGR!$B$49,$AX36,SUMIF($B$10:$B$14,"NCAP_TLIFE",$AY$10:$AY$14)),0,"")) ->  | AH36: =IF($B36<>"PRC_RESID","",IF(AH$7=2005+OFFSET(AGR!$B$49,$AX36,SUMIF($B$10:$B$14,"NCAP_TLIFE",$AY$10:$AY$14)),0,"")) ->  | AM36: =IF($B36<>"PRC_RESID","",IF(AM$7=2005+OFFSET(AGR!$B$49,$AX36,SUMIF($B$10:$B$14,"NCAP_TLIFE",$AY$10:$AY$14)),0,"")) ->  | AR36: =IF($B36<>"PRC_RESID","",IF(AR$7=2005+OFFSET(AGR!$B$49,$AX36,SUMIF($B$10:$B$14,"NCAP_TLIFE",$AY$10:$AY$14)),0,"")) ->  | AS36: =IF($B36<>"PRC_RESID","",IF(AS$7=2005+OFFSET(AGR!$B$49,$AX36,SUMIF($B$10:$B$14,"NCAP_TLIFE",$AY$10:$AY$14)),0,"")) ->  | AT36: =IF($B36<>"PRC_RESID","",IF(AT$7=2005+OFFSET(AGR!$B$49,$AX36,SUMIF($B$10:$B$14,"NCAP_TLIFE",$AY$10:$AY$14)),0,"")) ->  | AU36: =IF($B36<>"PRC_RESID","",IF(AU$7=2005+OFFSET(AGR!$B$49,$AX36,SUMIF($B$10:$B$14,"NCAP_TLIFE",$AY$10:$AY$14)),0,"")) ->  | AW36: =IF(AX35=AGR!$W$72,AW35+1,AW35) -> 1 | AX36: 21
A37: =IF(LEFT(OFFSET(AGR!$A$49,AX37,0),2)="\I","*","") -> * | C37: =IF($A37="*","",OFFSET(AGR!$B$49,AX37,0)) ->  | J37: =IF($A37="*","",OFFSET(AGR!$B$49,AX37,SUMIF($B$10:$B$14,B37,$AY$10:$AY$14))) ->  | K37: =IF($B37<>"PRC_RESID","",IF(K$7=2005+OFFSET(AGR!$B$49,$AX37,SUMIF($B$10:$B$14,"NCAP_TLIFE",$AY$10:$AY$14)),0,"")) ->  | L37: =IF($B37<>"PRC_RESID","",IF(L$7=2005+OFFSET(AGR!$B$49,$AX37,SUMIF($B$10:$B$14,"NCAP_TLIFE",$AY$10:$AY$14)),0,"")) ->  | M37: =IF($B37<>"PRC_RESID","",IF(M$7=2005+OFFSET(AGR!$B$49,$AX37,SUMIF($B$10:$B$14,"NCAP_TLIFE",$AY$10:$AY$14)),0,"")) ->  | N37: =IF($B37<>"PRC_RESID","",IF(N$7=2005+OFFSET(AGR!$B$49,$AX37,SUMIF($B$10:$B$14,"NCAP_TLIFE",$AY$10:$AY$14)),0,"")) ->  | O37: =IF($B37<>"PRC_RESID","",IF(O$7=2005+OFFSET(AGR!$B$49,$AX37,SUMIF($B$10:$B$14,"NCAP_TLIFE",$AY$10:$AY$14)),0,"")) ->  | P37: =IF($B37<>"PRC_RESID","",IF(P$7=2005+OFFSET(AGR!$B$49,$AX37,SUMIF($B$10:$B$14,"NCAP_TLIFE",$AY$10:$AY$14)),0,"")) ->  | Q37: =IF($B37<>"PRC_RESID","",IF(Q$7=2005+OFFSET(AGR!$B$49,$AX37,SUMIF($B$10:$B$14,"NCAP_TLIFE",$AY$10:$AY$14)),0,"")) ->  | R37: =IF($B37<>"PRC_RESID","",IF(R$7=2005+OFFSET(AGR!$B$49,$AX37,SUMIF($B$10:$B$14,"NCAP_TLIFE",$AY$10:$AY$14)),0,"")) ->  | S37: =IF($B37<>"PRC_RESID","",IF(S$7=2005+OFFSET(AGR!$B$49,$AX37,SUMIF($B$10:$B$14,"NCAP_TLIFE",$AY$10:$AY$14)),0,"")) ->  | T37: =IF($B37<>"PRC_RESID","",IF(T$7=2005+OFFSET(AGR!$B$49,$AX37,SUMIF($B$10:$B$14,"NCAP_TLIFE",$AY$10:$AY$14)),0,"")) ->  | U37: =IF($B37<>"PRC_RESID","",IF(U$7=2005+OFFSET(AGR!$B$49,$AX37,SUMIF($B$10:$B$14,"NCAP_TLIFE",$AY$10:$AY$14)),0,"")) ->  | V37: =IF($B37<>"PRC_RESID","",IF(V$7=2005+OFFSET(AGR!$B$49,$AX37,SUMIF($B$10:$B$14,"NCAP_TLIFE",$AY$10:$AY$14)),0,"")) ->  | W37: =IF($B37<>"PRC_RESID","",IF(W$7=2005+OFFSET(AGR!$B$49,$AX37,SUMIF($B$10:$B$14,"NCAP_TLIFE",$AY$10:$AY$14)),0,"")) ->  | X37: =IF($B37<>"PRC_RESID","",IF(X$7=2005+OFFSET(AGR!$B$49,$AX37,SUMIF($B$10:$B$14,"NCAP_TLIFE",$AY$10:$AY$14)),0,"")) ->  | Y37: =IF($B37<>"PRC_RESID","",IF(Y$7=2005+OFFSET(AGR!$B$49,$AX37,SUMIF($B$10:$B$14,"NCAP_TLIFE",$AY$10:$AY$14)),0,"")) ->  | Z37: =IF($B37<>"PRC_RESID","",IF(Z$7=2005+OFFSET(AGR!$B$49,$AX37,SUMIF($B$10:$B$14,"NCAP_TLIFE",$AY$10:$AY$14)),0,"")) ->  | AA37: =IF($B37<>"PRC_RESID","",IF(AA$7=2005+OFFSET(AGR!$B$49,$AX37,SUMIF($B$10:$B$14,"NCAP_TLIFE",$AY$10:$AY$14)),0,"")) ->  | AB37: =IF($B37<>"PRC_RESID","",IF(AB$7=2005+OFFSET(AGR!$B$49,$AX37,SUMIF($B$10:$B$14,"NCAP_TLIFE",$AY$10:$AY$14)),0,"")) ->  | AC37: =IF($B37<>"PRC_RESID","",IF(AC$7=2005+OFFSET(AGR!$B$49,$AX37,SUMIF($B$10:$B$14,"NCAP_TLIFE",$AY$10:$AY$14)),0,"")) ->  | AD37: =IF($B37<>"PRC_RESID","",IF(AD$7=2005+OFFSET(AGR!$B$49,$AX37,SUMIF($B$10:$B$14,"NCAP_TLIFE",$AY$10:$AY$14)),0,"")) ->  | AE37: =IF($B37<>"PRC_RESID","",IF(AE$7=2005+OFFSET(AGR!$B$49,$AX37,SUMIF($B$10:$B$14,"NCAP_TLIFE",$AY$10:$AY$14)),0,"")) ->  | AF37: =IF($B37<>"PRC_RESID","",IF(AF$7=2005+OFFSET(AGR!$B$49,$AX37,SUMIF($B$10:$B$14,"NCAP_TLIFE",$AY$10:$AY$14)),0,"")) ->  | AG37: =IF($B37<>"PRC_RESID","",IF(AG$7=2005+OFFSET(AGR!$B$49,$AX37,SUMIF($B$10:$B$14,"NCAP_TLIFE",$AY$10:$AY$14)),0,"")) ->  | AH37: =IF($B37<>"PRC_RESID","",IF(AH$7=2005+OFFSET(AGR!$B$49,$AX37,SUMIF($B$10:$B$14,"NCAP_TLIFE",$AY$10:$AY$14)),0,"")) ->  | AM37: =IF($B37<>"PRC_RESID","",IF(AM$7=2005+OFFSET(AGR!$B$49,$AX37,SUMIF($B$10:$B$14,"NCAP_TLIFE",$AY$10:$AY$14)),0,"")) ->  | AR37: =IF($B37<>"PRC_RESID","",IF(AR$7=2005+OFFSET(AGR!$B$49,$AX37,SUMIF($B$10:$B$14,"NCAP_TLIFE",$AY$10:$AY$14)),0,"")) ->  | AS37: =IF($B37<>"PRC_RESID","",IF(AS$7=2005+OFFSET(AGR!$B$49,$AX37,SUMIF($B$10:$B$14,"NCAP_TLIFE",$AY$10:$AY$14)),0,"")) ->  | AT37: =IF($B37<>"PRC_RESID","",IF(AT$7=2005+OFFSET(AGR!$B$49,$AX37,SUMIF($B$10:$B$14,"NCAP_TLIFE",$AY$10:$AY$14)),0,"")) ->  | AU37: =IF($B37<>"PRC_RESID","",IF(AU$7=2005+OFFSET(AGR!$B$49,$AX37,SUMIF($B$10:$B$14,"NCAP_TLIFE",$AY$10:$AY$14)),0,"")) ->  | AW37: =IF(AX36=AGR!$W$72,AW36+1,AW36) -> 1 | AX37: 22
A38: =IF(LEFT(OFFSET(AGR!$A$49,AX38,0),2)="\I","*","") -> * | C38: =IF($A38="*","",OFFSET(AGR!$B$49,AX38,0)) ->  | J38: =IF($A38="*","",OFFSET(AGR!$B$49,AX38,SUMIF($B$10:$B$14,B38,$AY$10:$AY$14))) ->  | K38: =IF($B38<>"PRC_RESID","",IF(K$7=2005+OFFSET(AGR!$B$49,$AX38,SUMIF($B$10:$B$14,"NCAP_TLIFE",$AY$10:$AY$14)),0,"")) ->  | L38: =IF($B38<>"PRC_RESID","",IF(L$7=2005+OFFSET(AGR!$B$49,$AX38,SUMIF($B$10:$B$14,"NCAP_TLIFE",$AY$10:$AY$14)),0,"")) ->  | M38: =IF($B38<>"PRC_RESID","",IF(M$7=2005+OFFSET(AGR!$B$49,$AX38,SUMIF($B$10:$B$14,"NCAP_TLIFE",$AY$10:$AY$14)),0,"")) ->  | N38: =IF($B38<>"PRC_RESID","",IF(N$7=2005+OFFSET(AGR!$B$49,$AX38,SUMIF($B$10:$B$14,"NCAP_TLIFE",$AY$10:$AY$14)),0,"")) ->  | O38: =IF($B38<>"PRC_RESID","",IF(O$7=2005+OFFSET(AGR!$B$49,$AX38,SUMIF($B$10:$B$14,"NCAP_TLIFE",$AY$10:$AY$14)),0,"")) ->  | P38: =IF($B38<>"PRC_RESID","",IF(P$7=2005+OFFSET(AGR!$B$49,$AX38,SUMIF($B$10:$B$14,"NCAP_TLIFE",$AY$10:$AY$14)),0,"")) ->  | Q38: =IF($B38<>"PRC_RESID","",IF(Q$7=2005+OFFSET(AGR!$B$49,$AX38,SUMIF($B$10:$B$14,"NCAP_TLIFE",$AY$10:$AY$14)),0,"")) ->  | R38: =IF($B38<>"PRC_RESID","",IF(R$7=2005+OFFSET(AGR!$B$49,$AX38,SUMIF($B$10:$B$14,"NCAP_TLIFE",$AY$10:$AY$14)),0,"")) ->  | S38: =IF($B38<>"PRC_RESID","",IF(S$7=2005+OFFSET(AGR!$B$49,$AX38,SUMIF($B$10:$B$14,"NCAP_TLIFE",$AY$10:$AY$14)),0,"")) ->  | T38: =IF($B38<>"PRC_RESID","",IF(T$7=2005+OFFSET(AGR!$B$49,$AX38,SUMIF($B$10:$B$14,"NCAP_TLIFE",$AY$10:$AY$14)),0,"")) ->  | U38: =IF($B38<>"PRC_RESID","",IF(U$7=2005+OFFSET(AGR!$B$49,$AX38,SUMIF($B$10:$B$14,"NCAP_TLIFE",$AY$10:$AY$14)),0,"")) ->  | V38: =IF($B38<>"PRC_RESID","",IF(V$7=2005+OFFSET(AGR!$B$49,$AX38,SUMIF($B$10:$B$14,"NCAP_TLIFE",$AY$10:$AY$14)),0,"")) ->  | W38: =IF($B38<>"PRC_RESID","",IF(W$7=2005+OFFSET(AGR!$B$49,$AX38,SUMIF($B$10:$B$14,"NCAP_TLIFE",$AY$10:$AY$14)),0,"")) ->  | X38: =IF($B38<>"PRC_RESID","",IF(X$7=2005+OFFSET(AGR!$B$49,$AX38,SUMIF($B$10:$B$14,"NCAP_TLIFE",$AY$10:$AY$14)),0,"")) ->  | Y38: =IF($B38<>"PRC_RESID","",IF(Y$7=2005+OFFSET(AGR!$B$49,$AX38,SUMIF($B$10:$B$14,"NCAP_TLIFE",$AY$10:$AY$14)),0,"")) ->  | Z38: =IF($B38<>"PRC_RESID","",IF(Z$7=2005+OFFSET(AGR!$B$49,$AX38,SUMIF($B$10:$B$14,"NCAP_TLIFE",$AY$10:$AY$14)),0,"")) ->  | AA38: =IF($B38<>"PRC_RESID","",IF(AA$7=2005+OFFSET(AGR!$B$49,$AX38,SUMIF($B$10:$B$14,"NCAP_TLIFE",$AY$10:$AY$14)),0,"")) ->  | AB38: =IF($B38<>"PRC_RESID","",IF(AB$7=2005+OFFSET(AGR!$B$49,$AX38,SUMIF($B$10:$B$14,"NCAP_TLIFE",$AY$10:$AY$14)),0,"")) ->  | AC38: =IF($B38<>"PRC_RESID","",IF(AC$7=2005+OFFSET(AGR!$B$49,$AX38,SUMIF($B$10:$B$14,"NCAP_TLIFE",$AY$10:$AY$14)),0,"")) ->  | AD38: =IF($B38<>"PRC_RESID","",IF(AD$7=2005+OFFSET(AGR!$B$49,$AX38,SUMIF($B$10:$B$14,"NCAP_TLIFE",$AY$10:$AY$14)),0,"")) ->  | AE38: =IF($B38<>"PRC_RESID","",IF(AE$7=2005+OFFSET(AGR!$B$49,$AX38,SUMIF($B$10:$B$14,"NCAP_TLIFE",$AY$10:$AY$14)),0,"")) ->  | AF38: =IF($B38<>"PRC_RESID","",IF(AF$7=2005+OFFSET(AGR!$B$49,$AX38,SUMIF($B$10:$B$14,"NCAP_TLIFE",$AY$10:$AY$14)),0,"")) ->  | AG38: =IF($B38<>"PRC_RESID","",IF(AG$7=2005+OFFSET(AGR!$B$49,$AX38,SUMIF($B$10:$B$14,"NCAP_TLIFE",$AY$10:$AY$14)),0,"")) ->  | AH38: =IF($B38<>"PRC_RESID","",IF(AH$7=2005+OFFSET(AGR!$B$49,$AX38,SUMIF($B$10:$B$14,"NCAP_TLIFE",$AY$10:$AY$14)),0,"")) ->  | AM38: =IF($B38<>"PRC_RESID","",IF(AM$7=2005+OFFSET(AGR!$B$49,$AX38,SUMIF($B$10:$B$14,"NCAP_TLIFE",$AY$10:$AY$14)),0,"")) ->  | AR38: =IF($B38<>"PRC_RESID","",IF(AR$7=2005+OFFSET(AGR!$B$49,$AX38,SUMIF($B$10:$B$14,"NCAP_TLIFE",$AY$10:$AY$14)),0,"")) ->  | AS38: =IF($B38<>"PRC_RESID","",IF(AS$7=2005+OFFSET(AGR!$B$49,$AX38,SUMIF($B$10:$B$14,"NCAP_TLIFE",$AY$10:$AY$14)),0,"")) ->  | AT38: =IF($B38<>"PRC_RESID","",IF(AT$7=2005+OFFSET(AGR!$B$49,$AX38,SUMIF($B$10:$B$14,"NCAP_TLIFE",$AY$10:$AY$14)),0,"")) ->  | AU38: =IF($B38<>"PRC_RESID","",IF(AU$7=2005+OFFSET(AGR!$B$49,$AX38,SUMIF($B$10:$B$14,"NCAP_TLIFE",$AY$10:$AY$14)),0,"")) ->  | AW38: =IF(AX37=AGR!$W$72,AW37+1,AW37) -> 1 | AX38: 23
A39: =IF(LEFT(OFFSET(AGR!$A$49,AX39,0),2)="\I","*","") ->  | B39: NCAP_AFA | C39: =IF($A39="*","",OFFSET(AGR!$B$49,AX39,0)) -> AHCOA-E | D39: - | E39: - | F39: - | G39: - | H39: UP | I39: 0 | J39: =IF($A39="*","",OFFSET(AGR!$B$49,AX39,SUMIF($B$10:$B$14,B39,$AY$10:$AY$14))) -> 0.5513 | K39: =IF($B39<>"PRC_RESID","",IF(K$7=2005+OFFSET(AGR!$B$49,$AX39,SUMIF($B$10:$B$14,"NCAP_TLIFE",$AY$10:$AY$14)),0,"")) ->  | L39: =IF($B39<>"PRC_RESID","",IF(L$7=2005+OFFSET(AGR!$B$49,$AX39,SUMIF($B$10:$B$14,"NCAP_TLIFE",$AY$10:$AY$14)),0,"")) ->  | M39: =IF($B39<>"PRC_RESID","",IF(M$7=2005+OFFSET(AGR!$B$49,$AX39,SUMIF($B$10:$B$14,"NCAP_TLIFE",$AY$10:$AY$14)),0,"")) ->  | N39: =IF($B39<>"PRC_RESID","",IF(N$7=2005+OFFSET(AGR!$B$49,$AX39,SUMIF($B$10:$B$14,"NCAP_TLIFE",$AY$10:$AY$14)),0,"")) ->  | O39: =IF($B39<>"PRC_RESID","",IF(O$7=2005+OFFSET(AGR!$B$49,$AX39,SUMIF($B$10:$B$14,"NCAP_TLIFE",$AY$10:$AY$14)),0,"")) ->  | P39: =IF($B39<>"PRC_RESID","",IF(P$7=2005+OFFSET(AGR!$B$49,$AX39,SUMIF($B$10:$B$14,"NCAP_TLIFE",$AY$10:$AY$14)),0,"")) ->  | Q39: =IF($B39<>"PRC_RESID","",IF(Q$7=2005+OFFSET(AGR!$B$49,$AX39,SUMIF($B$10:$B$14,"NCAP_TLIFE",$AY$10:$AY$14)),0,"")) ->  | R39: =IF($B39<>"PRC_RESID","",IF(R$7=2005+OFFSET(AGR!$B$49,$AX39,SUMIF($B$10:$B$14,"NCAP_TLIFE",$AY$10:$AY$14)),0,"")) ->  | S39: =IF($B39<>"PRC_RESID","",IF(S$7=2005+OFFSET(AGR!$B$49,$AX39,SUMIF($B$10:$B$14,"NCAP_TLIFE",$AY$10:$AY$14)),0,"")) ->  | T39: =IF($B39<>"PRC_RESID","",IF(T$7=2005+OFFSET(AGR!$B$49,$AX39,SUMIF($B$10:$B$14,"NCAP_TLIFE",$AY$10:$AY$14)),0,"")) ->  | U39: =IF($B39<>"PRC_RESID","",IF(U$7=2005+OFFSET(AGR!$B$49,$AX39,SUMIF($B$10:$B$14,"NCAP_TLIFE",$AY$10:$AY$14)),0,"")) ->  | V39: =IF($B39<>"PRC_RESID","",IF(V$7=2005+OFFSET(AGR!$B$49,$AX39,SUMIF($B$10:$B$14,"NCAP_TLIFE",$AY$10:$AY$14)),0,"")) ->  | W39: =IF($B39<>"PRC_RESID","",IF(W$7=2005+OFFSET(AGR!$B$49,$AX39,SUMIF($B$10:$B$14,"NCAP_TLIFE",$AY$10:$AY$14)),0,"")) ->  | X39: =IF($B39<>"PRC_RESID","",IF(X$7=2005+OFFSET(AGR!$B$49,$AX39,SUMIF($B$10:$B$14,"NCAP_TLIFE",$AY$10:$AY$14)),0,"")) ->  | Y39: =IF($B39<>"PRC_RESID","",IF(Y$7=2005+OFFSET(AGR!$B$49,$AX39,SUMIF($B$10:$B$14,"NCAP_TLIFE",$AY$10:$AY$14)),0,"")) ->  | Z39: =IF($B39<>"PRC_RESID","",IF(Z$7=2005+OFFSET(AGR!$B$49,$AX39,SUMIF($B$10:$B$14,"NCAP_TLIFE",$AY$10:$AY$14)),0,"")) ->  | AA39: =IF($B39<>"PRC_RESID","",IF(AA$7=2005+OFFSET(AGR!$B$49,$AX39,SUMIF($B$10:$B$14,"NCAP_TLIFE",$AY$10:$AY$14)),0,"")) ->  | AB39: =IF($B39<>"PRC_RESID","",IF(AB$7=2005+OFFSET(AGR!$B$49,$AX39,SUMIF($B$10:$B$14,"NCAP_TLIFE",$AY$10:$AY$14)),0,"")) ->  | AC39: =IF($B39<>"PRC_RESID","",IF(AC$7=2005+OFFSET(AGR!$B$49,$AX39,SUMIF($B$10:$B$14,"NCAP_TLIFE",$AY$10:$AY$14)),0,"")) ->  | AD39: =IF($B39<>"PRC_RESID","",IF(AD$7=2005+OFFSET(AGR!$B$49,$AX39,SUMIF($B$10:$B$14,"NCAP_TLIFE",$AY$10:$AY$14)),0,"")) ->  | AE39: =IF($B39<>"PRC_RESID","",IF(AE$7=2005+OFFSET(AGR!$B$49,$AX39,SUMIF($B$10:$B$14,"NCAP_TLIFE",$AY$10:$AY$14)),0,"")) ->  | AF39: =IF($B39<>"PRC_RESID","",IF(AF$7=2005+OFFSET(AGR!$B$49,$AX39,SUMIF($B$10:$B$14,"NCAP_TLIFE",$AY$10:$AY$14)),0,"")) ->  | AG39: =IF($B39<>"PRC_RESID","",IF(AG$7=2005+OFFSET(AGR!$B$49,$AX39,SUMIF($B$10:$B$14,"NCAP_TLIFE",$AY$10:$AY$14)),0,"")) ->  | AH39: =IF($B39<>"PRC_RESID","",IF(AH$7=2005+OFFSET(AGR!$B$49,$AX39,SUMIF($B$10:$B$14,"NCAP_TLIFE",$AY$10:$AY$14)),0,"")) ->  | AM39: =IF($B39<>"PRC_RESID","",IF(AM$7=2005+OFFSET(AGR!$B$49,$AX39,SUMIF($B$10:$B$14,"NCAP_TLIFE",$AY$10:$AY$14)),0,"")) ->  | AR39: =IF($B39<>"PRC_RESID","",IF(AR$7=2005+OFFSET(AGR!$B$49,$AX39,SUMIF($B$10:$B$14,"NCAP_TLIFE",$AY$10:$AY$14)),0,"")) ->  | AS39: =IF($B39<>"PRC_RESID","",IF(AS$7=2005+OFFSET(AGR!$B$49,$AX39,SUMIF($B$10:$B$14,"NCAP_TLIFE",$AY$10:$AY$14)),0,"")) ->  | AT39: =IF($B39<>"PRC_RESID","",IF(AT$7=2005+OFFSET(AGR!$B$49,$AX39,SUMIF($B$10:$B$14,"NCAP_TLIFE",$AY$10:$AY$14)),0,"")) ->  | AU39: =IF($B39<>"PRC_RESID","",IF(AU$7=2005+OFFSET(AGR!$B$49,$AX39,SUMIF($B$10:$B$14,"NCAP_TLIFE",$AY$10:$AY$14)),0,"")) ->  | AW39: =IF(AX38=AGR!$W$72,AW38+1,AW38) -> 2 | AX39: 1
A40: =IF(LEFT(OFFSET(AGR!$A$49,AX40,0),2)="\I","*","") ->  | B40: NCAP_AFA | C40: =IF($A40="*","",OFFSET(AGR!$B$49,AX40,0)) -> AHOHF-E | D40: - | E40: - | F40: - | G40: - | H40: UP | I40: 0 | J40: =IF($A40="*","",OFFSET(AGR!$B$49,AX40,SUMIF($B$10:$B$14,B40,$AY$10:$AY$14))) -> 0.5513 | K40: =IF($B40<>"PRC_RESID","",IF(K$7=2005+OFFSET(AGR!$B$49,$AX40,SUMIF($B$10:$B$14,"NCAP_TLIFE",$AY$10:$AY$14)),0,"")) ->  | L40: =IF($B40<>"PRC_RESID","",IF(L$7=2005+OFFSET(AGR!$B$49,$AX40,SUMIF($B$10:$B$14,"NCAP_TLIFE",$AY$10:$AY$14)),0,"")) ->  | M40: =IF($B40<>"PRC_RESID","",IF(M$7=2005+OFFSET(AGR!$B$49,$AX40,SUMIF($B$10:$B$14,"NCAP_TLIFE",$AY$10:$AY$14)),0,"")) ->  | N40: =IF($B40<>"PRC_RESID","",IF(N$7=2005+OFFSET(AGR!$B$49,$AX40,SUMIF($B$10:$B$14,"NCAP_TLIFE",$AY$10:$AY$14)),0,"")) ->  | O40: =IF($B40<>"PRC_RESID","",IF(O$7=2005+OFFSET(AGR!$B$49,$AX40,SUMIF($B$10:$B$14,"NCAP_TLIFE",$AY$10:$AY$14)),0,"")) ->  | P40: =IF($B40<>"PRC_RESID","",IF(P$7=2005+OFFSET(AGR!$B$49,$AX40,SUMIF($B$10:$B$14,"NCAP_TLIFE",$AY$10:$AY$14)),0,"")) ->  | Q40: =IF($B40<>"PRC_RESID","",IF(Q$7=2005+OFFSET(AGR!$B$49,$AX40,SUMIF($B$10:$B$14,"NCAP_TLIFE",$AY$10:$AY$14)),0,"")) ->  | R40: =IF($B40<>"PRC_RESID","",IF(R$7=2005+OFFSET(AGR!$B$49,$AX40,SUMIF($B$10:$B$14,"NCAP_TLIFE",$AY$10:$AY$14)),0,"")) ->  | S40: =IF($B40<>"PRC_RESID","",IF(S$7=2005+OFFSET(AGR!$B$49,$AX40,SUMIF($B$10:$B$14,"NCAP_TLIFE",$AY$10:$AY$14)),0,"")) ->  | T40: =IF($B40<>"PRC_RESID","",IF(T$7=2005+OFFSET(AGR!$B$49,$AX40,SUMIF($B$10:$B$14,"NCAP_TLIFE",$AY$10:$AY$14)),0,"")) ->  | U40: =IF($B40<>"PRC_RESID","",IF(U$7=2005+OFFSET(AGR!$B$49,$AX40,SUMIF($B$10:$B$14,"NCAP_TLIFE",$AY$10:$AY$14)),0,"")) ->  | V40: =IF($B40<>"PRC_RESID","",IF(V$7=2005+OFFSET(AGR!$B$49,$AX40,SUMIF($B$10:$B$14,"NCAP_TLIFE",$AY$10:$AY$14)),0,"")) ->  | W40: =IF($B40<>"PRC_RESID","",IF(W$7=2005+OFFSET(AGR!$B$49,$AX40,SUMIF($B$10:$B$14,"NCAP_TLIFE",$AY$10:$AY$14)),0,"")) ->  | X40: =IF($B40<>"PRC_RESID","",IF(X$7=2005+OFFSET(AGR!$B$49,$AX40,SUMIF($B$10:$B$14,"NCAP_TLIFE",$AY$10:$AY$14)),0,"")) ->  | Y40: =IF($B40<>"PRC_RESID","",IF(Y$7=2005+OFFSET(AGR!$B$49,$AX40,SUMIF($B$10:$B$14,"NCAP_TLIFE",$AY$10:$AY$14)),0,"")) ->  | Z40: =IF($B40<>"PRC_RESID","",IF(Z$7=2005+OFFSET(AGR!$B$49,$AX40,SUMIF($B$10:$B$14,"NCAP_TLIFE",$AY$10:$AY$14)),0,"")) ->  | AA40: =IF($B40<>"PRC_RESID","",IF(AA$7=2005+OFFSET(AGR!$B$49,$AX40,SUMIF($B$10:$B$14,"NCAP_TLIFE",$AY$10:$AY$14)),0,"")) ->  | AB40: =IF($B40<>"PRC_RESID","",IF(AB$7=2005+OFFSET(AGR!$B$49,$AX40,SUMIF($B$10:$B$14,"NCAP_TLIFE",$AY$10:$AY$14)),0,"")) ->  | AC40: =IF($B40<>"PRC_RESID","",IF(AC$7=2005+OFFSET(AGR!$B$49,$AX40,SUMIF($B$10:$B$14,"NCAP_TLIFE",$AY$10:$AY$14)),0,"")) ->  | AD40: =IF($B40<>"PRC_RESID","",IF(AD$7=2005+OFFSET(AGR!$B$49,$AX40,SUMIF($B$10:$B$14,"NCAP_TLIFE",$AY$10:$AY$14)),0,"")) ->  | AE40: =IF($B40<>"PRC_RESID","",IF(AE$7=2005+OFFSET(AGR!$B$49,$AX40,SUMIF($B$10:$B$14,"NCAP_TLIFE",$AY$10:$AY$14)),0,"")) ->  | AF40: =IF($B40<>"PRC_RESID","",IF(AF$7=2005+OFFSET(AGR!$B$49,$AX40,SUMIF($B$10:$B$14,"NCAP_TLIFE",$AY$10:$AY$14)),0,"")) ->  | AG40: =IF($B40<>"PRC_RESID","",IF(AG$7=2005+OFFSET(AGR!$B$49,$AX40,SUMIF($B$10:$B$14,"NCAP_TLIFE",$AY$10:$AY$14)),0,"")) ->  | AH40: =IF($B40<>"PRC_RESID","",IF(AH$7=2005+OFFSET(AGR!$B$49,$AX40,SUMIF($B$10:$B$14,"NCAP_TLIFE",$AY$10:$AY$14)),0,"")) ->  | AM40: =IF($B40<>"PRC_RESID","",IF(AM$7=2005+OFFSET(AGR!$B$49,$AX40,SUMIF($B$10:$B$14,"NCAP_TLIFE",$AY$10:$AY$14)),0,"")) ->  | AR40: =IF($B40<>"PRC_RESID","",IF(AR$7=2005+OFFSET(AGR!$B$49,$AX40,SUMIF($B$10:$B$14,"NCAP_TLIFE",$AY$10:$AY$14)),0,"")) ->  | AS40: =IF($B40<>"PRC_RESID","",IF(AS$7=2005+OFFSET(AGR!$B$49,$AX40,SUMIF($B$10:$B$14,"NCAP_TLIFE",$AY$10:$AY$14)),0,"")) ->  | AT40: =IF($B40<>"PRC_RESID","",IF(AT$7=2005+OFFSET(AGR!$B$49,$AX40,SUMIF($B$10:$B$14,"NCAP_TLIFE",$AY$10:$AY$14)),0,"")) ->  | AU40: =IF($B40<>"PRC_RESID","",IF(AU$7=2005+OFFSET(AGR!$B$49,$AX40,SUMIF($B$10:$B$14,"NCAP_TLIFE",$AY$10:$AY$14)),0,"")) ->  | AW40: =IF(AX39=AGR!$W$72,AW39+1,AW39) -> 2 | AX40: 2
A41: =IF(LEFT(OFFSET(AGR!$A$49,AX41,0),2)="\I","*","") ->  | B41: NCAP_AFA | C41: =IF($A41="*","",OFFSET(AGR!$B$49,AX41,0)) -> AHOKE-E | D41: - | E41: - | F41: - | G41: - | H41: UP | I41: 0 | J41: =IF($A41="*","",OFFSET(AGR!$B$49,AX41,SUMIF($B$10:$B$14,B41,$AY$10:$AY$14))) -> 0.5513 | K41: =IF($B41<>"PRC_RESID","",IF(K$7=2005+OFFSET(AGR!$B$49,$AX41,SUMIF($B$10:$B$14,"NCAP_TLIFE",$AY$10:$AY$14)),0,"")) ->  | L41: =IF($B41<>"PRC_RESID","",IF(L$7=2005+OFFSET(AGR!$B$49,$AX41,SUMIF($B$10:$B$14,"NCAP_TLIFE",$AY$10:$AY$14)),0,"")) ->  | M41: =IF($B41<>"PRC_RESID","",IF(M$7=2005+OFFSET(AGR!$B$49,$AX41,SUMIF($B$10:$B$14,"NCAP_TLIFE",$AY$10:$AY$14)),0,"")) ->  | N41: =IF($B41<>"PRC_RESID","",IF(N$7=2005+OFFSET(AGR!$B$49,$AX41,SUMIF($B$10:$B$14,"NCAP_TLIFE",$AY$10:$AY$14)),0,"")) ->  | O41: =IF($B41<>"PRC_RESID","",IF(O$7=2005+OFFSET(AGR!$B$49,$AX41,SUMIF($B$10:$B$14,"NCAP_TLIFE",$AY$10:$AY$14)),0,"")) ->  | P41: =IF($B41<>"PRC_RESID","",IF(P$7=2005+OFFSET(AGR!$B$49,$AX41,SUMIF($B$10:$B$14,"NCAP_TLIFE",$AY$10:$AY$14)),0,"")) ->  | Q41: =IF($B41<>"PRC_RESID","",IF(Q$7=2005+OFFSET(AGR!$B$49,$AX41,SUMIF($B$10:$B$14,"NCAP_TLIFE",$AY$10:$AY$14)),0,"")) ->  | R41: =IF($B41<>"PRC_RESID","",IF(R$7=2005+OFFSET(AGR!$B$49,$AX41,SUMIF($B$10:$B$14,"NCAP_TLIFE",$AY$10:$AY$14)),0,"")) ->  | S41: =IF($B41<>"PRC_RESID","",IF(S$7=2005+OFFSET(AGR!$B$49,$AX41,SUMIF($B$10:$B$14,"NCAP_TLIFE",$AY$10:$AY$14)),0,"")) ->  | T41: =IF($B41<>"PRC_RESID","",IF(T$7=2005+OFFSET(AGR!$B$49,$AX41,SUMIF($B$10:$B$14,"NCAP_TLIFE",$AY$10:$AY$14)),0,"")) ->  | U41: =IF($B41<>"PRC_RESID","",IF(U$7=2005+OFFSET(AGR!$B$49,$AX41,SUMIF($B$10:$B$14,"NCAP_TLIFE",$AY$10:$AY$14)),0,"")) ->  | V41: =IF($B41<>"PRC_RESID","",IF(V$7=2005+OFFSET(AGR!$B$49,$AX41,SUMIF($B$10:$B$14,"NCAP_TLIFE",$AY$10:$AY$14)),0,"")) ->  | W41: =IF($B41<>"PRC_RESID","",IF(W$7=2005+OFFSET(AGR!$B$49,$AX41,SUMIF($B$10:$B$14,"NCAP_TLIFE",$AY$10:$AY$14)),0,"")) ->  | X41: =IF($B41<>"PRC_RESID","",IF(X$7=2005+OFFSET(AGR!$B$49,$AX41,SUMIF($B$10:$B$14,"NCAP_TLIFE",$AY$10:$AY$14)),0,"")) ->  | Y41: =IF($B41<>"PRC_RESID","",IF(Y$7=2005+OFFSET(AGR!$B$49,$AX41,SUMIF($B$10:$B$14,"NCAP_TLIFE",$AY$10:$AY$14)),0,"")) ->  | Z41: =IF($B41<>"PRC_RESID","",IF(Z$7=2005+OFFSET(AGR!$B$49,$AX41,SUMIF($B$10:$B$14,"NCAP_TLIFE",$AY$10:$AY$14)),0,"")) ->  | AA41: =IF($B41<>"PRC_RESID","",IF(AA$7=2005+OFFSET(AGR!$B$49,$AX41,SUMIF($B$10:$B$14,"NCAP_TLIFE",$AY$10:$AY$14)),0,"")) ->  | AB41: =IF($B41<>"PRC_RESID","",IF(AB$7=2005+OFFSET(AGR!$B$49,$AX41,SUMIF($B$10:$B$14,"NCAP_TLIFE",$AY$10:$AY$14)),0,"")) ->  | AC41: =IF($B41<>"PRC_RESID","",IF(AC$7=2005+OFFSET(AGR!$B$49,$AX41,SUMIF($B$10:$B$14,"NCAP_TLIFE",$AY$10:$AY$14)),0,"")) ->  | AD41: =IF($B41<>"PRC_RESID","",IF(AD$7=2005+OFFSET(AGR!$B$49,$AX41,SUMIF($B$10:$B$14,"NCAP_TLIFE",$AY$10:$AY$14)),0,"")) ->  | AE41: =IF($B41<>"PRC_RESID","",IF(AE$7=2005+OFFSET(AGR!$B$49,$AX41,SUMIF($B$10:$B$14,"NCAP_TLIFE",$AY$10:$AY$14)),0,"")) ->  | AF41: =IF($B41<>"PRC_RESID","",IF(AF$7=2005+OFFSET(AGR!$B$49,$AX41,SUMIF($B$10:$B$14,"NCAP_TLIFE",$AY$10:$AY$14)),0,"")) ->  | AG41: =IF($B41<>"PRC_RESID","",IF(AG$7=2005+OFFSET(AGR!$B$49,$AX41,SUMIF($B$10:$B$14,"NCAP_TLIFE",$AY$10:$AY$14)),0,"")) ->  | AH41: =IF($B41<>"PRC_RESID","",IF(AH$7=2005+OFFSET(AGR!$B$49,$AX41,SUMIF($B$10:$B$14,"NCAP_TLIFE",$AY$10:$AY$14)),0,"")) ->  | AM41: =IF($B41<>"PRC_RESID","",IF(AM$7=2005+OFFSET(AGR!$B$49,$AX41,SUMIF($B$10:$B$14,"NCAP_TLIFE",$AY$10:$AY$14)),0,"")) ->  | AR41: =IF($B41<>"PRC_RESID","",IF(AR$7=2005+OFFSET(AGR!$B$49,$AX41,SUMIF($B$10:$B$14,"NCAP_TLIFE",$AY$10:$AY$14)),0,"")) ->  | AS41: =IF($B41<>"PRC_RESID","",IF(AS$7=2005+OFFSET(AGR!$B$49,$AX41,SUMIF($B$10:$B$14,"NCAP_TLIFE",$AY$10:$AY$14)),0,"")) ->  | AT41: =IF($B41<>"PRC_RESID","",IF(AT$7=2005+OFFSET(AGR!$B$49,$AX41,SUMIF($B$10:$B$14,"NCAP_TLIFE",$AY$10:$AY$14)),0,"")) ->  | AU41: =IF($B41<>"PRC_RESID","",IF(AU$7=2005+OFFSET(AGR!$B$49,$AX41,SUMIF($B$10:$B$14,"NCAP_TLIFE",$AY$10:$AY$14)),0,"")) ->  | AW41: =IF(AX40=AGR!$W$72,AW40+1,AW40) -> 2 | AX41: 3
A42: =IF(LEFT(OFFSET(AGR!$A$49,AX42,0),2)="\I","*","") ->  | B42: NCAP_AFA | C42: =IF($A42="*","",OFFSET(AGR!$B$49,AX42,0)) -> AHOLP-E | D42: - | E42: - | F42: - | G42: - | H42: UP | I42: 0 | J42: =IF($A42="*","",OFFSET(AGR!$B$49,AX42,SUMIF($B$10:$B$14,B42,$AY$10:$AY$14))) -> 0.5513 | K42: =IF($B42<>"PRC_RESID","",IF(K$7=2005+OFFSET(AGR!$B$49,$AX42,SUMIF($B$10:$B$14,"NCAP_TLIFE",$AY$10:$AY$14)),0,"")) ->  | L42: =IF($B42<>"PRC_RESID","",IF(L$7=2005+OFFSET(AGR!$B$49,$AX42,SUMIF($B$10:$B$14,"NCAP_TLIFE",$AY$10:$AY$14)),0,"")) ->  | M42: =IF($B42<>"PRC_RESID","",IF(M$7=2005+OFFSET(AGR!$B$49,$AX42,SUMIF($B$10:$B$14,"NCAP_TLIFE",$AY$10:$AY$14)),0,"")) ->  | N42: =IF($B42<>"PRC_RESID","",IF(N$7=2005+OFFSET(AGR!$B$49,$AX42,SUMIF($B$10:$B$14,"NCAP_TLIFE",$AY$10:$AY$14)),0,"")) ->  | O42: =IF($B42<>"PRC_RESID","",IF(O$7=2005+OFFSET(AGR!$B$49,$AX42,SUMIF($B$10:$B$14,"NCAP_TLIFE",$AY$10:$AY$14)),0,"")) ->  | P42: =IF($B42<>"PRC_RESID","",IF(P$7=2005+OFFSET(AGR!$B$49,$AX42,SUMIF($B$10:$B$14,"NCAP_TLIFE",$AY$10:$AY$14)),0,"")) ->  | Q42: =IF($B42<>"PRC_RESID","",IF(Q$7=2005+OFFSET(AGR!$B$49,$AX42,SUMIF($B$10:$B$14,"NCAP_TLIFE",$AY$10:$AY$14)),0,"")) ->  | R42: =IF($B42<>"PRC_RESID","",IF(R$7=2005+OFFSET(AGR!$B$49,$AX42,SUMIF($B$10:$B$14,"NCAP_TLIFE",$AY$10:$AY$14)),0,"")) ->  | S42: =IF($B42<>"PRC_RESID","",IF(S$7=2005+OFFSET(AGR!$B$49,$AX42,SUMIF($B$10:$B$14,"NCAP_TLIFE",$AY$10:$AY$14)),0,"")) ->  | T42: =IF($B42<>"PRC_RESID","",IF(T$7=2005+OFFSET(AGR!$B$49,$AX42,SUMIF($B$10:$B$14,"NCAP_TLIFE",$AY$10:$AY$14)),0,"")) ->  | U42: =IF($B42<>"PRC_RESID","",IF(U$7=2005+OFFSET(AGR!$B$49,$AX42,SUMIF($B$10:$B$14,"NCAP_TLIFE",$AY$10:$AY$14)),0,"")) ->  | V42: =IF($B42<>"PRC_RESID","",IF(V$7=2005+OFFSET(AGR!$B$49,$AX42,SUMIF($B$10:$B$14,"NCAP_TLIFE",$AY$10:$AY$14)),0,"")) ->  | W42: =IF($B42<>"PRC_RESID","",IF(W$7=2005+OFFSET(AGR!$B$49,$AX42,SUMIF($B$10:$B$14,"NCAP_TLIFE",$AY$10:$AY$14)),0,"")) ->  | X42: =IF($B42<>"PRC_RESID","",IF(X$7=2005+OFFSET(AGR!$B$49,$AX42,SUMIF($B$10:$B$14,"NCAP_TLIFE",$AY$10:$AY$14)),0,"")) ->  | Y42: =IF($B42<>"PRC_RESID","",IF(Y$7=2005+OFFSET(AGR!$B$49,$AX42,SUMIF($B$10:$B$14,"NCAP_TLIFE",$AY$10:$AY$14)),0,"")) ->  | Z42: =IF($B42<>"PRC_RESID","",IF(Z$7=2005+OFFSET(AGR!$B$49,$AX42,SUMIF($B$10:$B$14,"NCAP_TLIFE",$AY$10:$AY$14)),0,"")) ->  | AA42: =IF($B42<>"PRC_RESID","",IF(AA$7=2005+OFFSET(AGR!$B$49,$AX42,SUMIF($B$10:$B$14,"NCAP_TLIFE",$AY$10:$AY$14)),0,"")) ->  | AB42: =IF($B42<>"PRC_RESID","",IF(AB$7=2005+OFFSET(AGR!$B$49,$AX42,SUMIF($B$10:$B$14,"NCAP_TLIFE",$AY$10:$AY$14)),0,"")) ->  | AC42: =IF($B42<>"PRC_RESID","",IF(AC$7=2005+OFFSET(AGR!$B$49,$AX42,SUMIF($B$10:$B$14,"NCAP_TLIFE",$AY$10:$AY$14)),0,"")) ->  | AD42: =IF($B42<>"PRC_RESID","",IF(AD$7=2005+OFFSET(AGR!$B$49,$AX42,SUMIF($B$10:$B$14,"NCAP_TLIFE",$AY$10:$AY$14)),0,"")) ->  | AE42: =IF($B42<>"PRC_RESID","",IF(AE$7=2005+OFFSET(AGR!$B$49,$AX42,SUMIF($B$10:$B$14,"NCAP_TLIFE",$AY$10:$AY$14)),0,"")) ->  | AF42: =IF($B42<>"PRC_RESID","",IF(AF$7=2005+OFFSET(AGR!$B$49,$AX42,SUMIF($B$10:$B$14,"NCAP_TLIFE",$AY$10:$AY$14)),0,"")) ->  | AG42: =IF($B42<>"PRC_RESID","",IF(AG$7=2005+OFFSET(AGR!$B$49,$AX42,SUMIF($B$10:$B$14,"NCAP_TLIFE",$AY$10:$AY$14)),0,"")) ->  | AH42: =IF($B42<>"PRC_RESID","",IF(AH$7=2005+OFFSET(AGR!$B$49,$AX42,SUMIF($B$10:$B$14,"NCAP_TLIFE",$AY$10:$AY$14)),0,"")) ->  | AM42: =IF($B42<>"PRC_RESID","",IF(AM$7=2005+OFFSET(AGR!$B$49,$AX42,SUMIF($B$10:$B$14,"NCAP_TLIFE",$AY$10:$AY$14)),0,"")) ->  | AR42: =IF($B42<>"PRC_RESID","",IF(AR$7=2005+OFFSET(AGR!$B$49,$AX42,SUMIF($B$10:$B$14,"NCAP_TLIFE",$AY$10:$AY$14)),0,"")) ->  | AS42: =IF($B42<>"PRC_RESID","",IF(AS$7=2005+OFFSET(AGR!$B$49,$AX42,SUMIF($B$10:$B$14,"NCAP_TLIFE",$AY$10:$AY$14)),0,"")) ->  | AT42: =IF($B42<>"PRC_RESID","",IF(AT$7=2005+OFFSET(AGR!$B$49,$AX42,SUMIF($B$10:$B$14,"NCAP_TLIFE",$AY$10:$AY$14)),0,"")) ->  | AU42: =IF($B42<>"PRC_RESID","",IF(AU$7=2005+OFFSET(AGR!$B$49,$AX42,SUMIF($B$10:$B$14,"NCAP_TLIFE",$AY$10:$AY$14)),0,"")) ->  | AW42: =IF(AX41=AGR!$W$72,AW41+1,AW41) -> 2 | AX42: 4
A43: =IF(LEFT(OFFSET(AGR!$A$49,AX43,0),2)="\I","*","") ->  | B43: NCAP_AFA | C43: =IF($A43="*","",OFFSET(AGR!$B$49,AX43,0)) -> AHELC-E | D43: - | E43: - | F43: - | G43: - | H43: UP | I43: 0 | J43: =IF($A43="*","",OFFSET(AGR!$B$49,AX43,SUMIF($B$10:$B$14,B43,$AY$10:$AY$14))) -> 0.5513 | K43: =IF($B43<>"PRC_RESID","",IF(K$7=2005+OFFSET(AGR!$B$49,$AX43,SUMIF($B$10:$B$14,"NCAP_TLIFE",$AY$10:$AY$14)),0,"")) ->  | L43: =IF($B43<>"PRC_RESID","",IF(L$7=2005+OFFSET(AGR!$B$49,$AX43,SUMIF($B$10:$B$14,"NCAP_TLIFE",$AY$10:$AY$14)),0,"")) ->  | M43: =IF($B43<>"PRC_RESID","",IF(M$7=2005+OFFSET(AGR!$B$49,$AX43,SUMIF($B$10:$B$14,"NCAP_TLIFE",$AY$10:$AY$14)),0,"")) ->  | N43: =IF($B43<>"PRC_RESID","",IF(N$7=2005+OFFSET(AGR!$B$49,$AX43,SUMIF($B$10:$B$14,"NCAP_TLIFE",$AY$10:$AY$14)),0,"")) ->  | O43: =IF($B43<>"PRC_RESID","",IF(O$7=2005+OFFSET(AGR!$B$49,$AX43,SUMIF($B$10:$B$14,"NCAP_TLIFE",$AY$10:$AY$14)),0,"")) ->  | P43: =IF($B43<>"PRC_RESID","",IF(P$7=2005+OFFSET(AGR!$B$49,$AX43,SUMIF($B$10:$B$14,"NCAP_TLIFE",$AY$10:$AY$14)),0,"")) ->  | Q43: =IF($B43<>"PRC_RESID","",IF(Q$7=2005+OFFSET(AGR!$B$49,$AX43,SUMIF($B$10:$B$14,"NCAP_TLIFE",$AY$10:$AY$14)),0,"")) ->  | R43: =IF($B43<>"PRC_RESID","",IF(R$7=2005+OFFSET(AGR!$B$49,$AX43,SUMIF($B$10:$B$14,"NCAP_TLIFE",$AY$10:$AY$14)),0,"")) ->  | S43: =IF($B43<>"PRC_RESID","",IF(S$7=2005+OFFSET(AGR!$B$49,$AX43,SUMIF($B$10:$B$14,"NCAP_TLIFE",$AY$10:$AY$14)),0,"")) ->  | T43: =IF($B43<>"PRC_RESID","",IF(T$7=2005+OFFSET(AGR!$B$49,$AX43,SUMIF($B$10:$B$14,"NCAP_TLIFE",$AY$10:$AY$14)),0,"")) ->  | U43: =IF($B43<>"PRC_RESID","",IF(U$7=2005+OFFSET(AGR!$B$49,$AX43,SUMIF($B$10:$B$14,"NCAP_TLIFE",$AY$10:$AY$14)),0,"")) ->  | V43: =IF($B43<>"PRC_RESID","",IF(V$7=2005+OFFSET(AGR!$B$49,$AX43,SUMIF($B$10:$B$14,"NCAP_TLIFE",$AY$10:$AY$14)),0,"")) ->  | W43: =IF($B43<>"PRC_RESID","",IF(W$7=2005+OFFSET(AGR!$B$49,$AX43,SUMIF($B$10:$B$14,"NCAP_TLIFE",$AY$10:$AY$14)),0,"")) ->  | X43: =IF($B43<>"PRC_RESID","",IF(X$7=2005+OFFSET(AGR!$B$49,$AX43,SUMIF($B$10:$B$14,"NCAP_TLIFE",$AY$10:$AY$14)),0,"")) ->  | Y43: =IF($B43<>"PRC_RESID","",IF(Y$7=2005+OFFSET(AGR!$B$49,$AX43,SUMIF($B$10:$B$14,"NCAP_TLIFE",$AY$10:$AY$14)),0,"")) ->  | Z43: =IF($B43<>"PRC_RESID","",IF(Z$7=2005+OFFSET(AGR!$B$49,$AX43,SUMIF($B$10:$B$14,"NCAP_TLIFE",$AY$10:$AY$14)),0,"")) ->  | AA43: =IF($B43<>"PRC_RESID","",IF(AA$7=2005+OFFSET(AGR!$B$49,$AX43,SUMIF($B$10:$B$14,"NCAP_TLIFE",$AY$10:$AY$14)),0,"")) ->  | AB43: =IF($B43<>"PRC_RESID","",IF(AB$7=2005+OFFSET(AGR!$B$49,$AX43,SUMIF($B$10:$B$14,"NCAP_TLIFE",$AY$10:$AY$14)),0,"")) ->  | AC43: =IF($B43<>"PRC_RESID","",IF(AC$7=2005+OFFSET(AGR!$B$49,$AX43,SUMIF($B$10:$B$14,"NCAP_TLIFE",$AY$10:$AY$14)),0,"")) ->  | AD43: =IF($B43<>"PRC_RESID","",IF(AD$7=2005+OFFSET(AGR!$B$49,$AX43,SUMIF($B$10:$B$14,"NCAP_TLIFE",$AY$10:$AY$14)),0,"")) ->  | AE43: =IF($B43<>"PRC_RESID","",IF(AE$7=2005+OFFSET(AGR!$B$49,$AX43,SUMIF($B$10:$B$14,"NCAP_TLIFE",$AY$10:$AY$14)),0,"")) ->  | AF43: =IF($B43<>"PRC_RESID","",IF(AF$7=2005+OFFSET(AGR!$B$49,$AX43,SUMIF($B$10:$B$14,"NCAP_TLIFE",$AY$10:$AY$14)),0,"")) ->  | AG43: =IF($B43<>"PRC_RESID","",IF(AG$7=2005+OFFSET(AGR!$B$49,$AX43,SUMIF($B$10:$B$14,"NCAP_TLIFE",$AY$10:$AY$14)),0,"")) ->  | AH43: =IF($B43<>"PRC_RESID","",IF(AH$7=2005+OFFSET(AGR!$B$49,$AX43,SUMIF($B$10:$B$14,"NCAP_TLIFE",$AY$10:$AY$14)),0,"")) ->  | AM43: =IF($B43<>"PRC_RESID","",IF(AM$7=2005+OFFSET(AGR!$B$49,$AX43,SUMIF($B$10:$B$14,"NCAP_TLIFE",$AY$10:$AY$14)),0,"")) ->  | AR43: =IF($B43<>"PRC_RESID","",IF(AR$7=2005+OFFSET(AGR!$B$49,$AX43,SUMIF($B$10:$B$14,"NCAP_TLIFE",$AY$10:$AY$14)),0,"")) ->  | AS43: =IF($B43<>"PRC_RESID","",IF(AS$7=2005+OFFSET(AGR!$B$49,$AX43,SUMIF($B$10:$B$14,"NCAP_TLIFE",$AY$10:$AY$14)),0,"")) ->  | AT43: =IF($B43<>"PRC_RESID","",IF(AT$7=2005+OFFSET(AGR!$B$49,$AX43,SUMIF($B$10:$B$14,"NCAP_TLIFE",$AY$10:$AY$14)),0,"")) ->  | AU43: =IF($B43<>"PRC_RESID","",IF(AU$7=2005+OFFSET(AGR!$B$49,$AX43,SUMIF($B$10:$B$14,"NCAP_TLIFE",$AY$10:$AY$14)),0,"")) ->  | AW43: =IF(AX42=AGR!$W$72,AW42+1,AW42) -> 2 | AX43: 5
A44: =IF(LEFT(OFFSET(AGR!$A$49,AX44,0),2)="\I","*","") -> * | C44: =IF($A44="*","",OFFSET(AGR!$B$49,AX44,0)) ->  | J44: =IF($A44="*","",OFFSET(AGR!$B$49,AX44,SUMIF($B$10:$B$14,B44,$AY$10:$AY$14))) ->  | K44: =IF($B44<>"PRC_RESID","",IF(K$7=2005+OFFSET(AGR!$B$49,$AX44,SUMIF($B$10:$B$14,"NCAP_TLIFE",$AY$10:$AY$14)),0,"")) ->  | L44: =IF($B44<>"PRC_RESID","",IF(L$7=2005+OFFSET(AGR!$B$49,$AX44,SUMIF($B$10:$B$14,"NCAP_TLIFE",$AY$10:$AY$14)),0,"")) ->  | M44: =IF($B44<>"PRC_RESID","",IF(M$7=2005+OFFSET(AGR!$B$49,$AX44,SUMIF($B$10:$B$14,"NCAP_TLIFE",$AY$10:$AY$14)),0,"")) ->  | N44: =IF($B44<>"PRC_RESID","",IF(N$7=2005+OFFSET(AGR!$B$49,$AX44,SUMIF($B$10:$B$14,"NCAP_TLIFE",$AY$10:$AY$14)),0,"")) ->  | O44: =IF($B44<>"PRC_RESID","",IF(O$7=2005+OFFSET(AGR!$B$49,$AX44,SUMIF($B$10:$B$14,"NCAP_TLIFE",$AY$10:$AY$14)),0,"")) ->  | P44: =IF($B44<>"PRC_RESID","",IF(P$7=2005+OFFSET(AGR!$B$49,$AX44,SUMIF($B$10:$B$14,"NCAP_TLIFE",$AY$10:$AY$14)),0,"")) ->  | Q44: =IF($B44<>"PRC_RESID","",IF(Q$7=2005+OFFSET(AGR!$B$49,$AX44,SUMIF($B$10:$B$14,"NCAP_TLIFE",$AY$10:$AY$14)),0,"")) ->  | R44: =IF($B44<>"PRC_RESID","",IF(R$7=2005+OFFSET(AGR!$B$49,$AX44,SUMIF($B$10:$B$14,"NCAP_TLIFE",$AY$10:$AY$14)),0,"")) ->  | S44: =IF($B44<>"PRC_RESID","",IF(S$7=2005+OFFSET(AGR!$B$49,$AX44,SUMIF($B$10:$B$14,"NCAP_TLIFE",$AY$10:$AY$14)),0,"")) ->  | T44: =IF($B44<>"PRC_RESID","",IF(T$7=2005+OFFSET(AGR!$B$49,$AX44,SUMIF($B$10:$B$14,"NCAP_TLIFE",$AY$10:$AY$14)),0,"")) ->  | U44: =IF($B44<>"PRC_RESID","",IF(U$7=2005+OFFSET(AGR!$B$49,$AX44,SUMIF($B$10:$B$14,"NCAP_TLIFE",$AY$10:$AY$14)),0,"")) ->  | V44: =IF($B44<>"PRC_RESID","",IF(V$7=2005+OFFSET(AGR!$B$49,$AX44,SUMIF($B$10:$B$14,"NCAP_TLIFE",$AY$10:$AY$14)),0,"")) ->  | W44: =IF($B44<>"PRC_RESID","",IF(W$7=2005+OFFSET(AGR!$B$49,$AX44,SUMIF($B$10:$B$14,"NCAP_TLIFE",$AY$10:$AY$14)),0,"")) ->  | X44: =IF($B44<>"PRC_RESID","",IF(X$7=2005+OFFSET(AGR!$B$49,$AX44,SUMIF($B$10:$B$14,"NCAP_TLIFE",$AY$10:$AY$14)),0,"")) ->  | Y44: =IF($B44<>"PRC_RESID","",IF(Y$7=2005+OFFSET(AGR!$B$49,$AX44,SUMIF($B$10:$B$14,"NCAP_TLIFE",$AY$10:$AY$14)),0,"")) ->  | Z44: =IF($B44<>"PRC_RESID","",IF(Z$7=2005+OFFSET(AGR!$B$49,$AX44,SUMIF($B$10:$B$14,"NCAP_TLIFE",$AY$10:$AY$14)),0,"")) ->  | AA44: =IF($B44<>"PRC_RESID","",IF(AA$7=2005+OFFSET(AGR!$B$49,$AX44,SUMIF($B$10:$B$14,"NCAP_TLIFE",$AY$10:$AY$14)),0,"")) ->  | AB44: =IF($B44<>"PRC_RESID","",IF(AB$7=2005+OFFSET(AGR!$B$49,$AX44,SUMIF($B$10:$B$14,"NCAP_TLIFE",$AY$10:$AY$14)),0,"")) ->  | AC44: =IF($B44<>"PRC_RESID","",IF(AC$7=2005+OFFSET(AGR!$B$49,$AX44,SUMIF($B$10:$B$14,"NCAP_TLIFE",$AY$10:$AY$14)),0,"")) ->  | AD44: =IF($B44<>"PRC_RESID","",IF(AD$7=2005+OFFSET(AGR!$B$49,$AX44,SUMIF($B$10:$B$14,"NCAP_TLIFE",$AY$10:$AY$14)),0,"")) ->  | AE44: =IF($B44<>"PRC_RESID","",IF(AE$7=2005+OFFSET(AGR!$B$49,$AX44,SUMIF($B$10:$B$14,"NCAP_TLIFE",$AY$10:$AY$14)),0,"")) ->  | AF44: =IF($B44<>"PRC_RESID","",IF(AF$7=2005+OFFSET(AGR!$B$49,$AX44,SUMIF($B$10:$B$14,"NCAP_TLIFE",$AY$10:$AY$14)),0,"")) ->  | AG44: =IF($B44<>"PRC_RESID","",IF(AG$7=2005+OFFSET(AGR!$B$49,$AX44,SUMIF($B$10:$B$14,"NCAP_TLIFE",$AY$10:$AY$14)),0,"")) ->  | AH44: =IF($B44<>"PRC_RESID","",IF(AH$7=2005+OFFSET(AGR!$B$49,$AX44,SUMIF($B$10:$B$14,"NCAP_TLIFE",$AY$10:$AY$14)),0,"")) ->  | AM44: =IF($B44<>"PRC_RESID","",IF(AM$7=2005+OFFSET(AGR!$B$49,$AX44,SUMIF($B$10:$B$14,"NCAP_TLIFE",$AY$10:$AY$14)),0,"")) ->  | AR44: =IF($B44<>"PRC_RESID","",IF(AR$7=2005+OFFSET(AGR!$B$49,$AX44,SUMIF($B$10:$B$14,"NCAP_TLIFE",$AY$10:$AY$14)),0,"")) ->  | AS44: =IF($B44<>"PRC_RESID","",IF(AS$7=2005+OFFSET(AGR!$B$49,$AX44,SUMIF($B$10:$B$14,"NCAP_TLIFE",$AY$10:$AY$14)),0,"")) ->  | AT44: =IF($B44<>"PRC_RESID","",IF(AT$7=2005+OFFSET(AGR!$B$49,$AX44,SUMIF($B$10:$B$14,"NCAP_TLIFE",$AY$10:$AY$14)),0,"")) ->  | AU44: =IF($B44<>"PRC_RESID","",IF(AU$7=2005+OFFSET(AGR!$B$49,$AX44,SUMIF($B$10:$B$14,"NCAP_TLIFE",$AY$10:$AY$14)),0,"")) ->  | AW44: =IF(AX43=AGR!$W$72,AW43+1,AW43) -> 2 | AX44: 6
A45: =IF(LEFT(OFFSET(AGR!$A$49,AX45,0),2)="\I","*","") -> * | C45: =IF($A45="*","",OFFSET(AGR!$B$49,AX45,0)) ->  | J45: =IF($A45="*","",OFFSET(AGR!$B$49,AX45,SUMIF($B$10:$B$14,B45,$AY$10:$AY$14))) ->  | K45: =IF($B45<>"PRC_RESID","",IF(K$7=2005+OFFSET(AGR!$B$49,$AX45,SUMIF($B$10:$B$14,"NCAP_TLIFE",$AY$10:$AY$14)),0,"")) ->  | L45: =IF($B45<>"PRC_RESID","",IF(L$7=2005+OFFSET(AGR!$B$49,$AX45,SUMIF($B$10:$B$14,"NCAP_TLIFE",$AY$10:$AY$14)),0,"")) ->  | M45: =IF($B45<>"PRC_RESID","",IF(M$7=2005+OFFSET(AGR!$B$49,$AX45,SUMIF($B$10:$B$14,"NCAP_TLIFE",$AY$10:$AY$14)),0,"")) ->  | N45: =IF($B45<>"PRC_RESID","",IF(N$7=2005+OFFSET(AGR!$B$49,$AX45,SUMIF($B$10:$B$14,"NCAP_TLIFE",$AY$10:$AY$14)),0,"")) ->  | O45: =IF($B45<>"PRC_RESID","",IF(O$7=2005+OFFSET(AGR!$B$49,$AX45,SUMIF($B$10:$B$14,"NCAP_TLIFE",$AY$10:$AY$14)),0,"")) ->  | P45: =IF($B45<>"PRC_RESID","",IF(P$7=2005+OFFSET(AGR!$B$49,$AX45,SUMIF($B$10:$B$14,"NCAP_TLIFE",$AY$10:$AY$14)),0,"")) ->  | Q45: =IF($B45<>"PRC_RESID","",IF(Q$7=2005+OFFSET(AGR!$B$49,$AX45,SUMIF($B$10:$B$14,"NCAP_TLIFE",$AY$10:$AY$14)),0,"")) ->  | R45: =IF($B45<>"PRC_RESID","",IF(R$7=2005+OFFSET(AGR!$B$49,$AX45,SUMIF($B$10:$B$14,"NCAP_TLIFE",$AY$10:$AY$14)),0,"")) ->  | S45: =IF($B45<>"PRC_RESID","",IF(S$7=2005+OFFSET(AGR!$B$49,$AX45,SUMIF($B$10:$B$14,"NCAP_TLIFE",$AY$10:$AY$14)),0,"")) ->  | T45: =IF($B45<>"PRC_RESID","",IF(T$7=2005+OFFSET(AGR!$B$49,$AX45,SUMIF($B$10:$B$14,"NCAP_TLIFE",$AY$10:$AY$14)),0,"")) ->  | U45: =IF($B45<>"PRC_RESID","",IF(U$7=2005+OFFSET(AGR!$B$49,$AX45,SUMIF($B$10:$B$14,"NCAP_TLIFE",$AY$10:$AY$14)),0,"")) ->  | V45: =IF($B45<>"PRC_RESID","",IF(V$7=2005+OFFSET(AGR!$B$49,$AX45,SUMIF($B$10:$B$14,"NCAP_TLIFE",$AY$10:$AY$14)),0,"")) ->  | W45: =IF($B45<>"PRC_RESID","",IF(W$7=2005+OFFSET(AGR!$B$49,$AX45,SUMIF($B$10:$B$14,"NCAP_TLIFE",$AY$10:$AY$14)),0,"")) ->  | X45: =IF($B45<>"PRC_RESID","",IF(X$7=2005+OFFSET(AGR!$B$49,$AX45,SUMIF($B$10:$B$14,"NCAP_TLIFE",$AY$10:$AY$14)),0,"")) ->  | Y45: =IF($B45<>"PRC_RESID","",IF(Y$7=2005+OFFSET(AGR!$B$49,$AX45,SUMIF($B$10:$B$14,"NCAP_TLIFE",$AY$10:$AY$14)),0,"")) ->  | Z45: =IF($B45<>"PRC_RESID","",IF(Z$7=2005+OFFSET(AGR!$B$49,$AX45,SUMIF($B$10:$B$14,"NCAP_TLIFE",$AY$10:$AY$14)),0,"")) ->  | AA45: =IF($B45<>"PRC_RESID","",IF(AA$7=2005+OFFSET(AGR!$B$49,$AX45,SUMIF($B$10:$B$14,"NCAP_TLIFE",$AY$10:$AY$14)),0,"")) ->  | AB45: =IF($B45<>"PRC_RESID","",IF(AB$7=2005+OFFSET(AGR!$B$49,$AX45,SUMIF($B$10:$B$14,"NCAP_TLIFE",$AY$10:$AY$14)),0,"")) ->  | AC45: =IF($B45<>"PRC_RESID","",IF(AC$7=2005+OFFSET(AGR!$B$49,$AX45,SUMIF($B$10:$B$14,"NCAP_TLIFE",$AY$10:$AY$14)),0,"")) ->  | AD45: =IF($B45<>"PRC_RESID","",IF(AD$7=2005+OFFSET(AGR!$B$49,$AX45,SUMIF($B$10:$B$14,"NCAP_TLIFE",$AY$10:$AY$14)),0,"")) ->  | AE45: =IF($B45<>"PRC_RESID","",IF(AE$7=2005+OFFSET(AGR!$B$49,$AX45,SUMIF($B$10:$B$14,"NCAP_TLIFE",$AY$10:$AY$14)),0,"")) ->  | AF45: =IF($B45<>"PRC_RESID","",IF(AF$7=2005+OFFSET(AGR!$B$49,$AX45,SUMIF($B$10:$B$14,"NCAP_TLIFE",$AY$10:$AY$14)),0,"")) ->  | AG45: =IF($B45<>"PRC_RESID","",IF(AG$7=2005+OFFSET(AGR!$B$49,$AX45,SUMIF($B$10:$B$14,"NCAP_TLIFE",$AY$10:$AY$14)),0,"")) ->  | AH45: =IF($B45<>"PRC_RESID","",IF(AH$7=2005+OFFSET(AGR!$B$49,$AX45,SUMIF($B$10:$B$14,"NCAP_TLIFE",$AY$10:$AY$14)),0,"")) ->  | AM45: =IF($B45<>"PRC_RESID","",IF(AM$7=2005+OFFSET(AGR!$B$49,$AX45,SUMIF($B$10:$B$14,"NCAP_TLIFE",$AY$10:$AY$14)),0,"")) ->  | AR45: =IF($B45<>"PRC_RESID","",IF(AR$7=2005+OFFSET(AGR!$B$49,$AX45,SUMIF($B$10:$B$14,"NCAP_TLIFE",$AY$10:$AY$14)),0,"")) ->  | AS45: =IF($B45<>"PRC_RESID","",IF(AS$7=2005+OFFSET(AGR!$B$49,$AX45,SUMIF($B$10:$B$14,"NCAP_TLIFE",$AY$10:$AY$14)),0,"")) ->  | AT45: =IF($B45<>"PRC_RESID","",IF(AT$7=2005+OFFSET(AGR!$B$49,$AX45,SUMIF($B$10:$B$14,"NCAP_TLIFE",$AY$10:$AY$14)),0,"")) ->  | AU45: =IF($B45<>"PRC_RESID","",IF(AU$7=2005+OFFSET(AGR!$B$49,$AX45,SUMIF($B$10:$B$14,"NCAP_TLIFE",$AY$10:$AY$14)),0,"")) ->  | AW45: =IF(AX44=AGR!$W$72,AW44+1,AW44) -> 2 | AX45: 7
A46: =IF(LEFT(OFFSET(AGR!$A$49,AX46,0),2)="\I","*","") ->  | B46: NCAP_AFA | C46: =IF($A46="*","",OFFSET(AGR!$B$49,AX46,0)) -> APELC-E | D46: - | E46: - | F46: - | G46: - | H46: UP | I46: 0 | J46: =IF($A46="*","",OFFSET(AGR!$B$49,AX46,SUMIF($B$10:$B$14,B46,$AY$10:$AY$14))) -> 0.7476 | K46: =IF($B46<>"PRC_RESID","",IF(K$7=2005+OFFSET(AGR!$B$49,$AX46,SUMIF($B$10:$B$14,"NCAP_TLIFE",$AY$10:$AY$14)),0,"")) ->  | L46: =IF($B46<>"PRC_RESID","",IF(L$7=2005+OFFSET(AGR!$B$49,$AX46,SUMIF($B$10:$B$14,"NCAP_TLIFE",$AY$10:$AY$14)),0,"")) ->  | M46: =IF($B46<>"PRC_RESID","",IF(M$7=2005+OFFSET(AGR!$B$49,$AX46,SUMIF($B$10:$B$14,"NCAP_TLIFE",$AY$10:$AY$14)),0,"")) ->  | N46: =IF($B46<>"PRC_RESID","",IF(N$7=2005+OFFSET(AGR!$B$49,$AX46,SUMIF($B$10:$B$14,"NCAP_TLIFE",$AY$10:$AY$14)),0,"")) ->  | O46: =IF($B46<>"PRC_RESID","",IF(O$7=2005+OFFSET(AGR!$B$49,$AX46,SUMIF($B$10:$B$14,"NCAP_TLIFE",$AY$10:$AY$14)),0,"")) ->  | P46: =IF($B46<>"PRC_RESID","",IF(P$7=2005+OFFSET(AGR!$B$49,$AX46,SUMIF($B$10:$B$14,"NCAP_TLIFE",$AY$10:$AY$14)),0,"")) ->  | Q46: =IF($B46<>"PRC_RESID","",IF(Q$7=2005+OFFSET(AGR!$B$49,$AX46,SUMIF($B$10:$B$14,"NCAP_TLIFE",$AY$10:$AY$14)),0,"")) ->  | R46: =IF($B46<>"PRC_RESID","",IF(R$7=2005+OFFSET(AGR!$B$49,$AX46,SUMIF($B$10:$B$14,"NCAP_TLIFE",$AY$10:$AY$14)),0,"")) ->  | S46: =IF($B46<>"PRC_RESID","",IF(S$7=2005+OFFSET(AGR!$B$49,$AX46,SUMIF($B$10:$B$14,"NCAP_TLIFE",$AY$10:$AY$14)),0,"")) ->  | T46: =IF($B46<>"PRC_RESID","",IF(T$7=2005+OFFSET(AGR!$B$49,$AX46,SUMIF($B$10:$B$14,"NCAP_TLIFE",$AY$10:$AY$14)),0,"")) ->  | U46: =IF($B46<>"PRC_RESID","",IF(U$7=2005+OFFSET(AGR!$B$49,$AX46,SUMIF($B$10:$B$14,"NCAP_TLIFE",$AY$10:$AY$14)),0,"")) ->  | V46: =IF($B46<>"PRC_RESID","",IF(V$7=2005+OFFSET(AGR!$B$49,$AX46,SUMIF($B$10:$B$14,"NCAP_TLIFE",$AY$10:$AY$14)),0,"")) ->  | W46: =IF($B46<>"PRC_RESID","",IF(W$7=2005+OFFSET(AGR!$B$49,$AX46,SUMIF($B$10:$B$14,"NCAP_TLIFE",$AY$10:$AY$14)),0,"")) ->  | X46: =IF($B46<>"PRC_RESID","",IF(X$7=2005+OFFSET(AGR!$B$49,$AX46,SUMIF($B$10:$B$14,"NCAP_TLIFE",$AY$10:$AY$14)),0,"")) ->  | Y46: =IF($B46<>"PRC_RESID","",IF(Y$7=2005+OFFSET(AGR!$B$49,$AX46,SUMIF($B$10:$B$14,"NCAP_TLIFE",$AY$10:$AY$14)),0,"")) ->  | Z46: =IF($B46<>"PRC_RESID","",IF(Z$7=2005+OFFSET(AGR!$B$49,$AX46,SUMIF($B$10:$B$14,"NCAP_TLIFE",$AY$10:$AY$14)),0,"")) ->  | AA46: =IF($B46<>"PRC_RESID","",IF(AA$7=2005+OFFSET(AGR!$B$49,$AX46,SUMIF($B$10:$B$14,"NCAP_TLIFE",$AY$10:$AY$14)),0,"")) ->  | AB46: =IF($B46<>"PRC_RESID","",IF(AB$7=2005+OFFSET(AGR!$B$49,$AX46,SUMIF($B$10:$B$14,"NCAP_TLIFE",$AY$10:$AY$14)),0,"")) ->  | AC46: =IF($B46<>"PRC_RESID","",IF(AC$7=2005+OFFSET(AGR!$B$49,$AX46,SUMIF($B$10:$B$14,"NCAP_TLIFE",$AY$10:$AY$14)),0,"")) ->  | AD46: =IF($B46<>"PRC_RESID","",IF(AD$7=2005+OFFSET(AGR!$B$49,$AX46,SUMIF($B$10:$B$14,"NCAP_TLIFE",$AY$10:$AY$14)),0,"")) ->  | AE46: =IF($B46<>"PRC_RESID","",IF(AE$7=2005+OFFSET(AGR!$B$49,$AX46,SUMIF($B$10:$B$14,"NCAP_TLIFE",$AY$10:$AY$14)),0,"")) ->  | AF46: =IF($B46<>"PRC_RESID","",IF(AF$7=2005+OFFSET(AGR!$B$49,$AX46,SUMIF($B$10:$B$14,"NCAP_TLIFE",$AY$10:$AY$14)),0,"")) ->  | AG46: =IF($B46<>"PRC_RESID","",IF(AG$7=2005+OFFSET(AGR!$B$49,$AX46,SUMIF($B$10:$B$14,"NCAP_TLIFE",$AY$10:$AY$14)),0,"")) ->  | AH46: =IF($B46<>"PRC_RESID","",IF(AH$7=2005+OFFSET(AGR!$B$49,$AX46,SUMIF($B$10:$B$14,"NCAP_TLIFE",$AY$10:$AY$14)),0,"")) ->  | AM46: =IF($B46<>"PRC_RESID","",IF(AM$7=2005+OFFSET(AGR!$B$49,$AX46,SUMIF($B$10:$B$14,"NCAP_TLIFE",$AY$10:$AY$14)),0,"")) ->  | AR46: =IF($B46<>"PRC_RESID","",IF(AR$7=2005+OFFSET(AGR!$B$49,$AX46,SUMIF($B$10:$B$14,"NCAP_TLIFE",$AY$10:$AY$14)),0,"")) ->  | AS46: =IF($B46<>"PRC_RESID","",IF(AS$7=2005+OFFSET(AGR!$B$49,$AX46,SUMIF($B$10:$B$14,"NCAP_TLIFE",$AY$10:$AY$14)),0,"")) ->  | AT46: =IF($B46<>"PRC_RESID","",IF(AT$7=2005+OFFSET(AGR!$B$49,$AX46,SUMIF($B$10:$B$14,"NCAP_TLIFE",$AY$10:$AY$14)),0,"")) ->  | AU46: =IF($B46<>"PRC_RESID","",IF(AU$7=2005+OFFSET(AGR!$B$49,$AX46,SUMIF($B$10:$B$14,"NCAP_TLIFE",$AY$10:$AY$14)),0,"")) ->  | AW46: =IF(AX45=AGR!$W$72,AW45+1,AW45) -> 2 | AX46: 8
A47: =IF(LEFT(OFFSET(AGR!$A$49,AX47,0),2)="\I","*","") -> * | C47: =IF($A47="*","",OFFSET(AGR!$B$49,AX47,0)) ->  | J47: =IF($A47="*","",OFFSET(AGR!$B$49,AX47,SUMIF($B$10:$B$14,B47,$AY$10:$AY$14))) ->  | K47: =IF($B47<>"PRC_RESID","",IF(K$7=2005+OFFSET(AGR!$B$49,$AX47,SUMIF($B$10:$B$14,"NCAP_TLIFE",$AY$10:$AY$14)),0,"")) ->  | L47: =IF($B47<>"PRC_RESID","",IF(L$7=2005+OFFSET(AGR!$B$49,$AX47,SUMIF($B$10:$B$14,"NCAP_TLIFE",$AY$10:$AY$14)),0,"")) ->  | M47: =IF($B47<>"PRC_RESID","",IF(M$7=2005+OFFSET(AGR!$B$49,$AX47,SUMIF($B$10:$B$14,"NCAP_TLIFE",$AY$10:$AY$14)),0,"")) ->  | N47: =IF($B47<>"PRC_RESID","",IF(N$7=2005+OFFSET(AGR!$B$49,$AX47,SUMIF($B$10:$B$14,"NCAP_TLIFE",$AY$10:$AY$14)),0,"")) ->  | O47: =IF($B47<>"PRC_RESID","",IF(O$7=2005+OFFSET(AGR!$B$49,$AX47,SUMIF($B$10:$B$14,"NCAP_TLIFE",$AY$10:$AY$14)),0,"")) ->  | P47: =IF($B47<>"PRC_RESID","",IF(P$7=2005+OFFSET(AGR!$B$49,$AX47,SUMIF($B$10:$B$14,"NCAP_TLIFE",$AY$10:$AY$14)),0,"")) ->  | Q47: =IF($B47<>"PRC_RESID","",IF(Q$7=2005+OFFSET(AGR!$B$49,$AX47,SUMIF($B$10:$B$14,"NCAP_TLIFE",$AY$10:$AY$14)),0,"")) ->  | R47: =IF($B47<>"PRC_RESID","",IF(R$7=2005+OFFSET(AGR!$B$49,$AX47,SUMIF($B$10:$B$14,"NCAP_TLIFE",$AY$10:$AY$14)),0,"")) ->  | S47: =IF($B47<>"PRC_RESID","",IF(S$7=2005+OFFSET(AGR!$B$49,$AX47,SUMIF($B$10:$B$14,"NCAP_TLIFE",$AY$10:$AY$14)),0,"")) ->  | T47: =IF($B47<>"PRC_RESID","",IF(T$7=2005+OFFSET(AGR!$B$49,$AX47,SUMIF($B$10:$B$14,"NCAP_TLIFE",$AY$10:$AY$14)),0,"")) ->  | U47: =IF($B47<>"PRC_RESID","",IF(U$7=2005+OFFSET(AGR!$B$49,$AX47,SUMIF($B$10:$B$14,"NCAP_TLIFE",$AY$10:$AY$14)),0,"")) ->  | V47: =IF($B47<>"PRC_RESID","",IF(V$7=2005+OFFSET(AGR!$B$49,$AX47,SUMIF($B$10:$B$14,"NCAP_TLIFE",$AY$10:$AY$14)),0,"")) ->  | W47: =IF($B47<>"PRC_RESID","",IF(W$7=2005+OFFSET(AGR!$B$49,$AX47,SUMIF($B$10:$B$14,"NCAP_TLIFE",$AY$10:$AY$14)),0,"")) ->  | X47: =IF($B47<>"PRC_RESID","",IF(X$7=2005+OFFSET(AGR!$B$49,$AX47,SUMIF($B$10:$B$14,"NCAP_TLIFE",$AY$10:$AY$14)),0,"")) ->  | Y47: =IF($B47<>"PRC_RESID","",IF(Y$7=2005+OFFSET(AGR!$B$49,$AX47,SUMIF($B$10:$B$14,"NCAP_TLIFE",$AY$10:$AY$14)),0,"")) ->  | Z47: =IF($B47<>"PRC_RESID","",IF(Z$7=2005+OFFSET(AGR!$B$49,$AX47,SUMIF($B$10:$B$14,"NCAP_TLIFE",$AY$10:$AY$14)),0,"")) ->  | AA47: =IF($B47<>"PRC_RESID","",IF(AA$7=2005+OFFSET(AGR!$B$49,$AX47,SUMIF($B$10:$B$14,"NCAP_TLIFE",$AY$10:$AY$14)),0,"")) ->  | AB47: =IF($B47<>"PRC_RESID","",IF(AB$7=2005+OFFSET(AGR!$B$49,$AX47,SUMIF($B$10:$B$14,"NCAP_TLIFE",$AY$10:$AY$14)),0,"")) ->  | AC47: =IF($B47<>"PRC_RESID","",IF(AC$7=2005+OFFSET(AGR!$B$49,$AX47,SUMIF($B$10:$B$14,"NCAP_TLIFE",$AY$10:$AY$14)),0,"")) ->  | AD47: =IF($B47<>"PRC_RESID","",IF(AD$7=2005+OFFSET(AGR!$B$49,$AX47,SUMIF($B$10:$B$14,"NCAP_TLIFE",$AY$10:$AY$14)),0,"")) ->  | AE47: =IF($B47<>"PRC_RESID","",IF(AE$7=2005+OFFSET(AGR!$B$49,$AX47,SUMIF($B$10:$B$14,"NCAP_TLIFE",$AY$10:$AY$14)),0,"")) ->  | AF47: =IF($B47<>"PRC_RESID","",IF(AF$7=2005+OFFSET(AGR!$B$49,$AX47,SUMIF($B$10:$B$14,"NCAP_TLIFE",$AY$10:$AY$14)),0,"")) ->  | AG47: =IF($B47<>"PRC_RESID","",IF(AG$7=2005+OFFSET(AGR!$B$49,$AX47,SUMIF($B$10:$B$14,"NCAP_TLIFE",$AY$10:$AY$14)),0,"")) ->  | AH47: =IF($B47<>"PRC_RESID","",IF(AH$7=2005+OFFSET(AGR!$B$49,$AX47,SUMIF($B$10:$B$14,"NCAP_TLIFE",$AY$10:$AY$14)),0,"")) ->  | AM47: =IF($B47<>"PRC_RESID","",IF(AM$7=2005+OFFSET(AGR!$B$49,$AX47,SUMIF($B$10:$B$14,"NCAP_TLIFE",$AY$10:$AY$14)),0,"")) ->  | AR47: =IF($B47<>"PRC_RESID","",IF(AR$7=2005+OFFSET(AGR!$B$49,$AX47,SUMIF($B$10:$B$14,"NCAP_TLIFE",$AY$10:$AY$14)),0,"")) ->  | AS47: =IF($B47<>"PRC_RESID","",IF(AS$7=2005+OFFSET(AGR!$B$49,$AX47,SUMIF($B$10:$B$14,"NCAP_TLIFE",$AY$10:$AY$14)),0,"")) ->  | AT47: =IF($B47<>"PRC_RESID","",IF(AT$7=2005+OFFSET(AGR!$B$49,$AX47,SUMIF($B$10:$B$14,"NCAP_TLIFE",$AY$10:$AY$14)),0,"")) ->  | AU47: =IF($B47<>"PRC_RESID","",IF(AU$7=2005+OFFSET(AGR!$B$49,$AX47,SUMIF($B$10:$B$14,"NCAP_TLIFE",$AY$10:$AY$14)),0,"")) ->  | AW47: =IF(AX46=AGR!$W$72,AW46+1,AW46) -> 2 | AX47: 9
A48: =IF(LEFT(OFFSET(AGR!$A$49,AX48,0),2)="\I","*","") -> * | B48: =IF(A48="*","",VLOOKUP("*"&AW48,$A$9:$B$14,2,FALSE)) ->  | C48: =IF($A48="*","",OFFSET(AGR!$B$49,AX48,0)) ->  | J48: =IF($A48="*","",OFFSET(AGR!$B$49,AX48,SUMIF($B$10:$B$14,B48,$AY$10:$AY$14))) ->  | K48: =IF($B48<>"PRC_RESID","",IF(K$7=2005+OFFSET(AGR!$B$49,$AX48,SUMIF($B$10:$B$14,"NCAP_TLIFE",$AY$10:$AY$14)),0,"")) ->  | L48: =IF($B48<>"PRC_RESID","",IF(L$7=2005+OFFSET(AGR!$B$49,$AX48,SUMIF($B$10:$B$14,"NCAP_TLIFE",$AY$10:$AY$14)),0,"")) ->  | M48: =IF($B48<>"PRC_RESID","",IF(M$7=2005+OFFSET(AGR!$B$49,$AX48,SUMIF($B$10:$B$14,"NCAP_TLIFE",$AY$10:$AY$14)),0,"")) ->  | N48: =IF($B48<>"PRC_RESID","",IF(N$7=2005+OFFSET(AGR!$B$49,$AX48,SUMIF($B$10:$B$14,"NCAP_TLIFE",$AY$10:$AY$14)),0,"")) ->  | O48: =IF($B48<>"PRC_RESID","",IF(O$7=2005+OFFSET(AGR!$B$49,$AX48,SUMIF($B$10:$B$14,"NCAP_TLIFE",$AY$10:$AY$14)),0,"")) ->  | P48: =IF($B48<>"PRC_RESID","",IF(P$7=2005+OFFSET(AGR!$B$49,$AX48,SUMIF($B$10:$B$14,"NCAP_TLIFE",$AY$10:$AY$14)),0,"")) ->  | Q48: =IF($B48<>"PRC_RESID","",IF(Q$7=2005+OFFSET(AGR!$B$49,$AX48,SUMIF($B$10:$B$14,"NCAP_TLIFE",$AY$10:$AY$14)),0,"")) ->  | R48: =IF($B48<>"PRC_RESID","",IF(R$7=2005+OFFSET(AGR!$B$49,$AX48,SUMIF($B$10:$B$14,"NCAP_TLIFE",$AY$10:$AY$14)),0,"")) ->  | S48: =IF($B48<>"PRC_RESID","",IF(S$7=2005+OFFSET(AGR!$B$49,$AX48,SUMIF($B$10:$B$14,"NCAP_TLIFE",$AY$10:$AY$14)),0,"")) ->  | T48: =IF($B48<>"PRC_RESID","",IF(T$7=2005+OFFSET(AGR!$B$49,$AX48,SUMIF($B$10:$B$14,"NCAP_TLIFE",$AY$10:$AY$14)),0,"")) ->  | U48: =IF($B48<>"PRC_RESID","",IF(U$7=2005+OFFSET(AGR!$B$49,$AX48,SUMIF($B$10:$B$14,"NCAP_TLIFE",$AY$10:$AY$14)),0,"")) ->  | V48: =IF($B48<>"PRC_RESID","",IF(V$7=2005+OFFSET(AGR!$B$49,$AX48,SUMIF($B$10:$B$14,"NCAP_TLIFE",$AY$10:$AY$14)),0,"")) ->  | W48: =IF($B48<>"PRC_RESID","",IF(W$7=2005+OFFSET(AGR!$B$49,$AX48,SUMIF($B$10:$B$14,"NCAP_TLIFE",$AY$10:$AY$14)),0,"")) ->  | X48: =IF($B48<>"PRC_RESID","",IF(X$7=2005+OFFSET(AGR!$B$49,$AX48,SUMIF($B$10:$B$14,"NCAP_TLIFE",$AY$10:$AY$14)),0,"")) ->  | Y48: =IF($B48<>"PRC_RESID","",IF(Y$7=2005+OFFSET(AGR!$B$49,$AX48,SUMIF($B$10:$B$14,"NCAP_TLIFE",$AY$10:$AY$14)),0,"")) ->  | Z48: =IF($B48<>"PRC_RESID","",IF(Z$7=2005+OFFSET(AGR!$B$49,$AX48,SUMIF($B$10:$B$14,"NCAP_TLIFE",$AY$10:$AY$14)),0,"")) ->  | AA48: =IF($B48<>"PRC_RESID","",IF(AA$7=2005+OFFSET(AGR!$B$49,$AX48,SUMIF($B$10:$B$14,"NCAP_TLIFE",$AY$10:$AY$14)),0,"")) ->  | AB48: =IF($B48<>"PRC_RESID","",IF(AB$7=2005+OFFSET(AGR!$B$49,$AX48,SUMIF($B$10:$B$14,"NCAP_TLIFE",$AY$10:$AY$14)),0,"")) ->  | AC48: =IF($B48<>"PRC_RESID","",IF(AC$7=2005+OFFSET(AGR!$B$49,$AX48,SUMIF($B$10:$B$14,"NCAP_TLIFE",$AY$10:$AY$14)),0,"")) ->  | AD48: =IF($B48<>"PRC_RESID","",IF(AD$7=2005+OFFSET(AGR!$B$49,$AX48,SUMIF($B$10:$B$14,"NCAP_TLIFE",$AY$10:$AY$14)),0,"")) ->  | AE48: =IF($B48<>"PRC_RESID","",IF(AE$7=2005+OFFSET(AGR!$B$49,$AX48,SUMIF($B$10:$B$14,"NCAP_TLIFE",$AY$10:$AY$14)),0,"")) ->  | AF48: =IF($B48<>"PRC_RESID","",IF(AF$7=2005+OFFSET(AGR!$B$49,$AX48,SUMIF($B$10:$B$14,"NCAP_TLIFE",$AY$10:$AY$14)),0,"")) ->  | AG48: =IF($B48<>"PRC_RESID","",IF(AG$7=2005+OFFSET(AGR!$B$49,$AX48,SUMIF($B$10:$B$14,"NCAP_TLIFE",$AY$10:$AY$14)),0,"")) ->  | AH48: =IF($B48<>"PRC_RESID","",IF(AH$7=2005+OFFSET(AGR!$B$49,$AX48,SUMIF($B$10:$B$14,"NCAP_TLIFE",$AY$10:$AY$14)),0,"")) ->  | AM48: =IF($B48<>"PRC_RESID","",IF(AM$7=2005+OFFSET(AGR!$B$49,$AX48,SUMIF($B$10:$B$14,"NCAP_TLIFE",$AY$10:$AY$14)),0,"")) ->  | AR48: =IF($B48<>"PRC_RESID","",IF(AR$7=2005+OFFSET(AGR!$B$49,$AX48,SUMIF($B$10:$B$14,"NCAP_TLIFE",$AY$10:$AY$14)),0,"")) ->  | AS48: =IF($B48<>"PRC_RESID","",IF(AS$7=2005+OFFSET(AGR!$B$49,$AX48,SUMIF($B$10:$B$14,"NCAP_TLIFE",$AY$10:$AY$14)),0,"")) ->  | AT48: =IF($B48<>"PRC_RESID","",IF(AT$7=2005+OFFSET(AGR!$B$49,$AX48,SUMIF($B$10:$B$14,"NCAP_TLIFE",$AY$10:$AY$14)),0,"")) ->  | AU48: =IF($B48<>"PRC_RESID","",IF(AU$7=2005+OFFSET(AGR!$B$49,$AX48,SUMIF($B$10:$B$14,"NCAP_TLIFE",$AY$10:$AY$14)),0,"")) ->  | AW48: =IF(AX47=AGR!$W$72,AW47+1,AW47) -> 2 | AX48: 10
A49: =IF(LEFT(OFFSET(AGR!$A$49,AX49,0),2)="\I","*","") ->  | B49: NCAP_AFA | C49: =IF($A49="*","",OFFSET(AGR!$B$49,AX49,0)) -> ATODS-E | D49: =IF($A49="*","",VLOOKUP($B49,$B$10:$I$14,D$9,FALSE)) -> - | E49: - | F49: - | G49: - | H49: UP | I49: 0 | J49: =IF($A49="*","",OFFSET(AGR!$B$49,AX49,SUMIF($B$10:$B$14,B49,$AY$10:$AY$14))) -> 0.7766 | K49: =IF($B49<>"PRC_RESID","",IF(K$7=2005+OFFSET(AGR!$B$49,$AX49,SUMIF($B$10:$B$14,"NCAP_TLIFE",$AY$10:$AY$14)),0,"")) ->  | L49: =IF($B49<>"PRC_RESID","",IF(L$7=2005+OFFSET(AGR!$B$49,$AX49,SUMIF($B$10:$B$14,"NCAP_TLIFE",$AY$10:$AY$14)),0,"")) ->  | M49: =IF($B49<>"PRC_RESID","",IF(M$7=2005+OFFSET(AGR!$B$49,$AX49,SUMIF($B$10:$B$14,"NCAP_TLIFE",$AY$10:$AY$14)),0,"")) ->  | N49: =IF($B49<>"PRC_RESID","",IF(N$7=2005+OFFSET(AGR!$B$49,$AX49,SUMIF($B$10:$B$14,"NCAP_TLIFE",$AY$10:$AY$14)),0,"")) ->  | O49: =IF($B49<>"PRC_RESID","",IF(O$7=2005+OFFSET(AGR!$B$49,$AX49,SUMIF($B$10:$B$14,"NCAP_TLIFE",$AY$10:$AY$14)),0,"")) ->  | P49: =IF($B49<>"PRC_RESID","",IF(P$7=2005+OFFSET(AGR!$B$49,$AX49,SUMIF($B$10:$B$14,"NCAP_TLIFE",$AY$10:$AY$14)),0,"")) ->  | Q49: =IF($B49<>"PRC_RESID","",IF(Q$7=2005+OFFSET(AGR!$B$49,$AX49,SUMIF($B$10:$B$14,"NCAP_TLIFE",$AY$10:$AY$14)),0,"")) ->  | R49: =IF($B49<>"PRC_RESID","",IF(R$7=2005+OFFSET(AGR!$B$49,$AX49,SUMIF($B$10:$B$14,"NCAP_TLIFE",$AY$10:$AY$14)),0,"")) ->  | S49: =IF($B49<>"PRC_RESID","",IF(S$7=2005+OFFSET(AGR!$B$49,$AX49,SUMIF($B$10:$B$14,"NCAP_TLIFE",$AY$10:$AY$14)),0,"")) ->  | T49: =IF($B49<>"PRC_RESID","",IF(T$7=2005+OFFSET(AGR!$B$49,$AX49,SUMIF($B$10:$B$14,"NCAP_TLIFE",$AY$10:$AY$14)),0,"")) ->  | U49: =IF($B49<>"PRC_RESID","",IF(U$7=2005+OFFSET(AGR!$B$49,$AX49,SUMIF($B$10:$B$14,"NCAP_TLIFE",$AY$10:$AY$14)),0,"")) ->  | V49: =IF($B49<>"PRC_RESID","",IF(V$7=2005+OFFSET(AGR!$B$49,$AX49,SUMIF($B$10:$B$14,"NCAP_TLIFE",$AY$10:$AY$14)),0,"")) ->  | W49: =IF($B49<>"PRC_RESID","",IF(W$7=2005+OFFSET(AGR!$B$49,$AX49,SUMIF($B$10:$B$14,"NCAP_TLIFE",$AY$10:$AY$14)),0,"")) ->  | X49: =IF($B49<>"PRC_RESID","",IF(X$7=2005+OFFSET(AGR!$B$49,$AX49,SUMIF($B$10:$B$14,"NCAP_TLIFE",$AY$10:$AY$14)),0,"")) ->  | Y49: =IF($B49<>"PRC_RESID","",IF(Y$7=2005+OFFSET(AGR!$B$49,$AX49,SUMIF($B$10:$B$14,"NCAP_TLIFE",$AY$10:$AY$14)),0,"")) ->  | Z49: =IF($B49<>"PRC_RESID","",IF(Z$7=2005+OFFSET(AGR!$B$49,$AX49,SUMIF($B$10:$B$14,"NCAP_TLIFE",$AY$10:$AY$14)),0,"")) ->  | AA49: =IF($B49<>"PRC_RESID","",IF(AA$7=2005+OFFSET(AGR!$B$49,$AX49,SUMIF($B$10:$B$14,"NCAP_TLIFE",$AY$10:$AY$14)),0,"")) ->  | AB49: =IF($B49<>"PRC_RESID","",IF(AB$7=2005+OFFSET(AGR!$B$49,$AX49,SUMIF($B$10:$B$14,"NCAP_TLIFE",$AY$10:$AY$14)),0,"")) ->  | AC49: =IF($B49<>"PRC_RESID","",IF(AC$7=2005+OFFSET(AGR!$B$49,$AX49,SUMIF($B$10:$B$14,"NCAP_TLIFE",$AY$10:$AY$14)),0,"")) ->  | AD49: =IF($B49<>"PRC_RESID","",IF(AD$7=2005+OFFSET(AGR!$B$49,$AX49,SUMIF($B$10:$B$14,"NCAP_TLIFE",$AY$10:$AY$14)),0,"")) ->  | AE49: =IF($B49<>"PRC_RESID","",IF(AE$7=2005+OFFSET(AGR!$B$49,$AX49,SUMIF($B$10:$B$14,"NCAP_TLIFE",$AY$10:$AY$14)),0,"")) ->  | AF49: =IF($B49<>"PRC_RESID","",IF(AF$7=2005+OFFSET(AGR!$B$49,$AX49,SUMIF($B$10:$B$14,"NCAP_TLIFE",$AY$10:$AY$14)),0,"")) ->  | AG49: =IF($B49<>"PRC_RESID","",IF(AG$7=2005+OFFSET(AGR!$B$49,$AX49,SUMIF($B$10:$B$14,"NCAP_TLIFE",$AY$10:$AY$14)),0,"")) ->  | AH49: =IF($B49<>"PRC_RESID","",IF(AH$7=2005+OFFSET(AGR!$B$49,$AX49,SUMIF($B$10:$B$14,"NCAP_TLIFE",$AY$10:$AY$14)),0,"")) ->  | AM49: =IF($B49<>"PRC_RESID","",IF(AM$7=2005+OFFSET(AGR!$B$49,$AX49,SUMIF($B$10:$B$14,"NCAP_TLIFE",$AY$10:$AY$14)),0,"")) ->  | AR49: =IF($B49<>"PRC_RESID","",IF(AR$7=2005+OFFSET(AGR!$B$49,$AX49,SUMIF($B$10:$B$14,"NCAP_TLIFE",$AY$10:$AY$14)),0,"")) ->  | AS49: =IF($B49<>"PRC_RESID","",IF(AS$7=2005+OFFSET(AGR!$B$49,$AX49,SUMIF($B$10:$B$14,"NCAP_TLIFE",$AY$10:$AY$14)),0,"")) ->  | AT49: =IF($B49<>"PRC_RESID","",IF(AT$7=2005+OFFSET(AGR!$B$49,$AX49,SUMIF($B$10:$B$14,"NCAP_TLIFE",$AY$10:$AY$14)),0,"")) ->  | AU49: =IF($B49<>"PRC_RESID","",IF(AU$7=2005+OFFSET(AGR!$B$49,$AX49,SUMIF($B$10:$B$14,"NCAP_TLIFE",$AY$10:$AY$14)),0,"")) ->  | AW49: =IF(AX48=AGR!$W$72,AW48+1,AW48) -> 2 | AX49: 11
A50: =IF(LEFT(OFFSET(AGR!$A$49,AX50,0),2)="\I","*","") ->  | B50: NCAP_AFA | C50: =IF($A50="*","",OFFSET(AGR!$B$49,AX50,0)) -> ATELC-E | D50: - | E50: - | F50: - | G50: - | H50: UP | I50: 0 | J50: =IF($A50="*","",OFFSET(AGR!$B$49,AX50,SUMIF($B$10:$B$14,B50,$AY$10:$AY$14))) -> 0.7766 | K50: =IF($B50<>"PRC_RESID","",IF(K$7=2005+OFFSET(AGR!$B$49,$AX50,SUMIF($B$10:$B$14,"NCAP_TLIFE",$AY$10:$AY$14)),0,"")) ->  | L50: =IF($B50<>"PRC_RESID","",IF(L$7=2005+OFFSET(AGR!$B$49,$AX50,SUMIF($B$10:$B$14,"NCAP_TLIFE",$AY$10:$AY$14)),0,"")) ->  | M50: =IF($B50<>"PRC_RESID","",IF(M$7=2005+OFFSET(AGR!$B$49,$AX50,SUMIF($B$10:$B$14,"NCAP_TLIFE",$AY$10:$AY$14)),0,"")) ->  | N50: =IF($B50<>"PRC_RESID","",IF(N$7=2005+OFFSET(AGR!$B$49,$AX50,SUMIF($B$10:$B$14,"NCAP_TLIFE",$AY$10:$AY$14)),0,"")) ->  | O50: =IF($B50<>"PRC_RESID","",IF(O$7=2005+OFFSET(AGR!$B$49,$AX50,SUMIF($B$10:$B$14,"NCAP_TLIFE",$AY$10:$AY$14)),0,"")) ->  | P50: =IF($B50<>"PRC_RESID","",IF(P$7=2005+OFFSET(AGR!$B$49,$AX50,SUMIF($B$10:$B$14,"NCAP_TLIFE",$AY$10:$AY$14)),0,"")) ->  | Q50: =IF($B50<>"PRC_RESID","",IF(Q$7=2005+OFFSET(AGR!$B$49,$AX50,SUMIF($B$10:$B$14,"NCAP_TLIFE",$AY$10:$AY$14)),0,"")) ->  | R50: =IF($B50<>"PRC_RESID","",IF(R$7=2005+OFFSET(AGR!$B$49,$AX50,SUMIF($B$10:$B$14,"NCAP_TLIFE",$AY$10:$AY$14)),0,"")) ->  | S50: =IF($B50<>"PRC_RESID","",IF(S$7=2005+OFFSET(AGR!$B$49,$AX50,SUMIF($B$10:$B$14,"NCAP_TLIFE",$AY$10:$AY$14)),0,"")) ->  | T50: =IF($B50<>"PRC_RESID","",IF(T$7=2005+OFFSET(AGR!$B$49,$AX50,SUMIF($B$10:$B$14,"NCAP_TLIFE",$AY$10:$AY$14)),0,"")) ->  | U50: =IF($B50<>"PRC_RESID","",IF(U$7=2005+OFFSET(AGR!$B$49,$AX50,SUMIF($B$10:$B$14,"NCAP_TLIFE",$AY$10:$AY$14)),0,"")) ->  | V50: =IF($B50<>"PRC_RESID","",IF(V$7=2005+OFFSET(AGR!$B$49,$AX50,SUMIF($B$10:$B$14,"NCAP_TLIFE",$AY$10:$AY$14)),0,"")) ->  | W50: =IF($B50<>"PRC_RESID","",IF(W$7=2005+OFFSET(AGR!$B$49,$AX50,SUMIF($B$10:$B$14,"NCAP_TLIFE",$AY$10:$AY$14)),0,"")) ->  | X50: =IF($B50<>"PRC_RESID","",IF(X$7=2005+OFFSET(AGR!$B$49,$AX50,SUMIF($B$10:$B$14,"NCAP_TLIFE",$AY$10:$AY$14)),0,"")) ->  | Y50: =IF($B50<>"PRC_RESID","",IF(Y$7=2005+OFFSET(AGR!$B$49,$AX50,SUMIF($B$10:$B$14,"NCAP_TLIFE",$AY$10:$AY$14)),0,"")) ->  | Z50: =IF($B50<>"PRC_RESID","",IF(Z$7=2005+OFFSET(AGR!$B$49,$AX50,SUMIF($B$10:$B$14,"NCAP_TLIFE",$AY$10:$AY$14)),0,"")) ->  | AA50: =IF($B50<>"PRC_RESID","",IF(AA$7=2005+OFFSET(AGR!$B$49,$AX50,SUMIF($B$10:$B$14,"NCAP_TLIFE",$AY$10:$AY$14)),0,"")) ->  | AB50: =IF($B50<>"PRC_RESID","",IF(AB$7=2005+OFFSET(AGR!$B$49,$AX50,SUMIF($B$10:$B$14,"NCAP_TLIFE",$AY$10:$AY$14)),0,"")) ->  | AC50: =IF($B50<>"PRC_RESID","",IF(AC$7=2005+OFFSET(AGR!$B$49,$AX50,SUMIF($B$10:$B$14,"NCAP_TLIFE",$AY$10:$AY$14)),0,"")) ->  | AD50: =IF($B50<>"PRC_RESID","",IF(AD$7=2005+OFFSET(AGR!$B$49,$AX50,SUMIF($B$10:$B$14,"NCAP_TLIFE",$AY$10:$AY$14)),0,"")) ->  | AE50: =IF($B50<>"PRC_RESID","",IF(AE$7=2005+OFFSET(AGR!$B$49,$AX50,SUMIF($B$10:$B$14,"NCAP_TLIFE",$AY$10:$AY$14)),0,"")) ->  | AF50: =IF($B50<>"PRC_RESID","",IF(AF$7=2005+OFFSET(AGR!$B$49,$AX50,SUMIF($B$10:$B$14,"NCAP_TLIFE",$AY$10:$AY$14)),0,"")) ->  | AG50: =IF($B50<>"PRC_RESID","",IF(AG$7=2005+OFFSET(AGR!$B$49,$AX50,SUMIF($B$10:$B$14,"NCAP_TLIFE",$AY$10:$AY$14)),0,"")) ->  | AH50: =IF($B50<>"PRC_RESID","",IF(AH$7=2005+OFFSET(AGR!$B$49,$AX50,SUMIF($B$10:$B$14,"NCAP_TLIFE",$AY$10:$AY$14)),0,"")) ->  | AM50: =IF($B50<>"PRC_RESID","",IF(AM$7=2005+OFFSET(AGR!$B$49,$AX50,SUMIF($B$10:$B$14,"NCAP_TLIFE",$AY$10:$AY$14)),0,"")) ->  | AR50: =IF($B50<>"PRC_RESID","",IF(AR$7=2005+OFFSET(AGR!$B$49,$AX50,SUMIF($B$10:$B$14,"NCAP_TLIFE",$AY$10:$AY$14)),0,"")) ->  | AS50: =IF($B50<>"PRC_RESID","",IF(AS$7=2005+OFFSET(AGR!$B$49,$AX50,SUMIF($B$10:$B$14,"NCAP_TLIFE",$AY$10:$AY$14)),0,"")) ->  | AT50: =IF($B50<>"PRC_RESID","",IF(AT$7=2005+OFFSET(AGR!$B$49,$AX50,SUMIF($B$10:$B$14,"NCAP_TLIFE",$AY$10:$AY$14)),0,"")) ->  | AU50: =IF($B50<>"PRC_RESID","",IF(AU$7=2005+OFFSET(AGR!$B$49,$AX50,SUMIF($B$10:$B$14,"NCAP_TLIFE",$AY$10:$AY$14)),0,"")) ->  | AW50: =IF(AX49=AGR!$W$72,AW49+1,AW49) -> 2 | AX50: 12
A51: =IF(LEFT(OFFSET(AGR!$A$49,AX51,0),2)="\I","*","") ->  | B51: NCAP_AFA | C51: =IF($A51="*","",OFFSET(AGR!$B$49,AX51,0)) -> ATOGS-E | D51: - | E51: - | F51: - | G51: - | H51: UP | I51: 0 | J51: =IF($A51="*","",OFFSET(AGR!$B$49,AX51,SUMIF($B$10:$B$14,B51,$AY$10:$AY$14))) -> 0.7766 | K51: =IF($B51<>"PRC_RESID","",IF(K$7=2005+OFFSET(AGR!$B$49,$AX51,SUMIF($B$10:$B$14,"NCAP_TLIFE",$AY$10:$AY$14)),0,"")) ->  | L51: =IF($B51<>"PRC_RESID","",IF(L$7=2005+OFFSET(AGR!$B$49,$AX51,SUMIF($B$10:$B$14,"NCAP_TLIFE",$AY$10:$AY$14)),0,"")) ->  | M51: =IF($B51<>"PRC_RESID","",IF(M$7=2005+OFFSET(AGR!$B$49,$AX51,SUMIF($B$10:$B$14,"NCAP_TLIFE",$AY$10:$AY$14)),0,"")) ->  | N51: =IF($B51<>"PRC_RESID","",IF(N$7=2005+OFFSET(AGR!$B$49,$AX51,SUMIF($B$10:$B$14,"NCAP_TLIFE",$AY$10:$AY$14)),0,"")) ->  | O51: =IF($B51<>"PRC_RESID","",IF(O$7=2005+OFFSET(AGR!$B$49,$AX51,SUMIF($B$10:$B$14,"NCAP_TLIFE",$AY$10:$AY$14)),0,"")) ->  | P51: =IF($B51<>"PRC_RESID","",IF(P$7=2005+OFFSET(AGR!$B$49,$AX51,SUMIF($B$10:$B$14,"NCAP_TLIFE",$AY$10:$AY$14)),0,"")) ->  | Q51: =IF($B51<>"PRC_RESID","",IF(Q$7=2005+OFFSET(AGR!$B$49,$AX51,SUMIF($B$10:$B$14,"NCAP_TLIFE",$AY$10:$AY$14)),0,"")) ->  | R51: =IF($B51<>"PRC_RESID","",IF(R$7=2005+OFFSET(AGR!$B$49,$AX51,SUMIF($B$10:$B$14,"NCAP_TLIFE",$AY$10:$AY$14)),0,"")) ->  | S51: =IF($B51<>"PRC_RESID","",IF(S$7=2005+OFFSET(AGR!$B$49,$AX51,SUMIF($B$10:$B$14,"NCAP_TLIFE",$AY$10:$AY$14)),0,"")) ->  | T51: =IF($B51<>"PRC_RESID","",IF(T$7=2005+OFFSET(AGR!$B$49,$AX51,SUMIF($B$10:$B$14,"NCAP_TLIFE",$AY$10:$AY$14)),0,"")) ->  | U51: =IF($B51<>"PRC_RESID","",IF(U$7=2005+OFFSET(AGR!$B$49,$AX51,SUMIF($B$10:$B$14,"NCAP_TLIFE",$AY$10:$AY$14)),0,"")) ->  | V51: =IF($B51<>"PRC_RESID","",IF(V$7=2005+OFFSET(AGR!$B$49,$AX51,SUMIF($B$10:$B$14,"NCAP_TLIFE",$AY$10:$AY$14)),0,"")) ->  | W51: =IF($B51<>"PRC_RESID","",IF(W$7=2005+OFFSET(AGR!$B$49,$AX51,SUMIF($B$10:$B$14,"NCAP_TLIFE",$AY$10:$AY$14)),0,"")) ->  | X51: =IF($B51<>"PRC_RESID","",IF(X$7=2005+OFFSET(AGR!$B$49,$AX51,SUMIF($B$10:$B$14,"NCAP_TLIFE",$AY$10:$AY$14)),0,"")) ->  | Y51: =IF($B51<>"PRC_RESID","",IF(Y$7=2005+OFFSET(AGR!$B$49,$AX51,SUMIF($B$10:$B$14,"NCAP_TLIFE",$AY$10:$AY$14)),0,"")) ->  | Z51: =IF($B51<>"PRC_RESID","",IF(Z$7=2005+OFFSET(AGR!$B$49,$AX51,SUMIF($B$10:$B$14,"NCAP_TLIFE",$AY$10:$AY$14)),0,"")) ->  | AA51: =IF($B51<>"PRC_RESID","",IF(AA$7=2005+OFFSET(AGR!$B$49,$AX51,SUMIF($B$10:$B$14,"NCAP_TLIFE",$AY$10:$AY$14)),0,"")) ->  | AB51: =IF($B51<>"PRC_RESID","",IF(AB$7=2005+OFFSET(AGR!$B$49,$AX51,SUMIF($B$10:$B$14,"NCAP_TLIFE",$AY$10:$AY$14)),0,"")) ->  | AC51: =IF($B51<>"PRC_RESID","",IF(AC$7=2005+OFFSET(AGR!$B$49,$AX51,SUMIF($B$10:$B$14,"NCAP_TLIFE",$AY$10:$AY$14)),0,"")) ->  | AD51: =IF($B51<>"PRC_RESID","",IF(AD$7=2005+OFFSET(AGR!$B$49,$AX51,SUMIF($B$10:$B$14,"NCAP_TLIFE",$AY$10:$AY$14)),0,"")) ->  | AE51: =IF($B51<>"PRC_RESID","",IF(AE$7=2005+OFFSET(AGR!$B$49,$AX51,SUMIF($B$10:$B$14,"NCAP_TLIFE",$AY$10:$AY$14)),0,"")) ->  | AF51: =IF($B51<>"PRC_RESID","",IF(AF$7=2005+OFFSET(AGR!$B$49,$AX51,SUMIF($B$10:$B$14,"NCAP_TLIFE",$AY$10:$AY$14)),0,"")) ->  | AG51: =IF($B51<>"PRC_RESID","",IF(AG$7=2005+OFFSET(AGR!$B$49,$AX51,SUMIF($B$10:$B$14,"NCAP_TLIFE",$AY$10:$AY$14)),0,"")) ->  | AH51: =IF($B51<>"PRC_RESID","",IF(AH$7=2005+OFFSET(AGR!$B$49,$AX51,SUMIF($B$10:$B$14,"NCAP_TLIFE",$AY$10:$AY$14)),0,"")) ->  | AM51: =IF($B51<>"PRC_RESID","",IF(AM$7=2005+OFFSET(AGR!$B$49,$AX51,SUMIF($B$10:$B$14,"NCAP_TLIFE",$AY$10:$AY$14)),0,"")) ->  | AR51: =IF($B51<>"PRC_RESID","",IF(AR$7=2005+OFFSET(AGR!$B$49,$AX51,SUMIF($B$10:$B$14,"NCAP_TLIFE",$AY$10:$AY$14)),0,"")) ->  | AS51: =IF($B51<>"PRC_RESID","",IF(AS$7=2005+OFFSET(AGR!$B$49,$AX51,SUMIF($B$10:$B$14,"NCAP_TLIFE",$AY$10:$AY$14)),0,"")) ->  | AT51: =IF($B51<>"PRC_RESID","",IF(AT$7=2005+OFFSET(AGR!$B$49,$AX51,SUMIF($B$10:$B$14,"NCAP_TLIFE",$AY$10:$AY$14)),0,"")) ->  | AU51: =IF($B51<>"PRC_RESID","",IF(AU$7=2005+OFFSET(AGR!$B$49,$AX51,SUMIF($B$10:$B$14,"NCAP_TLIFE",$AY$10:$AY$14)),0,"")) ->  | AW51: =IF(AX50=AGR!$W$72,AW50+1,AW50) -> 2 | AX51: 13
A52: =IF(LEFT(OFFSET(AGR!$A$49,AX52,0),2)="\I","*","") -> * | C52: =IF($A52="*","",OFFSET(AGR!$B$49,AX52,0)) ->  | J52: =IF($A52="*","",OFFSET(AGR!$B$49,AX52,SUMIF($B$10:$B$14,B52,$AY$10:$AY$14))) ->  | K52: =IF($B52<>"PRC_RESID","",IF(K$7=2005+OFFSET(AGR!$B$49,$AX52,SUMIF($B$10:$B$14,"NCAP_TLIFE",$AY$10:$AY$14)),0,"")) ->  | L52: =IF($B52<>"PRC_RESID","",IF(L$7=2005+OFFSET(AGR!$B$49,$AX52,SUMIF($B$10:$B$14,"NCAP_TLIFE",$AY$10:$AY$14)),0,"")) ->  | M52: =IF($B52<>"PRC_RESID","",IF(M$7=2005+OFFSET(AGR!$B$49,$AX52,SUMIF($B$10:$B$14,"NCAP_TLIFE",$AY$10:$AY$14)),0,"")) ->  | N52: =IF($B52<>"PRC_RESID","",IF(N$7=2005+OFFSET(AGR!$B$49,$AX52,SUMIF($B$10:$B$14,"NCAP_TLIFE",$AY$10:$AY$14)),0,"")) ->  | O52: =IF($B52<>"PRC_RESID","",IF(O$7=2005+OFFSET(AGR!$B$49,$AX52,SUMIF($B$10:$B$14,"NCAP_TLIFE",$AY$10:$AY$14)),0,"")) ->  | P52: =IF($B52<>"PRC_RESID","",IF(P$7=2005+OFFSET(AGR!$B$49,$AX52,SUMIF($B$10:$B$14,"NCAP_TLIFE",$AY$10:$AY$14)),0,"")) ->  | Q52: =IF($B52<>"PRC_RESID","",IF(Q$7=2005+OFFSET(AGR!$B$49,$AX52,SUMIF($B$10:$B$14,"NCAP_TLIFE",$AY$10:$AY$14)),0,"")) ->  | R52: =IF($B52<>"PRC_RESID","",IF(R$7=2005+OFFSET(AGR!$B$49,$AX52,SUMIF($B$10:$B$14,"NCAP_TLIFE",$AY$10:$AY$14)),0,"")) ->  | S52: =IF($B52<>"PRC_RESID","",IF(S$7=2005+OFFSET(AGR!$B$49,$AX52,SUMIF($B$10:$B$14,"NCAP_TLIFE",$AY$10:$AY$14)),0,"")) ->  | T52: =IF($B52<>"PRC_RESID","",IF(T$7=2005+OFFSET(AGR!$B$49,$AX52,SUMIF($B$10:$B$14,"NCAP_TLIFE",$AY$10:$AY$14)),0,"")) ->  | U52: =IF($B52<>"PRC_RESID","",IF(U$7=2005+OFFSET(AGR!$B$49,$AX52,SUMIF($B$10:$B$14,"NCAP_TLIFE",$AY$10:$AY$14)),0,"")) ->  | V52: =IF($B52<>"PRC_RESID","",IF(V$7=2005+OFFSET(AGR!$B$49,$AX52,SUMIF($B$10:$B$14,"NCAP_TLIFE",$AY$10:$AY$14)),0,"")) ->  | W52: =IF($B52<>"PRC_RESID","",IF(W$7=2005+OFFSET(AGR!$B$49,$AX52,SUMIF($B$10:$B$14,"NCAP_TLIFE",$AY$10:$AY$14)),0,"")) ->  | X52: =IF($B52<>"PRC_RESID","",IF(X$7=2005+OFFSET(AGR!$B$49,$AX52,SUMIF($B$10:$B$14,"NCAP_TLIFE",$AY$10:$AY$14)),0,"")) ->  | Y52: =IF($B52<>"PRC_RESID","",IF(Y$7=2005+OFFSET(AGR!$B$49,$AX52,SUMIF($B$10:$B$14,"NCAP_TLIFE",$AY$10:$AY$14)),0,"")) ->  | Z52: =IF($B52<>"PRC_RESID","",IF(Z$7=2005+OFFSET(AGR!$B$49,$AX52,SUMIF($B$10:$B$14,"NCAP_TLIFE",$AY$10:$AY$14)),0,"")) ->  | AA52: =IF($B52<>"PRC_RESID","",IF(AA$7=2005+OFFSET(AGR!$B$49,$AX52,SUMIF($B$10:$B$14,"NCAP_TLIFE",$AY$10:$AY$14)),0,"")) ->  | AB52: =IF($B52<>"PRC_RESID","",IF(AB$7=2005+OFFSET(AGR!$B$49,$AX52,SUMIF($B$10:$B$14,"NCAP_TLIFE",$AY$10:$AY$14)),0,"")) ->  | AC52: =IF($B52<>"PRC_RESID","",IF(AC$7=2005+OFFSET(AGR!$B$49,$AX52,SUMIF($B$10:$B$14,"NCAP_TLIFE",$AY$10:$AY$14)),0,"")) ->  | AD52: =IF($B52<>"PRC_RESID","",IF(AD$7=2005+OFFSET(AGR!$B$49,$AX52,SUMIF($B$10:$B$14,"NCAP_TLIFE",$AY$10:$AY$14)),0,"")) ->  | AE52: =IF($B52<>"PRC_RESID","",IF(AE$7=2005+OFFSET(AGR!$B$49,$AX52,SUMIF($B$10:$B$14,"NCAP_TLIFE",$AY$10:$AY$14)),0,"")) ->  | AF52: =IF($B52<>"PRC_RESID","",IF(AF$7=2005+OFFSET(AGR!$B$49,$AX52,SUMIF($B$10:$B$14,"NCAP_TLIFE",$AY$10:$AY$14)),0,"")) ->  | AG52: =IF($B52<>"PRC_RESID","",IF(AG$7=2005+OFFSET(AGR!$B$49,$AX52,SUMIF($B$10:$B$14,"NCAP_TLIFE",$AY$10:$AY$14)),0,"")) ->  | AH52: =IF($B52<>"PRC_RESID","",IF(AH$7=2005+OFFSET(AGR!$B$49,$AX52,SUMIF($B$10:$B$14,"NCAP_TLIFE",$AY$10:$AY$14)),0,"")) ->  | AM52: =IF($B52<>"PRC_RESID","",IF(AM$7=2005+OFFSET(AGR!$B$49,$AX52,SUMIF($B$10:$B$14,"NCAP_TLIFE",$AY$10:$AY$14)),0,"")) ->  | AR52: =IF($B52<>"PRC_RESID","",IF(AR$7=2005+OFFSET(AGR!$B$49,$AX52,SUMIF($B$10:$B$14,"NCAP_TLIFE",$AY$10:$AY$14)),0,"")) ->  | AS52: =IF($B52<>"PRC_RESID","",IF(AS$7=2005+OFFSET(AGR!$B$49,$AX52,SUMIF($B$10:$B$14,"NCAP_TLIFE",$AY$10:$AY$14)),0,"")) ->  | AT52: =IF($B52<>"PRC_RESID","",IF(AT$7=2005+OFFSET(AGR!$B$49,$AX52,SUMIF($B$10:$B$14,"NCAP_TLIFE",$AY$10:$AY$14)),0,"")) ->  | AU52: =IF($B52<>"PRC_RESID","",IF(AU$7=2005+OFFSET(AGR!$B$49,$AX52,SUMIF($B$10:$B$14,"NCAP_TLIFE",$AY$10:$AY$14)),0,"")) ->  | AW52: =IF(AX51=AGR!$W$72,AW51+1,AW51) -> 2 | AX52: 14
A53: =IF(LEFT(OFFSET(AGR!$A$49,AX53,0),2)="\I","*","") -> * | C53: =IF($A53="*","",OFFSET(AGR!$B$49,AX53,0)) ->  | J53: =IF($A53="*","",OFFSET(AGR!$B$49,AX53,SUMIF($B$10:$B$14,B53,$AY$10:$AY$14))) ->  | K53: =IF($B53<>"PRC_RESID","",IF(K$7=2005+OFFSET(AGR!$B$49,$AX53,SUMIF($B$10:$B$14,"NCAP_TLIFE",$AY$10:$AY$14)),0,"")) ->  | L53: =IF($B53<>"PRC_RESID","",IF(L$7=2005+OFFSET(AGR!$B$49,$AX53,SUMIF($B$10:$B$14,"NCAP_TLIFE",$AY$10:$AY$14)),0,"")) ->  | M53: =IF($B53<>"PRC_RESID","",IF(M$7=2005+OFFSET(AGR!$B$49,$AX53,SUMIF($B$10:$B$14,"NCAP_TLIFE",$AY$10:$AY$14)),0,"")) ->  | N53: =IF($B53<>"PRC_RESID","",IF(N$7=2005+OFFSET(AGR!$B$49,$AX53,SUMIF($B$10:$B$14,"NCAP_TLIFE",$AY$10:$AY$14)),0,"")) ->  | O53: =IF($B53<>"PRC_RESID","",IF(O$7=2005+OFFSET(AGR!$B$49,$AX53,SUMIF($B$10:$B$14,"NCAP_TLIFE",$AY$10:$AY$14)),0,"")) ->  | P53: =IF($B53<>"PRC_RESID","",IF(P$7=2005+OFFSET(AGR!$B$49,$AX53,SUMIF($B$10:$B$14,"NCAP_TLIFE",$AY$10:$AY$14)),0,"")) ->  | Q53: =IF($B53<>"PRC_RESID","",IF(Q$7=2005+OFFSET(AGR!$B$49,$AX53,SUMIF($B$10:$B$14,"NCAP_TLIFE",$AY$10:$AY$14)),0,"")) ->  | R53: =IF($B53<>"PRC_RESID","",IF(R$7=2005+OFFSET(AGR!$B$49,$AX53,SUMIF($B$10:$B$14,"NCAP_TLIFE",$AY$10:$AY$14)),0,"")) ->  | S53: =IF($B53<>"PRC_RESID","",IF(S$7=2005+OFFSET(AGR!$B$49,$AX53,SUMIF($B$10:$B$14,"NCAP_TLIFE",$AY$10:$AY$14)),0,"")) ->  | T53: =IF($B53<>"PRC_RESID","",IF(T$7=2005+OFFSET(AGR!$B$49,$AX53,SUMIF($B$10:$B$14,"NCAP_TLIFE",$AY$10:$AY$14)),0,"")) ->  | U53: =IF($B53<>"PRC_RESID","",IF(U$7=2005+OFFSET(AGR!$B$49,$AX53,SUMIF($B$10:$B$14,"NCAP_TLIFE",$AY$10:$AY$14)),0,"")) ->  | V53: =IF($B53<>"PRC_RESID","",IF(V$7=2005+OFFSET(AGR!$B$49,$AX53,SUMIF($B$10:$B$14,"NCAP_TLIFE",$AY$10:$AY$14)),0,"")) ->  | W53: =IF($B53<>"PRC_RESID","",IF(W$7=2005+OFFSET(AGR!$B$49,$AX53,SUMIF($B$10:$B$14,"NCAP_TLIFE",$AY$10:$AY$14)),0,"")) ->  | X53: =IF($B53<>"PRC_RESID","",IF(X$7=2005+OFFSET(AGR!$B$49,$AX53,SUMIF($B$10:$B$14,"NCAP_TLIFE",$AY$10:$AY$14)),0,"")) ->  | Y53: =IF($B53<>"PRC_RESID","",IF(Y$7=2005+OFFSET(AGR!$B$49,$AX53,SUMIF($B$10:$B$14,"NCAP_TLIFE",$AY$10:$AY$14)),0,"")) ->  | Z53: =IF($B53<>"PRC_RESID","",IF(Z$7=2005+OFFSET(AGR!$B$49,$AX53,SUMIF($B$10:$B$14,"NCAP_TLIFE",$AY$10:$AY$14)),0,"")) ->  | AA53: =IF($B53<>"PRC_RESID","",IF(AA$7=2005+OFFSET(AGR!$B$49,$AX53,SUMIF($B$10:$B$14,"NCAP_TLIFE",$AY$10:$AY$14)),0,"")) ->  | AB53: =IF($B53<>"PRC_RESID","",IF(AB$7=2005+OFFSET(AGR!$B$49,$AX53,SUMIF($B$10:$B$14,"NCAP_TLIFE",$AY$10:$AY$14)),0,"")) ->  | AC53: =IF($B53<>"PRC_RESID","",IF(AC$7=2005+OFFSET(AGR!$B$49,$AX53,SUMIF($B$10:$B$14,"NCAP_TLIFE",$AY$10:$AY$14)),0,"")) ->  | AD53: =IF($B53<>"PRC_RESID","",IF(AD$7=2005+OFFSET(AGR!$B$49,$AX53,SUMIF($B$10:$B$14,"NCAP_TLIFE",$AY$10:$AY$14)),0,"")) ->  | AE53: =IF($B53<>"PRC_RESID","",IF(AE$7=2005+OFFSET(AGR!$B$49,$AX53,SUMIF($B$10:$B$14,"NCAP_TLIFE",$AY$10:$AY$14)),0,"")) ->  | AF53: =IF($B53<>"PRC_RESID","",IF(AF$7=2005+OFFSET(AGR!$B$49,$AX53,SUMIF($B$10:$B$14,"NCAP_TLIFE",$AY$10:$AY$14)),0,"")) ->  | AG53: =IF($B53<>"PRC_RESID","",IF(AG$7=2005+OFFSET(AGR!$B$49,$AX53,SUMIF($B$10:$B$14,"NCAP_TLIFE",$AY$10:$AY$14)),0,"")) ->  | AH53: =IF($B53<>"PRC_RESID","",IF(AH$7=2005+OFFSET(AGR!$B$49,$AX53,SUMIF($B$10:$B$14,"NCAP_TLIFE",$AY$10:$AY$14)),0,"")) ->  | AM53: =IF($B53<>"PRC_RESID","",IF(AM$7=2005+OFFSET(AGR!$B$49,$AX53,SUMIF($B$10:$B$14,"NCAP_TLIFE",$AY$10:$AY$14)),0,"")) ->  | AR53: =IF($B53<>"PRC_RESID","",IF(AR$7=2005+OFFSET(AGR!$B$49,$AX53,SUMIF($B$10:$B$14,"NCAP_TLIFE",$AY$10:$AY$14)),0,"")) ->  | AS53: =IF($B53<>"PRC_RESID","",IF(AS$7=2005+OFFSET(AGR!$B$49,$AX53,SUMIF($B$10:$B$14,"NCAP_TLIFE",$AY$10:$AY$14)),0,"")) ->  | AT53: =IF($B53<>"PRC_RESID","",IF(AT$7=2005+OFFSET(AGR!$B$49,$AX53,SUMIF($B$10:$B$14,"NCAP_TLIFE",$AY$10:$AY$14)),0,"")) ->  | AU53: =IF($B53<>"PRC_RESID","",IF(AU$7=2005+OFFSET(AGR!$B$49,$AX53,SUMIF($B$10:$B$14,"NCAP_TLIFE",$AY$10:$AY$14)),0,"")) ->  | AW53: =IF(AX52=AGR!$W$72,AW52+1,AW52) -> 2 | AX53: 15
A54: =IF(LEFT(OFFSET(AGR!$A$49,AX54,0),2)="\I","*","") ->  | B54: NCAP_AFA | C54: =IF($A54="*","",OFFSET(AGR!$B$49,AX54,0)) -> AIODS-E | D54: - | E54: - | F54: - | G54: - | H54: UP | I54: 0 | J54: =IF($A54="*","",OFFSET(AGR!$B$49,AX54,SUMIF($B$10:$B$14,B54,$AY$10:$AY$14))) -> 0.814 | K54: =IF($B54<>"PRC_RESID","",IF(K$7=2005+OFFSET(AGR!$B$49,$AX54,SUMIF($B$10:$B$14,"NCAP_TLIFE",$AY$10:$AY$14)),0,"")) ->  | L54: =IF($B54<>"PRC_RESID","",IF(L$7=2005+OFFSET(AGR!$B$49,$AX54,SUMIF($B$10:$B$14,"NCAP_TLIFE",$AY$10:$AY$14)),0,"")) ->  | M54: =IF($B54<>"PRC_RESID","",IF(M$7=2005+OFFSET(AGR!$B$49,$AX54,SUMIF($B$10:$B$14,"NCAP_TLIFE",$AY$10:$AY$14)),0,"")) ->  | N54: =IF($B54<>"PRC_RESID","",IF(N$7=2005+OFFSET(AGR!$B$49,$AX54,SUMIF($B$10:$B$14,"NCAP_TLIFE",$AY$10:$AY$14)),0,"")) ->  | O54: =IF($B54<>"PRC_RESID","",IF(O$7=2005+OFFSET(AGR!$B$49,$AX54,SUMIF($B$10:$B$14,"NCAP_TLIFE",$AY$10:$AY$14)),0,"")) ->  | P54: =IF($B54<>"PRC_RESID","",IF(P$7=2005+OFFSET(AGR!$B$49,$AX54,SUMIF($B$10:$B$14,"NCAP_TLIFE",$AY$10:$AY$14)),0,"")) ->  | Q54: =IF($B54<>"PRC_RESID","",IF(Q$7=2005+OFFSET(AGR!$B$49,$AX54,SUMIF($B$10:$B$14,"NCAP_TLIFE",$AY$10:$AY$14)),0,"")) ->  | R54: =IF($B54<>"PRC_RESID","",IF(R$7=2005+OFFSET(AGR!$B$49,$AX54,SUMIF($B$10:$B$14,"NCAP_TLIFE",$AY$10:$AY$14)),0,"")) ->  | S54: =IF($B54<>"PRC_RESID","",IF(S$7=2005+OFFSET(AGR!$B$49,$AX54,SUMIF($B$10:$B$14,"NCAP_TLIFE",$AY$10:$AY$14)),0,"")) ->  | T54: =IF($B54<>"PRC_RESID","",IF(T$7=2005+OFFSET(AGR!$B$49,$AX54,SUMIF($B$10:$B$14,"NCAP_TLIFE",$AY$10:$AY$14)),0,"")) ->  | U54: =IF($B54<>"PRC_RESID","",IF(U$7=2005+OFFSET(AGR!$B$49,$AX54,SUMIF($B$10:$B$14,"NCAP_TLIFE",$AY$10:$AY$14)),0,"")) ->  | V54: =IF($B54<>"PRC_RESID","",IF(V$7=2005+OFFSET(AGR!$B$49,$AX54,SUMIF($B$10:$B$14,"NCAP_TLIFE",$AY$10:$AY$14)),0,"")) ->  | W54: =IF($B54<>"PRC_RESID","",IF(W$7=2005+OFFSET(AGR!$B$49,$AX54,SUMIF($B$10:$B$14,"NCAP_TLIFE",$AY$10:$AY$14)),0,"")) ->  | X54: =IF($B54<>"PRC_RESID","",IF(X$7=2005+OFFSET(AGR!$B$49,$AX54,SUMIF($B$10:$B$14,"NCAP_TLIFE",$AY$10:$AY$14)),0,"")) ->  | Y54: =IF($B54<>"PRC_RESID","",IF(Y$7=2005+OFFSET(AGR!$B$49,$AX54,SUMIF($B$10:$B$14,"NCAP_TLIFE",$AY$10:$AY$14)),0,"")) ->  | Z54: =IF($B54<>"PRC_RESID","",IF(Z$7=2005+OFFSET(AGR!$B$49,$AX54,SUMIF($B$10:$B$14,"NCAP_TLIFE",$AY$10:$AY$14)),0,"")) ->  | AA54: =IF($B54<>"PRC_RESID","",IF(AA$7=2005+OFFSET(AGR!$B$49,$AX54,SUMIF($B$10:$B$14,"NCAP_TLIFE",$AY$10:$AY$14)),0,"")) ->  | AB54: =IF($B54<>"PRC_RESID","",IF(AB$7=2005+OFFSET(AGR!$B$49,$AX54,SUMIF($B$10:$B$14,"NCAP_TLIFE",$AY$10:$AY$14)),0,"")) ->  | AC54: =IF($B54<>"PRC_RESID","",IF(AC$7=2005+OFFSET(AGR!$B$49,$AX54,SUMIF($B$10:$B$14,"NCAP_TLIFE",$AY$10:$AY$14)),0,"")) ->  | AD54: =IF($B54<>"PRC_RESID","",IF(AD$7=2005+OFFSET(AGR!$B$49,$AX54,SUMIF($B$10:$B$14,"NCAP_TLIFE",$AY$10:$AY$14)),0,"")) ->  | AE54: =IF($B54<>"PRC_RESID","",IF(AE$7=2005+OFFSET(AGR!$B$49,$AX54,SUMIF($B$10:$B$14,"NCAP_TLIFE",$AY$10:$AY$14)),0,"")) ->  | AF54: =IF($B54<>"PRC_RESID","",IF(AF$7=2005+OFFSET(AGR!$B$49,$AX54,SUMIF($B$10:$B$14,"NCAP_TLIFE",$AY$10:$AY$14)),0,"")) ->  | AG54: =IF($B54<>"PRC_RESID","",IF(AG$7=2005+OFFSET(AGR!$B$49,$AX54,SUMIF($B$10:$B$14,"NCAP_TLIFE",$AY$10:$AY$14)),0,"")) ->  | AH54: =IF($B54<>"PRC_RESID","",IF(AH$7=2005+OFFSET(AGR!$B$49,$AX54,SUMIF($B$10:$B$14,"NCAP_TLIFE",$AY$10:$AY$14)),0,"")) ->  | AM54: =IF($B54<>"PRC_RESID","",IF(AM$7=2005+OFFSET(AGR!$B$49,$AX54,SUMIF($B$10:$B$14,"NCAP_TLIFE",$AY$10:$AY$14)),0,"")) ->  | AR54: =IF($B54<>"PRC_RESID","",IF(AR$7=2005+OFFSET(AGR!$B$49,$AX54,SUMIF($B$10:$B$14,"NCAP_TLIFE",$AY$10:$AY$14)),0,"")) ->  | AS54: =IF($B54<>"PRC_RESID","",IF(AS$7=2005+OFFSET(AGR!$B$49,$AX54,SUMIF($B$10:$B$14,"NCAP_TLIFE",$AY$10:$AY$14)),0,"")) ->  | AT54: =IF($B54<>"PRC_RESID","",IF(AT$7=2005+OFFSET(AGR!$B$49,$AX54,SUMIF($B$10:$B$14,"NCAP_TLIFE",$AY$10:$AY$14)),0,"")) ->  | AU54: =IF($B54<>"PRC_RESID","",IF(AU$7=2005+OFFSET(AGR!$B$49,$AX54,SUMIF($B$10:$B$14,"NCAP_TLIFE",$AY$10:$AY$14)),0,"")) ->  | AW54: =IF(AX53=AGR!$W$72,AW53+1,AW53) -> 2 | AX54: 16
A55: =IF(LEFT(OFFSET(AGR!$A$49,AX55,0),2)="\I","*","") ->  | B55: NCAP_AFA | C55: =IF($A55="*","",OFFSET(AGR!$B$49,AX55,0)) -> AIELC-E | D55: - | E55: - | F55: - | G55: - | H55: UP | I55: 0 | J55: =IF($A55="*","",OFFSET(AGR!$B$49,AX55,SUMIF($B$10:$B$14,B55,$AY$10:$AY$14))) -> 0.814 | K55: =IF($B55<>"PRC_RESID","",IF(K$7=2005+OFFSET(AGR!$B$49,$AX55,SUMIF($B$10:$B$14,"NCAP_TLIFE",$AY$10:$AY$14)),0,"")) ->  | L55: =IF($B55<>"PRC_RESID","",IF(L$7=2005+OFFSET(AGR!$B$49,$AX55,SUMIF($B$10:$B$14,"NCAP_TLIFE",$AY$10:$AY$14)),0,"")) ->  | M55: =IF($B55<>"PRC_RESID","",IF(M$7=2005+OFFSET(AGR!$B$49,$AX55,SUMIF($B$10:$B$14,"NCAP_TLIFE",$AY$10:$AY$14)),0,"")) ->  | N55: =IF($B55<>"PRC_RESID","",IF(N$7=2005+OFFSET(AGR!$B$49,$AX55,SUMIF($B$10:$B$14,"NCAP_TLIFE",$AY$10:$AY$14)),0,"")) ->  | O55: =IF($B55<>"PRC_RESID","",IF(O$7=2005+OFFSET(AGR!$B$49,$AX55,SUMIF($B$10:$B$14,"NCAP_TLIFE",$AY$10:$AY$14)),0,"")) ->  | P55: =IF($B55<>"PRC_RESID","",IF(P$7=2005+OFFSET(AGR!$B$49,$AX55,SUMIF($B$10:$B$14,"NCAP_TLIFE",$AY$10:$AY$14)),0,"")) ->  | Q55: =IF($B55<>"PRC_RESID","",IF(Q$7=2005+OFFSET(AGR!$B$49,$AX55,SUMIF($B$10:$B$14,"NCAP_TLIFE",$AY$10:$AY$14)),0,"")) ->  | R55: =IF($B55<>"PRC_RESID","",IF(R$7=2005+OFFSET(AGR!$B$49,$AX55,SUMIF($B$10:$B$14,"NCAP_TLIFE",$AY$10:$AY$14)),0,"")) ->  | S55: =IF($B55<>"PRC_RESID","",IF(S$7=2005+OFFSET(AGR!$B$49,$AX55,SUMIF($B$10:$B$14,"NCAP_TLIFE",$AY$10:$AY$14)),0,"")) ->  | T55: =IF($B55<>"PRC_RESID","",IF(T$7=2005+OFFSET(AGR!$B$49,$AX55,SUMIF($B$10:$B$14,"NCAP_TLIFE",$AY$10:$AY$14)),0,"")) ->  | U55: =IF($B55<>"PRC_RESID","",IF(U$7=2005+OFFSET(AGR!$B$49,$AX55,SUMIF($B$10:$B$14,"NCAP_TLIFE",$AY$10:$AY$14)),0,"")) ->  | V55: =IF($B55<>"PRC_RESID","",IF(V$7=2005+OFFSET(AGR!$B$49,$AX55,SUMIF($B$10:$B$14,"NCAP_TLIFE",$AY$10:$AY$14)),0,"")) ->  | W55: =IF($B55<>"PRC_RESID","",IF(W$7=2005+OFFSET(AGR!$B$49,$AX55,SUMIF($B$10:$B$14,"NCAP_TLIFE",$AY$10:$AY$14)),0,"")) ->  | X55: =IF($B55<>"PRC_RESID","",IF(X$7=2005+OFFSET(AGR!$B$49,$AX55,SUMIF($B$10:$B$14,"NCAP_TLIFE",$AY$10:$AY$14)),0,"")) ->  | Y55: =IF($B55<>"PRC_RESID","",IF(Y$7=2005+OFFSET(AGR!$B$49,$AX55,SUMIF($B$10:$B$14,"NCAP_TLIFE",$AY$10:$AY$14)),0,"")) ->  | Z55: =IF($B55<>"PRC_RESID","",IF(Z$7=2005+OFFSET(AGR!$B$49,$AX55,SUMIF($B$10:$B$14,"NCAP_TLIFE",$AY$10:$AY$14)),0,"")) ->  | AA55: =IF($B55<>"PRC_RESID","",IF(AA$7=2005+OFFSET(AGR!$B$49,$AX55,SUMIF($B$10:$B$14,"NCAP_TLIFE",$AY$10:$AY$14)),0,"")) ->  | AB55: =IF($B55<>"PRC_RESID","",IF(AB$7=2005+OFFSET(AGR!$B$49,$AX55,SUMIF($B$10:$B$14,"NCAP_TLIFE",$AY$10:$AY$14)),0,"")) ->  | AC55: =IF($B55<>"PRC_RESID","",IF(AC$7=2005+OFFSET(AGR!$B$49,$AX55,SUMIF($B$10:$B$14,"NCAP_TLIFE",$AY$10:$AY$14)),0,"")) ->  | AD55: =IF($B55<>"PRC_RESID","",IF(AD$7=2005+OFFSET(AGR!$B$49,$AX55,SUMIF($B$10:$B$14,"NCAP_TLIFE",$AY$10:$AY$14)),0,"")) ->  | AE55: =IF($B55<>"PRC_RESID","",IF(AE$7=2005+OFFSET(AGR!$B$49,$AX55,SUMIF($B$10:$B$14,"NCAP_TLIFE",$AY$10:$AY$14)),0,"")) ->  | AF55: =IF($B55<>"PRC_RESID","",IF(AF$7=2005+OFFSET(AGR!$B$49,$AX55,SUMIF($B$10:$B$14,"NCAP_TLIFE",$AY$10:$AY$14)),0,"")) ->  | AG55: =IF($B55<>"PRC_RESID","",IF(AG$7=2005+OFFSET(AGR!$B$49,$AX55,SUMIF($B$10:$B$14,"NCAP_TLIFE",$AY$10:$AY$14)),0,"")) ->  | AH55: =IF($B55<>"PRC_RESID","",IF(AH$7=2005+OFFSET(AGR!$B$49,$AX55,SUMIF($B$10:$B$14,"NCAP_TLIFE",$AY$10:$AY$14)),0,"")) ->  | AM55: =IF($B55<>"PRC_RESID","",IF(AM$7=2005+OFFSET(AGR!$B$49,$AX55,SUMIF($B$10:$B$14,"NCAP_TLIFE",$AY$10:$AY$14)),0,"")) ->  | AR55: =IF($B55<>"PRC_RESID","",IF(AR$7=2005+OFFSET(AGR!$B$49,$AX55,SUMIF($B$10:$B$14,"NCAP_TLIFE",$AY$10:$AY$14)),0,"")) ->  | AS55: =IF($B55<>"PRC_RESID","",IF(AS$7=2005+OFFSET(AGR!$B$49,$AX55,SUMIF($B$10:$B$14,"NCAP_TLIFE",$AY$10:$AY$14)),0,"")) ->  | AT55: =IF($B55<>"PRC_RESID","",IF(AT$7=2005+OFFSET(AGR!$B$49,$AX55,SUMIF($B$10:$B$14,"NCAP_TLIFE",$AY$10:$AY$14)),0,"")) ->  | AU55: =IF($B55<>"PRC_RESID","",IF(AU$7=2005+OFFSET(AGR!$B$49,$AX55,SUMIF($B$10:$B$14,"NCAP_TLIFE",$AY$10:$AY$14)),0,"")) ->  | AW55: =IF(AX54=AGR!$W$72,AW54+1,AW54) -> 2 | AX55: 17
A56: =IF(LEFT(OFFSET(AGR!$A$49,AX56,0),2)="\I","*","") ->  | B56: NCAP_AFA | C56: =IF($A56="*","",OFFSET(AGR!$B$49,AX56,0)) -> AIOGS-E | D56: - | E56: - | F56: - | G56: - | H56: UP | I56: 0 | J56: =IF($A56="*","",OFFSET(AGR!$B$49,AX56,SUMIF($B$10:$B$14,B56,$AY$10:$AY$14))) -> 0.814 | K56: =IF($B56<>"PRC_RESID","",IF(K$7=2005+OFFSET(AGR!$B$49,$AX56,SUMIF($B$10:$B$14,"NCAP_TLIFE",$AY$10:$AY$14)),0,"")) ->  | L56: =IF($B56<>"PRC_RESID","",IF(L$7=2005+OFFSET(AGR!$B$49,$AX56,SUMIF($B$10:$B$14,"NCAP_TLIFE",$AY$10:$AY$14)),0,"")) ->  | M56: =IF($B56<>"PRC_RESID","",IF(M$7=2005+OFFSET(AGR!$B$49,$AX56,SUMIF($B$10:$B$14,"NCAP_TLIFE",$AY$10:$AY$14)),0,"")) ->  | N56: =IF($B56<>"PRC_RESID","",IF(N$7=2005+OFFSET(AGR!$B$49,$AX56,SUMIF($B$10:$B$14,"NCAP_TLIFE",$AY$10:$AY$14)),0,"")) ->  | O56: =IF($B56<>"PRC_RESID","",IF(O$7=2005+OFFSET(AGR!$B$49,$AX56,SUMIF($B$10:$B$14,"NCAP_TLIFE",$AY$10:$AY$14)),0,"")) ->  | P56: =IF($B56<>"PRC_RESID","",IF(P$7=2005+OFFSET(AGR!$B$49,$AX56,SUMIF($B$10:$B$14,"NCAP_TLIFE",$AY$10:$AY$14)),0,"")) ->  | Q56: =IF($B56<>"PRC_RESID","",IF(Q$7=2005+OFFSET(AGR!$B$49,$AX56,SUMIF($B$10:$B$14,"NCAP_TLIFE",$AY$10:$AY$14)),0,"")) ->  | R56: =IF($B56<>"PRC_RESID","",IF(R$7=2005+OFFSET(AGR!$B$49,$AX56,SUMIF($B$10:$B$14,"NCAP_TLIFE",$AY$10:$AY$14)),0,"")) ->  | S56: =IF($B56<>"PRC_RESID","",IF(S$7=2005+OFFSET(AGR!$B$49,$AX56,SUMIF($B$10:$B$14,"NCAP_TLIFE",$AY$10:$AY$14)),0,"")) ->  | T56: =IF($B56<>"PRC_RESID","",IF(T$7=2005+OFFSET(AGR!$B$49,$AX56,SUMIF($B$10:$B$14,"NCAP_TLIFE",$AY$10:$AY$14)),0,"")) ->  | U56: =IF($B56<>"PRC_RESID","",IF(U$7=2005+OFFSET(AGR!$B$49,$AX56,SUMIF($B$10:$B$14,"NCAP_TLIFE",$AY$10:$AY$14)),0,"")) ->  | V56: =IF($B56<>"PRC_RESID","",IF(V$7=2005+OFFSET(AGR!$B$49,$AX56,SUMIF($B$10:$B$14,"NCAP_TLIFE",$AY$10:$AY$14)),0,"")) ->  | W56: =IF($B56<>"PRC_RESID","",IF(W$7=2005+OFFSET(AGR!$B$49,$AX56,SUMIF($B$10:$B$14,"NCAP_TLIFE",$AY$10:$AY$14)),0,"")) ->  | X56: =IF($B56<>"PRC_RESID","",IF(X$7=2005+OFFSET(AGR!$B$49,$AX56,SUMIF($B$10:$B$14,"NCAP_TLIFE",$AY$10:$AY$14)),0,"")) ->  | Y56: =IF($B56<>"PRC_RESID","",IF(Y$7=2005+OFFSET(AGR!$B$49,$AX56,SUMIF($B$10:$B$14,"NCAP_TLIFE",$AY$10:$AY$14)),0,"")) ->  | Z56: =IF($B56<>"PRC_RESID","",IF(Z$7=2005+OFFSET(AGR!$B$49,$AX56,SUMIF($B$10:$B$14,"NCAP_TLIFE",$AY$10:$AY$14)),0,"")) ->  | AA56: =IF($B56<>"PRC_RESID","",IF(AA$7=2005+OFFSET(AGR!$B$49,$AX56,SUMIF($B$10:$B$14,"NCAP_TLIFE",$AY$10:$AY$14)),0,"")) ->  | AB56: =IF($B56<>"PRC_RESID","",IF(AB$7=2005+OFFSET(AGR!$B$49,$AX56,SUMIF($B$10:$B$14,"NCAP_TLIFE",$AY$10:$AY$14)),0,"")) ->  | AC56: =IF($B56<>"PRC_RESID","",IF(AC$7=2005+OFFSET(AGR!$B$49,$AX56,SUMIF($B$10:$B$14,"NCAP_TLIFE",$AY$10:$AY$14)),0,"")) ->  | AD56: =IF($B56<>"PRC_RESID","",IF(AD$7=2005+OFFSET(AGR!$B$49,$AX56,SUMIF($B$10:$B$14,"NCAP_TLIFE",$AY$10:$AY$14)),0,"")) ->  | AE56: =IF($B56<>"PRC_RESID","",IF(AE$7=2005+OFFSET(AGR!$B$49,$AX56,SUMIF($B$10:$B$14,"NCAP_TLIFE",$AY$10:$AY$14)),0,"")) ->  | AF56: =IF($B56<>"PRC_RESID","",IF(AF$7=2005+OFFSET(AGR!$B$49,$AX56,SUMIF($B$10:$B$14,"NCAP_TLIFE",$AY$10:$AY$14)),0,"")) ->  | AG56: =IF($B56<>"PRC_RESID","",IF(AG$7=2005+OFFSET(AGR!$B$49,$AX56,SUMIF($B$10:$B$14,"NCAP_TLIFE",$AY$10:$AY$14)),0,"")) ->  | AH56: =IF($B56<>"PRC_RESID","",IF(AH$7=2005+OFFSET(AGR!$B$49,$AX56,SUMIF($B$10:$B$14,"NCAP_TLIFE",$AY$10:$AY$14)),0,"")) ->  | AM56: =IF($B56<>"PRC_RESID","",IF(AM$7=2005+OFFSET(AGR!$B$49,$AX56,SUMIF($B$10:$B$14,"NCAP_TLIFE",$AY$10:$AY$14)),0,"")) ->  | AR56: =IF($B56<>"PRC_RESID","",IF(AR$7=2005+OFFSET(AGR!$B$49,$AX56,SUMIF($B$10:$B$14,"NCAP_TLIFE",$AY$10:$AY$14)),0,"")) ->  | AS56: =IF($B56<>"PRC_RESID","",IF(AS$7=2005+OFFSET(AGR!$B$49,$AX56,SUMIF($B$10:$B$14,"NCAP_TLIFE",$AY$10:$AY$14)),0,"")) ->  | AT56: =IF($B56<>"PRC_RESID","",IF(AT$7=2005+OFFSET(AGR!$B$49,$AX56,SUMIF($B$10:$B$14,"NCAP_TLIFE",$AY$10:$AY$14)),0,"")) ->  | AU56: =IF($B56<>"PRC_RESID","",IF(AU$7=2005+OFFSET(AGR!$B$49,$AX56,SUMIF($B$10:$B$14,"NCAP_TLIFE",$AY$10:$AY$14)),0,"")) ->  | AW56: =IF(AX55=AGR!$W$72,AW55+1,AW55) -> 2 | AX56: 18
A57: =IF(LEFT(OFFSET(AGR!$A$49,AX57,0),2)="\I","*","") -> * | C57: =IF($A57="*","",OFFSET(AGR!$B$49,AX57,0)) ->  | J57: =IF($A57="*","",OFFSET(AGR!$B$49,AX57,SUMIF($B$10:$B$14,B57,$AY$10:$AY$14))) ->  | K57: =IF($B57<>"PRC_RESID","",IF(K$7=2005+OFFSET(AGR!$B$49,$AX57,SUMIF($B$10:$B$14,"NCAP_TLIFE",$AY$10:$AY$14)),0,"")) ->  | L57: =IF($B57<>"PRC_RESID","",IF(L$7=2005+OFFSET(AGR!$B$49,$AX57,SUMIF($B$10:$B$14,"NCAP_TLIFE",$AY$10:$AY$14)),0,"")) ->  | M57: =IF($B57<>"PRC_RESID","",IF(M$7=2005+OFFSET(AGR!$B$49,$AX57,SUMIF($B$10:$B$14,"NCAP_TLIFE",$AY$10:$AY$14)),0,"")) ->  | N57: =IF($B57<>"PRC_RESID","",IF(N$7=2005+OFFSET(AGR!$B$49,$AX57,SUMIF($B$10:$B$14,"NCAP_TLIFE",$AY$10:$AY$14)),0,"")) ->  | O57: =IF($B57<>"PRC_RESID","",IF(O$7=2005+OFFSET(AGR!$B$49,$AX57,SUMIF($B$10:$B$14,"NCAP_TLIFE",$AY$10:$AY$14)),0,"")) ->  | P57: =IF($B57<>"PRC_RESID","",IF(P$7=2005+OFFSET(AGR!$B$49,$AX57,SUMIF($B$10:$B$14,"NCAP_TLIFE",$AY$10:$AY$14)),0,"")) ->  | Q57: =IF($B57<>"PRC_RESID","",IF(Q$7=2005+OFFSET(AGR!$B$49,$AX57,SUMIF($B$10:$B$14,"NCAP_TLIFE",$AY$10:$AY$14)),0,"")) ->  | R57: =IF($B57<>"PRC_RESID","",IF(R$7=2005+OFFSET(AGR!$B$49,$AX57,SUMIF($B$10:$B$14,"NCAP_TLIFE",$AY$10:$AY$14)),0,"")) ->  | S57: =IF($B57<>"PRC_RESID","",IF(S$7=2005+OFFSET(AGR!$B$49,$AX57,SUMIF($B$10:$B$14,"NCAP_TLIFE",$AY$10:$AY$14)),0,"")) ->  | T57: =IF($B57<>"PRC_RESID","",IF(T$7=2005+OFFSET(AGR!$B$49,$AX57,SUMIF($B$10:$B$14,"NCAP_TLIFE",$AY$10:$AY$14)),0,"")) ->  | U57: =IF($B57<>"PRC_RESID","",IF(U$7=2005+OFFSET(AGR!$B$49,$AX57,SUMIF($B$10:$B$14,"NCAP_TLIFE",$AY$10:$AY$14)),0,"")) ->  | V57: =IF($B57<>"PRC_RESID","",IF(V$7=2005+OFFSET(AGR!$B$49,$AX57,SUMIF($B$10:$B$14,"NCAP_TLIFE",$AY$10:$AY$14)),0,"")) ->  | W57: =IF($B57<>"PRC_RESID","",IF(W$7=2005+OFFSET(AGR!$B$49,$AX57,SUMIF($B$10:$B$14,"NCAP_TLIFE",$AY$10:$AY$14)),0,"")) ->  | X57: =IF($B57<>"PRC_RESID","",IF(X$7=2005+OFFSET(AGR!$B$49,$AX57,SUMIF($B$10:$B$14,"NCAP_TLIFE",$AY$10:$AY$14)),0,"")) ->  | Y57: =IF($B57<>"PRC_RESID","",IF(Y$7=2005+OFFSET(AGR!$B$49,$AX57,SUMIF($B$10:$B$14,"NCAP_TLIFE",$AY$10:$AY$14)),0,"")) ->  | Z57: =IF($B57<>"PRC_RESID","",IF(Z$7=2005+OFFSET(AGR!$B$49,$AX57,SUMIF($B$10:$B$14,"NCAP_TLIFE",$AY$10:$AY$14)),0,"")) ->  | AA57: =IF($B57<>"PRC_RESID","",IF(AA$7=2005+OFFSET(AGR!$B$49,$AX57,SUMIF($B$10:$B$14,"NCAP_TLIFE",$AY$10:$AY$14)),0,"")) ->  | AB57: =IF($B57<>"PRC_RESID","",IF(AB$7=2005+OFFSET(AGR!$B$49,$AX57,SUMIF($B$10:$B$14,"NCAP_TLIFE",$AY$10:$AY$14)),0,"")) ->  | AC57: =IF($B57<>"PRC_RESID","",IF(AC$7=2005+OFFSET(AGR!$B$49,$AX57,SUMIF($B$10:$B$14,"NCAP_TLIFE",$AY$10:$AY$14)),0,"")) ->  | AD57: =IF($B57<>"PRC_RESID","",IF(AD$7=2005+OFFSET(AGR!$B$49,$AX57,SUMIF($B$10:$B$14,"NCAP_TLIFE",$AY$10:$AY$14)),0,"")) ->  | AE57: =IF($B57<>"PRC_RESID","",IF(AE$7=2005+OFFSET(AGR!$B$49,$AX57,SUMIF($B$10:$B$14,"NCAP_TLIFE",$AY$10:$AY$14)),0,"")) ->  | AF57: =IF($B57<>"PRC_RESID","",IF(AF$7=2005+OFFSET(AGR!$B$49,$AX57,SUMIF($B$10:$B$14,"NCAP_TLIFE",$AY$10:$AY$14)),0,"")) ->  | AG57: =IF($B57<>"PRC_RESID","",IF(AG$7=2005+OFFSET(AGR!$B$49,$AX57,SUMIF($B$10:$B$14,"NCAP_TLIFE",$AY$10:$AY$14)),0,"")) ->  | AH57: =IF($B57<>"PRC_RESID","",IF(AH$7=2005+OFFSET(AGR!$B$49,$AX57,SUMIF($B$10:$B$14,"NCAP_TLIFE",$AY$10:$AY$14)),0,"")) ->  | AM57: =IF($B57<>"PRC_RESID","",IF(AM$7=2005+OFFSET(AGR!$B$49,$AX57,SUMIF($B$10:$B$14,"NCAP_TLIFE",$AY$10:$AY$14)),0,"")) ->  | AR57: =IF($B57<>"PRC_RESID","",IF(AR$7=2005+OFFSET(AGR!$B$49,$AX57,SUMIF($B$10:$B$14,"NCAP_TLIFE",$AY$10:$AY$14)),0,"")) ->  | AS57: =IF($B57<>"PRC_RESID","",IF(AS$7=2005+OFFSET(AGR!$B$49,$AX57,SUMIF($B$10:$B$14,"NCAP_TLIFE",$AY$10:$AY$14)),0,"")) ->  | AT57: =IF($B57<>"PRC_RESID","",IF(AT$7=2005+OFFSET(AGR!$B$49,$AX57,SUMIF($B$10:$B$14,"NCAP_TLIFE",$AY$10:$AY$14)),0,"")) ->  | AU57: =IF($B57<>"PRC_RESID","",IF(AU$7=2005+OFFSET(AGR!$B$49,$AX57,SUMIF($B$10:$B$14,"NCAP_TLIFE",$AY$10:$AY$14)),0,"")) ->  | AW57: =IF(AX56=AGR!$W$72,AW56+1,AW56) -> 2 | AX57: 19
A58: =IF(LEFT(OFFSET(AGR!$A$49,AX58,0),2)="\I","*","") -> * | C58: =IF($A58="*","",OFFSET(AGR!$B$49,AX58,0)) ->  | J58: =IF($A58="*","",OFFSET(AGR!$B$49,AX58,SUMIF($B$10:$B$14,B58,$AY$10:$AY$14))) ->  | K58: =IF($B58<>"PRC_RESID","",IF(K$7=2005+OFFSET(AGR!$B$49,$AX58,SUMIF($B$10:$B$14,"NCAP_TLIFE",$AY$10:$AY$14)),0,"")) ->  | L58: =IF($B58<>"PRC_RESID","",IF(L$7=2005+OFFSET(AGR!$B$49,$AX58,SUMIF($B$10:$B$14,"NCAP_TLIFE",$AY$10:$AY$14)),0,"")) ->  | M58: =IF($B58<>"PRC_RESID","",IF(M$7=2005+OFFSET(AGR!$B$49,$AX58,SUMIF($B$10:$B$14,"NCAP_TLIFE",$AY$10:$AY$14)),0,"")) ->  | N58: =IF($B58<>"PRC_RESID","",IF(N$7=2005+OFFSET(AGR!$B$49,$AX58,SUMIF($B$10:$B$14,"NCAP_TLIFE",$AY$10:$AY$14)),0,"")) ->  | O58: =IF($B58<>"PRC_RESID","",IF(O$7=2005+OFFSET(AGR!$B$49,$AX58,SUMIF($B$10:$B$14,"NCAP_TLIFE",$AY$10:$AY$14)),0,"")) ->  | P58: =IF($B58<>"PRC_RESID","",IF(P$7=2005+OFFSET(AGR!$B$49,$AX58,SUMIF($B$10:$B$14,"NCAP_TLIFE",$AY$10:$AY$14)),0,"")) ->  | Q58: =IF($B58<>"PRC_RESID","",IF(Q$7=2005+OFFSET(AGR!$B$49,$AX58,SUMIF($B$10:$B$14,"NCAP_TLIFE",$AY$10:$AY$14)),0,"")) ->  | R58: =IF($B58<>"PRC_RESID","",IF(R$7=2005+OFFSET(AGR!$B$49,$AX58,SUMIF($B$10:$B$14,"NCAP_TLIFE",$AY$10:$AY$14)),0,"")) ->  | S58: =IF($B58<>"PRC_RESID","",IF(S$7=2005+OFFSET(AGR!$B$49,$AX58,SUMIF($B$10:$B$14,"NCAP_TLIFE",$AY$10:$AY$14)),0,"")) ->  | T58: =IF($B58<>"PRC_RESID","",IF(T$7=2005+OFFSET(AGR!$B$49,$AX58,SUMIF($B$10:$B$14,"NCAP_TLIFE",$AY$10:$AY$14)),0,"")) ->  | U58: =IF($B58<>"PRC_RESID","",IF(U$7=2005+OFFSET(AGR!$B$49,$AX58,SUMIF($B$10:$B$14,"NCAP_TLIFE",$AY$10:$AY$14)),0,"")) ->  | V58: =IF($B58<>"PRC_RESID","",IF(V$7=2005+OFFSET(AGR!$B$49,$AX58,SUMIF($B$10:$B$14,"NCAP_TLIFE",$AY$10:$AY$14)),0,"")) ->  | W58: =IF($B58<>"PRC_RESID","",IF(W$7=2005+OFFSET(AGR!$B$49,$AX58,SUMIF($B$10:$B$14,"NCAP_TLIFE",$AY$10:$AY$14)),0,"")) ->  | X58: =IF($B58<>"PRC_RESID","",IF(X$7=2005+OFFSET(AGR!$B$49,$AX58,SUMIF($B$10:$B$14,"NCAP_TLIFE",$AY$10:$AY$14)),0,"")) ->  | Y58: =IF($B58<>"PRC_RESID","",IF(Y$7=2005+OFFSET(AGR!$B$49,$AX58,SUMIF($B$10:$B$14,"NCAP_TLIFE",$AY$10:$AY$14)),0,"")) ->  | Z58: =IF($B58<>"PRC_RESID","",IF(Z$7=2005+OFFSET(AGR!$B$49,$AX58,SUMIF($B$10:$B$14,"NCAP_TLIFE",$AY$10:$AY$14)),0,"")) ->  | AA58: =IF($B58<>"PRC_RESID","",IF(AA$7=2005+OFFSET(AGR!$B$49,$AX58,SUMIF($B$10:$B$14,"NCAP_TLIFE",$AY$10:$AY$14)),0,"")) ->  | AB58: =IF($B58<>"PRC_RESID","",IF(AB$7=2005+OFFSET(AGR!$B$49,$AX58,SUMIF($B$10:$B$14,"NCAP_TLIFE",$AY$10:$AY$14)),0,"")) ->  | AC58: =IF($B58<>"PRC_RESID","",IF(AC$7=2005+OFFSET(AGR!$B$49,$AX58,SUMIF($B$10:$B$14,"NCAP_TLIFE",$AY$10:$AY$14)),0,"")) ->  | AD58: =IF($B58<>"PRC_RESID","",IF(AD$7=2005+OFFSET(AGR!$B$49,$AX58,SUMIF($B$10:$B$14,"NCAP_TLIFE",$AY$10:$AY$14)),0,"")) ->  | AE58: =IF($B58<>"PRC_RESID","",IF(AE$7=2005+OFFSET(AGR!$B$49,$AX58,SUMIF($B$10:$B$14,"NCAP_TLIFE",$AY$10:$AY$14)),0,"")) ->  | AF58: =IF($B58<>"PRC_RESID","",IF(AF$7=2005+OFFSET(AGR!$B$49,$AX58,SUMIF($B$10:$B$14,"NCAP_TLIFE",$AY$10:$AY$14)),0,"")) ->  | AG58: =IF($B58<>"PRC_RESID","",IF(AG$7=2005+OFFSET(AGR!$B$49,$AX58,SUMIF($B$10:$B$14,"NCAP_TLIFE",$AY$10:$AY$14)),0,"")) ->  | AH58: =IF($B58<>"PRC_RESID","",IF(AH$7=2005+OFFSET(AGR!$B$49,$AX58,SUMIF($B$10:$B$14,"NCAP_TLIFE",$AY$10:$AY$14)),0,"")) ->  | AM58: =IF($B58<>"PRC_RESID","",IF(AM$7=2005+OFFSET(AGR!$B$49,$AX58,SUMIF($B$10:$B$14,"NCAP_TLIFE",$AY$10:$AY$14)),0,"")) ->  | AR58: =IF($B58<>"PRC_RESID","",IF(AR$7=2005+OFFSET(AGR!$B$49,$AX58,SUMIF($B$10:$B$14,"NCAP_TLIFE",$AY$10:$AY$14)),0,"")) ->  | AS58: =IF($B58<>"PRC_RESID","",IF(AS$7=2005+OFFSET(AGR!$B$49,$AX58,SUMIF($B$10:$B$14,"NCAP_TLIFE",$AY$10:$AY$14)),0,"")) ->  | AT58: =IF($B58<>"PRC_RESID","",IF(AT$7=2005+OFFSET(AGR!$B$49,$AX58,SUMIF($B$10:$B$14,"NCAP_TLIFE",$AY$10:$AY$14)),0,"")) ->  | AU58: =IF($B58<>"PRC_RESID","",IF(AU$7=2005+OFFSET(AGR!$B$49,$AX58,SUMIF($B$10:$B$14,"NCAP_TLIFE",$AY$10:$AY$14)),0,"")) ->  | AW58: =IF(AX57=AGR!$W$72,AW57+1,AW57) -> 2 | AX58: 20
A59: =IF(LEFT(OFFSET(AGR!$A$49,AX59,0),2)="\I","*","") ->  | B59: NCAP_AFA | C59: =IF($A59="*","",OFFSET(AGR!$B$49,AX59,0)) -> AOELC-E | D59: - | E59: - | F59: - | G59: - | H59: UP | I59: 0 | J59: =IF($A59="*","",OFFSET(AGR!$B$49,AX59,SUMIF($B$10:$B$14,B59,$AY$10:$AY$14))) -> 1 | K59: =IF($B59<>"PRC_RESID","",IF(K$7=2005+OFFSET(AGR!$B$49,$AX59,SUMIF($B$10:$B$14,"NCAP_TLIFE",$AY$10:$AY$14)),0,"")) ->  | L59: =IF($B59<>"PRC_RESID","",IF(L$7=2005+OFFSET(AGR!$B$49,$AX59,SUMIF($B$10:$B$14,"NCAP_TLIFE",$AY$10:$AY$14)),0,"")) ->  | M59: =IF($B59<>"PRC_RESID","",IF(M$7=2005+OFFSET(AGR!$B$49,$AX59,SUMIF($B$10:$B$14,"NCAP_TLIFE",$AY$10:$AY$14)),0,"")) ->  | N59: =IF($B59<>"PRC_RESID","",IF(N$7=2005+OFFSET(AGR!$B$49,$AX59,SUMIF($B$10:$B$14,"NCAP_TLIFE",$AY$10:$AY$14)),0,"")) ->  | O59: =IF($B59<>"PRC_RESID","",IF(O$7=2005+OFFSET(AGR!$B$49,$AX59,SUMIF($B$10:$B$14,"NCAP_TLIFE",$AY$10:$AY$14)),0,"")) ->  | P59: =IF($B59<>"PRC_RESID","",IF(P$7=2005+OFFSET(AGR!$B$49,$AX59,SUMIF($B$10:$B$14,"NCAP_TLIFE",$AY$10:$AY$14)),0,"")) ->  | Q59: =IF($B59<>"PRC_RESID","",IF(Q$7=2005+OFFSET(AGR!$B$49,$AX59,SUMIF($B$10:$B$14,"NCAP_TLIFE",$AY$10:$AY$14)),0,"")) ->  | R59: =IF($B59<>"PRC_RESID","",IF(R$7=2005+OFFSET(AGR!$B$49,$AX59,SUMIF($B$10:$B$14,"NCAP_TLIFE",$AY$10:$AY$14)),0,"")) ->  | S59: =IF($B59<>"PRC_RESID","",IF(S$7=2005+OFFSET(AGR!$B$49,$AX59,SUMIF($B$10:$B$14,"NCAP_TLIFE",$AY$10:$AY$14)),0,"")) ->  | T59: =IF($B59<>"PRC_RESID","",IF(T$7=2005+OFFSET(AGR!$B$49,$AX59,SUMIF($B$10:$B$14,"NCAP_TLIFE",$AY$10:$AY$14)),0,"")) ->  | U59: =IF($B59<>"PRC_RESID","",IF(U$7=2005+OFFSET(AGR!$B$49,$AX59,SUMIF($B$10:$B$14,"NCAP_TLIFE",$AY$10:$AY$14)),0,"")) ->  | V59: =IF($B59<>"PRC_RESID","",IF(V$7=2005+OFFSET(AGR!$B$49,$AX59,SUMIF($B$10:$B$14,"NCAP_TLIFE",$AY$10:$AY$14)),0,"")) ->  | W59: =IF($B59<>"PRC_RESID","",IF(W$7=2005+OFFSET(AGR!$B$49,$AX59,SUMIF($B$10:$B$14,"NCAP_TLIFE",$AY$10:$AY$14)),0,"")) ->  | X59: =IF($B59<>"PRC_RESID","",IF(X$7=2005+OFFSET(AGR!$B$49,$AX59,SUMIF($B$10:$B$14,"NCAP_TLIFE",$AY$10:$AY$14)),0,"")) ->  | Y59: =IF($B59<>"PRC_RESID","",IF(Y$7=2005+OFFSET(AGR!$B$49,$AX59,SUMIF($B$10:$B$14,"NCAP_TLIFE",$AY$10:$AY$14)),0,"")) ->  | Z59: =IF($B59<>"PRC_RESID","",IF(Z$7=2005+OFFSET(AGR!$B$49,$AX59,SUMIF($B$10:$B$14,"NCAP_TLIFE",$AY$10:$AY$14)),0,"")) ->  | AA59: =IF($B59<>"PRC_RESID","",IF(AA$7=2005+OFFSET(AGR!$B$49,$AX59,SUMIF($B$10:$B$14,"NCAP_TLIFE",$AY$10:$AY$14)),0,"")) ->  | AB59: =IF($B59<>"PRC_RESID","",IF(AB$7=2005+OFFSET(AGR!$B$49,$AX59,SUMIF($B$10:$B$14,"NCAP_TLIFE",$AY$10:$AY$14)),0,"")) ->  | AC59: =IF($B59<>"PRC_RESID","",IF(AC$7=2005+OFFSET(AGR!$B$49,$AX59,SUMIF($B$10:$B$14,"NCAP_TLIFE",$AY$10:$AY$14)),0,"")) ->  | AD59: =IF($B59<>"PRC_RESID","",IF(AD$7=2005+OFFSET(AGR!$B$49,$AX59,SUMIF($B$10:$B$14,"NCAP_TLIFE",$AY$10:$AY$14)),0,"")) ->  | AE59: =IF($B59<>"PRC_RESID","",IF(AE$7=2005+OFFSET(AGR!$B$49,$AX59,SUMIF($B$10:$B$14,"NCAP_TLIFE",$AY$10:$AY$14)),0,"")) ->  | AF59: =IF($B59<>"PRC_RESID","",IF(AF$7=2005+OFFSET(AGR!$B$49,$AX59,SUMIF($B$10:$B$14,"NCAP_TLIFE",$AY$10:$AY$14)),0,"")) ->  | AG59: =IF($B59<>"PRC_RESID","",IF(AG$7=2005+OFFSET(AGR!$B$49,$AX59,SUMIF($B$10:$B$14,"NCAP_TLIFE",$AY$10:$AY$14)),0,"")) ->  | AH59: =IF($B59<>"PRC_RESID","",IF(AH$7=2005+OFFSET(AGR!$B$49,$AX59,SUMIF($B$10:$B$14,"NCAP_TLIFE",$AY$10:$AY$14)),0,"")) ->  | AM59: =IF($B59<>"PRC_RESID","",IF(AM$7=2005+OFFSET(AGR!$B$49,$AX59,SUMIF($B$10:$B$14,"NCAP_TLIFE",$AY$10:$AY$14)),0,"")) ->  | AR59: =IF($B59<>"PRC_RESID","",IF(AR$7=2005+OFFSET(AGR!$B$49,$AX59,SUMIF($B$10:$B$14,"NCAP_TLIFE",$AY$10:$AY$14)),0,"")) ->  | AS59: =IF($B59<>"PRC_RESID","",IF(AS$7=2005+OFFSET(AGR!$B$49,$AX59,SUMIF($B$10:$B$14,"NCAP_TLIFE",$AY$10:$AY$14)),0,"")) ->  | AT59: =IF($B59<>"PRC_RESID","",IF(AT$7=2005+OFFSET(AGR!$B$49,$AX59,SUMIF($B$10:$B$14,"NCAP_TLIFE",$AY$10:$AY$14)),0,"")) ->  | AU59: =IF($B59<>"PRC_RESID","",IF(AU$7=2005+OFFSET(AGR!$B$49,$AX59,SUMIF($B$10:$B$14,"NCAP_TLIFE",$AY$10:$AY$14)),0,"")) ->  | AW59: =IF(AX58=AGR!$W$72,AW58+1,AW58) -> 2 | AX59: 21
A60: =IF(LEFT(OFFSET(AGR!$A$49,AX60,0),2)="\I","*","") -> * | C60: =IF($A60="*","",OFFSET(AGR!$B$49,AX60,0)) ->  | J60: =IF($A60="*","",OFFSET(AGR!$B$49,AX60,SUMIF($B$10:$B$14,B60,$AY$10:$AY$14))) ->  | K60: =IF($B60<>"PRC_RESID","",IF(K$7=2005+OFFSET(AGR!$B$49,$AX60,SUMIF($B$10:$B$14,"NCAP_TLIFE",$AY$10:$AY$14)),0,"")) ->  | L60: =IF($B60<>"PRC_RESID","",IF(L$7=2005+OFFSET(AGR!$B$49,$AX60,SUMIF($B$10:$B$14,"NCAP_TLIFE",$AY$10:$AY$14)),0,"")) ->  | M60: =IF($B60<>"PRC_RESID","",IF(M$7=2005+OFFSET(AGR!$B$49,$AX60,SUMIF($B$10:$B$14,"NCAP_TLIFE",$AY$10:$AY$14)),0,"")) ->  | N60: =IF($B60<>"PRC_RESID","",IF(N$7=2005+OFFSET(AGR!$B$49,$AX60,SUMIF($B$10:$B$14,"NCAP_TLIFE",$AY$10:$AY$14)),0,"")) ->  | O60: =IF($B60<>"PRC_RESID","",IF(O$7=2005+OFFSET(AGR!$B$49,$AX60,SUMIF($B$10:$B$14,"NCAP_TLIFE",$AY$10:$AY$14)),0,"")) ->  | P60: =IF($B60<>"PRC_RESID","",IF(P$7=2005+OFFSET(AGR!$B$49,$AX60,SUMIF($B$10:$B$14,"NCAP_TLIFE",$AY$10:$AY$14)),0,"")) ->  | Q60: =IF($B60<>"PRC_RESID","",IF(Q$7=2005+OFFSET(AGR!$B$49,$AX60,SUMIF($B$10:$B$14,"NCAP_TLIFE",$AY$10:$AY$14)),0,"")) ->  | R60: =IF($B60<>"PRC_RESID","",IF(R$7=2005+OFFSET(AGR!$B$49,$AX60,SUMIF($B$10:$B$14,"NCAP_TLIFE",$AY$10:$AY$14)),0,"")) ->  | S60: =IF($B60<>"PRC_RESID","",IF(S$7=2005+OFFSET(AGR!$B$49,$AX60,SUMIF($B$10:$B$14,"NCAP_TLIFE",$AY$10:$AY$14)),0,"")) ->  | T60: =IF($B60<>"PRC_RESID","",IF(T$7=2005+OFFSET(AGR!$B$49,$AX60,SUMIF($B$10:$B$14,"NCAP_TLIFE",$AY$10:$AY$14)),0,"")) ->  | U60: =IF($B60<>"PRC_RESID","",IF(U$7=2005+OFFSET(AGR!$B$49,$AX60,SUMIF($B$10:$B$14,"NCAP_TLIFE",$AY$10:$AY$14)),0,"")) ->  | V60: =IF($B60<>"PRC_RESID","",IF(V$7=2005+OFFSET(AGR!$B$49,$AX60,SUMIF($B$10:$B$14,"NCAP_TLIFE",$AY$10:$AY$14)),0,"")) ->  | W60: =IF($B60<>"PRC_RESID","",IF(W$7=2005+OFFSET(AGR!$B$49,$AX60,SUMIF($B$10:$B$14,"NCAP_TLIFE",$AY$10:$AY$14)),0,"")) ->  | X60: =IF($B60<>"PRC_RESID","",IF(X$7=2005+OFFSET(AGR!$B$49,$AX60,SUMIF($B$10:$B$14,"NCAP_TLIFE",$AY$10:$AY$14)),0,"")) ->  | Y60: =IF($B60<>"PRC_RESID","",IF(Y$7=2005+OFFSET(AGR!$B$49,$AX60,SUMIF($B$10:$B$14,"NCAP_TLIFE",$AY$10:$AY$14)),0,"")) ->  | Z60: =IF($B60<>"PRC_RESID","",IF(Z$7=2005+OFFSET(AGR!$B$49,$AX60,SUMIF($B$10:$B$14,"NCAP_TLIFE",$AY$10:$AY$14)),0,"")) ->  | AA60: =IF($B60<>"PRC_RESID","",IF(AA$7=2005+OFFSET(AGR!$B$49,$AX60,SUMIF($B$10:$B$14,"NCAP_TLIFE",$AY$10:$AY$14)),0,"")) ->  | AB60: =IF($B60<>"PRC_RESID","",IF(AB$7=2005+OFFSET(AGR!$B$49,$AX60,SUMIF($B$10:$B$14,"NCAP_TLIFE",$AY$10:$AY$14)),0,"")) ->  | AC60: =IF($B60<>"PRC_RESID","",IF(AC$7=2005+OFFSET(AGR!$B$49,$AX60,SUMIF($B$10:$B$14,"NCAP_TLIFE",$AY$10:$AY$14)),0,"")) ->  | AD60: =IF($B60<>"PRC_RESID","",IF(AD$7=2005+OFFSET(AGR!$B$49,$AX60,SUMIF($B$10:$B$14,"NCAP_TLIFE",$AY$10:$AY$14)),0,"")) ->  | AE60: =IF($B60<>"PRC_RESID","",IF(AE$7=2005+OFFSET(AGR!$B$49,$AX60,SUMIF($B$10:$B$14,"NCAP_TLIFE",$AY$10:$AY$14)),0,"")) ->  | AF60: =IF($B60<>"PRC_RESID","",IF(AF$7=2005+OFFSET(AGR!$B$49,$AX60,SUMIF($B$10:$B$14,"NCAP_TLIFE",$AY$10:$AY$14)),0,"")) ->  | AG60: =IF($B60<>"PRC_RESID","",IF(AG$7=2005+OFFSET(AGR!$B$49,$AX60,SUMIF($B$10:$B$14,"NCAP_TLIFE",$AY$10:$AY$14)),0,"")) ->  | AH60: =IF($B60<>"PRC_RESID","",IF(AH$7=2005+OFFSET(AGR!$B$49,$AX60,SUMIF($B$10:$B$14,"NCAP_TLIFE",$AY$10:$AY$14)),0,"")) ->  | AM60: =IF($B60<>"PRC_RESID","",IF(AM$7=2005+OFFSET(AGR!$B$49,$AX60,SUMIF($B$10:$B$14,"NCAP_TLIFE",$AY$10:$AY$14)),0,"")) ->  | AR60: =IF($B60<>"PRC_RESID","",IF(AR$7=2005+OFFSET(AGR!$B$49,$AX60,SUMIF($B$10:$B$14,"NCAP_TLIFE",$AY$10:$AY$14)),0,"")) ->  | AS60: =IF($B60<>"PRC_RESID","",IF(AS$7=2005+OFFSET(AGR!$B$49,$AX60,SUMIF($B$10:$B$14,"NCAP_TLIFE",$AY$10:$AY$14)),0,"")) ->  | AT60: =IF($B60<>"PRC_RESID","",IF(AT$7=2005+OFFSET(AGR!$B$49,$AX60,SUMIF($B$10:$B$14,"NCAP_TLIFE",$AY$10:$AY$14)),0,"")) ->  | AU60: =IF($B60<>"PRC_RESID","",IF(AU$7=2005+OFFSET(AGR!$B$49,$AX60,SUMIF($B$10:$B$14,"NCAP_TLIFE",$AY$10:$AY$14)),0,"")) ->  | AW60: =IF(AX59=AGR!$W$72,AW59+1,AW59) -> 2 | AX60: 22
A61: =IF(LEFT(OFFSET(AGR!$A$49,AX61,0),2)="\I","*","") -> * | C61: =IF($A61="*","",OFFSET(AGR!$B$49,AX61,0)) ->  | J61: =IF($A61="*","",OFFSET(AGR!$B$49,AX61,SUMIF($B$10:$B$14,B61,$AY$10:$AY$14))) ->  | K61: =IF($B61<>"PRC_RESID","",IF(K$7=2005+OFFSET(AGR!$B$49,$AX61,SUMIF($B$10:$B$14,"NCAP_TLIFE",$AY$10:$AY$14)),0,"")) ->  | L61: =IF($B61<>"PRC_RESID","",IF(L$7=2005+OFFSET(AGR!$B$49,$AX61,SUMIF($B$10:$B$14,"NCAP_TLIFE",$AY$10:$AY$14)),0,"")) ->  | M61: =IF($B61<>"PRC_RESID","",IF(M$7=2005+OFFSET(AGR!$B$49,$AX61,SUMIF($B$10:$B$14,"NCAP_TLIFE",$AY$10:$AY$14)),0,"")) ->  | N61: =IF($B61<>"PRC_RESID","",IF(N$7=2005+OFFSET(AGR!$B$49,$AX61,SUMIF($B$10:$B$14,"NCAP_TLIFE",$AY$10:$AY$14)),0,"")) ->  | O61: =IF($B61<>"PRC_RESID","",IF(O$7=2005+OFFSET(AGR!$B$49,$AX61,SUMIF($B$10:$B$14,"NCAP_TLIFE",$AY$10:$AY$14)),0,"")) ->  | P61: =IF($B61<>"PRC_RESID","",IF(P$7=2005+OFFSET(AGR!$B$49,$AX61,SUMIF($B$10:$B$14,"NCAP_TLIFE",$AY$10:$AY$14)),0,"")) ->  | Q61: =IF($B61<>"PRC_RESID","",IF(Q$7=2005+OFFSET(AGR!$B$49,$AX61,SUMIF($B$10:$B$14,"NCAP_TLIFE",$AY$10:$AY$14)),0,"")) ->  | R61: =IF($B61<>"PRC_RESID","",IF(R$7=2005+OFFSET(AGR!$B$49,$AX61,SUMIF($B$10:$B$14,"NCAP_TLIFE",$AY$10:$AY$14)),0,"")) ->  | S61: =IF($B61<>"PRC_RESID","",IF(S$7=2005+OFFSET(AGR!$B$49,$AX61,SUMIF($B$10:$B$14,"NCAP_TLIFE",$AY$10:$AY$14)),0,"")) ->  | T61: =IF($B61<>"PRC_RESID","",IF(T$7=2005+OFFSET(AGR!$B$49,$AX61,SUMIF($B$10:$B$14,"NCAP_TLIFE",$AY$10:$AY$14)),0,"")) ->  | U61: =IF($B61<>"PRC_RESID","",IF(U$7=2005+OFFSET(AGR!$B$49,$AX61,SUMIF($B$10:$B$14,"NCAP_TLIFE",$AY$10:$AY$14)),0,"")) ->  | V61: =IF($B61<>"PRC_RESID","",IF(V$7=2005+OFFSET(AGR!$B$49,$AX61,SUMIF($B$10:$B$14,"NCAP_TLIFE",$AY$10:$AY$14)),0,"")) ->  | W61: =IF($B61<>"PRC_RESID","",IF(W$7=2005+OFFSET(AGR!$B$49,$AX61,SUMIF($B$10:$B$14,"NCAP_TLIFE",$AY$10:$AY$14)),0,"")) ->  | X61: =IF($B61<>"PRC_RESID","",IF(X$7=2005+OFFSET(AGR!$B$49,$AX61,SUMIF($B$10:$B$14,"NCAP_TLIFE",$AY$10:$AY$14)),0,"")) ->  | Y61: =IF($B61<>"PRC_RESID","",IF(Y$7=2005+OFFSET(AGR!$B$49,$AX61,SUMIF($B$10:$B$14,"NCAP_TLIFE",$AY$10:$AY$14)),0,"")) ->  | Z61: =IF($B61<>"PRC_RESID","",IF(Z$7=2005+OFFSET(AGR!$B$49,$AX61,SUMIF($B$10:$B$14,"NCAP_TLIFE",$AY$10:$AY$14)),0,"")) ->  | AA61: =IF($B61<>"PRC_RESID","",IF(AA$7=2005+OFFSET(AGR!$B$49,$AX61,SUMIF($B$10:$B$14,"NCAP_TLIFE",$AY$10:$AY$14)),0,"")) ->  | AB61: =IF($B61<>"PRC_RESID","",IF(AB$7=2005+OFFSET(AGR!$B$49,$AX61,SUMIF($B$10:$B$14,"NCAP_TLIFE",$AY$10:$AY$14)),0,"")) ->  | AC61: =IF($B61<>"PRC_RESID","",IF(AC$7=2005+OFFSET(AGR!$B$49,$AX61,SUMIF($B$10:$B$14,"NCAP_TLIFE",$AY$10:$AY$14)),0,"")) ->  | AD61: =IF($B61<>"PRC_RESID","",IF(AD$7=2005+OFFSET(AGR!$B$49,$AX61,SUMIF($B$10:$B$14,"NCAP_TLIFE",$AY$10:$AY$14)),0,"")) ->  | AE61: =IF($B61<>"PRC_RESID","",IF(AE$7=2005+OFFSET(AGR!$B$49,$AX61,SUMIF($B$10:$B$14,"NCAP_TLIFE",$AY$10:$AY$14)),0,"")) ->  | AF61: =IF($B61<>"PRC_RESID","",IF(AF$7=2005+OFFSET(AGR!$B$49,$AX61,SUMIF($B$10:$B$14,"NCAP_TLIFE",$AY$10:$AY$14)),0,"")) ->  | AG61: =IF($B61<>"PRC_RESID","",IF(AG$7=2005+OFFSET(AGR!$B$49,$AX61,SUMIF($B$10:$B$14,"NCAP_TLIFE",$AY$10:$AY$14)),0,"")) ->  | AH61: =IF($B61<>"PRC_RESID","",IF(AH$7=2005+OFFSET(AGR!$B$49,$AX61,SUMIF($B$10:$B$14,"NCAP_TLIFE",$AY$10:$AY$14)),0,"")) ->  | AM61: =IF($B61<>"PRC_RESID","",IF(AM$7=2005+OFFSET(AGR!$B$49,$AX61,SUMIF($B$10:$B$14,"NCAP_TLIFE",$AY$10:$AY$14)),0,"")) ->  | AR61: =IF($B61<>"PRC_RESID","",IF(AR$7=2005+OFFSET(AGR!$B$49,$AX61,SUMIF($B$10:$B$14,"NCAP_TLIFE",$AY$10:$AY$14)),0,"")) ->  | AS61: =IF($B61<>"PRC_RESID","",IF(AS$7=2005+OFFSET(AGR!$B$49,$AX61,SUMIF($B$10:$B$14,"NCAP_TLIFE",$AY$10:$AY$14)),0,"")) ->  | AT61: =IF($B61<>"PRC_RESID","",IF(AT$7=2005+OFFSET(AGR!$B$49,$AX61,SUMIF($B$10:$B$14,"NCAP_TLIFE",$AY$10:$AY$14)),0,"")) ->  | AU61: =IF($B61<>"PRC_RESID","",IF(AU$7=2005+OFFSET(AGR!$B$49,$AX61,SUMIF($B$10:$B$14,"NCAP_TLIFE",$AY$10:$AY$14)),0,"")) ->  | AW61: =IF(AX60=AGR!$W$72,AW60+1,AW60) -> 2 | AX61: 23
A62: =IF(LEFT(OFFSET(AGR!$A$49,AX62,0),2)="\I","*","") ->  | B62: NCAP_BND | C62: =IF($A62="*","",OFFSET(AGR!$B$49,AX62,0)) -> AHCOA-E | D62: - | E62: - | F62: - | G62: - | H62: UP | I62: 0 | J62: =IF($A62="*","",OFFSET(AGR!$B$49,AX62,SUMIF($B$10:$B$14,B62,$AY$10:$AY$14))) -> 0.007110504823 | K62: =IF($B62<>"PRC_RESID","",IF(K$7=2005+OFFSET(AGR!$B$49,$AX62,SUMIF($B$10:$B$14,"NCAP_TLIFE",$AY$10:$AY$14)),0,"")) ->  | L62: =IF($B62<>"PRC_RESID","",IF(L$7=2005+OFFSET(AGR!$B$49,$AX62,SUMIF($B$10:$B$14,"NCAP_TLIFE",$AY$10:$AY$14)),0,"")) ->  | M62: =IF($B62<>"PRC_RESID","",IF(M$7=2005+OFFSET(AGR!$B$49,$AX62,SUMIF($B$10:$B$14,"NCAP_TLIFE",$AY$10:$AY$14)),0,"")) ->  | N62: =IF($B62<>"PRC_RESID","",IF(N$7=2005+OFFSET(AGR!$B$49,$AX62,SUMIF($B$10:$B$14,"NCAP_TLIFE",$AY$10:$AY$14)),0,"")) ->  | O62: =IF($B62<>"PRC_RESID","",IF(O$7=2005+OFFSET(AGR!$B$49,$AX62,SUMIF($B$10:$B$14,"NCAP_TLIFE",$AY$10:$AY$14)),0,"")) ->  | P62: =IF($B62<>"PRC_RESID","",IF(P$7=2005+OFFSET(AGR!$B$49,$AX62,SUMIF($B$10:$B$14,"NCAP_TLIFE",$AY$10:$AY$14)),0,"")) ->  | Q62: =IF($B62<>"PRC_RESID","",IF(Q$7=2005+OFFSET(AGR!$B$49,$AX62,SUMIF($B$10:$B$14,"NCAP_TLIFE",$AY$10:$AY$14)),0,"")) ->  | R62: =IF($B62<>"PRC_RESID","",IF(R$7=2005+OFFSET(AGR!$B$49,$AX62,SUMIF($B$10:$B$14,"NCAP_TLIFE",$AY$10:$AY$14)),0,"")) ->  | S62: =IF($B62<>"PRC_RESID","",IF(S$7=2005+OFFSET(AGR!$B$49,$AX62,SUMIF($B$10:$B$14,"NCAP_TLIFE",$AY$10:$AY$14)),0,"")) ->  | T62: =IF($B62<>"PRC_RESID","",IF(T$7=2005+OFFSET(AGR!$B$49,$AX62,SUMIF($B$10:$B$14,"NCAP_TLIFE",$AY$10:$AY$14)),0,"")) ->  | U62: =IF($B62<>"PRC_RESID","",IF(U$7=2005+OFFSET(AGR!$B$49,$AX62,SUMIF($B$10:$B$14,"NCAP_TLIFE",$AY$10:$AY$14)),0,"")) ->  | V62: =IF($B62<>"PRC_RESID","",IF(V$7=2005+OFFSET(AGR!$B$49,$AX62,SUMIF($B$10:$B$14,"NCAP_TLIFE",$AY$10:$AY$14)),0,"")) ->  | W62: =IF($B62<>"PRC_RESID","",IF(W$7=2005+OFFSET(AGR!$B$49,$AX62,SUMIF($B$10:$B$14,"NCAP_TLIFE",$AY$10:$AY$14)),0,"")) ->  | X62: =IF($B62<>"PRC_RESID","",IF(X$7=2005+OFFSET(AGR!$B$49,$AX62,SUMIF($B$10:$B$14,"NCAP_TLIFE",$AY$10:$AY$14)),0,"")) ->  | Y62: =IF($B62<>"PRC_RESID","",IF(Y$7=2005+OFFSET(AGR!$B$49,$AX62,SUMIF($B$10:$B$14,"NCAP_TLIFE",$AY$10:$AY$14)),0,"")) ->  | Z62: =IF($B62<>"PRC_RESID","",IF(Z$7=2005+OFFSET(AGR!$B$49,$AX62,SUMIF($B$10:$B$14,"NCAP_TLIFE",$AY$10:$AY$14)),0,"")) ->  | AA62: =IF($B62<>"PRC_RESID","",IF(AA$7=2005+OFFSET(AGR!$B$49,$AX62,SUMIF($B$10:$B$14,"NCAP_TLIFE",$AY$10:$AY$14)),0,"")) ->  | AB62: =IF($B62<>"PRC_RESID","",IF(AB$7=2005+OFFSET(AGR!$B$49,$AX62,SUMIF($B$10:$B$14,"NCAP_TLIFE",$AY$10:$AY$14)),0,"")) ->  | AC62: =IF($B62<>"PRC_RESID","",IF(AC$7=2005+OFFSET(AGR!$B$49,$AX62,SUMIF($B$10:$B$14,"NCAP_TLIFE",$AY$10:$AY$14)),0,"")) ->  | AD62: =IF($B62<>"PRC_RESID","",IF(AD$7=2005+OFFSET(AGR!$B$49,$AX62,SUMIF($B$10:$B$14,"NCAP_TLIFE",$AY$10:$AY$14)),0,"")) ->  | AE62: =IF($B62<>"PRC_RESID","",IF(AE$7=2005+OFFSET(AGR!$B$49,$AX62,SUMIF($B$10:$B$14,"NCAP_TLIFE",$AY$10:$AY$14)),0,"")) ->  | AF62: =IF($B62<>"PRC_RESID","",IF(AF$7=2005+OFFSET(AGR!$B$49,$AX62,SUMIF($B$10:$B$14,"NCAP_TLIFE",$AY$10:$AY$14)),0,"")) ->  | AG62: =IF($B62<>"PRC_RESID","",IF(AG$7=2005+OFFSET(AGR!$B$49,$AX62,SUMIF($B$10:$B$14,"NCAP_TLIFE",$AY$10:$AY$14)),0,"")) ->  | AH62: =IF($B62<>"PRC_RESID","",IF(AH$7=2005+OFFSET(AGR!$B$49,$AX62,SUMIF($B$10:$B$14,"NCAP_TLIFE",$AY$10:$AY$14)),0,"")) ->  | AM62: =IF($B62<>"PRC_RESID","",IF(AM$7=2005+OFFSET(AGR!$B$49,$AX62,SUMIF($B$10:$B$14,"NCAP_TLIFE",$AY$10:$AY$14)),0,"")) ->  | AR62: =IF($B62<>"PRC_RESID","",IF(AR$7=2005+OFFSET(AGR!$B$49,$AX62,SUMIF($B$10:$B$14,"NCAP_TLIFE",$AY$10:$AY$14)),0,"")) ->  | AS62: =IF($B62<>"PRC_RESID","",IF(AS$7=2005+OFFSET(AGR!$B$49,$AX62,SUMIF($B$10:$B$14,"NCAP_TLIFE",$AY$10:$AY$14)),0,"")) ->  | AT62: =IF($B62<>"PRC_RESID","",IF(AT$7=2005+OFFSET(AGR!$B$49,$AX62,SUMIF($B$10:$B$14,"NCAP_TLIFE",$AY$10:$AY$14)),0,"")) ->  | AU62: =IF($B62<>"PRC_RESID","",IF(AU$7=2005+OFFSET(AGR!$B$49,$AX62,SUMIF($B$10:$B$14,"NCAP_TLIFE",$AY$10:$AY$14)),0,"")) ->  | AW62: =IF(AX61=AGR!$W$72,AW61+1,AW61) -> 3 | AX62: 1
A63: =IF(LEFT(OFFSET(AGR!$A$49,AX63,0),2)="\I","*","") ->  | B63: NCAP_BND | C63: =IF($A63="*","",OFFSET(AGR!$B$49,AX63,0)) -> AHOHF-E | D63: - | E63: - | F63: - | G63: - | H63: UP | I63: 0 | J63: =IF($A63="*","",OFFSET(AGR!$B$49,AX63,SUMIF($B$10:$B$14,B63,$AY$10:$AY$14))) -> 0.01769552527 | K63: =IF($B63<>"PRC_RESID","",IF(K$7=2005+OFFSET(AGR!$B$49,$AX63,SUMIF($B$10:$B$14,"NCAP_TLIFE",$AY$10:$AY$14)),0,"")) ->  | L63: =IF($B63<>"PRC_RESID","",IF(L$7=2005+OFFSET(AGR!$B$49,$AX63,SUMIF($B$10:$B$14,"NCAP_TLIFE",$AY$10:$AY$14)),0,"")) ->  | M63: =IF($B63<>"PRC_RESID","",IF(M$7=2005+OFFSET(AGR!$B$49,$AX63,SUMIF($B$10:$B$14,"NCAP_TLIFE",$AY$10:$AY$14)),0,"")) ->  | N63: =IF($B63<>"PRC_RESID","",IF(N$7=2005+OFFSET(AGR!$B$49,$AX63,SUMIF($B$10:$B$14,"NCAP_TLIFE",$AY$10:$AY$14)),0,"")) ->  | O63: =IF($B63<>"PRC_RESID","",IF(O$7=2005+OFFSET(AGR!$B$49,$AX63,SUMIF($B$10:$B$14,"NCAP_TLIFE",$AY$10:$AY$14)),0,"")) ->  | P63: =IF($B63<>"PRC_RESID","",IF(P$7=2005+OFFSET(AGR!$B$49,$AX63,SUMIF($B$10:$B$14,"NCAP_TLIFE",$AY$10:$AY$14)),0,"")) ->  | Q63: =IF($B63<>"PRC_RESID","",IF(Q$7=2005+OFFSET(AGR!$B$49,$AX63,SUMIF($B$10:$B$14,"NCAP_TLIFE",$AY$10:$AY$14)),0,"")) ->  | R63: =IF($B63<>"PRC_RESID","",IF(R$7=2005+OFFSET(AGR!$B$49,$AX63,SUMIF($B$10:$B$14,"NCAP_TLIFE",$AY$10:$AY$14)),0,"")) ->  | S63: =IF($B63<>"PRC_RESID","",IF(S$7=2005+OFFSET(AGR!$B$49,$AX63,SUMIF($B$10:$B$14,"NCAP_TLIFE",$AY$10:$AY$14)),0,"")) ->  | T63: =IF($B63<>"PRC_RESID","",IF(T$7=2005+OFFSET(AGR!$B$49,$AX63,SUMIF($B$10:$B$14,"NCAP_TLIFE",$AY$10:$AY$14)),0,"")) ->  | U63: =IF($B63<>"PRC_RESID","",IF(U$7=2005+OFFSET(AGR!$B$49,$AX63,SUMIF($B$10:$B$14,"NCAP_TLIFE",$AY$10:$AY$14)),0,"")) ->  | V63: =IF($B63<>"PRC_RESID","",IF(V$7=2005+OFFSET(AGR!$B$49,$AX63,SUMIF($B$10:$B$14,"NCAP_TLIFE",$AY$10:$AY$14)),0,"")) ->  | W63: =IF($B63<>"PRC_RESID","",IF(W$7=2005+OFFSET(AGR!$B$49,$AX63,SUMIF($B$10:$B$14,"NCAP_TLIFE",$AY$10:$AY$14)),0,"")) ->  | X63: =IF($B63<>"PRC_RESID","",IF(X$7=2005+OFFSET(AGR!$B$49,$AX63,SUMIF($B$10:$B$14,"NCAP_TLIFE",$AY$10:$AY$14)),0,"")) ->  | Y63: =IF($B63<>"PRC_RESID","",IF(Y$7=2005+OFFSET(AGR!$B$49,$AX63,SUMIF($B$10:$B$14,"NCAP_TLIFE",$AY$10:$AY$14)),0,"")) ->  | Z63: =IF($B63<>"PRC_RESID","",IF(Z$7=2005+OFFSET(AGR!$B$49,$AX63,SUMIF($B$10:$B$14,"NCAP_TLIFE",$AY$10:$AY$14)),0,"")) ->  | AA63: =IF($B63<>"PRC_RESID","",IF(AA$7=2005+OFFSET(AGR!$B$49,$AX63,SUMIF($B$10:$B$14,"NCAP_TLIFE",$AY$10:$AY$14)),0,"")) ->  | AB63: =IF($B63<>"PRC_RESID","",IF(AB$7=2005+OFFSET(AGR!$B$49,$AX63,SUMIF($B$10:$B$14,"NCAP_TLIFE",$AY$10:$AY$14)),0,"")) ->  | AC63: =IF($B63<>"PRC_RESID","",IF(AC$7=2005+OFFSET(AGR!$B$49,$AX63,SUMIF($B$10:$B$14,"NCAP_TLIFE",$AY$10:$AY$14)),0,"")) ->  | AD63: =IF($B63<>"PRC_RESID","",IF(AD$7=2005+OFFSET(AGR!$B$49,$AX63,SUMIF($B$10:$B$14,"NCAP_TLIFE",$AY$10:$AY$14)),0,"")) ->  | AE63: =IF($B63<>"PRC_RESID","",IF(AE$7=2005+OFFSET(AGR!$B$49,$AX63,SUMIF($B$10:$B$14,"NCAP_TLIFE",$AY$10:$AY$14)),0,"")) ->  | AF63: =IF($B63<>"PRC_RESID","",IF(AF$7=2005+OFFSET(AGR!$B$49,$AX63,SUMIF($B$10:$B$14,"NCAP_TLIFE",$AY$10:$AY$14)),0,"")) ->  | AG63: =IF($B63<>"PRC_RESID","",IF(AG$7=2005+OFFSET(AGR!$B$49,$AX63,SUMIF($B$10:$B$14,"NCAP_TLIFE",$AY$10:$AY$14)),0,"")) ->  | AH63: =IF($B63<>"PRC_RESID","",IF(AH$7=2005+OFFSET(AGR!$B$49,$AX63,SUMIF($B$10:$B$14,"NCAP_TLIFE",$AY$10:$AY$14)),0,"")) ->  | AM63: =IF($B63<>"PRC_RESID","",IF(AM$7=2005+OFFSET(AGR!$B$49,$AX63,SUMIF($B$10:$B$14,"NCAP_TLIFE",$AY$10:$AY$14)),0,"")) ->  | AR63: =IF($B63<>"PRC_RESID","",IF(AR$7=2005+OFFSET(AGR!$B$49,$AX63,SUMIF($B$10:$B$14,"NCAP_TLIFE",$AY$10:$AY$14)),0,"")) ->  | AS63: =IF($B63<>"PRC_RESID","",IF(AS$7=2005+OFFSET(AGR!$B$49,$AX63,SUMIF($B$10:$B$14,"NCAP_TLIFE",$AY$10:$AY$14)),0,"")) ->  | AT63: =IF($B63<>"PRC_RESID","",IF(AT$7=2005+OFFSET(AGR!$B$49,$AX63,SUMIF($B$10:$B$14,"NCAP_TLIFE",$AY$10:$AY$14)),0,"")) ->  | AU63: =IF($B63<>"PRC_RESID","",IF(AU$7=2005+OFFSET(AGR!$B$49,$AX63,SUMIF($B$10:$B$14,"NCAP_TLIFE",$AY$10:$AY$14)),0,"")) ->  | AW63: =IF(AX62=AGR!$W$72,AW62+1,AW62) -> 3 | AX63: 2
A64: =IF(LEFT(OFFSET(AGR!$A$49,AX64,0),2)="\I","*","") ->  | B64: NCAP_BND | C64: =IF($A64="*","",OFFSET(AGR!$B$49,AX64,0)) -> AHOKE-E | D64: - | E64: - | F64: - | G64: - | H64: UP | I64: 0 | J64: =IF($A64="*","",OFFSET(AGR!$B$49,AX64,SUMIF($B$10:$B$14,B64,$AY$10:$AY$14))) -> 0.02517942722 | K64: =IF($B64<>"PRC_RESID","",IF(K$7=2005+OFFSET(AGR!$B$49,$AX64,SUMIF($B$10:$B$14,"NCAP_TLIFE",$AY$10:$AY$14)),0,"")) ->  | L64: =IF($B64<>"PRC_RESID","",IF(L$7=2005+OFFSET(AGR!$B$49,$AX64,SUMIF($B$10:$B$14,"NCAP_TLIFE",$AY$10:$AY$14)),0,"")) ->  | M64: =IF($B64<>"PRC_RESID","",IF(M$7=2005+OFFSET(AGR!$B$49,$AX64,SUMIF($B$10:$B$14,"NCAP_TLIFE",$AY$10:$AY$14)),0,"")) ->  | N64: =IF($B64<>"PRC_RESID","",IF(N$7=2005+OFFSET(AGR!$B$49,$AX64,SUMIF($B$10:$B$14,"NCAP_TLIFE",$AY$10:$AY$14)),0,"")) ->  | O64: =IF($B64<>"PRC_RESID","",IF(O$7=2005+OFFSET(AGR!$B$49,$AX64,SUMIF($B$10:$B$14,"NCAP_TLIFE",$AY$10:$AY$14)),0,"")) ->  | P64: =IF($B64<>"PRC_RESID","",IF(P$7=2005+OFFSET(AGR!$B$49,$AX64,SUMIF($B$10:$B$14,"NCAP_TLIFE",$AY$10:$AY$14)),0,"")) ->  | Q64: =IF($B64<>"PRC_RESID","",IF(Q$7=2005+OFFSET(AGR!$B$49,$AX64,SUMIF($B$10:$B$14,"NCAP_TLIFE",$AY$10:$AY$14)),0,"")) ->  | R64: =IF($B64<>"PRC_RESID","",IF(R$7=2005+OFFSET(AGR!$B$49,$AX64,SUMIF($B$10:$B$14,"NCAP_TLIFE",$AY$10:$AY$14)),0,"")) ->  | S64: =IF($B64<>"PRC_RESID","",IF(S$7=2005+OFFSET(AGR!$B$49,$AX64,SUMIF($B$10:$B$14,"NCAP_TLIFE",$AY$10:$AY$14)),0,"")) ->  | T64: =IF($B64<>"PRC_RESID","",IF(T$7=2005+OFFSET(AGR!$B$49,$AX64,SUMIF($B$10:$B$14,"NCAP_TLIFE",$AY$10:$AY$14)),0,"")) ->  | U64: =IF($B64<>"PRC_RESID","",IF(U$7=2005+OFFSET(AGR!$B$49,$AX64,SUMIF($B$10:$B$14,"NCAP_TLIFE",$AY$10:$AY$14)),0,"")) ->  | V64: =IF($B64<>"PRC_RESID","",IF(V$7=2005+OFFSET(AGR!$B$49,$AX64,SUMIF($B$10:$B$14,"NCAP_TLIFE",$AY$10:$AY$14)),0,"")) ->  | W64: =IF($B64<>"PRC_RESID","",IF(W$7=2005+OFFSET(AGR!$B$49,$AX64,SUMIF($B$10:$B$14,"NCAP_TLIFE",$AY$10:$AY$14)),0,"")) ->  | X64: =IF($B64<>"PRC_RESID","",IF(X$7=2005+OFFSET(AGR!$B$49,$AX64,SUMIF($B$10:$B$14,"NCAP_TLIFE",$AY$10:$AY$14)),0,"")) ->  | Y64: =IF($B64<>"PRC_RESID","",IF(Y$7=2005+OFFSET(AGR!$B$49,$AX64,SUMIF($B$10:$B$14,"NCAP_TLIFE",$AY$10:$AY$14)),0,"")) ->  | Z64: =IF($B64<>"PRC_RESID","",IF(Z$7=2005+OFFSET(AGR!$B$49,$AX64,SUMIF($B$10:$B$14,"NCAP_TLIFE",$AY$10:$AY$14)),0,"")) ->  | AA64: =IF($B64<>"PRC_RESID","",IF(AA$7=2005+OFFSET(AGR!$B$49,$AX64,SUMIF($B$10:$B$14,"NCAP_TLIFE",$AY$10:$AY$14)),0,"")) ->  | AB64: =IF($B64<>"PRC_RESID","",IF(AB$7=2005+OFFSET(AGR!$B$49,$AX64,SUMIF($B$10:$B$14,"NCAP_TLIFE",$AY$10:$AY$14)),0,"")) ->  | AC64: =IF($B64<>"PRC_RESID","",IF(AC$7=2005+OFFSET(AGR!$B$49,$AX64,SUMIF($B$10:$B$14,"NCAP_TLIFE",$AY$10:$AY$14)),0,"")) ->  | AD64: =IF($B64<>"PRC_RESID","",IF(AD$7=2005+OFFSET(AGR!$B$49,$AX64,SUMIF($B$10:$B$14,"NCAP_TLIFE",$AY$10:$AY$14)),0,"")) ->  | AE64: =IF($B64<>"PRC_RESID","",IF(AE$7=2005+OFFSET(AGR!$B$49,$AX64,SUMIF($B$10:$B$14,"NCAP_TLIFE",$AY$10:$AY$14)),0,"")) ->  | AF64: =IF($B64<>"PRC_RESID","",IF(AF$7=2005+OFFSET(AGR!$B$49,$AX64,SUMIF($B$10:$B$14,"NCAP_TLIFE",$AY$10:$AY$14)),0,"")) ->  | AG64: =IF($B64<>"PRC_RESID","",IF(AG$7=2005+OFFSET(AGR!$B$49,$AX64,SUMIF($B$10:$B$14,"NCAP_TLIFE",$AY$10:$AY$14)),0,"")) ->  | AH64: =IF($B64<>"PRC_RESID","",IF(AH$7=2005+OFFSET(AGR!$B$49,$AX64,SUMIF($B$10:$B$14,"NCAP_TLIFE",$AY$10:$AY$14)),0,"")) ->  | AM64: =IF($B64<>"PRC_RESID","",IF(AM$7=2005+OFFSET(AGR!$B$49,$AX64,SUMIF($B$10:$B$14,"NCAP_TLIFE",$AY$10:$AY$14)),0,"")) ->  | AR64: =IF($B64<>"PRC_RESID","",IF(AR$7=2005+OFFSET(AGR!$B$49,$AX64,SUMIF($B$10:$B$14,"NCAP_TLIFE",$AY$10:$AY$14)),0,"")) ->  | AS64: =IF($B64<>"PRC_RESID","",IF(AS$7=2005+OFFSET(AGR!$B$49,$AX64,SUMIF($B$10:$B$14,"NCAP_TLIFE",$AY$10:$AY$14)),0,"")) ->  | AT64: =IF($B64<>"PRC_RESID","",IF(AT$7=2005+OFFSET(AGR!$B$49,$AX64,SUMIF($B$10:$B$14,"NCAP_TLIFE",$AY$10:$AY$14)),0,"")) ->  | AU64: =IF($B64<>"PRC_RESID","",IF(AU$7=2005+OFFSET(AGR!$B$49,$AX64,SUMIF($B$10:$B$14,"NCAP_TLIFE",$AY$10:$AY$14)),0,"")) ->  | AW64: =IF(AX63=AGR!$W$72,AW63+1,AW63) -> 3 | AX64: 3
A65: =IF(LEFT(OFFSET(AGR!$A$49,AX65,0),2)="\I","*","") ->  | B65: NCAP_BND | C65: =IF($A65="*","",OFFSET(AGR!$B$49,AX65,0)) -> AHOLP-E | D65: - | E65: - | F65: - | G65: - | H65: UP | I65: 0 | J65: =IF($A65="*","",OFFSET(AGR!$B$49,AX65,SUMIF($B$10:$B$14,B65,$AY$10:$AY$14))) -> 1.454269409e-05 | K65: =IF($B65<>"PRC_RESID","",IF(K$7=2005+OFFSET(AGR!$B$49,$AX65,SUMIF($B$10:$B$14,"NCAP_TLIFE",$AY$10:$AY$14)),0,"")) ->  | L65: =IF($B65<>"PRC_RESID","",IF(L$7=2005+OFFSET(AGR!$B$49,$AX65,SUMIF($B$10:$B$14,"NCAP_TLIFE",$AY$10:$AY$14)),0,"")) ->  | M65: =IF($B65<>"PRC_RESID","",IF(M$7=2005+OFFSET(AGR!$B$49,$AX65,SUMIF($B$10:$B$14,"NCAP_TLIFE",$AY$10:$AY$14)),0,"")) ->  | N65: =IF($B65<>"PRC_RESID","",IF(N$7=2005+OFFSET(AGR!$B$49,$AX65,SUMIF($B$10:$B$14,"NCAP_TLIFE",$AY$10:$AY$14)),0,"")) ->  | O65: =IF($B65<>"PRC_RESID","",IF(O$7=2005+OFFSET(AGR!$B$49,$AX65,SUMIF($B$10:$B$14,"NCAP_TLIFE",$AY$10:$AY$14)),0,"")) ->  | P65: =IF($B65<>"PRC_RESID","",IF(P$7=2005+OFFSET(AGR!$B$49,$AX65,SUMIF($B$10:$B$14,"NCAP_TLIFE",$AY$10:$AY$14)),0,"")) ->  | Q65: =IF($B65<>"PRC_RESID","",IF(Q$7=2005+OFFSET(AGR!$B$49,$AX65,SUMIF($B$10:$B$14,"NCAP_TLIFE",$AY$10:$AY$14)),0,"")) ->  | R65: =IF($B65<>"PRC_RESID","",IF(R$7=2005+OFFSET(AGR!$B$49,$AX65,SUMIF($B$10:$B$14,"NCAP_TLIFE",$AY$10:$AY$14)),0,"")) ->  | S65: =IF($B65<>"PRC_RESID","",IF(S$7=2005+OFFSET(AGR!$B$49,$AX65,SUMIF($B$10:$B$14,"NCAP_TLIFE",$AY$10:$AY$14)),0,"")) ->  | T65: =IF($B65<>"PRC_RESID","",IF(T$7=2005+OFFSET(AGR!$B$49,$AX65,SUMIF($B$10:$B$14,"NCAP_TLIFE",$AY$10:$AY$14)),0,"")) ->  | U65: =IF($B65<>"PRC_RESID","",IF(U$7=2005+OFFSET(AGR!$B$49,$AX65,SUMIF($B$10:$B$14,"NCAP_TLIFE",$AY$10:$AY$14)),0,"")) ->  | V65: =IF($B65<>"PRC_RESID","",IF(V$7=2005+OFFSET(AGR!$B$49,$AX65,SUMIF($B$10:$B$14,"NCAP_TLIFE",$AY$10:$AY$14)),0,"")) ->  | W65: =IF($B65<>"PRC_RESID","",IF(W$7=2005+OFFSET(AGR!$B$49,$AX65,SUMIF($B$10:$B$14,"NCAP_TLIFE",$AY$10:$AY$14)),0,"")) ->  | X65: =IF($B65<>"PRC_RESID","",IF(X$7=2005+OFFSET(AGR!$B$49,$AX65,SUMIF($B$10:$B$14,"NCAP_TLIFE",$AY$10:$AY$14)),0,"")) ->  | Y65: =IF($B65<>"PRC_RESID","",IF(Y$7=2005+OFFSET(AGR!$B$49,$AX65,SUMIF($B$10:$B$14,"NCAP_TLIFE",$AY$10:$AY$14)),0,"")) ->  | Z65: =IF($B65<>"PRC_RESID","",IF(Z$7=2005+OFFSET(AGR!$B$49,$AX65,SUMIF($B$10:$B$14,"NCAP_TLIFE",$AY$10:$AY$14)),0,"")) ->  | AA65: =IF($B65<>"PRC_RESID","",IF(AA$7=2005+OFFSET(AGR!$B$49,$AX65,SUMIF($B$10:$B$14,"NCAP_TLIFE",$AY$10:$AY$14)),0,"")) ->  | AB65: =IF($B65<>"PRC_RESID","",IF(AB$7=2005+OFFSET(AGR!$B$49,$AX65,SUMIF($B$10:$B$14,"NCAP_TLIFE",$AY$10:$AY$14)),0,"")) ->  | AC65: =IF($B65<>"PRC_RESID","",IF(AC$7=2005+OFFSET(AGR!$B$49,$AX65,SUMIF($B$10:$B$14,"NCAP_TLIFE",$AY$10:$AY$14)),0,"")) ->  | AD65: =IF($B65<>"PRC_RESID","",IF(AD$7=2005+OFFSET(AGR!$B$49,$AX65,SUMIF($B$10:$B$14,"NCAP_TLIFE",$AY$10:$AY$14)),0,"")) ->  | AE65: =IF($B65<>"PRC_RESID","",IF(AE$7=2005+OFFSET(AGR!$B$49,$AX65,SUMIF($B$10:$B$14,"NCAP_TLIFE",$AY$10:$AY$14)),0,"")) ->  | AF65: =IF($B65<>"PRC_RESID","",IF(AF$7=2005+OFFSET(AGR!$B$49,$AX65,SUMIF($B$10:$B$14,"NCAP_TLIFE",$AY$10:$AY$14)),0,"")) ->  | AG65: =IF($B65<>"PRC_RESID","",IF(AG$7=2005+OFFSET(AGR!$B$49,$AX65,SUMIF($B$10:$B$14,"NCAP_TLIFE",$AY$10:$AY$14)),0,"")) ->  | AH65: =IF($B65<>"PRC_RESID","",IF(AH$7=2005+OFFSET(AGR!$B$49,$AX65,SUMIF($B$10:$B$14,"NCAP_TLIFE",$AY$10:$AY$14)),0,"")) ->  | AM65: =IF($B65<>"PRC_RESID","",IF(AM$7=2005+OFFSET(AGR!$B$49,$AX65,SUMIF($B$10:$B$14,"NCAP_TLIFE",$AY$10:$AY$14)),0,"")) ->  | AR65: =IF($B65<>"PRC_RESID","",IF(AR$7=2005+OFFSET(AGR!$B$49,$AX65,SUMIF($B$10:$B$14,"NCAP_TLIFE",$AY$10:$AY$14)),0,"")) ->  | AS65: =IF($B65<>"PRC_RESID","",IF(AS$7=2005+OFFSET(AGR!$B$49,$AX65,SUMIF($B$10:$B$14,"NCAP_TLIFE",$AY$10:$AY$14)),0,"")) ->  | AT65: =IF($B65<>"PRC_RESID","",IF(AT$7=2005+OFFSET(AGR!$B$49,$AX65,SUMIF($B$10:$B$14,"NCAP_TLIFE",$AY$10:$AY$14)),0,"")) ->  | AU65: =IF($B65<>"PRC_RESID","",IF(AU$7=2005+OFFSET(AGR!$B$49,$AX65,SUMIF($B$10:$B$14,"NCAP_TLIFE",$AY$10:$AY$14)),0,"")) ->  | AW65: =IF(AX64=AGR!$W$72,AW64+1,AW64) -> 3 | AX65: 4
A66: =IF(LEFT(OFFSET(AGR!$A$49,AX66,0),2)="\I","*","") ->  | B66: NCAP_BND | C66: =IF($A66="*","",OFFSET(AGR!$B$49,AX66,0)) -> AHELC-E | D66: - | E66: - | F66: - | G66: - | H66: UP | I66: 0 | J66: =IF($A66="*","",OFFSET(AGR!$B$49,AX66,SUMIF($B$10:$B$14,B66,$AY$10:$AY$14))) -> 0 | K66: =IF($B66<>"PRC_RESID","",IF(K$7=2005+OFFSET(AGR!$B$49,$AX66,SUMIF($B$10:$B$14,"NCAP_TLIFE",$AY$10:$AY$14)),0,"")) ->  | L66: =IF($B66<>"PRC_RESID","",IF(L$7=2005+OFFSET(AGR!$B$49,$AX66,SUMIF($B$10:$B$14,"NCAP_TLIFE",$AY$10:$AY$14)),0,"")) ->  | M66: =IF($B66<>"PRC_RESID","",IF(M$7=2005+OFFSET(AGR!$B$49,$AX66,SUMIF($B$10:$B$14,"NCAP_TLIFE",$AY$10:$AY$14)),0,"")) ->  | N66: =IF($B66<>"PRC_RESID","",IF(N$7=2005+OFFSET(AGR!$B$49,$AX66,SUMIF($B$10:$B$14,"NCAP_TLIFE",$AY$10:$AY$14)),0,"")) ->  | O66: =IF($B66<>"PRC_RESID","",IF(O$7=2005+OFFSET(AGR!$B$49,$AX66,SUMIF($B$10:$B$14,"NCAP_TLIFE",$AY$10:$AY$14)),0,"")) ->  | P66: =IF($B66<>"PRC_RESID","",IF(P$7=2005+OFFSET(AGR!$B$49,$AX66,SUMIF($B$10:$B$14,"NCAP_TLIFE",$AY$10:$AY$14)),0,"")) ->  | Q66: =IF($B66<>"PRC_RESID","",IF(Q$7=2005+OFFSET(AGR!$B$49,$AX66,SUMIF($B$10:$B$14,"NCAP_TLIFE",$AY$10:$AY$14)),0,"")) ->  | R66: =IF($B66<>"PRC_RESID","",IF(R$7=2005+OFFSET(AGR!$B$49,$AX66,SUMIF($B$10:$B$14,"NCAP_TLIFE",$AY$10:$AY$14)),0,"")) ->  | S66: =IF($B66<>"PRC_RESID","",IF(S$7=2005+OFFSET(AGR!$B$49,$AX66,SUMIF($B$10:$B$14,"NCAP_TLIFE",$AY$10:$AY$14)),0,"")) ->  | T66: =IF($B66<>"PRC_RESID","",IF(T$7=2005+OFFSET(AGR!$B$49,$AX66,SUMIF($B$10:$B$14,"NCAP_TLIFE",$AY$10:$AY$14)),0,"")) ->  | U66: =IF($B66<>"PRC_RESID","",IF(U$7=2005+OFFSET(AGR!$B$49,$AX66,SUMIF($B$10:$B$14,"NCAP_TLIFE",$AY$10:$AY$14)),0,"")) ->  | V66: =IF($B66<>"PRC_RESID","",IF(V$7=2005+OFFSET(AGR!$B$49,$AX66,SUMIF($B$10:$B$14,"NCAP_TLIFE",$AY$10:$AY$14)),0,"")) ->  | W66: =IF($B66<>"PRC_RESID","",IF(W$7=2005+OFFSET(AGR!$B$49,$AX66,SUMIF($B$10:$B$14,"NCAP_TLIFE",$AY$10:$AY$14)),0,"")) ->  | X66: =IF($B66<>"PRC_RESID","",IF(X$7=2005+OFFSET(AGR!$B$49,$AX66,SUMIF($B$10:$B$14,"NCAP_TLIFE",$AY$10:$AY$14)),0,"")) ->  | Y66: =IF($B66<>"PRC_RESID","",IF(Y$7=2005+OFFSET(AGR!$B$49,$AX66,SUMIF($B$10:$B$14,"NCAP_TLIFE",$AY$10:$AY$14)),0,"")) ->  | Z66: =IF($B66<>"PRC_RESID","",IF(Z$7=2005+OFFSET(AGR!$B$49,$AX66,SUMIF($B$10:$B$14,"NCAP_TLIFE",$AY$10:$AY$14)),0,"")) ->  | AA66: =IF($B66<>"PRC_RESID","",IF(AA$7=2005+OFFSET(AGR!$B$49,$AX66,SUMIF($B$10:$B$14,"NCAP_TLIFE",$AY$10:$AY$14)),0,"")) ->  | AB66: =IF($B66<>"PRC_RESID","",IF(AB$7=2005+OFFSET(AGR!$B$49,$AX66,SUMIF($B$10:$B$14,"NCAP_TLIFE",$AY$10:$AY$14)),0,"")) ->  | AC66: =IF($B66<>"PRC_RESID","",IF(AC$7=2005+OFFSET(AGR!$B$49,$AX66,SUMIF($B$10:$B$14,"NCAP_TLIFE",$AY$10:$AY$14)),0,"")) ->  | AD66: =IF($B66<>"PRC_RESID","",IF(AD$7=2005+OFFSET(AGR!$B$49,$AX66,SUMIF($B$10:$B$14,"NCAP_TLIFE",$AY$10:$AY$14)),0,"")) ->  | AE66: =IF($B66<>"PRC_RESID","",IF(AE$7=2005+OFFSET(AGR!$B$49,$AX66,SUMIF($B$10:$B$14,"NCAP_TLIFE",$AY$10:$AY$14)),0,"")) ->  | AF66: =IF($B66<>"PRC_RESID","",IF(AF$7=2005+OFFSET(AGR!$B$49,$AX66,SUMIF($B$10:$B$14,"NCAP_TLIFE",$AY$10:$AY$14)),0,"")) ->  | AG66: =IF($B66<>"PRC_RESID","",IF(AG$7=2005+OFFSET(AGR!$B$49,$AX66,SUMIF($B$10:$B$14,"NCAP_TLIFE",$AY$10:$AY$14)),0,"")) ->  | AH66: =IF($B66<>"PRC_RESID","",IF(AH$7=2005+OFFSET(AGR!$B$49,$AX66,SUMIF($B$10:$B$14,"NCAP_TLIFE",$AY$10:$AY$14)),0,"")) ->  | AM66: =IF($B66<>"PRC_RESID","",IF(AM$7=2005+OFFSET(AGR!$B$49,$AX66,SUMIF($B$10:$B$14,"NCAP_TLIFE",$AY$10:$AY$14)),0,"")) ->  | AR66: =IF($B66<>"PRC_RESID","",IF(AR$7=2005+OFFSET(AGR!$B$49,$AX66,SUMIF($B$10:$B$14,"NCAP_TLIFE",$AY$10:$AY$14)),0,"")) ->  | AS66: =IF($B66<>"PRC_RESID","",IF(AS$7=2005+OFFSET(AGR!$B$49,$AX66,SUMIF($B$10:$B$14,"NCAP_TLIFE",$AY$10:$AY$14)),0,"")) ->  | AT66: =IF($B66<>"PRC_RESID","",IF(AT$7=2005+OFFSET(AGR!$B$49,$AX66,SUMIF($B$10:$B$14,"NCAP_TLIFE",$AY$10:$AY$14)),0,"")) ->  | AU66: =IF($B66<>"PRC_RESID","",IF(AU$7=2005+OFFSET(AGR!$B$49,$AX66,SUMIF($B$10:$B$14,"NCAP_TLIFE",$AY$10:$AY$14)),0,"")) ->  | AW66: =IF(AX65=AGR!$W$72,AW65+1,AW65) -> 3 | AX66: 5
A67: =IF(LEFT(OFFSET(AGR!$A$49,AX67,0),2)="\I","*","") -> * | C67: =IF($A67="*","",OFFSET(AGR!$B$49,AX67,0)) ->  | J67: =IF($A67="*","",OFFSET(AGR!$B$49,AX67,SUMIF($B$10:$B$14,B67,$AY$10:$AY$14))) ->  | K67: =IF($B67<>"PRC_RESID","",IF(K$7=2005+OFFSET(AGR!$B$49,$AX67,SUMIF($B$10:$B$14,"NCAP_TLIFE",$AY$10:$AY$14)),0,"")) ->  | L67: =IF($B67<>"PRC_RESID","",IF(L$7=2005+OFFSET(AGR!$B$49,$AX67,SUMIF($B$10:$B$14,"NCAP_TLIFE",$AY$10:$AY$14)),0,"")) ->  | M67: =IF($B67<>"PRC_RESID","",IF(M$7=2005+OFFSET(AGR!$B$49,$AX67,SUMIF($B$10:$B$14,"NCAP_TLIFE",$AY$10:$AY$14)),0,"")) ->  | N67: =IF($B67<>"PRC_RESID","",IF(N$7=2005+OFFSET(AGR!$B$49,$AX67,SUMIF($B$10:$B$14,"NCAP_TLIFE",$AY$10:$AY$14)),0,"")) ->  | O67: =IF($B67<>"PRC_RESID","",IF(O$7=2005+OFFSET(AGR!$B$49,$AX67,SUMIF($B$10:$B$14,"NCAP_TLIFE",$AY$10:$AY$14)),0,"")) ->  | P67: =IF($B67<>"PRC_RESID","",IF(P$7=2005+OFFSET(AGR!$B$49,$AX67,SUMIF($B$10:$B$14,"NCAP_TLIFE",$AY$10:$AY$14)),0,"")) ->  | Q67: =IF($B67<>"PRC_RESID","",IF(Q$7=2005+OFFSET(AGR!$B$49,$AX67,SUMIF($B$10:$B$14,"NCAP_TLIFE",$AY$10:$AY$14)),0,"")) ->  | R67: =IF($B67<>"PRC_RESID","",IF(R$7=2005+OFFSET(AGR!$B$49,$AX67,SUMIF($B$10:$B$14,"NCAP_TLIFE",$AY$10:$AY$14)),0,"")) ->  | S67: =IF($B67<>"PRC_RESID","",IF(S$7=2005+OFFSET(AGR!$B$49,$AX67,SUMIF($B$10:$B$14,"NCAP_TLIFE",$AY$10:$AY$14)),0,"")) ->  | T67: =IF($B67<>"PRC_RESID","",IF(T$7=2005+OFFSET(AGR!$B$49,$AX67,SUMIF($B$10:$B$14,"NCAP_TLIFE",$AY$10:$AY$14)),0,"")) ->  | U67: =IF($B67<>"PRC_RESID","",IF(U$7=2005+OFFSET(AGR!$B$49,$AX67,SUMIF($B$10:$B$14,"NCAP_TLIFE",$AY$10:$AY$14)),0,"")) ->  | V67: =IF($B67<>"PRC_RESID","",IF(V$7=2005+OFFSET(AGR!$B$49,$AX67,SUMIF($B$10:$B$14,"NCAP_TLIFE",$AY$10:$AY$14)),0,"")) ->  | W67: =IF($B67<>"PRC_RESID","",IF(W$7=2005+OFFSET(AGR!$B$49,$AX67,SUMIF($B$10:$B$14,"NCAP_TLIFE",$AY$10:$AY$14)),0,"")) ->  | X67: =IF($B67<>"PRC_RESID","",IF(X$7=2005+OFFSET(AGR!$B$49,$AX67,SUMIF($B$10:$B$14,"NCAP_TLIFE",$AY$10:$AY$14)),0,"")) ->  | Y67: =IF($B67<>"PRC_RESID","",IF(Y$7=2005+OFFSET(AGR!$B$49,$AX67,SUMIF($B$10:$B$14,"NCAP_TLIFE",$AY$10:$AY$14)),0,"")) ->  | Z67: =IF($B67<>"PRC_RESID","",IF(Z$7=2005+OFFSET(AGR!$B$49,$AX67,SUMIF($B$10:$B$14,"NCAP_TLIFE",$AY$10:$AY$14)),0,"")) ->  | AA67: =IF($B67<>"PRC_RESID","",IF(AA$7=2005+OFFSET(AGR!$B$49,$AX67,SUMIF($B$10:$B$14,"NCAP_TLIFE",$AY$10:$AY$14)),0,"")) ->  | AB67: =IF($B67<>"PRC_RESID","",IF(AB$7=2005+OFFSET(AGR!$B$49,$AX67,SUMIF($B$10:$B$14,"NCAP_TLIFE",$AY$10:$AY$14)),0,"")) ->  | AC67: =IF($B67<>"PRC_RESID","",IF(AC$7=2005+OFFSET(AGR!$B$49,$AX67,SUMIF($B$10:$B$14,"NCAP_TLIFE",$AY$10:$AY$14)),0,"")) ->  | AD67: =IF($B67<>"PRC_RESID","",IF(AD$7=2005+OFFSET(AGR!$B$49,$AX67,SUMIF($B$10:$B$14,"NCAP_TLIFE",$AY$10:$AY$14)),0,"")) ->  | AE67: =IF($B67<>"PRC_RESID","",IF(AE$7=2005+OFFSET(AGR!$B$49,$AX67,SUMIF($B$10:$B$14,"NCAP_TLIFE",$AY$10:$AY$14)),0,"")) ->  | AF67: =IF($B67<>"PRC_RESID","",IF(AF$7=2005+OFFSET(AGR!$B$49,$AX67,SUMIF($B$10:$B$14,"NCAP_TLIFE",$AY$10:$AY$14)),0,"")) ->  | AG67: =IF($B67<>"PRC_RESID","",IF(AG$7=2005+OFFSET(AGR!$B$49,$AX67,SUMIF($B$10:$B$14,"NCAP_TLIFE",$AY$10:$AY$14)),0,"")) ->  | AH67: =IF($B67<>"PRC_RESID","",IF(AH$7=2005+OFFSET(AGR!$B$49,$AX67,SUMIF($B$10:$B$14,"NCAP_TLIFE",$AY$10:$AY$14)),0,"")) ->  | AM67: =IF($B67<>"PRC_RESID","",IF(AM$7=2005+OFFSET(AGR!$B$49,$AX67,SUMIF($B$10:$B$14,"NCAP_TLIFE",$AY$10:$AY$14)),0,"")) ->  | AR67: =IF($B67<>"PRC_RESID","",IF(AR$7=2005+OFFSET(AGR!$B$49,$AX67,SUMIF($B$10:$B$14,"NCAP_TLIFE",$AY$10:$AY$14)),0,"")) ->  | AS67: =IF($B67<>"PRC_RESID","",IF(AS$7=2005+OFFSET(AGR!$B$49,$AX67,SUMIF($B$10:$B$14,"NCAP_TLIFE",$AY$10:$AY$14)),0,"")) ->  | AT67: =IF($B67<>"PRC_RESID","",IF(AT$7=2005+OFFSET(AGR!$B$49,$AX67,SUMIF($B$10:$B$14,"NCAP_TLIFE",$AY$10:$AY$14)),0,"")) ->  | AU67: =IF($B67<>"PRC_RESID","",IF(AU$7=2005+OFFSET(AGR!$B$49,$AX67,SUMIF($B$10:$B$14,"NCAP_TLIFE",$AY$10:$AY$14)),0,"")) ->  | AW67: =IF(AX66=AGR!$W$72,AW66+1,AW66) -> 3 | AX67: 6
A68: =IF(LEFT(OFFSET(AGR!$A$49,AX68,0),2)="\I","*","") -> * | C68: =IF($A68="*","",OFFSET(AGR!$B$49,AX68,0)) ->  | D68: =IF($A68="*","",VLOOKUP($B68,$B$10:$I$14,D$9,FALSE)) ->  | J68: =IF($A68="*","",OFFSET(AGR!$B$49,AX68,SUMIF($B$10:$B$14,B68,$AY$10:$AY$14))) ->  | K68: =IF($B68<>"PRC_RESID","",IF(K$7=2005+OFFSET(AGR!$B$49,$AX68,SUMIF($B$10:$B$14,"NCAP_TLIFE",$AY$10:$AY$14)),0,"")) ->  | L68: =IF($B68<>"PRC_RESID","",IF(L$7=2005+OFFSET(AGR!$B$49,$AX68,SUMIF($B$10:$B$14,"NCAP_TLIFE",$AY$10:$AY$14)),0,"")) ->  | M68: =IF($B68<>"PRC_RESID","",IF(M$7=2005+OFFSET(AGR!$B$49,$AX68,SUMIF($B$10:$B$14,"NCAP_TLIFE",$AY$10:$AY$14)),0,"")) ->  | N68: =IF($B68<>"PRC_RESID","",IF(N$7=2005+OFFSET(AGR!$B$49,$AX68,SUMIF($B$10:$B$14,"NCAP_TLIFE",$AY$10:$AY$14)),0,"")) ->  | O68: =IF($B68<>"PRC_RESID","",IF(O$7=2005+OFFSET(AGR!$B$49,$AX68,SUMIF($B$10:$B$14,"NCAP_TLIFE",$AY$10:$AY$14)),0,"")) ->  | P68: =IF($B68<>"PRC_RESID","",IF(P$7=2005+OFFSET(AGR!$B$49,$AX68,SUMIF($B$10:$B$14,"NCAP_TLIFE",$AY$10:$AY$14)),0,"")) ->  | Q68: =IF($B68<>"PRC_RESID","",IF(Q$7=2005+OFFSET(AGR!$B$49,$AX68,SUMIF($B$10:$B$14,"NCAP_TLIFE",$AY$10:$AY$14)),0,"")) ->  | R68: =IF($B68<>"PRC_RESID","",IF(R$7=2005+OFFSET(AGR!$B$49,$AX68,SUMIF($B$10:$B$14,"NCAP_TLIFE",$AY$10:$AY$14)),0,"")) ->  | S68: =IF($B68<>"PRC_RESID","",IF(S$7=2005+OFFSET(AGR!$B$49,$AX68,SUMIF($B$10:$B$14,"NCAP_TLIFE",$AY$10:$AY$14)),0,"")) ->  | T68: =IF($B68<>"PRC_RESID","",IF(T$7=2005+OFFSET(AGR!$B$49,$AX68,SUMIF($B$10:$B$14,"NCAP_TLIFE",$AY$10:$AY$14)),0,"")) ->  | U68: =IF($B68<>"PRC_RESID","",IF(U$7=2005+OFFSET(AGR!$B$49,$AX68,SUMIF($B$10:$B$14,"NCAP_TLIFE",$AY$10:$AY$14)),0,"")) ->  | V68: =IF($B68<>"PRC_RESID","",IF(V$7=2005+OFFSET(AGR!$B$49,$AX68,SUMIF($B$10:$B$14,"NCAP_TLIFE",$AY$10:$AY$14)),0,"")) ->  | W68: =IF($B68<>"PRC_RESID","",IF(W$7=2005+OFFSET(AGR!$B$49,$AX68,SUMIF($B$10:$B$14,"NCAP_TLIFE",$AY$10:$AY$14)),0,"")) ->  | X68: =IF($B68<>"PRC_RESID","",IF(X$7=2005+OFFSET(AGR!$B$49,$AX68,SUMIF($B$10:$B$14,"NCAP_TLIFE",$AY$10:$AY$14)),0,"")) ->  | Y68: =IF($B68<>"PRC_RESID","",IF(Y$7=2005+OFFSET(AGR!$B$49,$AX68,SUMIF($B$10:$B$14,"NCAP_TLIFE",$AY$10:$AY$14)),0,"")) ->  | Z68: =IF($B68<>"PRC_RESID","",IF(Z$7=2005+OFFSET(AGR!$B$49,$AX68,SUMIF($B$10:$B$14,"NCAP_TLIFE",$AY$10:$AY$14)),0,"")) ->  | AA68: =IF($B68<>"PRC_RESID","",IF(AA$7=2005+OFFSET(AGR!$B$49,$AX68,SUMIF($B$10:$B$14,"NCAP_TLIFE",$AY$10:$AY$14)),0,"")) ->  | AB68: =IF($B68<>"PRC_RESID","",IF(AB$7=2005+OFFSET(AGR!$B$49,$AX68,SUMIF($B$10:$B$14,"NCAP_TLIFE",$AY$10:$AY$14)),0,"")) ->  | AC68: =IF($B68<>"PRC_RESID","",IF(AC$7=2005+OFFSET(AGR!$B$49,$AX68,SUMIF($B$10:$B$14,"NCAP_TLIFE",$AY$10:$AY$14)),0,"")) ->  | AD68: =IF($B68<>"PRC_RESID","",IF(AD$7=2005+OFFSET(AGR!$B$49,$AX68,SUMIF($B$10:$B$14,"NCAP_TLIFE",$AY$10:$AY$14)),0,"")) ->  | AE68: =IF($B68<>"PRC_RESID","",IF(AE$7=2005+OFFSET(AGR!$B$49,$AX68,SUMIF($B$10:$B$14,"NCAP_TLIFE",$AY$10:$AY$14)),0,"")) ->  | AF68: =IF($B68<>"PRC_RESID","",IF(AF$7=2005+OFFSET(AGR!$B$49,$AX68,SUMIF($B$10:$B$14,"NCAP_TLIFE",$AY$10:$AY$14)),0,"")) ->  | AG68: =IF($B68<>"PRC_RESID","",IF(AG$7=2005+OFFSET(AGR!$B$49,$AX68,SUMIF($B$10:$B$14,"NCAP_TLIFE",$AY$10:$AY$14)),0,"")) ->  | AH68: =IF($B68<>"PRC_RESID","",IF(AH$7=2005+OFFSET(AGR!$B$49,$AX68,SUMIF($B$10:$B$14,"NCAP_TLIFE",$AY$10:$AY$14)),0,"")) ->  | AM68: =IF($B68<>"PRC_RESID","",IF(AM$7=2005+OFFSET(AGR!$B$49,$AX68,SUMIF($B$10:$B$14,"NCAP_TLIFE",$AY$10:$AY$14)),0,"")) ->  | AR68: =IF($B68<>"PRC_RESID","",IF(AR$7=2005+OFFSET(AGR!$B$49,$AX68,SUMIF($B$10:$B$14,"NCAP_TLIFE",$AY$10:$AY$14)),0,"")) ->  | AS68: =IF($B68<>"PRC_RESID","",IF(AS$7=2005+OFFSET(AGR!$B$49,$AX68,SUMIF($B$10:$B$14,"NCAP_TLIFE",$AY$10:$AY$14)),0,"")) ->  | AT68: =IF($B68<>"PRC_RESID","",IF(AT$7=2005+OFFSET(AGR!$B$49,$AX68,SUMIF($B$10:$B$14,"NCAP_TLIFE",$AY$10:$AY$14)),0,"")) ->  | AU68: =IF($B68<>"PRC_RESID","",IF(AU$7=2005+OFFSET(AGR!$B$49,$AX68,SUMIF($B$10:$B$14,"NCAP_TLIFE",$AY$10:$AY$14)),0,"")) ->  | AW68: =IF(AX67=AGR!$W$72,AW67+1,AW67) -> 3 | AX68: 7
A69: =IF(LEFT(OFFSET(AGR!$A$49,AX69,0),2)="\I","*","") ->  | B69: NCAP_BND | C69: =IF($A69="*","",OFFSET(AGR!$B$49,AX69,0)) -> APELC-E | D69: - | E69: - | F69: - | G69: - | H69: UP | I69: 0 | J69: =IF($A69="*","",OFFSET(AGR!$B$49,AX69,SUMIF($B$10:$B$14,B69,$AY$10:$AY$14))) -> 0.05 | K69: =IF($B69<>"PRC_RESID","",IF(K$7=2005+OFFSET(AGR!$B$49,$AX69,SUMIF($B$10:$B$14,"NCAP_TLIFE",$AY$10:$AY$14)),0,"")) ->  | L69: =IF($B69<>"PRC_RESID","",IF(L$7=2005+OFFSET(AGR!$B$49,$AX69,SUMIF($B$10:$B$14,"NCAP_TLIFE",$AY$10:$AY$14)),0,"")) ->  | M69: =IF($B69<>"PRC_RESID","",IF(M$7=2005+OFFSET(AGR!$B$49,$AX69,SUMIF($B$10:$B$14,"NCAP_TLIFE",$AY$10:$AY$14)),0,"")) ->  | N69: =IF($B69<>"PRC_RESID","",IF(N$7=2005+OFFSET(AGR!$B$49,$AX69,SUMIF($B$10:$B$14,"NCAP_TLIFE",$AY$10:$AY$14)),0,"")) ->  | O69: =IF($B69<>"PRC_RESID","",IF(O$7=2005+OFFSET(AGR!$B$49,$AX69,SUMIF($B$10:$B$14,"NCAP_TLIFE",$AY$10:$AY$14)),0,"")) ->  | P69: =IF($B69<>"PRC_RESID","",IF(P$7=2005+OFFSET(AGR!$B$49,$AX69,SUMIF($B$10:$B$14,"NCAP_TLIFE",$AY$10:$AY$14)),0,"")) ->  | Q69: =IF($B69<>"PRC_RESID","",IF(Q$7=2005+OFFSET(AGR!$B$49,$AX69,SUMIF($B$10:$B$14,"NCAP_TLIFE",$AY$10:$AY$14)),0,"")) ->  | R69: =IF($B69<>"PRC_RESID","",IF(R$7=2005+OFFSET(AGR!$B$49,$AX69,SUMIF($B$10:$B$14,"NCAP_TLIFE",$AY$10:$AY$14)),0,"")) ->  | S69: =IF($B69<>"PRC_RESID","",IF(S$7=2005+OFFSET(AGR!$B$49,$AX69,SUMIF($B$10:$B$14,"NCAP_TLIFE",$AY$10:$AY$14)),0,"")) ->  | T69: =IF($B69<>"PRC_RESID","",IF(T$7=2005+OFFSET(AGR!$B$49,$AX69,SUMIF($B$10:$B$14,"NCAP_TLIFE",$AY$10:$AY$14)),0,"")) ->  | U69: =IF($B69<>"PRC_RESID","",IF(U$7=2005+OFFSET(AGR!$B$49,$AX69,SUMIF($B$10:$B$14,"NCAP_TLIFE",$AY$10:$AY$14)),0,"")) ->  | V69: =IF($B69<>"PRC_RESID","",IF(V$7=2005+OFFSET(AGR!$B$49,$AX69,SUMIF($B$10:$B$14,"NCAP_TLIFE",$AY$10:$AY$14)),0,"")) ->  | W69: =IF($B69<>"PRC_RESID","",IF(W$7=2005+OFFSET(AGR!$B$49,$AX69,SUMIF($B$10:$B$14,"NCAP_TLIFE",$AY$10:$AY$14)),0,"")) ->  | X69: =IF($B69<>"PRC_RESID","",IF(X$7=2005+OFFSET(AGR!$B$49,$AX69,SUMIF($B$10:$B$14,"NCAP_TLIFE",$AY$10:$AY$14)),0,"")) ->  | Y69: =IF($B69<>"PRC_RESID","",IF(Y$7=2005+OFFSET(AGR!$B$49,$AX69,SUMIF($B$10:$B$14,"NCAP_TLIFE",$AY$10:$AY$14)),0,"")) ->  | Z69: =IF($B69<>"PRC_RESID","",IF(Z$7=2005+OFFSET(AGR!$B$49,$AX69,SUMIF($B$10:$B$14,"NCAP_TLIFE",$AY$10:$AY$14)),0,"")) ->  | AA69: =IF($B69<>"PRC_RESID","",IF(AA$7=2005+OFFSET(AGR!$B$49,$AX69,SUMIF($B$10:$B$14,"NCAP_TLIFE",$AY$10:$AY$14)),0,"")) ->  | AB69: =IF($B69<>"PRC_RESID","",IF(AB$7=2005+OFFSET(AGR!$B$49,$AX69,SUMIF($B$10:$B$14,"NCAP_TLIFE",$AY$10:$AY$14)),0,"")) ->  | AC69: =IF($B69<>"PRC_RESID","",IF(AC$7=2005+OFFSET(AGR!$B$49,$AX69,SUMIF($B$10:$B$14,"NCAP_TLIFE",$AY$10:$AY$14)),0,"")) ->  | AD69: =IF($B69<>"PRC_RESID","",IF(AD$7=2005+OFFSET(AGR!$B$49,$AX69,SUMIF($B$10:$B$14,"NCAP_TLIFE",$AY$10:$AY$14)),0,"")) ->  | AE69: =IF($B69<>"PRC_RESID","",IF(AE$7=2005+OFFSET(AGR!$B$49,$AX69,SUMIF($B$10:$B$14,"NCAP_TLIFE",$AY$10:$AY$14)),0,"")) ->  | AF69: =IF($B69<>"PRC_RESID","",IF(AF$7=2005+OFFSET(AGR!$B$49,$AX69,SUMIF($B$10:$B$14,"NCAP_TLIFE",$AY$10:$AY$14)),0,"")) ->  | AG69: =IF($B69<>"PRC_RESID","",IF(AG$7=2005+OFFSET(AGR!$B$49,$AX69,SUMIF($B$10:$B$14,"NCAP_TLIFE",$AY$10:$AY$14)),0,"")) ->  | AH69: =IF($B69<>"PRC_RESID","",IF(AH$7=2005+OFFSET(AGR!$B$49,$AX69,SUMIF($B$10:$B$14,"NCAP_TLIFE",$AY$10:$AY$14)),0,"")) ->  | AM69: =IF($B69<>"PRC_RESID","",IF(AM$7=2005+OFFSET(AGR!$B$49,$AX69,SUMIF($B$10:$B$14,"NCAP_TLIFE",$AY$10:$AY$14)),0,"")) ->  | AR69: =IF($B69<>"PRC_RESID","",IF(AR$7=2005+OFFSET(AGR!$B$49,$AX69,SUMIF($B$10:$B$14,"NCAP_TLIFE",$AY$10:$AY$14)),0,"")) ->  | AS69: =IF($B69<>"PRC_RESID","",IF(AS$7=2005+OFFSET(AGR!$B$49,$AX69,SUMIF($B$10:$B$14,"NCAP_TLIFE",$AY$10:$AY$14)),0,"")) ->  | AT69: =IF($B69<>"PRC_RESID","",IF(AT$7=2005+OFFSET(AGR!$B$49,$AX69,SUMIF($B$10:$B$14,"NCAP_TLIFE",$AY$10:$AY$14)),0,"")) ->  | AU69: =IF($B69<>"PRC_RESID","",IF(AU$7=2005+OFFSET(AGR!$B$49,$AX69,SUMIF($B$10:$B$14,"NCAP_TLIFE",$AY$10:$AY$14)),0,"")) ->  | AW69: =IF(AX68=AGR!$W$72,AW68+1,AW68) -> 3 | AX69: 8
A70: =IF(LEFT(OFFSET(AGR!$A$49,AX70,0),2)="\I","*","") -> * | C70: =IF($A70="*","",OFFSET(AGR!$B$49,AX70,0)) ->  | J70: =IF($A70="*","",OFFSET(AGR!$B$49,AX70,SUMIF($B$10:$B$14,B70,$AY$10:$AY$14))) ->  | K70: =IF($B70<>"PRC_RESID","",IF(K$7=2005+OFFSET(AGR!$B$49,$AX70,SUMIF($B$10:$B$14,"NCAP_TLIFE",$AY$10:$AY$14)),0,"")) ->  | L70: =IF($B70<>"PRC_RESID","",IF(L$7=2005+OFFSET(AGR!$B$49,$AX70,SUMIF($B$10:$B$14,"NCAP_TLIFE",$AY$10:$AY$14)),0,"")) ->  | M70: =IF($B70<>"PRC_RESID","",IF(M$7=2005+OFFSET(AGR!$B$49,$AX70,SUMIF($B$10:$B$14,"NCAP_TLIFE",$AY$10:$AY$14)),0,"")) ->  | N70: =IF($B70<>"PRC_RESID","",IF(N$7=2005+OFFSET(AGR!$B$49,$AX70,SUMIF($B$10:$B$14,"NCAP_TLIFE",$AY$10:$AY$14)),0,"")) ->  | O70: =IF($B70<>"PRC_RESID","",IF(O$7=2005+OFFSET(AGR!$B$49,$AX70,SUMIF($B$10:$B$14,"NCAP_TLIFE",$AY$10:$AY$14)),0,"")) ->  | P70: =IF($B70<>"PRC_RESID","",IF(P$7=2005+OFFSET(AGR!$B$49,$AX70,SUMIF($B$10:$B$14,"NCAP_TLIFE",$AY$10:$AY$14)),0,"")) ->  | Q70: =IF($B70<>"PRC_RESID","",IF(Q$7=2005+OFFSET(AGR!$B$49,$AX70,SUMIF($B$10:$B$14,"NCAP_TLIFE",$AY$10:$AY$14)),0,"")) ->  | R70: =IF($B70<>"PRC_RESID","",IF(R$7=2005+OFFSET(AGR!$B$49,$AX70,SUMIF($B$10:$B$14,"NCAP_TLIFE",$AY$10:$AY$14)),0,"")) ->  | S70: =IF($B70<>"PRC_RESID","",IF(S$7=2005+OFFSET(AGR!$B$49,$AX70,SUMIF($B$10:$B$14,"NCAP_TLIFE",$AY$10:$AY$14)),0,"")) ->  | T70: =IF($B70<>"PRC_RESID","",IF(T$7=2005+OFFSET(AGR!$B$49,$AX70,SUMIF($B$10:$B$14,"NCAP_TLIFE",$AY$10:$AY$14)),0,"")) ->  | U70: =IF($B70<>"PRC_RESID","",IF(U$7=2005+OFFSET(AGR!$B$49,$AX70,SUMIF($B$10:$B$14,"NCAP_TLIFE",$AY$10:$AY$14)),0,"")) ->  | V70: =IF($B70<>"PRC_RESID","",IF(V$7=2005+OFFSET(AGR!$B$49,$AX70,SUMIF($B$10:$B$14,"NCAP_TLIFE",$AY$10:$AY$14)),0,"")) ->  | W70: =IF($B70<>"PRC_RESID","",IF(W$7=2005+OFFSET(AGR!$B$49,$AX70,SUMIF($B$10:$B$14,"NCAP_TLIFE",$AY$10:$AY$14)),0,"")) ->  | X70: =IF($B70<>"PRC_RESID","",IF(X$7=2005+OFFSET(AGR!$B$49,$AX70,SUMIF($B$10:$B$14,"NCAP_TLIFE",$AY$10:$AY$14)),0,"")) ->  | Y70: =IF($B70<>"PRC_RESID","",IF(Y$7=2005+OFFSET(AGR!$B$49,$AX70,SUMIF($B$10:$B$14,"NCAP_TLIFE",$AY$10:$AY$14)),0,"")) ->  | Z70: =IF($B70<>"PRC_RESID","",IF(Z$7=2005+OFFSET(AGR!$B$49,$AX70,SUMIF($B$10:$B$14,"NCAP_TLIFE",$AY$10:$AY$14)),0,"")) ->  | AA70: =IF($B70<>"PRC_RESID","",IF(AA$7=2005+OFFSET(AGR!$B$49,$AX70,SUMIF($B$10:$B$14,"NCAP_TLIFE",$AY$10:$AY$14)),0,"")) ->  | AB70: =IF($B70<>"PRC_RESID","",IF(AB$7=2005+OFFSET(AGR!$B$49,$AX70,SUMIF($B$10:$B$14,"NCAP_TLIFE",$AY$10:$AY$14)),0,"")) ->  | AC70: =IF($B70<>"PRC_RESID","",IF(AC$7=2005+OFFSET(AGR!$B$49,$AX70,SUMIF($B$10:$B$14,"NCAP_TLIFE",$AY$10:$AY$14)),0,"")) ->  | AD70: =IF($B70<>"PRC_RESID","",IF(AD$7=2005+OFFSET(AGR!$B$49,$AX70,SUMIF($B$10:$B$14,"NCAP_TLIFE",$AY$10:$AY$14)),0,"")) ->  | AE70: =IF($B70<>"PRC_RESID","",IF(AE$7=2005+OFFSET(AGR!$B$49,$AX70,SUMIF($B$10:$B$14,"NCAP_TLIFE",$AY$10:$AY$14)),0,"")) ->  | AF70: =IF($B70<>"PRC_RESID","",IF(AF$7=2005+OFFSET(AGR!$B$49,$AX70,SUMIF($B$10:$B$14,"NCAP_TLIFE",$AY$10:$AY$14)),0,"")) ->  | AG70: =IF($B70<>"PRC_RESID","",IF(AG$7=2005+OFFSET(AGR!$B$49,$AX70,SUMIF($B$10:$B$14,"NCAP_TLIFE",$AY$10:$AY$14)),0,"")) ->  | AH70: =IF($B70<>"PRC_RESID","",IF(AH$7=2005+OFFSET(AGR!$B$49,$AX70,SUMIF($B$10:$B$14,"NCAP_TLIFE",$AY$10:$AY$14)),0,"")) ->  | AM70: =IF($B70<>"PRC_RESID","",IF(AM$7=2005+OFFSET(AGR!$B$49,$AX70,SUMIF($B$10:$B$14,"NCAP_TLIFE",$AY$10:$AY$14)),0,"")) ->  | AR70: =IF($B70<>"PRC_RESID","",IF(AR$7=2005+OFFSET(AGR!$B$49,$AX70,SUMIF($B$10:$B$14,"NCAP_TLIFE",$AY$10:$AY$14)),0,"")) ->  | AS70: =IF($B70<>"PRC_RESID","",IF(AS$7=2005+OFFSET(AGR!$B$49,$AX70,SUMIF($B$10:$B$14,"NCAP_TLIFE",$AY$10:$AY$14)),0,"")) ->  | AT70: =IF($B70<>"PRC_RESID","",IF(AT$7=2005+OFFSET(AGR!$B$49,$AX70,SUMIF($B$10:$B$14,"NCAP_TLIFE",$AY$10:$AY$14)),0,"")) ->  | AU70: =IF($B70<>"PRC_RESID","",IF(AU$7=2005+OFFSET(AGR!$B$49,$AX70,SUMIF($B$10:$B$14,"NCAP_TLIFE",$AY$10:$AY$14)),0,"")) ->  | AW70: =IF(AX69=AGR!$W$72,AW69+1,AW69) -> 3 | AX70: 9
A71: =IF(LEFT(OFFSET(AGR!$A$49,AX71,0),2)="\I","*","") -> * | C71: =IF($A71="*","",OFFSET(AGR!$B$49,AX71,0)) ->  | J71: =IF($A71="*","",OFFSET(AGR!$B$49,AX71,SUMIF($B$10:$B$14,B71,$AY$10:$AY$14))) ->  | K71: =IF($B71<>"PRC_RESID","",IF(K$7=2005+OFFSET(AGR!$B$49,$AX71,SUMIF($B$10:$B$14,"NCAP_TLIFE",$AY$10:$AY$14)),0,"")) ->  | L71: =IF($B71<>"PRC_RESID","",IF(L$7=2005+OFFSET(AGR!$B$49,$AX71,SUMIF($B$10:$B$14,"NCAP_TLIFE",$AY$10:$AY$14)),0,"")) ->  | M71: =IF($B71<>"PRC_RESID","",IF(M$7=2005+OFFSET(AGR!$B$49,$AX71,SUMIF($B$10:$B$14,"NCAP_TLIFE",$AY$10:$AY$14)),0,"")) ->  | N71: =IF($B71<>"PRC_RESID","",IF(N$7=2005+OFFSET(AGR!$B$49,$AX71,SUMIF($B$10:$B$14,"NCAP_TLIFE",$AY$10:$AY$14)),0,"")) ->  | O71: =IF($B71<>"PRC_RESID","",IF(O$7=2005+OFFSET(AGR!$B$49,$AX71,SUMIF($B$10:$B$14,"NCAP_TLIFE",$AY$10:$AY$14)),0,"")) ->  | P71: =IF($B71<>"PRC_RESID","",IF(P$7=2005+OFFSET(AGR!$B$49,$AX71,SUMIF($B$10:$B$14,"NCAP_TLIFE",$AY$10:$AY$14)),0,"")) ->  | Q71: =IF($B71<>"PRC_RESID","",IF(Q$7=2005+OFFSET(AGR!$B$49,$AX71,SUMIF($B$10:$B$14,"NCAP_TLIFE",$AY$10:$AY$14)),0,"")) ->  | R71: =IF($B71<>"PRC_RESID","",IF(R$7=2005+OFFSET(AGR!$B$49,$AX71,SUMIF($B$10:$B$14,"NCAP_TLIFE",$AY$10:$AY$14)),0,"")) ->  | S71: =IF($B71<>"PRC_RESID","",IF(S$7=2005+OFFSET(AGR!$B$49,$AX71,SUMIF($B$10:$B$14,"NCAP_TLIFE",$AY$10:$AY$14)),0,"")) ->  | T71: =IF($B71<>"PRC_RESID","",IF(T$7=2005+OFFSET(AGR!$B$49,$AX71,SUMIF($B$10:$B$14,"NCAP_TLIFE",$AY$10:$AY$14)),0,"")) ->  | U71: =IF($B71<>"PRC_RESID","",IF(U$7=2005+OFFSET(AGR!$B$49,$AX71,SUMIF($B$10:$B$14,"NCAP_TLIFE",$AY$10:$AY$14)),0,"")) ->  | V71: =IF($B71<>"PRC_RESID","",IF(V$7=2005+OFFSET(AGR!$B$49,$AX71,SUMIF($B$10:$B$14,"NCAP_TLIFE",$AY$10:$AY$14)),0,"")) ->  | W71: =IF($B71<>"PRC_RESID","",IF(W$7=2005+OFFSET(AGR!$B$49,$AX71,SUMIF($B$10:$B$14,"NCAP_TLIFE",$AY$10:$AY$14)),0,"")) ->  | X71: =IF($B71<>"PRC_RESID","",IF(X$7=2005+OFFSET(AGR!$B$49,$AX71,SUMIF($B$10:$B$14,"NCAP_TLIFE",$AY$10:$AY$14)),0,"")) ->  | Y71: =IF($B71<>"PRC_RESID","",IF(Y$7=2005+OFFSET(AGR!$B$49,$AX71,SUMIF($B$10:$B$14,"NCAP_TLIFE",$AY$10:$AY$14)),0,"")) ->  | Z71: =IF($B71<>"PRC_RESID","",IF(Z$7=2005+OFFSET(AGR!$B$49,$AX71,SUMIF($B$10:$B$14,"NCAP_TLIFE",$AY$10:$AY$14)),0,"")) ->  | AA71: =IF($B71<>"PRC_RESID","",IF(AA$7=2005+OFFSET(AGR!$B$49,$AX71,SUMIF($B$10:$B$14,"NCAP_TLIFE",$AY$10:$AY$14)),0,"")) ->  | AB71: =IF($B71<>"PRC_RESID","",IF(AB$7=2005+OFFSET(AGR!$B$49,$AX71,SUMIF($B$10:$B$14,"NCAP_TLIFE",$AY$10:$AY$14)),0,"")) ->  | AC71: =IF($B71<>"PRC_RESID","",IF(AC$7=2005+OFFSET(AGR!$B$49,$AX71,SUMIF($B$10:$B$14,"NCAP_TLIFE",$AY$10:$AY$14)),0,"")) ->  | AD71: =IF($B71<>"PRC_RESID","",IF(AD$7=2005+OFFSET(AGR!$B$49,$AX71,SUMIF($B$10:$B$14,"NCAP_TLIFE",$AY$10:$AY$14)),0,"")) ->  | AE71: =IF($B71<>"PRC_RESID","",IF(AE$7=2005+OFFSET(AGR!$B$49,$AX71,SUMIF($B$10:$B$14,"NCAP_TLIFE",$AY$10:$AY$14)),0,"")) ->  | AF71: =IF($B71<>"PRC_RESID","",IF(AF$7=2005+OFFSET(AGR!$B$49,$AX71,SUMIF($B$10:$B$14,"NCAP_TLIFE",$AY$10:$AY$14)),0,"")) ->  | AG71: =IF($B71<>"PRC_RESID","",IF(AG$7=2005+OFFSET(AGR!$B$49,$AX71,SUMIF($B$10:$B$14,"NCAP_TLIFE",$AY$10:$AY$14)),0,"")) ->  | AH71: =IF($B71<>"PRC_RESID","",IF(AH$7=2005+OFFSET(AGR!$B$49,$AX71,SUMIF($B$10:$B$14,"NCAP_TLIFE",$AY$10:$AY$14)),0,"")) ->  | AM71: =IF($B71<>"PRC_RESID","",IF(AM$7=2005+OFFSET(AGR!$B$49,$AX71,SUMIF($B$10:$B$14,"NCAP_TLIFE",$AY$10:$AY$14)),0,"")) ->  | AR71: =IF($B71<>"PRC_RESID","",IF(AR$7=2005+OFFSET(AGR!$B$49,$AX71,SUMIF($B$10:$B$14,"NCAP_TLIFE",$AY$10:$AY$14)),0,"")) ->  | AS71: =IF($B71<>"PRC_RESID","",IF(AS$7=2005+OFFSET(AGR!$B$49,$AX71,SUMIF($B$10:$B$14,"NCAP_TLIFE",$AY$10:$AY$14)),0,"")) ->  | AT71: =IF($B71<>"PRC_RESID","",IF(AT$7=2005+OFFSET(AGR!$B$49,$AX71,SUMIF($B$10:$B$14,"NCAP_TLIFE",$AY$10:$AY$14)),0,"")) ->  | AU71: =IF($B71<>"PRC_RESID","",IF(AU$7=2005+OFFSET(AGR!$B$49,$AX71,SUMIF($B$10:$B$14,"NCAP_TLIFE",$AY$10:$AY$14)),0,"")) ->  | AW71: =IF(AX70=AGR!$W$72,AW70+1,AW70) -> 3 | AX71: 10
A72: =IF(LEFT(OFFSET(AGR!$A$49,AX72,0),2)="\I","*","") ->  | B72: NCAP_BND | C72: =IF($A72="*","",OFFSET(AGR!$B$49,AX72,0)) -> ATODS-E | D72: - | E72: - | F72: - | G72: - | H72: UP | I72: 0 | J72: =IF($A72="*","",OFFSET(AGR!$B$49,AX72,SUMIF($B$10:$B$14,B72,$AY$10:$AY$14))) -> 0.04592900924 | K72: =IF($B72<>"PRC_RESID","",IF(K$7=2005+OFFSET(AGR!$B$49,$AX72,SUMIF($B$10:$B$14,"NCAP_TLIFE",$AY$10:$AY$14)),0,"")) ->  | L72: =IF($B72<>"PRC_RESID","",IF(L$7=2005+OFFSET(AGR!$B$49,$AX72,SUMIF($B$10:$B$14,"NCAP_TLIFE",$AY$10:$AY$14)),0,"")) ->  | M72: =IF($B72<>"PRC_RESID","",IF(M$7=2005+OFFSET(AGR!$B$49,$AX72,SUMIF($B$10:$B$14,"NCAP_TLIFE",$AY$10:$AY$14)),0,"")) ->  | N72: =IF($B72<>"PRC_RESID","",IF(N$7=2005+OFFSET(AGR!$B$49,$AX72,SUMIF($B$10:$B$14,"NCAP_TLIFE",$AY$10:$AY$14)),0,"")) ->  | O72: =IF($B72<>"PRC_RESID","",IF(O$7=2005+OFFSET(AGR!$B$49,$AX72,SUMIF($B$10:$B$14,"NCAP_TLIFE",$AY$10:$AY$14)),0,"")) ->  | P72: =IF($B72<>"PRC_RESID","",IF(P$7=2005+OFFSET(AGR!$B$49,$AX72,SUMIF($B$10:$B$14,"NCAP_TLIFE",$AY$10:$AY$14)),0,"")) ->  | Q72: =IF($B72<>"PRC_RESID","",IF(Q$7=2005+OFFSET(AGR!$B$49,$AX72,SUMIF($B$10:$B$14,"NCAP_TLIFE",$AY$10:$AY$14)),0,"")) ->  | R72: =IF($B72<>"PRC_RESID","",IF(R$7=2005+OFFSET(AGR!$B$49,$AX72,SUMIF($B$10:$B$14,"NCAP_TLIFE",$AY$10:$AY$14)),0,"")) ->  | S72: =IF($B72<>"PRC_RESID","",IF(S$7=2005+OFFSET(AGR!$B$49,$AX72,SUMIF($B$10:$B$14,"NCAP_TLIFE",$AY$10:$AY$14)),0,"")) ->  | T72: =IF($B72<>"PRC_RESID","",IF(T$7=2005+OFFSET(AGR!$B$49,$AX72,SUMIF($B$10:$B$14,"NCAP_TLIFE",$AY$10:$AY$14)),0,"")) ->  | U72: =IF($B72<>"PRC_RESID","",IF(U$7=2005+OFFSET(AGR!$B$49,$AX72,SUMIF($B$10:$B$14,"NCAP_TLIFE",$AY$10:$AY$14)),0,"")) ->  | V72: =IF($B72<>"PRC_RESID","",IF(V$7=2005+OFFSET(AGR!$B$49,$AX72,SUMIF($B$10:$B$14,"NCAP_TLIFE",$AY$10:$AY$14)),0,"")) ->  | W72: =IF($B72<>"PRC_RESID","",IF(W$7=2005+OFFSET(AGR!$B$49,$AX72,SUMIF($B$10:$B$14,"NCAP_TLIFE",$AY$10:$AY$14)),0,"")) ->  | X72: =IF($B72<>"PRC_RESID","",IF(X$7=2005+OFFSET(AGR!$B$49,$AX72,SUMIF($B$10:$B$14,"NCAP_TLIFE",$AY$10:$AY$14)),0,"")) ->  | Y72: =IF($B72<>"PRC_RESID","",IF(Y$7=2005+OFFSET(AGR!$B$49,$AX72,SUMIF($B$10:$B$14,"NCAP_TLIFE",$AY$10:$AY$14)),0,"")) ->  | Z72: =IF($B72<>"PRC_RESID","",IF(Z$7=2005+OFFSET(AGR!$B$49,$AX72,SUMIF($B$10:$B$14,"NCAP_TLIFE",$AY$10:$AY$14)),0,"")) ->  | AA72: =IF($B72<>"PRC_RESID","",IF(AA$7=2005+OFFSET(AGR!$B$49,$AX72,SUMIF($B$10:$B$14,"NCAP_TLIFE",$AY$10:$AY$14)),0,"")) ->  | AB72: =IF($B72<>"PRC_RESID","",IF(AB$7=2005+OFFSET(AGR!$B$49,$AX72,SUMIF($B$10:$B$14,"NCAP_TLIFE",$AY$10:$AY$14)),0,"")) ->  | AC72: =IF($B72<>"PRC_RESID","",IF(AC$7=2005+OFFSET(AGR!$B$49,$AX72,SUMIF($B$10:$B$14,"NCAP_TLIFE",$AY$10:$AY$14)),0,"")) ->  | AD72: =IF($B72<>"PRC_RESID","",IF(AD$7=2005+OFFSET(AGR!$B$49,$AX72,SUMIF($B$10:$B$14,"NCAP_TLIFE",$AY$10:$AY$14)),0,"")) ->  | AE72: =IF($B72<>"PRC_RESID","",IF(AE$7=2005+OFFSET(AGR!$B$49,$AX72,SUMIF($B$10:$B$14,"NCAP_TLIFE",$AY$10:$AY$14)),0,"")) ->  | AF72: =IF($B72<>"PRC_RESID","",IF(AF$7=2005+OFFSET(AGR!$B$49,$AX72,SUMIF($B$10:$B$14,"NCAP_TLIFE",$AY$10:$AY$14)),0,"")) ->  | AG72: =IF($B72<>"PRC_RESID","",IF(AG$7=2005+OFFSET(AGR!$B$49,$AX72,SUMIF($B$10:$B$14,"NCAP_TLIFE",$AY$10:$AY$14)),0,"")) ->  | AH72: =IF($B72<>"PRC_RESID","",IF(AH$7=2005+OFFSET(AGR!$B$49,$AX72,SUMIF($B$10:$B$14,"NCAP_TLIFE",$AY$10:$AY$14)),0,"")) ->  | AM72: =IF($B72<>"PRC_RESID","",IF(AM$7=2005+OFFSET(AGR!$B$49,$AX72,SUMIF($B$10:$B$14,"NCAP_TLIFE",$AY$10:$AY$14)),0,"")) ->  | AR72: =IF($B72<>"PRC_RESID","",IF(AR$7=2005+OFFSET(AGR!$B$49,$AX72,SUMIF($B$10:$B$14,"NCAP_TLIFE",$AY$10:$AY$14)),0,"")) ->  | AS72: =IF($B72<>"PRC_RESID","",IF(AS$7=2005+OFFSET(AGR!$B$49,$AX72,SUMIF($B$10:$B$14,"NCAP_TLIFE",$AY$10:$AY$14)),0,"")) ->  | AT72: =IF($B72<>"PRC_RESID","",IF(AT$7=2005+OFFSET(AGR!$B$49,$AX72,SUMIF($B$10:$B$14,"NCAP_TLIFE",$AY$10:$AY$14)),0,"")) ->  | AU72: =IF($B72<>"PRC_RESID","",IF(AU$7=2005+OFFSET(AGR!$B$49,$AX72,SUMIF($B$10:$B$14,"NCAP_TLIFE",$AY$10:$AY$14)),0,"")) ->  | AW72: =IF(AX71=AGR!$W$72,AW71+1,AW71) -> 3 | AX72: 11
A73: =IF(LEFT(OFFSET(AGR!$A$49,AX73,0),2)="\I","*","") ->  | B73: NCAP_BND | C73: =IF($A73="*","",OFFSET(AGR!$B$49,AX73,0)) -> ATELC-E | D73: - | E73: - | F73: - | G73: - | H73: UP | I73: 0 | J73: =IF($A73="*","",OFFSET(AGR!$B$49,AX73,SUMIF($B$10:$B$14,B73,$AY$10:$AY$14))) -> 0 | K73: =IF($B73<>"PRC_RESID","",IF(K$7=2005+OFFSET(AGR!$B$49,$AX73,SUMIF($B$10:$B$14,"NCAP_TLIFE",$AY$10:$AY$14)),0,"")) ->  | L73: =IF($B73<>"PRC_RESID","",IF(L$7=2005+OFFSET(AGR!$B$49,$AX73,SUMIF($B$10:$B$14,"NCAP_TLIFE",$AY$10:$AY$14)),0,"")) ->  | M73: =IF($B73<>"PRC_RESID","",IF(M$7=2005+OFFSET(AGR!$B$49,$AX73,SUMIF($B$10:$B$14,"NCAP_TLIFE",$AY$10:$AY$14)),0,"")) ->  | N73: =IF($B73<>"PRC_RESID","",IF(N$7=2005+OFFSET(AGR!$B$49,$AX73,SUMIF($B$10:$B$14,"NCAP_TLIFE",$AY$10:$AY$14)),0,"")) ->  | O73: =IF($B73<>"PRC_RESID","",IF(O$7=2005+OFFSET(AGR!$B$49,$AX73,SUMIF($B$10:$B$14,"NCAP_TLIFE",$AY$10:$AY$14)),0,"")) ->  | P73: =IF($B73<>"PRC_RESID","",IF(P$7=2005+OFFSET(AGR!$B$49,$AX73,SUMIF($B$10:$B$14,"NCAP_TLIFE",$AY$10:$AY$14)),0,"")) ->  | Q73: =IF($B73<>"PRC_RESID","",IF(Q$7=2005+OFFSET(AGR!$B$49,$AX73,SUMIF($B$10:$B$14,"NCAP_TLIFE",$AY$10:$AY$14)),0,"")) ->  | R73: =IF($B73<>"PRC_RESID","",IF(R$7=2005+OFFSET(AGR!$B$49,$AX73,SUMIF($B$10:$B$14,"NCAP_TLIFE",$AY$10:$AY$14)),0,"")) ->  | S73: =IF($B73<>"PRC_RESID","",IF(S$7=2005+OFFSET(AGR!$B$49,$AX73,SUMIF($B$10:$B$14,"NCAP_TLIFE",$AY$10:$AY$14)),0,"")) ->  | T73: =IF($B73<>"PRC_RESID","",IF(T$7=2005+OFFSET(AGR!$B$49,$AX73,SUMIF($B$10:$B$14,"NCAP_TLIFE",$AY$10:$AY$14)),0,"")) ->  | U73: =IF($B73<>"PRC_RESID","",IF(U$7=2005+OFFSET(AGR!$B$49,$AX73,SUMIF($B$10:$B$14,"NCAP_TLIFE",$AY$10:$AY$14)),0,"")) ->  | V73: =IF($B73<>"PRC_RESID","",IF(V$7=2005+OFFSET(AGR!$B$49,$AX73,SUMIF($B$10:$B$14,"NCAP_TLIFE",$AY$10:$AY$14)),0,"")) ->  | W73: =IF($B73<>"PRC_RESID","",IF(W$7=2005+OFFSET(AGR!$B$49,$AX73,SUMIF($B$10:$B$14,"NCAP_TLIFE",$AY$10:$AY$14)),0,"")) ->  | X73: =IF($B73<>"PRC_RESID","",IF(X$7=2005+OFFSET(AGR!$B$49,$AX73,SUMIF($B$10:$B$14,"NCAP_TLIFE",$AY$10:$AY$14)),0,"")) ->  | Y73: =IF($B73<>"PRC_RESID","",IF(Y$7=2005+OFFSET(AGR!$B$49,$AX73,SUMIF($B$10:$B$14,"NCAP_TLIFE",$AY$10:$AY$14)),0,"")) ->  | Z73: =IF($B73<>"PRC_RESID","",IF(Z$7=2005+OFFSET(AGR!$B$49,$AX73,SUMIF($B$10:$B$14,"NCAP_TLIFE",$AY$10:$AY$14)),0,"")) ->  | AA73: =IF($B73<>"PRC_RESID","",IF(AA$7=2005+OFFSET(AGR!$B$49,$AX73,SUMIF($B$10:$B$14,"NCAP_TLIFE",$AY$10:$AY$14)),0,"")) ->  | AB73: =IF($B73<>"PRC_RESID","",IF(AB$7=2005+OFFSET(AGR!$B$49,$AX73,SUMIF($B$10:$B$14,"NCAP_TLIFE",$AY$10:$AY$14)),0,"")) ->  | AC73: =IF($B73<>"PRC_RESID","",IF(AC$7=2005+OFFSET(AGR!$B$49,$AX73,SUMIF($B$10:$B$14,"NCAP_TLIFE",$AY$10:$AY$14)),0,"")) ->  | AD73: =IF($B73<>"PRC_RESID","",IF(AD$7=2005+OFFSET(AGR!$B$49,$AX73,SUMIF($B$10:$B$14,"NCAP_TLIFE",$AY$10:$AY$14)),0,"")) ->  | AE73: =IF($B73<>"PRC_RESID","",IF(AE$7=2005+OFFSET(AGR!$B$49,$AX73,SUMIF($B$10:$B$14,"NCAP_TLIFE",$AY$10:$AY$14)),0,"")) ->  | AF73: =IF($B73<>"PRC_RESID","",IF(AF$7=2005+OFFSET(AGR!$B$49,$AX73,SUMIF($B$10:$B$14,"NCAP_TLIFE",$AY$10:$AY$14)),0,"")) ->  | AG73: =IF($B73<>"PRC_RESID","",IF(AG$7=2005+OFFSET(AGR!$B$49,$AX73,SUMIF($B$10:$B$14,"NCAP_TLIFE",$AY$10:$AY$14)),0,"")) ->  | AH73: =IF($B73<>"PRC_RESID","",IF(AH$7=2005+OFFSET(AGR!$B$49,$AX73,SUMIF($B$10:$B$14,"NCAP_TLIFE",$AY$10:$AY$14)),0,"")) ->  | AM73: =IF($B73<>"PRC_RESID","",IF(AM$7=2005+OFFSET(AGR!$B$49,$AX73,SUMIF($B$10:$B$14,"NCAP_TLIFE",$AY$10:$AY$14)),0,"")) ->  | AR73: =IF($B73<>"PRC_RESID","",IF(AR$7=2005+OFFSET(AGR!$B$49,$AX73,SUMIF($B$10:$B$14,"NCAP_TLIFE",$AY$10:$AY$14)),0,"")) ->  | AS73: =IF($B73<>"PRC_RESID","",IF(AS$7=2005+OFFSET(AGR!$B$49,$AX73,SUMIF($B$10:$B$14,"NCAP_TLIFE",$AY$10:$AY$14)),0,"")) ->  | AT73: =IF($B73<>"PRC_RESID","",IF(AT$7=2005+OFFSET(AGR!$B$49,$AX73,SUMIF($B$10:$B$14,"NCAP_TLIFE",$AY$10:$AY$14)),0,"")) ->  | AU73: =IF($B73<>"PRC_RESID","",IF(AU$7=2005+OFFSET(AGR!$B$49,$AX73,SUMIF($B$10:$B$14,"NCAP_TLIFE",$AY$10:$AY$14)),0,"")) ->  | AW73: =IF(AX72=AGR!$W$72,AW72+1,AW72) -> 3 | AX73: 12
A74: =IF(LEFT(OFFSET(AGR!$A$49,AX74,0),2)="\I","*","") ->  | B74: NCAP_BND | C74: =IF($A74="*","",OFFSET(AGR!$B$49,AX74,0)) -> ATOGS-E | D74: - | E74: - | F74: - | G74: - | H74: UP | I74: 0 | J74: =IF($A74="*","",OFFSET(AGR!$B$49,AX74,SUMIF($B$10:$B$14,B74,$AY$10:$AY$14))) -> 0.00407099076 | K74: =IF($B74<>"PRC_RESID","",IF(K$7=2005+OFFSET(AGR!$B$49,$AX74,SUMIF($B$10:$B$14,"NCAP_TLIFE",$AY$10:$AY$14)),0,"")) ->  | L74: =IF($B74<>"PRC_RESID","",IF(L$7=2005+OFFSET(AGR!$B$49,$AX74,SUMIF($B$10:$B$14,"NCAP_TLIFE",$AY$10:$AY$14)),0,"")) ->  | M74: =IF($B74<>"PRC_RESID","",IF(M$7=2005+OFFSET(AGR!$B$49,$AX74,SUMIF($B$10:$B$14,"NCAP_TLIFE",$AY$10:$AY$14)),0,"")) ->  | N74: =IF($B74<>"PRC_RESID","",IF(N$7=2005+OFFSET(AGR!$B$49,$AX74,SUMIF($B$10:$B$14,"NCAP_TLIFE",$AY$10:$AY$14)),0,"")) ->  | O74: =IF($B74<>"PRC_RESID","",IF(O$7=2005+OFFSET(AGR!$B$49,$AX74,SUMIF($B$10:$B$14,"NCAP_TLIFE",$AY$10:$AY$14)),0,"")) ->  | P74: =IF($B74<>"PRC_RESID","",IF(P$7=2005+OFFSET(AGR!$B$49,$AX74,SUMIF($B$10:$B$14,"NCAP_TLIFE",$AY$10:$AY$14)),0,"")) ->  | Q74: =IF($B74<>"PRC_RESID","",IF(Q$7=2005+OFFSET(AGR!$B$49,$AX74,SUMIF($B$10:$B$14,"NCAP_TLIFE",$AY$10:$AY$14)),0,"")) ->  | R74: =IF($B74<>"PRC_RESID","",IF(R$7=2005+OFFSET(AGR!$B$49,$AX74,SUMIF($B$10:$B$14,"NCAP_TLIFE",$AY$10:$AY$14)),0,"")) ->  | S74: =IF($B74<>"PRC_RESID","",IF(S$7=2005+OFFSET(AGR!$B$49,$AX74,SUMIF($B$10:$B$14,"NCAP_TLIFE",$AY$10:$AY$14)),0,"")) ->  | T74: =IF($B74<>"PRC_RESID","",IF(T$7=2005+OFFSET(AGR!$B$49,$AX74,SUMIF($B$10:$B$14,"NCAP_TLIFE",$AY$10:$AY$14)),0,"")) ->  | U74: =IF($B74<>"PRC_RESID","",IF(U$7=2005+OFFSET(AGR!$B$49,$AX74,SUMIF($B$10:$B$14,"NCAP_TLIFE",$AY$10:$AY$14)),0,"")) ->  | V74: =IF($B74<>"PRC_RESID","",IF(V$7=2005+OFFSET(AGR!$B$49,$AX74,SUMIF($B$10:$B$14,"NCAP_TLIFE",$AY$10:$AY$14)),0,"")) ->  | W74: =IF($B74<>"PRC_RESID","",IF(W$7=2005+OFFSET(AGR!$B$49,$AX74,SUMIF($B$10:$B$14,"NCAP_TLIFE",$AY$10:$AY$14)),0,"")) ->  | X74: =IF($B74<>"PRC_RESID","",IF(X$7=2005+OFFSET(AGR!$B$49,$AX74,SUMIF($B$10:$B$14,"NCAP_TLIFE",$AY$10:$AY$14)),0,"")) ->  | Y74: =IF($B74<>"PRC_RESID","",IF(Y$7=2005+OFFSET(AGR!$B$49,$AX74,SUMIF($B$10:$B$14,"NCAP_TLIFE",$AY$10:$AY$14)),0,"")) ->  | Z74: =IF($B74<>"PRC_RESID","",IF(Z$7=2005+OFFSET(AGR!$B$49,$AX74,SUMIF($B$10:$B$14,"NCAP_TLIFE",$AY$10:$AY$14)),0,"")) ->  | AA74: =IF($B74<>"PRC_RESID","",IF(AA$7=2005+OFFSET(AGR!$B$49,$AX74,SUMIF($B$10:$B$14,"NCAP_TLIFE",$AY$10:$AY$14)),0,"")) ->  | AB74: =IF($B74<>"PRC_RESID","",IF(AB$7=2005+OFFSET(AGR!$B$49,$AX74,SUMIF($B$10:$B$14,"NCAP_TLIFE",$AY$10:$AY$14)),0,"")) ->  | AC74: =IF($B74<>"PRC_RESID","",IF(AC$7=2005+OFFSET(AGR!$B$49,$AX74,SUMIF($B$10:$B$14,"NCAP_TLIFE",$AY$10:$AY$14)),0,"")) ->  | AD74: =IF($B74<>"PRC_RESID","",IF(AD$7=2005+OFFSET(AGR!$B$49,$AX74,SUMIF($B$10:$B$14,"NCAP_TLIFE",$AY$10:$AY$14)),0,"")) ->  | AE74: =IF($B74<>"PRC_RESID","",IF(AE$7=2005+OFFSET(AGR!$B$49,$AX74,SUMIF($B$10:$B$14,"NCAP_TLIFE",$AY$10:$AY$14)),0,"")) ->  | AF74: =IF($B74<>"PRC_RESID","",IF(AF$7=2005+OFFSET(AGR!$B$49,$AX74,SUMIF($B$10:$B$14,"NCAP_TLIFE",$AY$10:$AY$14)),0,"")) ->  | AG74: =IF($B74<>"PRC_RESID","",IF(AG$7=2005+OFFSET(AGR!$B$49,$AX74,SUMIF($B$10:$B$14,"NCAP_TLIFE",$AY$10:$AY$14)),0,"")) ->  | AH74: =IF($B74<>"PRC_RESID","",IF(AH$7=2005+OFFSET(AGR!$B$49,$AX74,SUMIF($B$10:$B$14,"NCAP_TLIFE",$AY$10:$AY$14)),0,"")) ->  | AM74: =IF($B74<>"PRC_RESID","",IF(AM$7=2005+OFFSET(AGR!$B$49,$AX74,SUMIF($B$10:$B$14,"NCAP_TLIFE",$AY$10:$AY$14)),0,"")) ->  | AR74: =IF($B74<>"PRC_RESID","",IF(AR$7=2005+OFFSET(AGR!$B$49,$AX74,SUMIF($B$10:$B$14,"NCAP_TLIFE",$AY$10:$AY$14)),0,"")) ->  | AS74: =IF($B74<>"PRC_RESID","",IF(AS$7=2005+OFFSET(AGR!$B$49,$AX74,SUMIF($B$10:$B$14,"NCAP_TLIFE",$AY$10:$AY$14)),0,"")) ->  | AT74: =IF($B74<>"PRC_RESID","",IF(AT$7=2005+OFFSET(AGR!$B$49,$AX74,SUMIF($B$10:$B$14,"NCAP_TLIFE",$AY$10:$AY$14)),0,"")) ->  | AU74: =IF($B74<>"PRC_RESID","",IF(AU$7=2005+OFFSET(AGR!$B$49,$AX74,SUMIF($B$10:$B$14,"NCAP_TLIFE",$AY$10:$AY$14)),0,"")) ->  | AW74: =IF(AX73=AGR!$W$72,AW73+1,AW73) -> 3 | AX74: 13
A75: =IF(LEFT(OFFSET(AGR!$A$49,AX75,0),2)="\I","*","") -> * | C75: =IF($A75="*","",OFFSET(AGR!$B$49,AX75,0)) ->  | J75: =IF($A75="*","",OFFSET(AGR!$B$49,AX75,SUMIF($B$10:$B$14,B75,$AY$10:$AY$14))) ->  | K75: =IF($B75<>"PRC_RESID","",IF(K$7=2005+OFFSET(AGR!$B$49,$AX75,SUMIF($B$10:$B$14,"NCAP_TLIFE",$AY$10:$AY$14)),0,"")) ->  | L75: =IF($B75<>"PRC_RESID","",IF(L$7=2005+OFFSET(AGR!$B$49,$AX75,SUMIF($B$10:$B$14,"NCAP_TLIFE",$AY$10:$AY$14)),0,"")) ->  | M75: =IF($B75<>"PRC_RESID","",IF(M$7=2005+OFFSET(AGR!$B$49,$AX75,SUMIF($B$10:$B$14,"NCAP_TLIFE",$AY$10:$AY$14)),0,"")) ->  | N75: =IF($B75<>"PRC_RESID","",IF(N$7=2005+OFFSET(AGR!$B$49,$AX75,SUMIF($B$10:$B$14,"NCAP_TLIFE",$AY$10:$AY$14)),0,"")) ->  | O75: =IF($B75<>"PRC_RESID","",IF(O$7=2005+OFFSET(AGR!$B$49,$AX75,SUMIF($B$10:$B$14,"NCAP_TLIFE",$AY$10:$AY$14)),0,"")) ->  | P75: =IF($B75<>"PRC_RESID","",IF(P$7=2005+OFFSET(AGR!$B$49,$AX75,SUMIF($B$10:$B$14,"NCAP_TLIFE",$AY$10:$AY$14)),0,"")) ->  | Q75: =IF($B75<>"PRC_RESID","",IF(Q$7=2005+OFFSET(AGR!$B$49,$AX75,SUMIF($B$10:$B$14,"NCAP_TLIFE",$AY$10:$AY$14)),0,"")) ->  | R75: =IF($B75<>"PRC_RESID","",IF(R$7=2005+OFFSET(AGR!$B$49,$AX75,SUMIF($B$10:$B$14,"NCAP_TLIFE",$AY$10:$AY$14)),0,"")) ->  | S75: =IF($B75<>"PRC_RESID","",IF(S$7=2005+OFFSET(AGR!$B$49,$AX75,SUMIF($B$10:$B$14,"NCAP_TLIFE",$AY$10:$AY$14)),0,"")) ->  | T75: =IF($B75<>"PRC_RESID","",IF(T$7=2005+OFFSET(AGR!$B$49,$AX75,SUMIF($B$10:$B$14,"NCAP_TLIFE",$AY$10:$AY$14)),0,"")) ->  | U75: =IF($B75<>"PRC_RESID","",IF(U$7=2005+OFFSET(AGR!$B$49,$AX75,SUMIF($B$10:$B$14,"NCAP_TLIFE",$AY$10:$AY$14)),0,"")) ->  | V75: =IF($B75<>"PRC_RESID","",IF(V$7=2005+OFFSET(AGR!$B$49,$AX75,SUMIF($B$10:$B$14,"NCAP_TLIFE",$AY$10:$AY$14)),0,"")) ->  | W75: =IF($B75<>"PRC_RESID","",IF(W$7=2005+OFFSET(AGR!$B$49,$AX75,SUMIF($B$10:$B$14,"NCAP_TLIFE",$AY$10:$AY$14)),0,"")) ->  | X75: =IF($B75<>"PRC_RESID","",IF(X$7=2005+OFFSET(AGR!$B$49,$AX75,SUMIF($B$10:$B$14,"NCAP_TLIFE",$AY$10:$AY$14)),0,"")) ->  | Y75: =IF($B75<>"PRC_RESID","",IF(Y$7=2005+OFFSET(AGR!$B$49,$AX75,SUMIF($B$10:$B$14,"NCAP_TLIFE",$AY$10:$AY$14)),0,"")) ->  | Z75: =IF($B75<>"PRC_RESID","",IF(Z$7=2005+OFFSET(AGR!$B$49,$AX75,SUMIF($B$10:$B$14,"NCAP_TLIFE",$AY$10:$AY$14)),0,"")) ->  | AA75: =IF($B75<>"PRC_RESID","",IF(AA$7=2005+OFFSET(AGR!$B$49,$AX75,SUMIF($B$10:$B$14,"NCAP_TLIFE",$AY$10:$AY$14)),0,"")) ->  | AB75: =IF($B75<>"PRC_RESID","",IF(AB$7=2005+OFFSET(AGR!$B$49,$AX75,SUMIF($B$10:$B$14,"NCAP_TLIFE",$AY$10:$AY$14)),0,"")) ->  | AC75: =IF($B75<>"PRC_RESID","",IF(AC$7=2005+OFFSET(AGR!$B$49,$AX75,SUMIF($B$10:$B$14,"NCAP_TLIFE",$AY$10:$AY$14)),0,"")) ->  | AD75: =IF($B75<>"PRC_RESID","",IF(AD$7=2005+OFFSET(AGR!$B$49,$AX75,SUMIF($B$10:$B$14,"NCAP_TLIFE",$AY$10:$AY$14)),0,"")) ->  | AE75: =IF($B75<>"PRC_RESID","",IF(AE$7=2005+OFFSET(AGR!$B$49,$AX75,SUMIF($B$10:$B$14,"NCAP_TLIFE",$AY$10:$AY$14)),0,"")) ->  | AF75: =IF($B75<>"PRC_RESID","",IF(AF$7=2005+OFFSET(AGR!$B$49,$AX75,SUMIF($B$10:$B$14,"NCAP_TLIFE",$AY$10:$AY$14)),0,"")) ->  | AG75: =IF($B75<>"PRC_RESID","",IF(AG$7=2005+OFFSET(AGR!$B$49,$AX75,SUMIF($B$10:$B$14,"NCAP_TLIFE",$AY$10:$AY$14)),0,"")) ->  | AH75: =IF($B75<>"PRC_RESID","",IF(AH$7=2005+OFFSET(AGR!$B$49,$AX75,SUMIF($B$10:$B$14,"NCAP_TLIFE",$AY$10:$AY$14)),0,"")) ->  | AM75: =IF($B75<>"PRC_RESID","",IF(AM$7=2005+OFFSET(AGR!$B$49,$AX75,SUMIF($B$10:$B$14,"NCAP_TLIFE",$AY$10:$AY$14)),0,"")) ->  | AR75: =IF($B75<>"PRC_RESID","",IF(AR$7=2005+OFFSET(AGR!$B$49,$AX75,SUMIF($B$10:$B$14,"NCAP_TLIFE",$AY$10:$AY$14)),0,"")) ->  | AS75: =IF($B75<>"PRC_RESID","",IF(AS$7=2005+OFFSET(AGR!$B$49,$AX75,SUMIF($B$10:$B$14,"NCAP_TLIFE",$AY$10:$AY$14)),0,"")) ->  | AT75: =IF($B75<>"PRC_RESID","",IF(AT$7=2005+OFFSET(AGR!$B$49,$AX75,SUMIF($B$10:$B$14,"NCAP_TLIFE",$AY$10:$AY$14)),0,"")) ->  | AU75: =IF($B75<>"PRC_RESID","",IF(AU$7=2005+OFFSET(AGR!$B$49,$AX75,SUMIF($B$10:$B$14,"NCAP_TLIFE",$AY$10:$AY$14)),0,"")) ->  | AW75: =IF(AX74=AGR!$W$72,AW74+1,AW74) -> 3 | AX75: 14
